Workbook

Sheet Accueil
J2: Planning Avec Lettres (planning sources pour equipes)
J8: Planning Avec Horraires (pour RH et ou Equipes)
J9: Pour remplir heures supplementaires
J16: Bilan Equipes

Sheet Données
A1: Donné horraire
A2: M | B2: 7h00 - 14h30 | C2: 07:30:00 | E2: Remplir ici les données
A3: MG | B3: 7h00 - 15h30 | C3: 08:30:00 | G3: Nom du service
A4: J | B4: 10h00 - 17h30 | C4: 07:30:00 | E4: Equipe de jour | G4: 7/11 Ans
A5: J+ | B5: 10h00 - 19h15 | C5: 09:15:00 | E5: Emeraude MUBANGIA | G5: Année | H5: 2017
A6: R | B6: 10h00 - 12h00 | C6: 02:00:00 | E6: William CLAVIER
A7: RS | B7: 10h00 - 21h30 | C7: 10:00:00 | E7: Silvère BOUNGUELA
A8: S | B8: 14h00 - 21h30 | C8: 07:30:00 | E8: Christelle RIBIERO | I8: Cliquer ici après changement de l'année ou après changement de couleurs/bordure (cela peu prendre quelques minutes)
A9: W | B9: 7h00 - 19h15 | C9: 12:15:00 | E9: Sébastien LE HIR
A10: W+ | B10: 10h00 - 21h30 | C10: 11:30:00 | E10: Fatou NDIAYE
A11: WD | B11: 7h00 - 19h15 | C11: 12:00:00 | E11: Vincent BUISSON
A12: WF | B12: 7h00 - 19h15 | C12: 12:00:00 | E12: Eunice VARELA TAVARES | H12: Pour masquer les agents non présent sur le mois
A13: N | B13: 21h00 - 7h15 | C13: 14:00:00 | E13: Emeraude MUBANGIA
A14: N+ | B14: 19h15 - 7h15 | C14: 12:15:00 | E14: Mimouna BAMOUNI
A15: NS | B15: 19h15 - 7h15 | C15: 12:15:00 | G15: Pour changer couleurs et bordures des plannings
A16: T | B16: T | C16: 12:00:00 | G16: jours | H16: Semaine | I16: W | J16: h. | K16: TH
A17: F | B17: F | C17: 07:30:00
A18: SYN | B18: Syn | C18: 07:30:00 | G18: Equipe de jour
A19: AT | B19: AT | C19: 07:30:00
A20: AM | B20: AM | C20: 07:30:00 | G20: Equipe de nuit
A21: EM | B21: EM | C21: 07:30:00 | E21: Equipe de nuit
A22: CE | B22: CE | C22: 07:30:00 | E22: Séverine DARDAINE | G22: Maitresse de maison
A23: CA | B23: CA | C23: 00:00:00 | E23: Aurélie CHAPON
A24: CA16 | B24: CA16 | C24: 00:00:00 | E24: Yannick FLANDA | G24: Psychologue
A25: REC | B25: REC | C25: 00:00:00
A26: G | B26: G | C26: 02:00:00 | G26: Coordinatrice
A27: D | B27: D | C27: 00:00:00
A28: 0 | C28: 00:00:00 | G28: Chef de service
A29: TP | B29: TP | C29: 00:00:00
A30: RT | B30: RT | C30: 00:00:00
A31: P | B31: 9h00 - 17h00 | C31: 08:00:00 | E31: Maitresse de maison
A32: AC | B32: AC | C32: 00:00:00 | E32: Florinda VICENTE
E41: Psychologue
E42: Anne Lise ANCEL
E45: Coordinatrice
E46: Jocelyne ROUSSEL
E51: Chef de service
E52: Catherine SOMERS

Sheet Janvier
A2: 1
A3: =Données!$G$4 -> 7/11 Ans | O3: =Données!$H$5 -> 2017
A6: Jours | B6: =PROPER(LEFT(TEXT(DATE(Données!$H5,$A$2,B7),"jjj"),1)) -> D | C6: =PROPER(LEFT(TEXT(DATE(Données!$H5,$A$2,C7),"jjj"),1)) -> L | D6: =PROPER(LEFT(TEXT(DATE(Données!$H5,$A$2,D7),"jjj"),1)) -> M | E6: =PROPER(LEFT(TEXT(DATE(Données!$H5,$A$2,E7),"jjj"),1)) -> M | F6: =PROPER(LEFT(TEXT(DATE(Données!$H5,$A$2,F7),"jjj"),1)) -> J | G6: =PROPER(LEFT(TEXT(DATE(Données!$H5,$A$2,G7),"jjj"),1)) -> V | H6: =PROPER(LEFT(TEXT(DATE(Données!$H5,$A$2,H7),"jjj"),1)) -> S | I6: =PROPER(LEFT(TEXT(DATE(Données!$H5,$A$2,I7),"jjj"),1)) -> D | J6: =PROPER(LEFT(TEXT(DATE(Données!$H5,$A$2,J7),"jjj"),1)) -> L | K6: =PROPER(LEFT(TEXT(DATE(Données!$H5,$A$2,K7),"jjj"),1)) -> M | L6: =PROPER(LEFT(TEXT(DATE(Données!$H5,$A$2,L7),"jjj"),1)) -> M | M6: =PROPER(LEFT(TEXT(DATE(Données!$H5,$A$2,M7),"jjj"),1)) -> J | N6: =PROPER(LEFT(TEXT(DATE(Données!$H5,$A$2,N7),"jjj"),1)) -> V | O6: =PROPER(LEFT(TEXT(DATE(Données!$H5,$A$2,O7),"jjj"),1)) -> S | P6: =PROPER(LEFT(TEXT(DATE(Données!$H5,$A$2,P7),"jjj"),1)) -> D | Q6: =PROPER(LEFT(TEXT(DATE(Données!$H5,$A$2,Q7),"jjj"),1)) -> L | R6: =PROPER(LEFT(TEXT(DATE(Données!$H5,$A$2,R7),"jjj"),1)) -> M | S6: =PROPER(LEFT(TEXT(DATE(Données!$H5,$A$2,S7),"jjj"),1)) -> M | T6: =PROPER(LEFT(TEXT(DATE(Données!$H5,$A$2,T7),"jjj"),1)) -> J | U6: =PROPER(LEFT(TEXT(DATE(Données!$H5,$A$2,U7),"jjj"),1)) -> V | V6: =PROPER(LEFT(TEXT(DATE(Données!$H5,$A$2,V7),"jjj"),1)) -> S | W6: =PROPER(LEFT(TEXT(DATE(Données!$H5,$A$2,W7),"jjj"),1)) -> D | X6: =PROPER(LEFT(TEXT(DATE(Données!$H5,$A$2,X7),"jjj"),1)) -> L | Y6: =PROPER(LEFT(TEXT(DATE(Données!$H5,$A$2,Y7),"jjj"),1)) -> M | Z6: =PROPER(LEFT(TEXT(DATE(Données!$H5,$A$2,Z7),"jjj"),1)) -> M | AA6: =PROPER(LEFT(TEXT(DATE(Données!$H5,$A$2,AA7),"jjj"),1)) -> J | AB6: =PROPER(LEFT(TEXT(DATE(Données!$H5,$A$2,AB7),"jjj"),1)) -> V | AC6: =PROPER(LEFT(TEXT(DATE(Données!$H5,$A$2,AC7),"jjj"),1)) -> S | AD6: =PROPER(LEFT(TEXT(DATE(Données!$H5,$A$2,AD7),"jjj"),1)) -> D | AE6: =PROPER(LEFT(TEXT(DATE(Données!$H5,$A$2,AE7),"jjj"),1)) -> L | AF6: =PROPER(LEFT(TEXT(DATE(Données!$H5,$A$2,AF7),"jjj"),1)) -> M
B7: =A7+1 -> 1 | C7: 2 | D7: 3 | E7: 4 | F7: 5 | G7: 6 | H7: 7 | I7: 8 | J7: 9 | K7: 10 | L7: 11 | M7: 12 | N7: 13 | O7: 14 | P7: 15 | Q7: 16 | R7: 17 | S7: 18 | T7: 19 | U7: 20 | V7: 21 | W7: 22 | X7: 23 | Y7: 24 | Z7: 25 | AA7: 26 | AB7: 27 | AC7: 28 | AD7: 29 | AE7: 30 | AF7: 31
A8: Equipe de jour
A9: =Données!$E5 -> Emeraude MUBANGIA
A10: =Données!$E6 -> William CLAVIER | C10: S | D10: RS | E10: M | F10: S | G10: S | J10: M | K10: M | O10: W | P10: WD | Q10: S | S10: S | T10: M | X10: REC | Y10: REC | Z10: REC | AA10: REC | AB10: REC | AE10: REC | AF10: REC
A11: =Données!$E7 -> Silvère BOUNGUELA | C11: CA16 | D11: CA16 | E11: CA16 | F11: CA16 | G11: CA16 | J11: REC | K11: REC | L11: REC | O11: W+ | P11: W+ | R11: M | S11: M | T11: S | U11: M | X11: S | Y11: RS | Z11: M | AA11: S | AC11: W+ | AD11: W+
A12: =Données!$E8 -> Christelle RIBIERO | C12: REC | D12: M | G12: M | H12: W | I12: WD | K12: M | L12: M | M12: J+ | N12: J+ | S12: CA16 | T12: CA16 | U12: CA16 | X12: J+ | Y12: MG | Z12: S | AA12: M | AB12: M | AE12: CA | AF12: RS
A13: =Données!$E9 -> Sébastien LE HIR | B13: WF | E13: S | H13: W+ | I13: WD | J13: J | L13: J+ | M13: S | N13: S | Q13: M | S13: M | T13: S | U13: S | X13: CA16 | Y13: CA16 | Z13: CA16 | AA13: CA16 | AB13: CA16 | AE13: S | AF13: M
A14: =Données!$E10 -> Fatou NDIAYE | B14: WF | C14: M | F14: M | G14: M | J14: CA16 | K14: CA16 | L14: CA16 | M14: CA16 | N14: CA16 | Q14: CA16 | R14: CA16 | S14: CA16 | T14: M | X14: M | Y14: RS | Z14: M | AC14: W | AD14: WD | AF14: CA16
A15: =Données!$E11 -> Vincent BUISSON | C15: REC | D15: REC | E15: REC | F15: REC | G15: REC | J15: REC | K15: REC | L15: REC | M15: REC | N15: REC | Q15: S | R15: RS | S15: S | U15: S | V15: W | W15: WD | Z15: S | AA15: M | AB15: M | AE15: S | AF15: RS
A16: =Données!$E12 -> Eunice VARELA TAVARES | C16: S | D16: RS | E16: S | F16: F | G16: F | J16: S | K16: RS | L16: S | M16: F | N16: F | R16: J | T16: F | U16: F | V16: W+ | W16: W+ | Y16: M | Z16: F | AB16: S | AE16: REC | AF16: REC
A17: =Données!$E13 -> Emeraude MUBANGIA
A18: =Données!$E14 -> Mimouna BAMOUNI | C18: M | D18: M | E18: TP | F18: S | G18: S | J18: AM | K18: RS | L18: TP | M18: M | N18: M | Q18: CA16 | R18: CA16 | S18: CA16 | T18: CA16 | U18: CA16 | X18: F | Y18: F | Z18: TP | AA18: S | AB18: S | AE18: M | AF18: M
A19: =Données!$E15 -> 0
A20: =Données!$E16 -> 0
A21: =Données!$E17 -> 0
A22: =Données!$E18 -> 0
A23: =Données!$E19 -> 0
A24: =Données!$E20 -> 0
A25: =Données!$E21 -> Equipe de nuit
A26: =Données!$E22 -> Séverine DARDAINE | C26: N+ | D26: N+ | G26: N+ | H26: NS | J26: N+ | K26: N+ | M26: N+ | R26: R | T26: AM | U26: AM | W26: N+ | Y26: R | AA26: N | AB26: N+ | AC26: NS
A27: =Données!$E23 -> Aurélie CHAPON | B27: N+ | D27: R | E27: N+ | F27: N+ | I27: N+ | L27: N+ | M27: R | N27: N+ | O27: NS | R27: N+ | S27: N+ | V27: NS | X27: N+ | Y27: N+ | AD27: N+ | AE27: N+
A28: =Données!$E24 -> Yannick FLANDA | C28: F | D28: F | E28: F | F28: F | G28: F | J28: F | K28: F | L28: F | M28: F | N28: F | Q28: N+ | R28: CA | S28: CA | T28: CA | U28: CA | X28: F | Y28: F | Z28: F | AA28: F | AB28: F | AE28: CA | AF28: AM
A29: =Données!$E25 -> 0
A30: =Données!$E26 -> 0
A31: =Données!$E27 -> 0
A32: =Données!$E28 -> 0
A33: =Données!$E29 -> 0
A34: =Données!$E30 -> 0
A35: =Données!$E31 -> Maitresse de maison
A36: =Données!$E32 -> Florinda VICENTE | C36: CA16 | D36: CA16 | E36: M | F36: M | G36: M | J36: M | K36: M | L36: M | M36: M | N36: M | Q36: M | R36: M | S36: CA16 | T36: M | U36: CA16 | X36: M | Y36: M | Z36: CA16 | AA36: CA16 | AB36: M | AE36: M | AF36: M
A37: =Données!$E33 -> 0
A38: =Données!$E34 -> 0
A39: =Données!$E35 -> 0
A40: =Données!$E36 -> 0
A41: =Données!$E37 -> 0
A42: =Données!$E38 -> 0
A43: =Données!$E39 -> 0
A44: =Données!$E40 -> 0
A45: =Données!$E41 -> Psychologue
A46: =Données!$E42 -> Anne Lise ANCEL | C46: CA | D46: J | E46: F | F46: J | G46: J | J46: F | K46: J | L46: F | M46: J | N46: J | Q46: J | R46: J | S46: F | T46: J | U46: CA | X46: F | Y46: J | Z46: F | AA46: J | AB46: J | AE46: J | AF46: J
A47: =Données!$E43 -> 0
A48: =Données!$E44 -> 0
A49: =Données!$E45 -> Coordinatrice
A50: =Données!$E46 -> Jocelyne ROUSSEL | C50: CA | D50: J | E50: J | F50: J | G50: J | J50: J | K50: J | L50: J | M50: J | N50: J | Q50: J | R50: J | S50: J | T50: J | U50: J | X50: J | Y50: J | Z50: J | AA50: J | AB50: J | AE50: J | AF50: J
A51: =Données!$E47 -> 0
A52: =Données!$E48 -> 0
A53: =Données!$E49 -> 0
A54: =Données!$E50 -> 0
A55: =Données!$E51 -> Chef de service
A56: =Données!$E52 -> Catherine SOMERS | C56: CA | D56: CA | E56: CA | F56: CA | G56: CA | J56: CA | K56: CA | L56: CA | M56: CA | N56: CA | Q56: J | R56: J | S56: J | T56: J | U56: J | X56: J | Y56: J | Z56: J | AA56: J | AB56: J | AE56: J | AF56: J

Sheet Fevrier
A1: 2
A3: =Données!$G$4 -> 7/11 Ans | K3: Mois de Fevrier | P3: =Données!$H$5 -> 2017
A6: Jours | B6: =PROPER(LEFT(TEXT(DATE(Données!$H5,$A$1,B7),"jjj"),1)) -> M | C6: =PROPER(LEFT(TEXT(DATE(Données!$H5,$A$1,C7),"jjj"),1)) -> J | D6: =PROPER(LEFT(TEXT(DATE(Données!$H5,$A$1,D7),"jjj"),1)) -> V | E6: =PROPER(LEFT(TEXT(DATE(Données!$H5,$A$1,E7),"jjj"),1)) -> S | F6: =PROPER(LEFT(TEXT(DATE(Données!$H5,$A$1,F7),"jjj"),1)) -> D | G6: =PROPER(LEFT(TEXT(DATE(Données!$H5,$A$1,G7),"jjj"),1)) -> L | H6: =PROPER(LEFT(TEXT(DATE(Données!$H5,$A$1,H7),"jjj"),1)) -> M | I6: =PROPER(LEFT(TEXT(DATE(Données!$H5,$A$1,I7),"jjj"),1)) -> M | J6: =PROPER(LEFT(TEXT(DATE(Données!$H5,$A$1,J7),"jjj"),1)) -> J | K6: =PROPER(LEFT(TEXT(DATE(Données!$H5,$A$1,K7),"jjj"),1)) -> V | L6: =PROPER(LEFT(TEXT(DATE(Données!$H5,$A$1,L7),"jjj"),1)) -> S | M6: =PROPER(LEFT(TEXT(DATE(Données!$H5,$A$1,M7),"jjj"),1)) -> D | N6: =PROPER(LEFT(TEXT(DATE(Données!$H5,$A$1,N7),"jjj"),1)) -> L | O6: =PROPER(LEFT(TEXT(DATE(Données!$H5,$A$1,O7),"jjj"),1)) -> M | P6: =PROPER(LEFT(TEXT(DATE(Données!$H5,$A$1,P7),"jjj"),1)) -> M | Q6: =PROPER(LEFT(TEXT(DATE(Données!$H5,$A$1,Q7),"jjj"),1)) -> J | R6: =PROPER(LEFT(TEXT(DATE(Données!$H5,$A$1,R7),"jjj"),1)) -> V | S6: =PROPER(LEFT(TEXT(DATE(Données!$H5,$A$1,S7),"jjj"),1)) -> S | T6: =PROPER(LEFT(TEXT(DATE(Données!$H5,$A$1,T7),"jjj"),1)) -> D | U6: =PROPER(LEFT(TEXT(DATE(Données!$H5,$A$1,U7),"jjj"),1)) -> L | V6: =PROPER(LEFT(TEXT(DATE(Données!$H5,$A$1,V7),"jjj"),1)) -> M | W6: =PROPER(LEFT(TEXT(DATE(Données!$H5,$A$1,W7),"jjj"),1)) -> M | X6: =PROPER(LEFT(TEXT(DATE(Données!$H5,$A$1,X7),"jjj"),1)) -> J | Y6: =PROPER(LEFT(TEXT(DATE(Données!$H5,$A$1,Y7),"jjj"),1)) -> V | Z6: =PROPER(LEFT(TEXT(DATE(Données!$H5,$A$1,Z7),"jjj"),1)) -> S | AA6: =PROPER(LEFT(TEXT(DATE(Données!$H5,$A$1,AA7),"jjj"),1)) -> D | AB6: =PROPER(LEFT(TEXT(DATE(Données!$H5,$A$1,AB7),"jjj"),1)) -> L | AC6: =PROPER(LEFT(TEXT(DATE(Données!$H5,$A$1,AC7),"jjj"),1)) -> M | AD6: =PROPER(LEFT(TEXT(DATE(Données!$H5,$A$1,AD7),"jjj"),1)) -> M | AE6: =PROPER(LEFT(TEXT(DATE(Données!$H5,$A$1,AE7),"jjj"),1)) -> J
B7: =A7+1 -> 1 | C7: 2 | D7: 3 | E7: 4 | F7: 5 | G7: 6 | H7: 7 | I7: 8 | J7: 9 | K7: 10 | L7: 11 | M7: 12 | N7: 13 | O7: 14 | P7: 15 | Q7: 16 | R7: 17 | S7: 18 | T7: 19 | U7: 20 | V7: 21 | W7: 22 | X7: 23 | Y7: 24 | Z7: 25 | AA7: 26 | AB7: 27 | AC7: 28 | AD7: 29 | AE7: 30
A8: Equipe de jour
A9: =Données!$E5 -> Emeraude MUBANGIA
A10: =Données!$E6 -> William CLAVIER | B10: REC | C10: REC | D10: REC | E10: T | F10: T | G10: T | H10: T | I10: T | J10: T | N10: CA | O10: CA | P10: CA | Q10: CA | R10: CA | U10: CA | V10: CA | W10: CA | Z10: W | AA10: WD | AC10: RS
A11: =Données!$E7 -> Silvère BOUNGUELA | B11: M | D11: M | G11: D | H11: D | I11: D | J11: D | K11: M | N11: S | O11: S | R11: S | S11: W+ | T11: WD | U11: CA | V11: CA | W11: CA | X11: CA | Y11: CA | AB11: F | AC11: RS
A12: =Données!$E8 -> Christelle RIBIERO | C12: M | E12: T | F12: T | G12: T | H12: T | I12: T | J12: T | K12: REC | N12: CA | O12: CA | P12: CA | Q12: CA | R12: CA | U12: M | V12: M | W12: REC | X12: M | Y12: S | AB12: M | AC12: M
A13: =Données!$E9 -> Sébastien LE HIR | B13: S | C13: S | D13: S | G13: CA | H13: CA | I13: CA | J13: CA | K13: CA | N13: M | O13: M | P13: M | Q13: S | U13: S | V13: RS | W13: M | X13: S | Z13: W+ | AA13: WD
A14: =Données!$E10 -> Fatou NDIAYE | B14: CA | C14: CA | D14: CA | G14: CA | H14: CA | I14: J | J14: J | L14: W | M14: WD | P14: M | Q14: M | R14: M | U14: S | V14: RS | W14: M | X14: S | Y14: M | AB14: S | AC14: J+
A15: =Données!$E11 -> Vincent BUISSON | B15: S | D15: S | E15: T | F15: T | G15: T | H15: T | I15: T | J15: T | K15: S | N15: J+ | O15: J+ | P15: S | S15: W | T15: WD | V15: RS | W15: S | X15: S | Y15: M | AB15: CA | AC15: R
A16: =Données!$E12 -> Eunice VARELA TAVARES | B16: M | C16: F | D16: F | G16: CA | H16: CA | I16: CA | J16: CA | K16: CA | L16: W+ | M16: WD | P16: S | Q16: S | R16: S | W16: S | X16: F | Y16: F | AC16: F
A17: =Données!$E13 -> Emeraude MUBANGIA
A18: =Données!$E14 -> Mimouna BAMOUNI | B18: TP | C18: S | D18: Syn | G18: D | H18: D | I18: TP | J18: D | K18: J | N18: CA | O18: CA | P18: TP | Q18: REC | R18: REC | U18: M | V18: M | W18: TP | X18: M | Y18: M | AB18: M | AC18: M
A19: =Données!$E15 -> 0
A20: =Données!$E16 -> 0
A21: =Données!$E17 -> 0
A22: =Données!$E18 -> 0
A23: =Données!$E19 -> 0
A24: =Données!$E20 -> 0
A25: =Données!$E21 -> Equipe de nuit
A26: =Données!$E22 -> Séverine DARDAINE | C26: N+ | E26: T | F26: T | G26: T | H26: T | I26: T | J26: T | P26: N+ | Q26: N+ | R26: N+ | U26: CA | V26: CA | W26: CA | X26: CA | Y26: CA | AB26: N+ | AC26: N+
A27: =Données!$E23 -> Aurélie CHAPON | B27: N+ | D27: CA | G27: CA | H27: CA | I27: CA | J27: CA | M27: N+ | N27: N+ | O27: N+ | S27: NS | T27: N+ | U27: N+ | X27: N+ | Y27: N+ | Z27: NS | AC27: R
A28: =Données!$E24 -> Yannick FLANDA | C28: F | G28: F | H28: F | J28: N+ | K28: N+ | L28: AM | N28: CA | O28: CA | P28: CA | Q28: CA | R28: CA | U28: F | V28: F | W28: F | X28: F | Y28: F | AA28: N+
A29: =Données!$E25 -> 0
A30: =Données!$E26 -> 0
A31: =Données!$E27 -> 0
A32: =Données!$E28 -> 0
A33: =Données!$E29 -> 0
A34: =Données!$E30 -> 0
A35: =Données!$E31 -> Maitresse de maison
A36: =Données!$E32 -> Florinda VICENTE | B36: M | C36: CA16 | D36: CA16 | G36: CA | H36: CA | I36: CA | J36: M | K36: CA | N36: M | O36: M | P36: M | Q36: M | R36: M | U36: CA | V36: M | W36: M | X36: M | Y36: M | AB36: M | AC36: M
A37: =Données!$E33 -> 0
A38: =Données!$E34 -> 0
A39: =Données!$E35 -> 0
A40: =Données!$E36 -> 0
A41: =Données!$E37 -> 0
A42: =Données!$E38 -> 0
A43: =Données!$E39 -> 0
A44: =Données!$E40 -> 0
A45: =Données!$E41 -> Psychologue
A46: =Données!$E42 -> Anne Lise ANCEL | B46: J | C46: J | D46: J | G46: J | H46: J | I46: J | J46: J | K46: J | N46: CA | O46: CA | P46: CA | Q46: CA | R46: CA | U46: J | V46: J | W46: J | X46: J | Y46: J | AB46: J | AC46: J
A47: =Données!$E43 -> 0
A48: =Données!$E44 -> 0
A49: =Données!$E45 -> Coordinatrice
A50: =Données!$E46 -> Jocelyne ROUSSEL | B50: CA | C50: CA | D50: CA | E50: T | F50: T | G50: T | H50: T | I50: T | J50: T | N50: J | O50: J | P50: J | Q50: J | R50: J | U50: J | V50: J | W50: CA | X50: J | Y50: J | AB50: J | AC50: J
A51: =Données!$E47 -> 0
A52: =Données!$E48 -> 0
A53: =Données!$E49 -> 0
A54: =Données!$E50 -> 0
A55: =Données!$E51 -> Chef de service
A56: =Données!$E52 -> Catherine SOMERS | B56: J | C56: J | D56: J | G56: J | H56: J | I56: J | J56: J | K56: J | N56: J | O56: J | P56: J | Q56: J | R56: J | U56: J | V56: J | W56: J | X56: J | Y56: J | AB56: J | AC56: J

Sheet Mars
A1: 3
A3: =Données!$G$4 -> 7/11 Ans | K3: Mois de Mars | O3: =Données!$H$5 -> 2017
A6: Jours | B6: =PROPER(LEFT(TEXT(DATE(Données!$H5,$A$1,B7),"jjj"),1)) -> M | C6: =PROPER(LEFT(TEXT(DATE(Données!$H5,$A$1,C7),"jjj"),1)) -> J | D6: =PROPER(LEFT(TEXT(DATE(Données!$H5,$A$1,D7),"jjj"),1)) -> V | E6: =PROPER(LEFT(TEXT(DATE(Données!$H5,$A$1,E7),"jjj"),1)) -> S | F6: =PROPER(LEFT(TEXT(DATE(Données!$H5,$A$1,F7),"jjj"),1)) -> D | G6: =PROPER(LEFT(TEXT(DATE(Données!$H5,$A$1,G7),"jjj"),1)) -> L | H6: =PROPER(LEFT(TEXT(DATE(Données!$H5,$A$1,H7),"jjj"),1)) -> M | I6: =PROPER(LEFT(TEXT(DATE(Données!$H5,$A$1,I7),"jjj"),1)) -> M | J6: =PROPER(LEFT(TEXT(DATE(Données!$H5,$A$1,J7),"jjj"),1)) -> J | K6: =PROPER(LEFT(TEXT(DATE(Données!$H5,$A$1,K7),"jjj"),1)) -> V | L6: =PROPER(LEFT(TEXT(DATE(Données!$H5,$A$1,L7),"jjj"),1)) -> S | M6: =PROPER(LEFT(TEXT(DATE(Données!$H5,$A$1,M7),"jjj"),1)) -> D | N6: =PROPER(LEFT(TEXT(DATE(Données!$H5,$A$1,N7),"jjj"),1)) -> L | O6: =PROPER(LEFT(TEXT(DATE(Données!$H5,$A$1,O7),"jjj"),1)) -> M | P6: =PROPER(LEFT(TEXT(DATE(Données!$H5,$A$1,P7),"jjj"),1)) -> M | Q6: =PROPER(LEFT(TEXT(DATE(Données!$H5,$A$1,Q7),"jjj"),1)) -> J | R6: =PROPER(LEFT(TEXT(DATE(Données!$H5,$A$1,R7),"jjj"),1)) -> V | S6: =PROPER(LEFT(TEXT(DATE(Données!$H5,$A$1,S7),"jjj"),1)) -> S | T6: =PROPER(LEFT(TEXT(DATE(Données!$H5,$A$1,T7),"jjj"),1)) -> D | U6: =PROPER(LEFT(TEXT(DATE(Données!$H5,$A$1,U7),"jjj"),1)) -> L | V6: =PROPER(LEFT(TEXT(DATE(Données!$H5,$A$1,V7),"jjj"),1)) -> M | W6: =PROPER(LEFT(TEXT(DATE(Données!$H5,$A$1,W7),"jjj"),1)) -> M | X6: =PROPER(LEFT(TEXT(DATE(Données!$H5,$A$1,X7),"jjj"),1)) -> J | Y6: =PROPER(LEFT(TEXT(DATE(Données!$H5,$A$1,Y7),"jjj"),1)) -> V | Z6: =PROPER(LEFT(TEXT(DATE(Données!$H5,$A$1,Z7),"jjj"),1)) -> S | AA6: =PROPER(LEFT(TEXT(DATE(Données!$H5,$A$1,AA7),"jjj"),1)) -> D | AB6: =PROPER(LEFT(TEXT(DATE(Données!$H5,$A$1,AB7),"jjj"),1)) -> L | AC6: =PROPER(LEFT(TEXT(DATE(Données!$H5,$A$1,AC7),"jjj"),1)) -> M | AD6: =PROPER(LEFT(TEXT(DATE(Données!$H5,$A$1,AD7),"jjj"),1)) -> M | AE6: =PROPER(LEFT(TEXT(DATE(Données!$H5,$A$1,AE7),"jjj"),1)) -> J | AF6: =PROPER(LEFT(TEXT(DATE(Données!$P7,$A$1,AF7),"jjj"),1)) -> S
B7: =A7+1 -> 1 | C7: 2 | D7: 3 | E7: 4 | F7: 5 | G7: 6 | H7: 7 | I7: 8 | J7: 9 | K7: 10 | L7: 11 | M7: 12 | N7: 13 | O7: 14 | P7: 15 | Q7: 16 | R7: 17 | S7: 18 | T7: 19 | U7: 20 | V7: 21 | W7: 22 | X7: 23 | Y7: 24 | Z7: 25 | AA7: 26 | AB7: 27 | AC7: 28 | AD7: 29 | AE7: 30 | AF7: =AE7+1 -> 31
A8: Equipe de jour
A9: =Données!$E5 -> Emeraude MUBANGIA
A10: =Données!$E6 -> William CLAVIER | B10: S | C10: M | D10: M | G10: S | H10: RS | I10: M | J10: M | K10: S | N10: M | O10: M | Q10: M | S10: W | T10: WD | V10: CA | W10: CA | X10: CA | Y10: CA | AB10: CA | AC10: CA | AD10: CA | AE10: CA | AF10: CA
A11: =Données!$E7 -> Silvère BOUNGUELA | C11: J | D11: M | G11: M | H11: RS | I11: S | J11: S | K11: S | N11: REC | O11: M | R11: M | S11: W | T11: WD | V11: CA | W11: CA | X11: CA | Y11: CA | AB11: S | AC11: RS | AD11: S | AE11: J | AF11: M
A12: =Données!$E8 -> Christelle RIBIERO | B12: M | C12: M | D12: S | G12: RT | H12: REC | I12: REC | J12: REC | K12: M | L12: W | M12: WD | O12: CA | P12: CA | Q12: CA | R12: CA | U12: REC | V12: S | Y12: M | Z12: W | AA12: WD | AC12: M | AD12: M | AE12: S | AF12: REC
A13: =Données!$E9 -> Sébastien LE HIR | B13: S | C13: S | E13: W | F13: WD | I13: M | N13: M | O13: RS | P13: S | Q13: S | R13: M | U13: S | V13: EM | W13: EM | X13: EM | Y13: EM | AB13: M | AC13: M | AD13: S | AE13: M | AF13: S
A14: =Données!$E10 -> Fatou NDIAYE | B14: M | C14: J | D14: CA | G14: CA | H14: CA | I14: CA | L14: W+ | M14: WD | P14: M | Q14: M | R14: S | U14: REC | W14: M | X14: M | Y14: M | AB14: M | AC14: RS | AD14: M | AE14: S | AF14: J
A15: =Données!$E11 -> Vincent BUISSON | B15: CA | C15: CA | D15: CA | G15: M | H15: M | I15: S | J15: S | K15: REC | N15: M | O15: RS | P15: S | Q15: S | R15: S | U15: S | V15: S | W15: S | X15: S | Z15: W | AA15: WD | AD15: CA | AE15: CA | AF15: CA
A16: =Données!$E12 -> Eunice VARELA TAVARES | C16: F | D16: F | E16: W+ | F16: WD | I16: J | J16: F | K16: F | N16: S | O16: J | P16: M | Q16: F | R16: F | U16: S | V16: J | W16: S | X16: F | Y16: F | AB16: REC | AC16: REC | AD16: REC | AE16: F | AF16: REC
A17: =Données!$E13 -> Emeraude MUBANGIA
A18: =Données!$E14 -> Mimouna BAMOUNI | B18: TP | C18: S | D18: S | G18: S | H18: J | I18: TP | J18: M | K18: M | N18: CA | O18: CA | P18: TP | Q18: CA | R18: CA | U18: M | V18: J | W18: TP | X18: M | Y18: S | AB18: S | AC18: J | AD18: TP | AE18: M | AF18: M
A19: =Données!$E15 -> 0
A20: =Données!$E16 -> 0
A21: =Données!$E17 -> 0
A22: =Données!$E18 -> 0
A23: =Données!$E19 -> 0
A24: =Données!$E20 -> 0
A25: =Données!$E21 -> Equipe de nuit
A26: =Données!$E22 -> Séverine DARDAINE | D26: N+ | E26: NS | H26: N+ | I26: N+ | J26: N+ | O26: R | S26: CE | T26: CE | U26: CE | Y26: N+ | AB26: N+ | AC26: N+
A27: =Données!$E23 -> Aurélie CHAPON | B27: N+ | C27: N+ | G27: N+ | K27: N+ | L27: NS | O27: CA | P27: N+ | Q27: N+ | V27: N+ | W27: N+ | X27: N+ | AC27: R | AD27: CA | AE27: CA | AF27: CA
A28: =Données!$E24 -> Yannick FLANDA | B28: CA | C28: F | D28: CA | F28: N+ | H28: F | I28: CA | J28: F | K28: CA | M28: N+ | N28: N+ | O28: N+ | Q28: F | R28: AM | S28: NS | T28: N+ | Z28: NS | AA28: AM | AD28: EM | AE28: EM | AF28: N+
A29: =Données!$E25 -> 0
A30: =Données!$E26 -> 0
A31: =Données!$E27 -> 0
A32: =Données!$E28 -> 0
A33: =Données!$E29 -> 0
A34: =Données!$E30 -> 0
A35: =Données!$E31 -> Maitresse de maison
A36: =Données!$E32 -> Florinda VICENTE | B36: M | C36: M | D36: M | G36: M | H36: M | I36: M | J36: M | K36: M | N36: CA | O36: CA | P36: CA | Q36: CA | R36: CA | U36: CA | V36: M | W36: M | X36: M | Y36: M | AB36: M | AC36: M | AD36: M | AE36: M | AF36: M
A37: =Données!$E33 -> 0
A38: =Données!$E34 -> 0
A39: =Données!$E35 -> 0
A40: =Données!$E36 -> 0
A41: =Données!$E37 -> 0
A42: =Données!$E38 -> 0
A43: =Données!$E39 -> 0
A44: =Données!$E40 -> 0
A45: =Données!$E41 -> Psychologue
A46: =Données!$E42 -> Anne Lise ANCEL | B46: J | C46: J | D46: J | G46: J | H46: J | I46: J | J46: J | K46: J | N46: J | O46: J | P46: J | Q46: J | R46: J | U46: J | V46: J | W46: J | X46: J | Y46: J | AB46: J | AC46: J | AD46: J | AE46: J | AF46: J
A47: =Données!$E43 -> 0
A48: =Données!$E44 -> 0
A49: =Données!$E45 -> Coordinatrice
A50: =Données!$E46 -> Jocelyne ROUSSEL | B50: J | C50: REC | D50: REC | G50: J | H50: J | I50: J | J50: J | K50: J | N50: J | O50: J | P50: J | Q50: J | R50: J | U50: J | V50: J | W50: J | X50: J | Y50: J | AB50: J | AC50: J | AD50: J | AE50: J | AF50: J
A51: =Données!$E47 -> 0
A52: =Données!$E48 -> 0
A53: =Données!$E49 -> 0
A54: =Données!$E50 -> 0
A55: =Données!$E51 -> Chef de service
A56: =Données!$E52 -> Catherine SOMERS | B56: J | C56: J | D56: J | G56: J | H56: J | I56: J | J56: J | K56: J | N56: J | O56: J | P56: J | Q56: J | R56: J | U56: J | V56: J | W56: J | X56: J | Y56: J | AB56: J | AC56: J | AD56: J | AE56: J | AF56: J

Sheet Avril
A1: 4
A3: =Données!$G$4 -> 7/11 Ans | K3: Mois d'Avril | O3: =Données!$H$5 -> 2017
A6: Jours | B6: =PROPER(LEFT(TEXT(DATE(Données!$H5,$A$1,B7),"jjj"),1)) -> S | C6: =PROPER(LEFT(TEXT(DATE(Données!$H5,$A$1,C7),"jjj"),1)) -> D | D6: =PROPER(LEFT(TEXT(DATE(Données!$H5,$A$1,D7),"jjj"),1)) -> L | E6: =PROPER(LEFT(TEXT(DATE(Données!$H5,$A$1,E7),"jjj"),1)) -> M | F6: =PROPER(LEFT(TEXT(DATE(Données!$H5,$A$1,F7),"jjj"),1)) -> M | G6: =PROPER(LEFT(TEXT(DATE(Données!$H5,$A$1,G7),"jjj"),1)) -> J | H6: =PROPER(LEFT(TEXT(DATE(Données!$H5,$A$1,H7),"jjj"),1)) -> V | I6: =PROPER(LEFT(TEXT(DATE(Données!$H5,$A$1,I7),"jjj"),1)) -> S | J6: =PROPER(LEFT(TEXT(DATE(Données!$H5,$A$1,J7),"jjj"),1)) -> D | K6: =PROPER(LEFT(TEXT(DATE(Données!$H5,$A$1,K7),"jjj"),1)) -> L | L6: =PROPER(LEFT(TEXT(DATE(Données!$H5,$A$1,L7),"jjj"),1)) -> M | M6: =PROPER(LEFT(TEXT(DATE(Données!$H5,$A$1,M7),"jjj"),1)) -> M | N6: =PROPER(LEFT(TEXT(DATE(Données!$H5,$A$1,N7),"jjj"),1)) -> J | O6: =PROPER(LEFT(TEXT(DATE(Données!$H5,$A$1,O7),"jjj"),1)) -> V | P6: =PROPER(LEFT(TEXT(DATE(Données!$H5,$A$1,P7),"jjj"),1)) -> S | Q6: =PROPER(LEFT(TEXT(DATE(Données!$H5,$A$1,Q7),"jjj"),1)) -> D | R6: =PROPER(LEFT(TEXT(DATE(Données!$H5,$A$1,R7),"jjj"),1)) -> L | S6: =PROPER(LEFT(TEXT(DATE(Données!$H5,$A$1,S7),"jjj"),1)) -> M | T6: =PROPER(LEFT(TEXT(DATE(Données!$H5,$A$1,T7),"jjj"),1)) -> M | U6: =PROPER(LEFT(TEXT(DATE(Données!$H5,$A$1,U7),"jjj"),1)) -> J | V6: =PROPER(LEFT(TEXT(DATE(Données!$H5,$A$1,V7),"jjj"),1)) -> V | W6: =PROPER(LEFT(TEXT(DATE(Données!$H5,$A$1,W7),"jjj"),1)) -> S | X6: =PROPER(LEFT(TEXT(DATE(Données!$H5,$A$1,X7),"jjj"),1)) -> D | Y6: =PROPER(LEFT(TEXT(DATE(Données!$H5,$A$1,Y7),"jjj"),1)) -> L | Z6: =PROPER(LEFT(TEXT(DATE(Données!$H5,$A$1,Z7),"jjj"),1)) -> M | AA6: =PROPER(LEFT(TEXT(DATE(Données!$H5,$A$1,AA7),"jjj"),1)) -> M | AB6: =PROPER(LEFT(TEXT(DATE(Données!$H5,$A$1,AB7),"jjj"),1)) -> J | AC6: =PROPER(LEFT(TEXT(DATE(Données!$H5,$A$1,AC7),"jjj"),1)) -> V | AD6: =PROPER(LEFT(TEXT(DATE(Données!$H5,$A$1,AD7),"jjj"),1)) -> S | AE6: =PROPER(LEFT(TEXT(DATE(Données!$H5,$A$1,AE7),"jjj"),1)) -> D
B7: =A7+1 -> 1 | C7: 2 | D7: 3 | E7: 4 | F7: 5 | G7: 6 | H7: 7 | I7: 8 | J7: 9 | K7: 10 | L7: 11 | M7: 12 | N7: 13 | O7: 14 | P7: 15 | Q7: 16 | R7: 17 | S7: 18 | T7: 19 | U7: 20 | V7: 21 | W7: 22 | X7: 23 | Y7: 24 | Z7: 25 | AA7: 26 | AB7: 27 | AC7: 28 | AD7: 29 | AE7: 30
A8: Equipe de jour
A9: =Données!$E5 -> Emeraude MUBANGIA
A10: =Données!$E6 -> William CLAVIER | D10: M | E10: J+ | F10: J+ | G10: M | I10: W | J10: WD | M10: W | N10: S | O10: M | S10: CA | T10: CA | U10: CA | V10: CA | Y10: CA | Z10: CA | AA10: CA | AB10: CA | AC10: CA
A11: =Données!$E7 -> Silvère BOUNGUELA | D11: CA | E11: CA | F11: CA | G11: CA | H11: CA | K11: S | L11: S | M11: W | P11: W | Q11: WD | R11: WF | S11: R | V11: M | Y11: S | Z11: RS | AA11: J+ | AB11: F
A12: =Données!$E8 -> Christelle RIBIERO | B12: W | C12: WD | D12: S | G12: S | H12: J+ | K12: CA | L12: CA | M12: CA | N12: CA | O12: CA | S12: J+ | T12: M | U12: S | V12: S | Y12: S | Z12: M | AB12: M | AC12: M | AD12: W | AE12: W
A13: =Données!$E9 -> Sébastien LE HIR | D13: M | E13: M | F13: M | G13: M | K13: CA | L13: CA | M13: CA | N13: CA | O13: CA | S13: CA | T13: CA | W13: W+ | X13: WD | Z13: RS | AA13: S | AB13: J+ | AC13: S
A14: =Données!$E10 -> Fatou NDIAYE | B14: W+ | C14: WD | F14: S | G14: J+ | H14: M | K14: CA | L14: CA | M14: CA | N14: CA | O14: CA | Q14: WD | S14: RS | T14: J+ | U14: M | V14: S | Y14: M | Z14: J | AA14: M | AD14: W+ | AE14: WD
A15: =Données!$E11 -> Vincent BUISSON | D15: S | E15: S | F15: M | H15: J+ | K15: J+ | L15: S | M15: W | O15: J | P15: W+ | R15: WF | S15: R | T15: S | U15: S | W15: W | X15: W | AA15: CA | AB15: CA | AC15: CA
A16: =Données!$E12 -> Eunice VARELA TAVARES | D16: REC | E16: REC | F16: REC | G16: REC | H16: REC | I16: W+ | J16: WD | L16: M | M16: M | N16: S | O16: J+ | S16: F | U16: F | V16: F | Z16: J | AA16: M | AB16: F | AC16: F
A17: =Données!$E13 -> Emeraude MUBANGIA
A18: =Données!$E14 -> Mimouna BAMOUNI | D18: CA | E18: CA | F18: TP | G18: CA | H18: CA | K18: M | L18: M | M18: TP | N18: M | O18: S | S18: M | T18: TP | U18: M | V18: M | Y18: M | Z18: MG | AA18: TP | AB18: S | AC18: J+
A19: =Données!$E15 -> 0
A20: =Données!$E16 -> 0
A21: =Données!$E17 -> 0
A22: =Données!$E18 -> 0
A23: =Données!$E19 -> 0
A24: =Données!$E20 -> 0
A25: =Données!$E21 -> Equipe de nuit
A26: =Données!$E22 -> Séverine DARDAINE | B26: NS | C26: N+ | D26: N+ | H26: REC | K26: REC | L26: REC | M26: REC | N26: REC | O26: REC | R26: N+ | S26: N+ | V26: N+ | Z26: N+ | AA26: N+ | AD26: N+ | AE26: N+
A27: =Données!$E23 -> Aurélie CHAPON | D27: CA | E27: CA | F27: CA | I27: NS | J27: N+ | K27: N+ | P27: NS | Q27: N+ | S27: R | T27: N+ | U27: N+ | X27: N+ | Y27: N+ | AB27: N+ | AC27: CA
A28: =Données!$E24 -> Yannick FLANDA | E28: N+ | F28: N+ | G28: N+ | M28: N+ | N28: N+ | O28: N+ | S28: F | T28: F | U28: F | V28: F | Y28: F | Z28: F | AA28: F | AB28: F | AC28: F
A29: =Données!$E25 -> 0
A30: =Données!$E26 -> 0
A31: =Données!$E27 -> 0
A32: =Données!$E28 -> 0
A33: =Données!$E29 -> 0
A34: =Données!$E30 -> 0
A35: =Données!$E31 -> Maitresse de maison
A36: =Données!$E32 -> Florinda VICENTE | D36: M | E36: M | F36: M | G36: M | H36: M | K36: CA | L36: CA | M36: CA | N36: CA | O36: CA | S36: M | T36: M | U36: M | V36: M | Y36: M | Z36: M | AA36: M | AB36: M | AC36: M
A37: =Données!$E33 -> 0
A38: =Données!$E34 -> 0
A39: =Données!$E35 -> 0
A40: =Données!$E36 -> 0
A41: =Données!$E37 -> 0
A42: =Données!$E38 -> 0
A43: =Données!$E39 -> 0
A44: =Données!$E40 -> 0
A45: =Données!$E41 -> Psychologue
A46: =Données!$E42 -> Anne Lise ANCEL | D46: J | E46: J | F46: J | G46: J | H46: J | K46: J | L46: J | M46: J | N46: J | O46: J | S46: J | T46: J | U46: J | V46: J | Y46: J | Z46: J | AA46: J | AB46: J | AC46: J
A47: =Données!$E43 -> 0
A48: =Données!$E44 -> 0
A49: =Données!$E45 -> Coordinatrice
A50: =Données!$E46 -> Jocelyne ROUSSEL | D50: J | E50: J | F50: J | G50: J | H50: J | K50: J | L50: J | M50: J | N50: J | O50: J | S50: J | T50: J | U50: J | V50: J | Y50: J | Z50: J | AA50: J | AB50: J | AC50: J
A51: =Données!$E47 -> 0
A52: =Données!$E48 -> 0
A53: =Données!$E49 -> 0
A54: =Données!$E50 -> 0
A55: =Données!$E51 -> Chef de service
A56: =Données!$E52 -> Catherine SOMERS | D56: J | E56: J | F56: J | G56: J | H56: J | K56: J | L56: J | M56: J | N56: J | O56: J | S56: J | T56: J | U56: J | V56: J | Y56: J | Z56: J | AA56: J | AB56: J | AC56: J

Sheet Mai
A1: 5
A3: =Données!$G$4 -> 7/11 Ans | K3: Mois de Mai | O3: =Données!$H$5 -> 2017
A6: Jours | B6: =PROPER(LEFT(TEXT(DATE(Données!$H5,$A$1,B7),"jjj"),1)) -> L | C6: =PROPER(LEFT(TEXT(DATE(Données!$H5,$A$1,C7),"jjj"),1)) -> M | D6: =PROPER(LEFT(TEXT(DATE(Données!$H5,$A$1,D7),"jjj"),1)) -> M | E6: =PROPER(LEFT(TEXT(DATE(Données!$H5,$A$1,E7),"jjj"),1)) -> J | F6: =PROPER(LEFT(TEXT(DATE(Données!$H5,$A$1,F7),"jjj"),1)) -> V | G6: =PROPER(LEFT(TEXT(DATE(Données!$H5,$A$1,G7),"jjj"),1)) -> S | H6: =PROPER(LEFT(TEXT(DATE(Données!$H5,$A$1,H7),"jjj"),1)) -> D | I6: =PROPER(LEFT(TEXT(DATE(Données!$H5,$A$1,I7),"jjj"),1)) -> L | J6: =PROPER(LEFT(TEXT(DATE(Données!$H5,$A$1,J7),"jjj"),1)) -> M | K6: =PROPER(LEFT(TEXT(DATE(Données!$H5,$A$1,K7),"jjj"),1)) -> M | L6: =PROPER(LEFT(TEXT(DATE(Données!$H5,$A$1,L7),"jjj"),1)) -> J | M6: =PROPER(LEFT(TEXT(DATE(Données!$H5,$A$1,M7),"jjj"),1)) -> V | N6: =PROPER(LEFT(TEXT(DATE(Données!$H5,$A$1,N7),"jjj"),1)) -> S | O6: =PROPER(LEFT(TEXT(DATE(Données!$H5,$A$1,O7),"jjj"),1)) -> D | P6: =PROPER(LEFT(TEXT(DATE(Données!$H5,$A$1,P7),"jjj"),1)) -> L | Q6: =PROPER(LEFT(TEXT(DATE(Données!$H5,$A$1,Q7),"jjj"),1)) -> M | R6: =PROPER(LEFT(TEXT(DATE(Données!$H5,$A$1,R7),"jjj"),1)) -> M | S6: =PROPER(LEFT(TEXT(DATE(Données!$H5,$A$1,S7),"jjj"),1)) -> J | T6: =PROPER(LEFT(TEXT(DATE(Données!$H5,$A$1,T7),"jjj"),1)) -> V | U6: =PROPER(LEFT(TEXT(DATE(Données!$H5,$A$1,U7),"jjj"),1)) -> S | V6: =PROPER(LEFT(TEXT(DATE(Données!$H5,$A$1,V7),"jjj"),1)) -> D | W6: =PROPER(LEFT(TEXT(DATE(Données!$H5,$A$1,W7),"jjj"),1)) -> L | X6: =PROPER(LEFT(TEXT(DATE(Données!$H5,$A$1,X7),"jjj"),1)) -> M | Y6: =PROPER(LEFT(TEXT(DATE(Données!$H5,$A$1,Y7),"jjj"),1)) -> M | Z6: =PROPER(LEFT(TEXT(DATE(Données!$H5,$A$1,Z7),"jjj"),1)) -> J | AA6: =PROPER(LEFT(TEXT(DATE(Données!$H5,$A$1,AA7),"jjj"),1)) -> V | AB6: =PROPER(LEFT(TEXT(DATE(Données!$H5,$A$1,AB7),"jjj"),1)) -> S | AC6: =PROPER(LEFT(TEXT(DATE(Données!$H5,$A$1,AC7),"jjj"),1)) -> D | AD6: =PROPER(LEFT(TEXT(DATE(Données!$H5,$A$1,AD7),"jjj"),1)) -> L | AE6: =PROPER(LEFT(TEXT(DATE(Données!$H5,$A$1,AE7),"jjj"),1)) -> M | AF6: =PROPER(LEFT(TEXT(DATE(Données!$P7,$A$1,AF7),"jjj"),1)) -> J
B7: =A7+1 -> 1 | C7: 2 | D7: 3 | E7: 4 | F7: 5 | G7: 6 | H7: 7 | I7: 8 | J7: 9 | K7: 10 | L7: 11 | M7: 12 | N7: 13 | O7: 14 | P7: 15 | Q7: 16 | R7: 17 | S7: 18 | T7: 19 | U7: 20 | V7: 21 | W7: 22 | X7: 23 | Y7: 24 | Z7: 25 | AA7: 26 | AB7: 27 | AC7: 28 | AD7: 29 | AE7: 30 | AF7: =AE7+1 -> 31
A8: Equipe de jour
A9: =Données!$E5 -> Emeraude MUBANGIA
A10: =Données!$E6 -> William CLAVIER | B10: WF | C10: M | D10: S | F10: S | J10: RS | K10: J+ | N10: W | O10: WD | Q10: M | T10: M | W10: S | X10: M | Y10: S | AA10: M | AD10: CE | AE10: CE | AF10: CE
A11: =Données!$E7 -> Silvère BOUNGUELA | B11: WF | E11: S | F11: M | J11: RS | K11: M | L11: M | N11: W+ | O11: WD | R11: J+ | S11: S | T11: S | W11: S | X11: RS | Y11: S | AA11: M | AD11: S | AE11: J | AF11: S
A12: =Données!$E8 -> Christelle RIBIERO | E12: W | F12: RT | I12: WF | J12: RT | K12: RT | L12: RT | M12: RT | P12: M | Q12: RS | R12: M | S12: M | T12: M | W12: M | X12: M | Y12: M | AB12: W | AC12: WD | AE12: MG | AF12: M
A13: =Données!$E9 -> Sébastien LE HIR | C13: RS | G13: W+ | H13: WD | I13: WF | L13: M | M13: M | P13: S | Q13: J+ | R13: RS | S13: S | T13: REC | W13: CA | X13: CA | Y13: CA | AA13: CA | AD13: CA | AE13: CA | AF13: CA
A14: =Données!$E10 -> Fatou NDIAYE | D14: S | E14: S | G14: W | J14: CA | K14: CA | L14: CA | M14: CA | P14: F | Q14: RS | R14: J | S14: M | T14: J+ | W14: M | Z14: WF | AB14: W+ | AC14: WD | AE14: RS | AF14: M
A15: =Données!$E11 -> Vincent BUISSON | C15: CA | D15: CA | E15: CA | F15: CA | H15: WD | J15: M | K15: W | L15: S | M15: J+ | P15: CA | Q15: CA | R15: CA | S15: CA | U15: W+ | V15: WD | Y15: M | Z15: WF | AA15: S | AD15: S | AE15: CA | AF15: CA
A16: =Données!$E12 -> Eunice VARELA TAVARES | C16: M | D16: M | E16: S | F16: S | J16: J | K16: F | L16: F | M16: F | P16: J+ | Q16: F | R16: F | S16: F | T16: F | U16: W | V16: WD | AA16: J+ | AD16: M | AE16: RS | AF16: S
A17: =Données!$E13 -> Emeraude MUBANGIA
A18: =Données!$E14 -> Mimouna BAMOUNI | C18: RS | D18: TP | E18: M | F18: M | J18: M | K18: TP | L18: S | M18: S | P18: CA | Q18: CA | R18: CA | S18: CA | T18: TP | W18: AM | X18: RS | Y18: TP | AA18: CA | AD18: M | AE18: M | AF18: TP
A19: =Données!$E15 -> 0
A20: =Données!$E16 -> 0
A21: =Données!$E17 -> 0
A22: =Données!$E18 -> 0
A23: =Données!$E19 -> 0
A24: =Données!$E20 -> 0
A25: =Données!$E21 -> Equipe de nuit
A26: =Données!$E22 -> Séverine DARDAINE | C26: CA | D26: CA | E26: CA | F26: CA | J26: CA | K26: CA | L26: CA | M26: CA | P26: N+ | Q26: N+ | U26: NS | V26: N+ | X26: R | Z26: N+ | AB26: NS | AE26: N+ | AF26: N+
A27: =Données!$E23 -> Aurélie CHAPON | B27: N+ | D27: N+ | G27: NS | H27: N+ | I27: N+ | L27: N+ | N27: NS | O27: N+ | Q27: R | R27: N+ | W27: N+ | Y27: CA | AA27: CA | AD27: N+
A28: =Données!$E24 -> Yannick FLANDA | C28: CA | D28: CA | E28: F | F28: F | J28: N+ | K28: N+ | M28: AM | Q28: F | S28: N+ | T28: N+ | X28: EM | Y28: EM | AA28: N+ | AD28: CA | AE28: CA | AF28: CA
A29: =Données!$E25 -> 0
A30: =Données!$E26 -> 0
A31: =Données!$E27 -> 0
A32: =Données!$E28 -> 0
A33: =Données!$E29 -> 0
A34: =Données!$E30 -> 0
A35: =Données!$E31 -> Maitresse de maison
A36: =Données!$E32 -> Florinda VICENTE | C36: M | D36: M | E36: M | F36: M | J36: M | K36: M | L36: M | M36: M | P36: CA | Q36: M | R36: M | S36: M | T36: M | W36: M | X36: M | Y36: M | AA36: M | AD36: M | AE36: M | AF36: M
A37: =Données!$E33 -> 0
A38: =Données!$E34 -> 0
A39: =Données!$E35 -> 0
A40: =Données!$E36 -> 0
A41: =Données!$E37 -> 0
A42: =Données!$E38 -> 0
A43: =Données!$E39 -> 0
A44: =Données!$E40 -> 0
A45: =Données!$E41 -> Psychologue
A46: =Données!$E42 -> Anne Lise ANCEL | C46: J | D46: J | E46: J | F46: J | J46: J | K46: J | L46: J | M46: J | P46: J | Q46: J | R46: J | S46: J | T46: J | W46: J | X46: J | Y46: J | AA46: J | AD46: J | AE46: J | AF46: J
A47: =Données!$E43 -> 0
A48: =Données!$E44 -> 0
A49: =Données!$E45 -> Coordinatrice
A50: =Données!$E46 -> Jocelyne ROUSSEL | C50: J | D50: J | E50: J | F50: J | J50: J | K50: J | L50: J | M50: J | P50: J | Q50: J | R50: J | S50: J | T50: J | W50: J | X50: J | Y50: J | AA50: J | AD50: J | AE50: J | AF50: J
A51: =Données!$E47 -> 0
A52: =Données!$E48 -> 0
A53: =Données!$E49 -> 0
A54: =Données!$E50 -> 0
A55: =Données!$E51 -> Chef de service
A56: =Données!$E52 -> Catherine SOMERS | C56: J | D56: J | E56: J | F56: J | J56: J | K56: J | L56: J | M56: J | P56: J | Q56: J | R56: J | S56: J | T56: J | W56: J | X56: J | Y56: CA | AA56: CA | AD56: J | AE56: J | AF56: J

Sheet Juin
A1: 6
A3: =Données!$G$4 -> 7/11 Ans | K3: Mois de Juin | O3: =Données!$H$5 -> 2017
A6: Jours | B6: =PROPER(LEFT(TEXT(DATE(Données!$H5,$A$1,B7),"jjj"),1)) -> J | C6: =PROPER(LEFT(TEXT(DATE(Données!$H5,$A$1,C7),"jjj"),1)) -> V | D6: =PROPER(LEFT(TEXT(DATE(Données!$H5,$A$1,D7),"jjj"),1)) -> S | E6: =PROPER(LEFT(TEXT(DATE(Données!$H5,$A$1,E7),"jjj"),1)) -> D | F6: =PROPER(LEFT(TEXT(DATE(Données!$H5,$A$1,F7),"jjj"),1)) -> L | G6: =PROPER(LEFT(TEXT(DATE(Données!$H5,$A$1,G7),"jjj"),1)) -> M | H6: =PROPER(LEFT(TEXT(DATE(Données!$H5,$A$1,H7),"jjj"),1)) -> M | I6: =PROPER(LEFT(TEXT(DATE(Données!$H5,$A$1,I7),"jjj"),1)) -> J | J6: =PROPER(LEFT(TEXT(DATE(Données!$H5,$A$1,J7),"jjj"),1)) -> V | K6: =PROPER(LEFT(TEXT(DATE(Données!$H5,$A$1,K7),"jjj"),1)) -> S | L6: =PROPER(LEFT(TEXT(DATE(Données!$H5,$A$1,L7),"jjj"),1)) -> D | M6: =PROPER(LEFT(TEXT(DATE(Données!$H5,$A$1,M7),"jjj"),1)) -> L | N6: =PROPER(LEFT(TEXT(DATE(Données!$H5,$A$1,N7),"jjj"),1)) -> M | O6: =PROPER(LEFT(TEXT(DATE(Données!$H5,$A$1,O7),"jjj"),1)) -> M | P6: =PROPER(LEFT(TEXT(DATE(Données!$H5,$A$1,P7),"jjj"),1)) -> J | Q6: =PROPER(LEFT(TEXT(DATE(Données!$H5,$A$1,Q7),"jjj"),1)) -> V | R6: =PROPER(LEFT(TEXT(DATE(Données!$H5,$A$1,R7),"jjj"),1)) -> S | S6: =PROPER(LEFT(TEXT(DATE(Données!$H5,$A$1,S7),"jjj"),1)) -> D | T6: =PROPER(LEFT(TEXT(DATE(Données!$H5,$A$1,T7),"jjj"),1)) -> L | U6: =PROPER(LEFT(TEXT(DATE(Données!$H5,$A$1,U7),"jjj"),1)) -> M | V6: =PROPER(LEFT(TEXT(DATE(Données!$H5,$A$1,V7),"jjj"),1)) -> M | W6: =PROPER(LEFT(TEXT(DATE(Données!$H5,$A$1,W7),"jjj"),1)) -> J | X6: =PROPER(LEFT(TEXT(DATE(Données!$H5,$A$1,X7),"jjj"),1)) -> V | Y6: =PROPER(LEFT(TEXT(DATE(Données!$H5,$A$1,Y7),"jjj"),1)) -> S | Z6: =PROPER(LEFT(TEXT(DATE(Données!$H5,$A$1,Z7),"jjj"),1)) -> D | AA6: =PROPER(LEFT(TEXT(DATE(Données!$H5,$A$1,AA7),"jjj"),1)) -> L | AB6: =PROPER(LEFT(TEXT(DATE(Données!$H5,$A$1,AB7),"jjj"),1)) -> M | AC6: =PROPER(LEFT(TEXT(DATE(Données!$H5,$A$1,AC7),"jjj"),1)) -> M | AD6: =PROPER(LEFT(TEXT(DATE(Données!$H5,$A$1,AD7),"jjj"),1)) -> J | AE6: =PROPER(LEFT(TEXT(DATE(Données!$H5,$A$1,AE7),"jjj"),1)) -> V
B7: =A7+1 -> 1 | C7: 2 | D7: 3 | E7: 4 | F7: 5 | G7: 6 | H7: 7 | I7: 8 | J7: 9 | K7: 10 | L7: 11 | M7: 12 | N7: 13 | O7: 14 | P7: 15 | Q7: 16 | R7: 17 | S7: 18 | T7: 19 | U7: 20 | V7: 21 | W7: 22 | X7: 23 | Y7: 24 | Z7: 25 | AA7: 26 | AB7: 27 | AC7: 28 | AD7: 29 | AE7: 30
A8: Equipe de jour
A9: =Données!$E5 -> Emeraude MUBANGIA
A10: =Données!$E6 -> William CLAVIER | D10: W | E10: WD | G10: M | H10: M | M10: CA | N10: CA | O10: CA | P10: CA | Q10: CA | T10: S | U10: RS | V10: M | Y10: W | Z10: WD | AB10: M | AC10: M | AD10: M | AE10: M
A11: =Données!$E7 -> Silvère BOUNGUELA | B11: M | C11: M | F11: WF | J11: S | M11: CE | N11: CE | O11: CE | R11: W | S11: WD | U11: CA | V11: CA | W11: CA | X11: CA | AA11: CA | AB11: CA | AC11: CA | AD11: CA | AE11: CA
A12: =Données!$E8 -> Christelle RIBIERO | B12: J | C12: J | G12: CA | H12: CA | I12: CA | J12: CA | M12: M | N12: M | Q12: M | R12: W | S12: WD | U12: CE | V12: CE | W12: CE | X12: S | AA12: M | AB12: RS | AC12: M | AD12: M
A13: =Données!$E9 -> Sébastien LE HIR | D13: W | E13: WD | F13: WF | I13: S | J13: S | M13: S | N13: RS | O13: J+ | P13: S | T13: J+ | U13: M | Y13: W+ | Z13: WD | AA13: J+ | AD13: S | AE13: J+
A14: =Données!$E10 -> Fatou NDIAYE | B14: M | C14: M | H14: M | I14: M | K14: W+ | L14: WD | O14: M | P14: J | Q14: J | T14: M | U14: M | W14: M | X14: M | AA14: CA | AB14: CA | AC14: CA | AD14: CA | AE14: CA
A15: =Données!$E11 -> Vincent BUISSON | B15: S | C15: S | G15: J+ | H15: S | I15: S | K15: W | L15: WD | N15: J | O15: W | P15: J+ | Q15: S | U15: RS | V15: S | W15: S | AA15: CA | AB15: M | AD15: S | AE15: S
A16: =Données!$E12 -> Eunice VARELA TAVARES | G16: S | H16: S | I16: J | J16: M | M16: F | N16: F | O16: F | P16: F | Q16: F | T16: J | U16: J | V16: J+ | W16: F | X16: F | AA16: S | AB16: RS | AC16: S | AE16: F
A17: =Données!$E13 -> Emeraude MUBANGIA
A18: =Données!$E14 -> Mimouna BAMOUNI | B18: S | C18: S | G18: AM | H18: TP | I18: M | J18: M | M18: M | N18: M | O18: TP | P18: F | Q18: M | T18: M | U18: M | V18: TP | W18: M | X18: M | AA18: CA | AB18: CA | AC18: TP | AD18: CA | AE18: CA
A19: =Données!$E15 -> 0
A20: =Données!$E16 -> 0
A21: =Données!$E17 -> 0
A22: =Données!$E18 -> 0
A23: =Données!$E19 -> 0
A24: =Données!$E20 -> 0
A25: =Données!$E21 -> Equipe de nuit
A26: =Données!$E22 -> Séverine DARDAINE | D26: NS | E26: N+ | F26: N+ | J26: AM | K26: AM | L26: AM | O26: AM | P26: AM | U26: AM | V26: AM | AA26: CA | AB26: CA | AC26: CA | AD26: CA | AE26: CA
A27: =Données!$E23 -> Aurélie CHAPON | B27: N+ | C27: N+ | G27: N+ | H27: N+ | I27: N+ | M27: CA | N27: CA | O27: CA | P27: CA | Q27: CA | T27: N+ | Y27: NS | Z27: N+ | AC27: N+ | AD27: N+
A28: =Données!$E24 -> Yannick FLANDA | B28: CA | C28: CA | G28: CA | H28: CA | I28: CA | J28: CA | M28: N+ | N28: AM | Q28: AM | R28: AM | S28: AM | W28: N+ | X28: N+ | AA28: N+ | AB28: N+ | AE28: N+
A29: =Données!$E25 -> 0
A30: =Données!$E26 -> 0
A31: =Données!$E27 -> 0
A32: =Données!$E28 -> 0
A33: =Données!$E29 -> 0
A34: =Données!$E30 -> 0
A35: =Données!$E31 -> Maitresse de maison
A36: =Données!$E32 -> Florinda VICENTE | B36: CA | C36: M | G36: M | H36: M | I36: M | J36: M | M36: M | N36: M | O36: M | P36: M | Q36: M | T36: M | U36: M | V36: M | W36: M | X36: M | AA36: M | AB36: M | AC36: M | AD36: M | AE36: M
A37: =Données!$E33 -> 0
A38: =Données!$E34 -> 0
A39: =Données!$E35 -> 0
A40: =Données!$E36 -> 0
A41: =Données!$E37 -> 0
A42: =Données!$E38 -> 0
A43: =Données!$E39 -> 0
A44: =Données!$E40 -> 0
A45: =Données!$E41 -> Psychologue
A46: =Données!$E42 -> Anne Lise ANCEL | B46: J | C46: J | G46: J | H46: J | I46: J | J46: J | M46: J | N46: J | O46: J | P46: J | Q46: J | T46: J | U46: J | V46: J | W46: J | X46: J | AA46: J | AB46: J | AC46: J | AD46: J | AE46: J
A47: =Données!$E43 -> 0
A48: =Données!$E44 -> 0
A49: =Données!$E45 -> Coordinatrice
A50: =Données!$E46 -> Jocelyne ROUSSEL | B50: J | C50: J | G50: J | H50: J | I50: J | J50: J | M50: J | N50: J | O50: J | P50: J | Q50: J | T50: J | U50: J | V50: J | W50: J | X50: J | AA50: J | AB50: J | AC50: J | AD50: J | AE50: J
A51: =Données!$E47 -> 0
A52: =Données!$E48 -> 0
A53: =Données!$E49 -> 0
A54: =Données!$E50 -> 0
A55: =Données!$E51 -> Chef de service
A56: =Données!$E52 -> Catherine SOMERS | B56: J | C56: J | G56: J | H56: J | I56: J | J56: J | M56: J | N56: J | O56: J | P56: J | Q56: J | T56: J | U56: J | V56: J | W56: J | X56: J | AA56: J | AB56: J | AC56: J | AD56: J | AE56: J

Sheet Juillet
A1: 7
A3: =Données!$G$4 -> 7/11 Ans | K3: Mois de Juillet 2017
A6: Jours | B6: =PROPER(LEFT(TEXT(DATE(Données!$H5,$A$1,B7),"jjj"),1)) -> S | C6: =PROPER(LEFT(TEXT(DATE(Données!$H5,$A$1,C7),"jjj"),1)) -> D | D6: =PROPER(LEFT(TEXT(DATE(Données!$H5,$A$1,D7),"jjj"),1)) -> L | E6: =PROPER(LEFT(TEXT(DATE(Données!$H5,$A$1,E7),"jjj"),1)) -> M | F6: =PROPER(LEFT(TEXT(DATE(Données!$H5,$A$1,F7),"jjj"),1)) -> M | G6: =PROPER(LEFT(TEXT(DATE(Données!$H5,$A$1,G7),"jjj"),1)) -> J | H6: =PROPER(LEFT(TEXT(DATE(Données!$H5,$A$1,H7),"jjj"),1)) -> V | I6: =PROPER(LEFT(TEXT(DATE(Données!$H5,$A$1,I7),"jjj"),1)) -> S | J6: =PROPER(LEFT(TEXT(DATE(Données!$H5,$A$1,J7),"jjj"),1)) -> D | K6: =PROPER(LEFT(TEXT(DATE(Données!$H5,$A$1,K7),"jjj"),1)) -> L | L6: =PROPER(LEFT(TEXT(DATE(Données!$H5,$A$1,L7),"jjj"),1)) -> M | M6: =PROPER(LEFT(TEXT(DATE(Données!$H5,$A$1,M7),"jjj"),1)) -> M | N6: =PROPER(LEFT(TEXT(DATE(Données!$H5,$A$1,N7),"jjj"),1)) -> J | O6: =PROPER(LEFT(TEXT(DATE(Données!$H5,$A$1,O7),"jjj"),1)) -> V | P6: =PROPER(LEFT(TEXT(DATE(Données!$H5,$A$1,P7),"jjj"),1)) -> S | Q6: =PROPER(LEFT(TEXT(DATE(Données!$H5,$A$1,Q7),"jjj"),1)) -> D | R6: =PROPER(LEFT(TEXT(DATE(Données!$H5,$A$1,R7),"jjj"),1)) -> L | S6: =PROPER(LEFT(TEXT(DATE(Données!$H5,$A$1,S7),"jjj"),1)) -> M | T6: =PROPER(LEFT(TEXT(DATE(Données!$H5,$A$1,T7),"jjj"),1)) -> M | U6: =PROPER(LEFT(TEXT(DATE(Données!$H5,$A$1,U7),"jjj"),1)) -> J | V6: =PROPER(LEFT(TEXT(DATE(Données!$H5,$A$1,V7),"jjj"),1)) -> V | W6: =PROPER(LEFT(TEXT(DATE(Données!$H5,$A$1,W7),"jjj"),1)) -> S | X6: =PROPER(LEFT(TEXT(DATE(Données!$H5,$A$1,X7),"jjj"),1)) -> D | Y6: =PROPER(LEFT(TEXT(DATE(Données!$H5,$A$1,Y7),"jjj"),1)) -> L | Z6: =PROPER(LEFT(TEXT(DATE(Données!$H5,$A$1,Z7),"jjj"),1)) -> M | AA6: =PROPER(LEFT(TEXT(DATE(Données!$H5,$A$1,AA7),"jjj"),1)) -> M | AB6: =PROPER(LEFT(TEXT(DATE(Données!$H5,$A$1,AB7),"jjj"),1)) -> J | AC6: =PROPER(LEFT(TEXT(DATE(Données!$H5,$A$1,AC7),"jjj"),1)) -> V | AD6: =PROPER(LEFT(TEXT(DATE(Données!$H5,$A$1,AD7),"jjj"),1)) -> S | AE6: =PROPER(LEFT(TEXT(DATE(Données!$H5,$A$1,AE7),"jjj"),1)) -> D | AF6: =PROPER(LEFT(TEXT(DATE(Données!$P7,$A$1,AF7),"jjj"),1)) -> M
B7: =A7+1 -> 1 | C7: 2 | D7: 3 | E7: 4 | F7: 5 | G7: 6 | H7: 7 | I7: 8 | J7: 9 | K7: 10 | L7: 11 | M7: 12 | N7: 13 | O7: 14 | P7: 15 | Q7: 16 | R7: 17 | S7: 18 | T7: 19 | U7: 20 | V7: 21 | W7: 22 | X7: 23 | Y7: 24 | Z7: 25 | AA7: 26 | AB7: 27 | AC7: 28 | AD7: 29 | AE7: 30 | AF7: =AE7+1 -> 31
A8: Equipe de jour
A9: =Données!$E5 -> Emeraude MUBANGIA
A10: =Données!$E6 -> William CLAVIER | D10: S | E10: RS | F10: S | G10: J+ | I10: W | L10: CA | M10: CA | N10: CA | R10: CA | S10: CA | T10: CA | U10: CA | V10: CA | Y10: CA | Z10: CA | AA10: CA | AB10: CA | AC10: CA | AF10: CA
A11: =Données!$E7 -> Silvère BOUNGUELA | D11: S | E11: RS | F11: J | G11: M | H11: M | K11: j+ | L11: J | M11: j+ | N11: J | R11: J | S11: J+ | T11: J | U11: J+ | V11: J | Y11: CA | Z11: CA | AA11: CA | AB11: CA | AC11: CA | AF11: CA
A12: =Données!$E8 -> Christelle RIBIERO | B12: W | C12: WD | G12: CA | H12: CA | K12: CA | L12: CA | M12: CA | N12: CA | R12: CA | S12: CA | T12: CA | U12: CA | V12: CA | Y12: CA | Z12: CA | AA12: CA | AB12: CA | AC12: CA | AD12: W | AE12: WD
A13: =Données!$E9 -> Sébastien LE HIR | D13: CA | E13: CA | F13: CA | G13: CA | H13: CA | K13: CA | L13: CA | M13: CA | N13: CA | R13: CA | S13: CA | T13: CA | U13: CA | V13: CA | Y13: CA | Z13: CA | AA13: CA | AB13: CA | AC13: CA | AF13: CA
A14: =Données!$E10 -> Fatou NDIAYE | D14: S | E14: REC | F14: M | K14: CA | L14: CA | M14: CA | N14: CA | R14: CA | S14: CA | T14: CA | U14: CA | V14: CA | Y14: CA | Z14: CA | AA14: CA | AB14: CA | AC14: CA | AD14: W | AE14: WD | AF14: M
A15: =Données!$E11 -> Vincent BUISSON | D15: M | E15: M | F15: S | I15: W | L15: CA | M15: CA | N15: CA | R15: CA | S15: CA | T15: CA | U15: CA | V15: CA | Y15: CA | Z15: CA | AA15: CA | AB15: CA | AC15: CA | AF15: W+
A16: =Données!$E12 -> Eunice VARELA TAVARES | B16: W | C16: WD | G16: M | H16: S | K16: CA | L16: CA | M16: CA | N16: CA | R16: CA | S16: CA | T16: CA | U16: CA | V16: CA | Y16: CA | Z16: CA | AA16: CA | AB16: CA | AC16: CA | AF16: S
A17: =Données!$E13 -> Emeraude MUBANGIA | B17: T | C17: T | E17: M | F17: M | G17: S | H17: S
A18: =Données!$E14 -> Mimouna BAMOUNI | D18: J | E18: J | F18: TP | G18: J | H18: J | K18: J | L18: J | M18: TP | N18: j | R18: CA | S18: CA | T18: TP | U18: CA | V18: CA | Y18: CA | Z18: CA | AA18: TP | AB18: CA | AC18: CA
A19: =Données!$E15 -> 0
A20: =Données!$E16 -> 0
A21: =Données!$E17 -> 0
A22: =Données!$E18 -> 0
A23: =Données!$E19 -> 0
A24: =Données!$E20 -> 0
A25: =Données!$E21 -> Equipe de nuit
A26: =Données!$E22 -> Séverine DARDAINE | D26: CA | E26: CA | F26: CA | G26: CA | H26: CA | K26: CA | L26: CA | M26: CA | N26: CA | R26: CA | S26: CA | T26: CA | U26: CA | V26: CA | Y26: CA | Z26: CA | AA26: CA | AB26: CA | AC26: CA | AF26: CA
A27: =Données!$E23 -> Aurélie CHAPON | B27: N+ | C27: N+ | F27: N+ | G27: N+ | K27: CA | L27: CA | M27: CA | N27: CA | R27: CA | S27: CA | T27: CA | U27: CA | V27: CA | Y27: CA | Z27: CA | AA27: CA | AB27: CA | AC27: CA | AF27: CA
A28: =Données!$E24 -> Yannick FLANDA | D28: AM | E28: N+ | H28: N+ | K28: CA | L28: CA | M28: CA | N28: CA | R28: CA | S28: CA | T28: CA | U28: CA | V28: CA | Y28: CA | Z28: CA | AA28: CA | AB28: CA | AC28: CA | AF28: CA
A29: =Données!$E25 -> 0
A30: =Données!$E26 -> 0
A31: =Données!$E27 -> 0
A32: =Données!$E28 -> 0
A33: =Données!$E29 -> 0
A34: =Données!$E30 -> 0
A35: =Données!$E31 -> Maitresse de maison
A36: =Données!$E32 -> Florinda VICENTE | D36: M | E36: M | F36: M | G36: M | H36: M | K36: M | L36: M | M36: M | N36: M | R36: CA | S36: CA | T36: CA | U36: CA | V36: CA | Y36: CA | Z36: CA | AA36: CA | AB36: CA | AC36: CA | AF36: CA
A37: =Données!$E33 -> 0
A38: =Données!$E34 -> 0
A39: =Données!$E35 -> 0
A40: =Données!$E36 -> 0
A41: =Données!$E37 -> 0
A42: =Données!$E38 -> 0
A43: =Données!$E39 -> 0
A44: =Données!$E40 -> 0
A45: =Données!$E41 -> Psychologue
A46: =Données!$E42 -> Anne Lise ANCEL | D46: J | E46: J | F46: J | G46: J | H46: J | K46: J | L46: J | M46: J | N46: J | R46: J | S46: J | T46: J | U46: J | V46: J | Y46: J | Z46: J | AA46: J | AB46: J | AC46: J | AF46: J
A47: =Données!$E43 -> 0
A48: =Données!$E44 -> 0
A49: =Données!$E45 -> Coordinatrice
A50: =Données!$E46 -> Jocelyne ROUSSEL | D50: J | E50: J | F50: J | G50: J | H50: J | K50: CA | L50: CA | M50: CA | N50: CA | R50: CA | S50: CA | T50: CA | U50: CA | V50: CA | Y50: CA | Z50: CA | AA50: CA | AB50: CA | AC50: CA | AF50: J
A51: =Données!$E47 -> 0
A52: =Données!$E48 -> 0
A53: =Données!$E49 -> 0
A54: =Données!$E50 -> 0
A55: =Données!$E51 -> Chef de service
A56: =Données!$E52 -> Catherine SOMERS | D56: J | E56: J | F56: J | G56: J | H56: J | K56: CA | L56: CA | M56: CA | N56: CA | R56: CA | S56: CA | T56: CA | U56: CA | V56: CA | Y56: CA | Z56: CA | AA56: CA | AB56: CA | AC56: CA | AF56: J

Sheet Aout
A1: 8
A3: =Données!$G$4 -> 7/11 Ans | K3: Mois d'Aout | O3: =Données!$H$5 -> 2017
A6: Jours | B6: =PROPER(LEFT(TEXT(DATE(Données!$H5,$A$1,B7),"jjj"),1)) -> M | C6: =PROPER(LEFT(TEXT(DATE(Données!$H5,$A$1,C7),"jjj"),1)) -> M | D6: =PROPER(LEFT(TEXT(DATE(Données!$H5,$A$1,D7),"jjj"),1)) -> J | E6: =PROPER(LEFT(TEXT(DATE(Données!$H5,$A$1,E7),"jjj"),1)) -> V | F6: =PROPER(LEFT(TEXT(DATE(Données!$H5,$A$1,F7),"jjj"),1)) -> S | G6: =PROPER(LEFT(TEXT(DATE(Données!$H5,$A$1,G7),"jjj"),1)) -> D | H6: =PROPER(LEFT(TEXT(DATE(Données!$H5,$A$1,H7),"jjj"),1)) -> L | I6: =PROPER(LEFT(TEXT(DATE(Données!$H5,$A$1,I7),"jjj"),1)) -> M | J6: =PROPER(LEFT(TEXT(DATE(Données!$H5,$A$1,J7),"jjj"),1)) -> M | K6: =PROPER(LEFT(TEXT(DATE(Données!$H5,$A$1,K7),"jjj"),1)) -> J | L6: =PROPER(LEFT(TEXT(DATE(Données!$H5,$A$1,L7),"jjj"),1)) -> V | M6: =PROPER(LEFT(TEXT(DATE(Données!$H5,$A$1,M7),"jjj"),1)) -> S | N6: =PROPER(LEFT(TEXT(DATE(Données!$H5,$A$1,N7),"jjj"),1)) -> D | O6: =PROPER(LEFT(TEXT(DATE(Données!$H5,$A$1,O7),"jjj"),1)) -> L | P6: =PROPER(LEFT(TEXT(DATE(Données!$H5,$A$1,P7),"jjj"),1)) -> M | Q6: =PROPER(LEFT(TEXT(DATE(Données!$H5,$A$1,Q7),"jjj"),1)) -> M | R6: =PROPER(LEFT(TEXT(DATE(Données!$H5,$A$1,R7),"jjj"),1)) -> J | S6: =PROPER(LEFT(TEXT(DATE(Données!$H5,$A$1,S7),"jjj"),1)) -> V | T6: =PROPER(LEFT(TEXT(DATE(Données!$H5,$A$1,T7),"jjj"),1)) -> S | U6: =PROPER(LEFT(TEXT(DATE(Données!$H5,$A$1,U7),"jjj"),1)) -> D | V6: =PROPER(LEFT(TEXT(DATE(Données!$H5,$A$1,V7),"jjj"),1)) -> L | W6: =PROPER(LEFT(TEXT(DATE(Données!$H5,$A$1,W7),"jjj"),1)) -> M | X6: =PROPER(LEFT(TEXT(DATE(Données!$H5,$A$1,X7),"jjj"),1)) -> M | Y6: =PROPER(LEFT(TEXT(DATE(Données!$H5,$A$1,Y7),"jjj"),1)) -> J | Z6: =PROPER(LEFT(TEXT(DATE(Données!$H5,$A$1,Z7),"jjj"),1)) -> V | AA6: =PROPER(LEFT(TEXT(DATE(Données!$H5,$A$1,AA7),"jjj"),1)) -> S | AB6: =PROPER(LEFT(TEXT(DATE(Données!$H5,$A$1,AB7),"jjj"),1)) -> D | AC6: =PROPER(LEFT(TEXT(DATE(Données!$H5,$A$1,AC7),"jjj"),1)) -> L | AD6: =PROPER(LEFT(TEXT(DATE(Données!$H5,$A$1,AD7),"jjj"),1)) -> M | AE6: =PROPER(LEFT(TEXT(DATE(Données!$H5,$A$1,AE7),"jjj"),1)) -> M | AF6: =PROPER(LEFT(TEXT(DATE(Données!$P7,$A$1,AF7),"jjj"),1)) -> V
B7: =A7+1 -> 1 | C7: 2 | D7: 3 | E7: 4 | F7: 5 | G7: 6 | H7: 7 | I7: 8 | J7: 9 | K7: 10 | L7: 11 | M7: 12 | N7: 13 | O7: 14 | P7: 15 | Q7: 16 | R7: 17 | S7: 18 | T7: 19 | U7: 20 | V7: 21 | W7: 22 | X7: 23 | Y7: 24 | Z7: 25 | AA7: 26 | AB7: 27 | AC7: 28 | AD7: 29 | AE7: 30 | AF7: =AE7+1 -> 31
A8: Equipe de jour
A9: =Données!$E5 -> Emeraude MUBANGIA
A10: =Données!$E6 -> William CLAVIER | B10: CA | C10: CA | D10: CA | E10: CA | H10: M | I10: M | J10: W | K10: J+ | M10: AC | N10: AC | O10: S | P10: M | Q10: S | R10: M | T10: W+ | U10: WD | X10: M | Y10: S | Z10: S | AC10: S | AD10: W
A11: =Données!$E7 -> Silvère BOUNGUELA | B11: CA | C11: CA | D11: CA | E11: CA | H11: CA | I11: CA | J11: CA | K11: CA | L11: CA | O11: CA | Q11: CA | R11: CA | S11: CA | V11: AM | W11: AM | X11: AM | Y11: AM | Z11: AM | AE11: J | AF11: S
A12: =Données!$E8 -> Christelle RIBIERO | D12: M | E12: M | H12: S | I12: J | J12: W | M12: T | N12: T | O12: T | P12: T | Q12: T | R12: T | S12: T | V12: RT | W12: RT | X12: Rt | Y12: CA | Z12: CA | AC12: CA | AD12: CA | AE12: CA | AF12: CA
A13: =Données!$E9 -> Sébastien LE HIR | B13: M | C13: S | D13: S | F13: W | G13: WD | J13: M | K13: S | L13: S | O13: CA | Q13: CA | T13: W | U13: WD | W13: M | X13: S | Y13: J+ | Z13: M | AC13: S | AD13: J+ | AE13: M | AF13: M
A14: =Données!$E10 -> Fatou NDIAYE | D14: M | E14: S | H14: M | I14: REC | J14: REC | M14: T | N14: T | O14: T | P14: T | Q14: T | R14: T | S14: T | V14: CA | W14: CA | X14: CA | Y14: CA | Z14: CA | AC14: M | AD14: W | AE14: M | AF14: J
A15: =Données!$E11 -> Vincent BUISSON | B15: S | C15: J+ | E15: J+ | H15: CA | I15: CA | J15: CA | M15: T | N15: T | O15: T | P15: T | Q15: T | R15: T | S15: T | V15: M | W15: S | X15: S | AA15: W | AB15: WD | AD15: CA | AE15: CA | AF15: CA
A16: =Données!$E12 -> Eunice VARELA TAVARES | B16: S | C16: M | H16: J | I16: J | L16: M | M16: W | N16: W | O16: CA | Q16: CA | R16: CA | S16: Ca | V16: CA | W16: CA | X16: CA | Y16: CA | Z16: CA | AC16: CA | AD16: CA | AE16: CA | AF16: CA
A17: =Données!$E13 -> Emeraude MUBANGIA | B17: CA | C17: CA | D17: CA | E17: CA | H17: CA | I17: CA | J17: CA | K17: CA | L17: CA | O17: CA | Q17: CA | R17: CA | S17: CA | V17: CA | W17: CA | X17: CA | Y17: CA | Z17: CA | AC17: M | AD17: M | AE17: J+ | AF17: S
A18: =Données!$E14 -> Mimouna BAMOUNI | B18: M | C18: TP | D18: S | E18: S | H18: S | I18: S | J18: TP | K18: M | L18: M | O18: M | Q18: TP | R18: S | S18: S | V18: CA | W18: CA | X18: TP | Y18: CA | Z18: CA | AC18: M | AD18: M | AE18: TP | AF18: S
A19: =Données!$E15 -> 0
A20: =Données!$E16 -> 0
A21: =Données!$E17 -> 0
A22: =Données!$E18 -> 0
A23: =Données!$E19 -> 0
A24: =Données!$E20 -> 0
A25: =Données!$E21 -> Equipe de nuit
A26: =Données!$E22 -> Séverine DARDAINE | D26: N+ | E26: N+ | I26: N+ | L26: N+ | S26: N+ | W26: N+ | AA26: NS | AB26: N+ | AE26: N+ | AF26: N+
A27: =Données!$E23 -> Aurélie CHAPON | B27: CA | C27: CA | F27: NS | G27: N+ | J27: N+ | N27: N+ | O27: N+ | T27: NS | V27: N+ | AC27: N+ | AD27: N+
A28: =Données!$E24 -> Yannick FLANDA | H28: N+ | K28: AM | M28: N+ | P28: N+ | Q28: N+ | R28: N+ | U28: N+ | X28: EM | Y28: EM | Z28: EM | AC28: CA | AD28: CA | AE28: CA | AF28: CA
A29: =Données!$E25 -> 0
A30: =Données!$E26 -> 0
A31: =Données!$E27 -> 0
A32: =Données!$E28 -> 0
A33: =Données!$E29 -> 0
A34: =Données!$E30 -> 0
A35: =Données!$E31 -> Maitresse de maison
A36: =Données!$E32 -> Florinda VICENTE | B36: CA | C36: CA | D36: CA | E36: CA | H36: REC | I36: REC | J36: M | K36: M | L36: M | M36: T | N36: T | O36: T | P36: T | Q36: T | R36: T | S36: T | V36: REC | W36: M | X36: M | Y36: M | Z36: M | AC36: M | AD36: W | AE36: M | AF36: M
A37: =Données!$E33 -> 0
A38: =Données!$E34 -> 0
A39: =Données!$E35 -> 0
A40: =Données!$E36 -> 0
A41: =Données!$E37 -> 0
A42: =Données!$E38 -> 0
A43: =Données!$E39 -> 0
A44: =Données!$E40 -> 0
A45: =Données!$E41 -> Psychologue
A46: =Données!$E42 -> Anne Lise ANCEL | B46: J | C46: J | D46: J | E46: J | H46: J | I46: J | J46: J | K46: J | L46: J | O46: CA | Q46: CA | R46: CA | S46: CA | V46: J | W46: J | X46: J | Y46: J | Z46: J | AC46: CA | AD46: CA | AE46: CA | AF46: CA
A47: =Données!$E43 -> 0
A48: =Données!$E44 -> 0
A49: =Données!$E45 -> Coordinatrice
A50: =Données!$E46 -> Jocelyne ROUSSEL | B50: J | C50: J | D50: J | E50: J | H50: J | I50: J | J50: J | K50: J | L50: J | O50: CA | Q50: j | R50: J | S50: J | V50: J | W50: J | X50: j | Y50: J | Z50: J | AC50: J | AD50: J | AE50: J | AF50: J
A51: =Données!$E47 -> 0
A52: =Données!$E48 -> 0
A53: =Données!$E49 -> 0
A54: =Données!$E50 -> 0
A55: =Données!$E51 -> Chef de service
A56: =Données!$E52 -> Catherine SOMERS | B56: J | C56: J | D56: J | E56: J | H56: CA | I56: CA | J56: CA | K56: CA | L56: CA | O56: CA | Q56: CA | R56: CA | S56: CA | V56: CA | W56: CA | X56: CA | Y56: CA | Z56: CA | AC56: CA | AD56: CA | AE56: CA | AF56: J

Sheet Septembre
A1: 9
A3: =Données!$G$4 -> 7/11 Ans | K3: Mois de Septembre | P3: =Données!$H$5 -> 2017
A6: Jours | B6: =PROPER(LEFT(TEXT(DATE(Données!$H5,$A$1,B7),"jjj"),1)) -> V | C6: =PROPER(LEFT(TEXT(DATE(Données!$H5,$A$1,C7),"jjj"),1)) -> S | D6: =PROPER(LEFT(TEXT(DATE(Données!$H5,$A$1,D7),"jjj"),1)) -> D | E6: =PROPER(LEFT(TEXT(DATE(Données!$H5,$A$1,E7),"jjj"),1)) -> L | F6: =PROPER(LEFT(TEXT(DATE(Données!$H5,$A$1,F7),"jjj"),1)) -> M | G6: =PROPER(LEFT(TEXT(DATE(Données!$H5,$A$1,G7),"jjj"),1)) -> M | H6: =PROPER(LEFT(TEXT(DATE(Données!$H5,$A$1,H7),"jjj"),1)) -> J | I6: =PROPER(LEFT(TEXT(DATE(Données!$H5,$A$1,I7),"jjj"),1)) -> V | J6: =PROPER(LEFT(TEXT(DATE(Données!$H5,$A$1,J7),"jjj"),1)) -> S | K6: =PROPER(LEFT(TEXT(DATE(Données!$H5,$A$1,K7),"jjj"),1)) -> D | L6: =PROPER(LEFT(TEXT(DATE(Données!$H5,$A$1,L7),"jjj"),1)) -> L | M6: =PROPER(LEFT(TEXT(DATE(Données!$H5,$A$1,M7),"jjj"),1)) -> M | N6: =PROPER(LEFT(TEXT(DATE(Données!$H5,$A$1,N7),"jjj"),1)) -> M | O6: =PROPER(LEFT(TEXT(DATE(Données!$H5,$A$1,O7),"jjj"),1)) -> J | P6: =PROPER(LEFT(TEXT(DATE(Données!$H5,$A$1,P7),"jjj"),1)) -> V | Q6: =PROPER(LEFT(TEXT(DATE(Données!$H5,$A$1,Q7),"jjj"),1)) -> S | R6: =PROPER(LEFT(TEXT(DATE(Données!$H5,$A$1,R7),"jjj"),1)) -> D | S6: =PROPER(LEFT(TEXT(DATE(Données!$H5,$A$1,S7),"jjj"),1)) -> L | T6: =PROPER(LEFT(TEXT(DATE(Données!$H5,$A$1,T7),"jjj"),1)) -> M | U6: =PROPER(LEFT(TEXT(DATE(Données!$H5,$A$1,U7),"jjj"),1)) -> M | V6: =PROPER(LEFT(TEXT(DATE(Données!$H5,$A$1,V7),"jjj"),1)) -> J | W6: =PROPER(LEFT(TEXT(DATE(Données!$H5,$A$1,W7),"jjj"),1)) -> V | X6: =PROPER(LEFT(TEXT(DATE(Données!$H5,$A$1,X7),"jjj"),1)) -> S | Y6: =PROPER(LEFT(TEXT(DATE(Données!$H5,$A$1,Y7),"jjj"),1)) -> D | Z6: =PROPER(LEFT(TEXT(DATE(Données!$H5,$A$1,Z7),"jjj"),1)) -> L | AA6: =PROPER(LEFT(TEXT(DATE(Données!$H5,$A$1,AA7),"jjj"),1)) -> M | AB6: =PROPER(LEFT(TEXT(DATE(Données!$H5,$A$1,AB7),"jjj"),1)) -> M | AC6: =PROPER(LEFT(TEXT(DATE(Données!$H5,$A$1,AC7),"jjj"),1)) -> J | AD6: =PROPER(LEFT(TEXT(DATE(Données!$H5,$A$1,AD7),"jjj"),1)) -> V | AE6: =PROPER(LEFT(TEXT(DATE(Données!$H5,$A$1,AE7),"jjj"),1)) -> S
B7: =A7+1 -> 1 | C7: 2 | D7: 3 | E7: 4 | F7: 5 | G7: 6 | H7: 7 | I7: 8 | J7: 9 | K7: 10 | L7: 11 | M7: 12 | N7: 13 | O7: 14 | P7: 15 | Q7: 16 | R7: 17 | S7: 18 | T7: 19 | U7: 20 | V7: 21 | W7: 22 | X7: 23 | Y7: 24 | Z7: 25 | AA7: 26 | AB7: 27 | AC7: 28 | AD7: 29 | AE7: 30
A8: Equipe de jour
A9: =Données!$E5 -> Emeraude MUBANGIA
A10: =Données!$E6 -> William CLAVIER | B10: M | C10: W | D10: WD | F10: M | G10: M | H10: S | J10: AC | K10: AC | L10: S | M10: RS | N10: M | O10: M | P10: S | S10: F | T10: F | U10: F | V10: F | W10: F | Z10: M | AA10: M | AB10: S | AD10: M | AE10: W
A11: =Données!$E7 -> Silvère BOUNGUELA | B11: S | E11: CA | F11: RS | G11: S | H11: J+ | I11: M | L11: S | M11: RS | N11: REC | O11: REC | P11: REC | Q11: W+ | R11: WD | T11: M | U11: S | V11: S | W11: M | Z11: J | AC11: S | AD11: S
A12: =Données!$E8 -> Christelle RIBIERO | B12: CA | E12: M | F12: RS | I12: M | J12: W+ | K12: WD | N12: M | O12: S | P12: S | S12: S | T12: M | W12: M | X12: W | Y12: WD | AA12: CA | AB12: CA | AC12: CA | AD12: CA
A13: =Données!$E9 -> Sébastien LE HIR | B13: CA | E13: CA | F13: CA | G13: M | H13: M | I13: S | L13: M | M13: M | P13: M | Q13: W | R13: WD | U13: M | V13: S | W13: S | Z13: S | AA13: RS | AC13: S | AD13: S
A14: =Données!$E10 -> Fatou NDIAYE | B14: CA | E14: CA | F14: CA | G14: CA | H14: REC | J14: W+ | K14: WD | L14: J | N14: S | O14: M | P14: M | S14: M | T14: RS | U14: AM | V14: AM | W14: AM | Z14: M | AA14: RS | AB14: M | AC14: CA | AE14: W
A15: =Données!$E11 -> Vincent BUISSON | B15: W | C15: W+ | D15: WD | E15: S | H15: rec | I15: rec | L15: rec | M15: rec | N15: rec | O15: S | P15: J | S15: S | T15: RS | U15: N | V15: M | W15: S | Z15: CA | AA15: CA | AB15: CA | AC15: CA | AD15: CA
A16: =Données!$E12 -> Eunice VARELA TAVARES | B16: CA | E16: CA | F16: CA | G16: CA | H16: F | I16: F | L16: CA | M16: CA | N16: CA | O16: F | P16: F | S16: CA | T16: CA | U16: CA | V16: CA | W16: CA | Z16: M | AA16: M | AB16: S | AC16: F | AD16: F
A17: =Données!$E13 -> Emeraude MUBANGIA | B17: M | E17: J+ | F17: M | G17: J+ | H17: M | I17: M | L17: M | M17: M | N17: M | O17: S | P17: S | S17: M | T17: R | X17: W+ | Y17: WD | AA17: J | AB17: M | AC17: M | AD17: M
A18: =Données!$E14 -> Mimouna BAMOUNI | Z18: CA | AA18: CA | AB18: TP | AC18: CA | AD18: CA
A19: =Données!$E15 -> 0
A20: =Données!$E16 -> 0
A21: =Données!$E17 -> 0
A22: =Données!$E18 -> 0
A23: =Données!$E19 -> 0
A24: =Données!$E20 -> 0
A25: =Données!$E21 -> Equipe de nuit
A26: =Données!$E22 -> Séverine DARDAINE | E26: CA | F26: CA | G26: CA | H26: CA | I26: CA | M26: R | Q26: NS | R26: N+ | T26: R | U26: N+ | Z26: N+ | AA26: N+ | AC26: R | AD26: N+ | AE26: NS
A27: =Données!$E23 -> Aurélie CHAPON | C27: N+ | G27: N+ | J27: N+ | K27: N+ | M27: R | N27: N+ | P27: CA | S27: N+ | U27: CA | V27: CA | W27: CA | AA27: R | AB27: N+ | AC27: N+
A28: =Données!$E24 -> Yannick FLANDA | B28: CA | D28: N+ | E28: AM | F28: AM | M28: R | O28: AM | P28: AM | T28: N+ | W28: N+ | X28: NS | Y28: N+ | AA28: CA | AB28: CA | AC28: R | AD28: CA
A29: =Données!$E25 -> 0
A30: =Données!$E26 -> 0
A31: =Données!$E27 -> 0
A32: =Données!$E28 -> 0
A33: =Données!$E29 -> 0
A34: =Données!$E30 -> 0
A35: =Données!$E31 -> Maitresse de maison
A36: =Données!$E32 -> Florinda VICENTE
A37: =Données!$E33 -> 0
A38: =Données!$E34 -> 0
A39: =Données!$E35 -> 0
A40: =Données!$E36 -> 0
A41: =Données!$E37 -> 0
A42: =Données!$E38 -> 0
A43: =Données!$E39 -> 0
A44: =Données!$E40 -> 0
A45: =Données!$E41 -> Psychologue
A46: =Données!$E42 -> Anne Lise ANCEL
A47: =Données!$E43 -> 0
A48: =Données!$E44 -> 0
A49: =Données!$E45 -> Coordinatrice
A50: =Données!$E46 -> Jocelyne ROUSSEL | B50: p | E50: p | F50: p | G50: p | H50: p | I50: rec | L50: rec | M50: rec | N50: rec | O50: ca | P50: ca | S50: p | T50: p | U50: p | V50: p | W50: p | Z50: p | AA50: p | AB50: p | AC50: p | AD50: p
A51: =Données!$E47 -> 0
A52: =Données!$E48 -> 0
A53: =Données!$E49 -> 0
A54: =Données!$E50 -> 0
A55: =Données!$E51 -> Chef de service
A56: =Données!$E52 -> Catherine SOMERS

Sheet Octobre
A1: 10
A3: =Données!$G$4 -> 7/11 Ans | K3: Mois d'Octobre | P3: =Données!$H$5 -> 2017
A6: Jours | B6: =PROPER(LEFT(TEXT(DATE(Données!$H5,$A$1,B7),"jjj"),1)) -> D | C6: =PROPER(LEFT(TEXT(DATE(Données!$H5,$A$1,C7),"jjj"),1)) -> L | D6: =PROPER(LEFT(TEXT(DATE(Données!$H5,$A$1,D7),"jjj"),1)) -> M | E6: =PROPER(LEFT(TEXT(DATE(Données!$H5,$A$1,E7),"jjj"),1)) -> M | F6: =PROPER(LEFT(TEXT(DATE(Données!$H5,$A$1,F7),"jjj"),1)) -> J | G6: =PROPER(LEFT(TEXT(DATE(Données!$H5,$A$1,G7),"jjj"),1)) -> V | H6: =PROPER(LEFT(TEXT(DATE(Données!$H5,$A$1,H7),"jjj"),1)) -> S | I6: =PROPER(LEFT(TEXT(DATE(Données!$H5,$A$1,I7),"jjj"),1)) -> D | J6: =PROPER(LEFT(TEXT(DATE(Données!$H5,$A$1,J7),"jjj"),1)) -> L | K6: =PROPER(LEFT(TEXT(DATE(Données!$H5,$A$1,K7),"jjj"),1)) -> M | L6: =PROPER(LEFT(TEXT(DATE(Données!$H5,$A$1,L7),"jjj"),1)) -> M | M6: =PROPER(LEFT(TEXT(DATE(Données!$H5,$A$1,M7),"jjj"),1)) -> J | N6: =PROPER(LEFT(TEXT(DATE(Données!$H5,$A$1,N7),"jjj"),1)) -> V | O6: =PROPER(LEFT(TEXT(DATE(Données!$H5,$A$1,O7),"jjj"),1)) -> S | P6: =PROPER(LEFT(TEXT(DATE(Données!$H5,$A$1,P7),"jjj"),1)) -> D | Q6: =PROPER(LEFT(TEXT(DATE(Données!$H5,$A$1,Q7),"jjj"),1)) -> L | R6: =PROPER(LEFT(TEXT(DATE(Données!$H5,$A$1,R7),"jjj"),1)) -> M | S6: =PROPER(LEFT(TEXT(DATE(Données!$H5,$A$1,S7),"jjj"),1)) -> M | T6: =PROPER(LEFT(TEXT(DATE(Données!$H5,$A$1,T7),"jjj"),1)) -> J | U6: =PROPER(LEFT(TEXT(DATE(Données!$H5,$A$1,U7),"jjj"),1)) -> V | V6: =PROPER(LEFT(TEXT(DATE(Données!$H5,$A$1,V7),"jjj"),1)) -> S | W6: =PROPER(LEFT(TEXT(DATE(Données!$H5,$A$1,W7),"jjj"),1)) -> D | X6: =PROPER(LEFT(TEXT(DATE(Données!$H5,$A$1,X7),"jjj"),1)) -> L | Y6: =PROPER(LEFT(TEXT(DATE(Données!$H5,$A$1,Y7),"jjj"),1)) -> M | Z6: =PROPER(LEFT(TEXT(DATE(Données!$H5,$A$1,Z7),"jjj"),1)) -> M | AA6: =PROPER(LEFT(TEXT(DATE(Données!$H5,$A$1,AA7),"jjj"),1)) -> J | AB6: =PROPER(LEFT(TEXT(DATE(Données!$H5,$A$1,AB7),"jjj"),1)) -> V | AC6: =PROPER(LEFT(TEXT(DATE(Données!$H5,$A$1,AC7),"jjj"),1)) -> S | AD6: =PROPER(LEFT(TEXT(DATE(Données!$H5,$A$1,AD7),"jjj"),1)) -> D | AE6: =PROPER(LEFT(TEXT(DATE(Données!$H5,$A$1,AE7),"jjj"),1)) -> L | AF6: =PROPER(LEFT(TEXT(DATE(Données!$P7,$A$1,AF7),"jjj"),1)) -> M
B7: =A7+1 -> 1 | C7: 2 | D7: 3 | E7: 4 | F7: 5 | G7: 6 | H7: 7 | I7: 8 | J7: 9 | K7: 10 | L7: 11 | M7: 12 | N7: 13 | O7: 14 | P7: 15 | Q7: 16 | R7: 17 | S7: 18 | T7: 19 | U7: 20 | V7: 21 | W7: 22 | X7: 23 | Y7: 24 | Z7: 25 | AA7: 26 | AB7: 27 | AC7: 28 | AD7: 29 | AE7: 30 | AF7: =AE7+1 -> 31
A8: Equipe de jour
A9: =Données!$E5 -> Emeraude MUBANGIA
A10: =Données!$E6 -> William CLAVIER | B10: WD | E10: S | F10: J+ | G10: M | J10: S | M10: M | N10: J+ | Q10: M | R10: M | U10: M | V10: W | W10: W | Y10: J+ | Z10: S | AA10: M | AC10: AC | AD10: AC | AE10: CA | AF10: CA
A11: =Données!$E7 -> Silvère BOUNGUELA | C11: M | D11: RS | E11: S | F11: S | G11: W+ | J11: S | K11: RS | L11: CA | M11: CA | N11: CA | Q11: CA | R11: CA | S11: CA | V11: W+ | W11: W+ | X11: S | Z11: M | AA11: J+ | AB11: S | AE11: CA
A12: =Données!$E8 -> Christelle RIBIERO | C12: S | D12: M | E12: M | H12: W | I12: WD | L12: M | M12: J+ | O12: AC | P12: AC | R12: RS | T12: M | U12: S | X12: CA | Y12: CA | Z12: CA | AA12: CA | AC12: W+ | AD12: WD | AE12: M
A13: =Données!$E9 -> Sébastien LE HIR | C13: S | D13: J+ | E13: M | G13: W | H13: W+ | I13: WD | M13: S | N13: S | Q13: W+ | R13: J+ | T13: M | X13: CA | Y13: CA | Z13: CA | AA13: CA | AB13: CA | AF13: S
A14: =Données!$E10 -> Fatou NDIAYE | B14: WD | E14: REC | F14: REC | G14: REC | J14: CA | K14: CA | L14: CA | M14: CA | N14: CA | Q14: M | R14: M | S14: S | T14: W | U14: S | X14: M | Y14: M | Z14: M | AC14: W+ | AD14: WD | AF14: CA
A15: =Données!$E11 -> Vincent BUISSON | C15: CA | D15: CA | E15: CA | F15: CA | G15: CA | J15: M | K15: W | L15: S | O15: W+ | P15: WD | R15: R | S15: S | T15: J+ | U15: M | X15: M | Y15: S | Z15: J | AA15: M | AB15: J+ | AE15: S | AF15: M
A16: =Données!$E12 -> Eunice VARELA TAVARES | C16: M | D16: M | F16: M | G16: J+ | J16: M | K16: RS | L16: M | M16: F | N16: F | Q16: J | R16: R | S16: M | T16: S | X16: CA | Y16: CA | Z16: CA | AA16: CA | AB16: CA | AE16: M | AF16: M
A17: =Données!$E13 -> Emeraude MUBANGIA | C17: CA | D17: CA | E17: CA | F17: CA | G17: CA | J17: CA | K17: M | L17: J+ | N17: M | O17: W | P17: WD | S17: M | T17: S | X17: S | Y17: M | Z17: S | AA17: M | AB17: M | AE17: S | AF17: S
A18: =Données!$E14 -> Mimouna BAMOUNI
A19: =Données!$E15 -> 0
A20: =Données!$E16 -> 0
A21: =Données!$E17 -> 0
A22: =Données!$E18 -> 0
A23: =Données!$E19 -> 0
A24: =Données!$E20 -> 0
A25: =Données!$E21 -> Equipe de nuit
A26: =Données!$E22 -> Séverine DARDAINE | D26: R | E26: N+ | F26: N+ | K26: R | N26: N+ | O26: NS | P26: N+ | R26: R | S26: N+ | V26: N+ | W26: N+ | Y26: R | Z26: N+ | AA26: N+ | AE26: CA | AF26: CA
A27: =Données!$E23 -> Aurélie CHAPON | B27: N+ | C27: N+ | H27: N+ | I27: N+ | K27: R | L27: N+ | M27: N+ | Q27: CA | R27: CA | S27: CA | T27: CA | U27: CA | X27: CA | Y27: CA | Z27: CA | AA27: CA | AB27: CA | AE27: N+ | AF27: N+
A28: =Données!$E24 -> Yannick FLANDA | D28: N+ | G28: N+ | J28: N+ | K28: N+ | M28: CA | N28: CA | Q28: CA | R28: CA | S28: CA | T28: N+ | U28: N+ | X28: N+ | Y28: N+ | AB28: N+ | AC28: NS | AD28: N+
A29: =Données!$E25 -> 0
A30: =Données!$E26 -> 0
A31: =Données!$E27 -> 0
A32: =Données!$E28 -> 0
A33: =Données!$E29 -> 0
A34: =Données!$E30 -> 0
A35: =Données!$E31 -> Maitresse de maison
A36: =Données!$E32 -> Florinda VICENTE | C36: M | D36: M | E36: M | F36: M | G36: M | J36: M | K36: M | L36: M | M36: M | N36: M | Q36: M | R36: M | S36: M | T36: M | U36: M | X36: M | Y36: M | Z36: M | AA36: M | AB36: M | AE36: M | AF36: M
A37: =Données!$E33 -> 0
A38: =Données!$E34 -> 0
A39: =Données!$E35 -> 0
A40: =Données!$E36 -> 0
A41: =Données!$E37 -> 0
A42: =Données!$E38 -> 0
A43: =Données!$E39 -> 0
A44: =Données!$E40 -> 0
A45: =Données!$E41 -> Psychologue
A46: =Données!$E42 -> Anne Lise ANCEL | C46: P | D46: P | E46: P | F46: P | G46: P | J46: P | K46: P | L46: F | M46: P | N46: P | Q46: F | R46: P | S46: CA | T46: P | U46: CA | X46: CA | Y46: CA | Z46: CA | AA46: CA | AB46: CA | AE46: P | AF46: P
A47: =Données!$E43 -> 0
A48: =Données!$E44 -> 0
A49: =Données!$E45 -> Coordinatrice
A50: =Données!$E46 -> Jocelyne ROUSSEL | C50: P | D50: P | E50: P | F50: P | G50: P | J50: P | K50: P | L50: P | M50: P | N50: P | Q50: CA | R50: CA | S50: CA | T50: CA | U50: CA | X50: P | Y50: P | Z50: P | AA50: P | AB50: P | AE50: P | AF50: P
A51: =Données!$E47 -> 0
A52: =Données!$E48 -> 0
A53: =Données!$E49 -> 0
A54: =Données!$E50 -> 0
A55: =Données!$E51 -> Chef de service
A56: =Données!$E52 -> Catherine SOMERS | C56: P | D56: P | E56: P | F56: P | G56: P | J56: P | K56: P | L56: P | M56: P | N56: P | Q56: P | R56: P | S56: P | T56: P | U56: P | X56: P | Y56: P | Z56: P | AA56: P | AB56: P | AE56: CA | AF56: CA

Sheet Novembre
A1: 11
A3: =Données!$G$4 -> 7/11 Ans | K3: Mois de Novembre | P3: =Données!$H$5 -> 2017
A6: Jours | B6: =PROPER(LEFT(TEXT(DATE(Données!$H5,$A$1,B7),"jjj"),1)) -> M | C6: =PROPER(LEFT(TEXT(DATE(Données!$H5,$A$1,C7),"jjj"),1)) -> J | D6: =PROPER(LEFT(TEXT(DATE(Données!$H5,$A$1,D7),"jjj"),1)) -> V | E6: =PROPER(LEFT(TEXT(DATE(Données!$H5,$A$1,E7),"jjj"),1)) -> S | F6: =PROPER(LEFT(TEXT(DATE(Données!$H5,$A$1,F7),"jjj"),1)) -> D | G6: =PROPER(LEFT(TEXT(DATE(Données!$H5,$A$1,G7),"jjj"),1)) -> L | H6: =PROPER(LEFT(TEXT(DATE(Données!$H5,$A$1,H7),"jjj"),1)) -> M | I6: =PROPER(LEFT(TEXT(DATE(Données!$H5,$A$1,I7),"jjj"),1)) -> M | J6: =PROPER(LEFT(TEXT(DATE(Données!$H5,$A$1,J7),"jjj"),1)) -> J | K6: =PROPER(LEFT(TEXT(DATE(Données!$H5,$A$1,K7),"jjj"),1)) -> V | L6: =PROPER(LEFT(TEXT(DATE(Données!$H5,$A$1,L7),"jjj"),1)) -> S | M6: =PROPER(LEFT(TEXT(DATE(Données!$H5,$A$1,M7),"jjj"),1)) -> D | N6: =PROPER(LEFT(TEXT(DATE(Données!$H5,$A$1,N7),"jjj"),1)) -> L | O6: =PROPER(LEFT(TEXT(DATE(Données!$H5,$A$1,O7),"jjj"),1)) -> M | P6: =PROPER(LEFT(TEXT(DATE(Données!$H5,$A$1,P7),"jjj"),1)) -> M | Q6: =PROPER(LEFT(TEXT(DATE(Données!$H5,$A$1,Q7),"jjj"),1)) -> J | R6: =PROPER(LEFT(TEXT(DATE(Données!$H5,$A$1,R7),"jjj"),1)) -> V | S6: =PROPER(LEFT(TEXT(DATE(Données!$H5,$A$1,S7),"jjj"),1)) -> S | T6: =PROPER(LEFT(TEXT(DATE(Données!$H5,$A$1,T7),"jjj"),1)) -> D | U6: =PROPER(LEFT(TEXT(DATE(Données!$H5,$A$1,U7),"jjj"),1)) -> L | V6: =PROPER(LEFT(TEXT(DATE(Données!$H5,$A$1,V7),"jjj"),1)) -> M | W6: =PROPER(LEFT(TEXT(DATE(Données!$H5,$A$1,W7),"jjj"),1)) -> M | X6: =PROPER(LEFT(TEXT(DATE(Données!$H5,$A$1,X7),"jjj"),1)) -> J | Y6: =PROPER(LEFT(TEXT(DATE(Données!$H5,$A$1,Y7),"jjj"),1)) -> V | Z6: =PROPER(LEFT(TEXT(DATE(Données!$H5,$A$1,Z7),"jjj"),1)) -> S | AA6: =PROPER(LEFT(TEXT(DATE(Données!$H5,$A$1,AA7),"jjj"),1)) -> D | AB6: =PROPER(LEFT(TEXT(DATE(Données!$H5,$A$1,AB7),"jjj"),1)) -> L | AC6: =PROPER(LEFT(TEXT(DATE(Données!$H5,$A$1,AC7),"jjj"),1)) -> M | AD6: =PROPER(LEFT(TEXT(DATE(Données!$H5,$A$1,AD7),"jjj"),1)) -> M | AE6: =PROPER(LEFT(TEXT(DATE(Données!$H5,$A$1,AE7),"jjj"),1)) -> J
B7: =A7+1 -> 1 | C7: 2 | D7: 3 | E7: 4 | F7: 5 | G7: 6 | H7: 7 | I7: 8 | J7: 9 | K7: 10 | L7: 11 | M7: 12 | N7: 13 | O7: 14 | P7: 15 | Q7: 16 | R7: 17 | S7: 18 | T7: 19 | U7: 20 | V7: 21 | W7: 22 | X7: 23 | Y7: 24 | Z7: 25 | AA7: 26 | AB7: 27 | AC7: 28 | AD7: 29 | AE7: 30
A8: Equipe de jour
A9: =Données!$E5 -> Emeraude MUBANGIA
A10: =Données!$E6 -> William CLAVIER
A11: =Données!$E7 -> Silvère BOUNGUELA
A12: =Données!$E8 -> Christelle RIBIERO
A13: =Données!$E9 -> Sébastien LE HIR
A14: =Données!$E10 -> Fatou NDIAYE
A15: =Données!$E11 -> Vincent BUISSON
A16: =Données!$E12 -> Eunice VARELA TAVARES
A17: =Données!$E13 -> Emeraude MUBANGIA
A18: =Données!$E14 -> Mimouna BAMOUNI
A19: =Données!$E15 -> 0
A20: =Données!$E16 -> 0
A21: =Données!$E17 -> 0
A22: =Données!$E18 -> 0
A23: =Données!$E19 -> 0
A24: =Données!$E20 -> 0
A25: =Données!$E21 -> Equipe de nuit
A26: =Données!$E22 -> Séverine DARDAINE | C26: CA | D26: CA | G26: CA | H26: CA | I26: CA | L26: N+ | M26: N+ | P26: N+ | Q26: N+ | U26: N+ | Y26: N+ | Z26: N+ | AA26: N+ | AE26: N+
A27: =Données!$E23 -> Aurélie CHAPON | B27: N+ | E27: N+ | F27: N+ | I27: N+ | J27: N+ | N27: CA | O27: CA | P27: CA | Q27: CA | R27: CA | X27: N+ | AB27: N+ | AD27: N+
A28: =Données!$E24 -> Yannick FLANDA
A29: =Données!$E25 -> 0
A30: =Données!$E26 -> 0
A31: =Données!$E27 -> 0
A32: =Données!$E28 -> 0
A33: =Données!$E29 -> 0
A34: =Données!$E30 -> 0
A35: =Données!$E31 -> Maitresse de maison
A36: =Données!$E32 -> Florinda VICENTE
A37: =Données!$E33 -> 0
A38: =Données!$E34 -> 0
A39: =Données!$E35 -> 0
A40: =Données!$E36 -> 0
A41: =Données!$E37 -> 0
A42: =Données!$E38 -> 0
A43: =Données!$E39 -> 0
A44: =Données!$E40 -> 0
A45: =Données!$E41 -> Psychologue
A46: =Données!$E42 -> Anne Lise ANCEL
A47: =Données!$E43 -> 0
A48: =Données!$E44 -> 0
A49: =Données!$E45 -> Coordinatrice
A50: =Données!$E46 -> Jocelyne ROUSSEL
A51: =Données!$E47 -> 0
A52: =Données!$E48 -> 0
A53: =Données!$E49 -> 0
A54: =Données!$E50 -> 0
A55: =Données!$E51 -> Chef de service
A56: =Données!$E52 -> Catherine SOMERS

Sheet Decembre
A1: 12
A3: =Données!$G$4 -> 7/11 Ans | K3: Mois de Décembre | Q3: =Données!$H$5 -> 2017
A6: Jours | B6: =PROPER(LEFT(TEXT(DATE(Données!$H5,$A$1,B7),"jjj"),1)) -> V | C6: =PROPER(LEFT(TEXT(DATE(Données!$H5,$A$1,C7),"jjj"),1)) -> S | D6: =PROPER(LEFT(TEXT(DATE(Données!$H5,$A$1,D7),"jjj"),1)) -> D | E6: =PROPER(LEFT(TEXT(DATE(Données!$H5,$A$1,E7),"jjj"),1)) -> L | F6: =PROPER(LEFT(TEXT(DATE(Données!$H5,$A$1,F7),"jjj"),1)) -> M | G6: =PROPER(LEFT(TEXT(DATE(Données!$H5,$A$1,G7),"jjj"),1)) -> M | H6: =PROPER(LEFT(TEXT(DATE(Données!$H5,$A$1,H7),"jjj"),1)) -> J | I6: =PROPER(LEFT(TEXT(DATE(Données!$H5,$A$1,I7),"jjj"),1)) -> V | J6: =PROPER(LEFT(TEXT(DATE(Données!$H5,$A$1,J7),"jjj"),1)) -> S | K6: =PROPER(LEFT(TEXT(DATE(Données!$H5,$A$1,K7),"jjj"),1)) -> D | L6: =PROPER(LEFT(TEXT(DATE(Données!$H5,$A$1,L7),"jjj"),1)) -> L | M6: =PROPER(LEFT(TEXT(DATE(Données!$H5,$A$1,M7),"jjj"),1)) -> M | N6: =PROPER(LEFT(TEXT(DATE(Données!$H5,$A$1,N7),"jjj"),1)) -> M | O6: =PROPER(LEFT(TEXT(DATE(Données!$H5,$A$1,O7),"jjj"),1)) -> J | P6: =PROPER(LEFT(TEXT(DATE(Données!$H5,$A$1,P7),"jjj"),1)) -> V | Q6: =PROPER(LEFT(TEXT(DATE(Données!$H5,$A$1,Q7),"jjj"),1)) -> S | R6: =PROPER(LEFT(TEXT(DATE(Données!$H5,$A$1,R7),"jjj"),1)) -> D | S6: =PROPER(LEFT(TEXT(DATE(Données!$H5,$A$1,S7),"jjj"),1)) -> L | T6: =PROPER(LEFT(TEXT(DATE(Données!$H5,$A$1,T7),"jjj"),1)) -> M | U6: =PROPER(LEFT(TEXT(DATE(Données!$H5,$A$1,U7),"jjj"),1)) -> M | V6: =PROPER(LEFT(TEXT(DATE(Données!$H5,$A$1,V7),"jjj"),1)) -> J | W6: =PROPER(LEFT(TEXT(DATE(Données!$H5,$A$1,W7),"jjj"),1)) -> V | X6: =PROPER(LEFT(TEXT(DATE(Données!$H5,$A$1,X7),"jjj"),1)) -> S | Y6: =PROPER(LEFT(TEXT(DATE(Données!$H5,$A$1,Y7),"jjj"),1)) -> D | Z6: =PROPER(LEFT(TEXT(DATE(Données!$H5,$A$1,Z7),"jjj"),1)) -> L | AA6: =PROPER(LEFT(TEXT(DATE(Données!$H5,$A$1,AA7),"jjj"),1)) -> M | AB6: =PROPER(LEFT(TEXT(DATE(Données!$H5,$A$1,AB7),"jjj"),1)) -> M | AC6: =PROPER(LEFT(TEXT(DATE(Données!$H5,$A$1,AC7),"jjj"),1)) -> J | AD6: =PROPER(LEFT(TEXT(DATE(Données!$H5,$A$1,AD7),"jjj"),1)) -> V | AE6: =PROPER(LEFT(TEXT(DATE(Données!$H5,$A$1,AE7),"jjj"),1)) -> S | AF6: =PROPER(LEFT(TEXT(DATE(Données!$P7,$A$1,AF7),"jjj"),1)) -> L
B7: =A7+1 -> 1 | C7: 2 | D7: 3 | E7: 4 | F7: 5 | G7: 6 | H7: 7 | I7: 8 | J7: 9 | K7: 10 | L7: 11 | M7: 12 | N7: 13 | O7: 14 | P7: 15 | Q7: 16 | R7: 17 | S7: 18 | T7: 19 | U7: 20 | V7: 21 | W7: 22 | X7: 23 | Y7: 24 | Z7: 25 | AA7: 26 | AB7: 27 | AC7: 28 | AD7: 29 | AE7: 30 | AF7: =AE7+1 -> 31
A8: Equipe de jour
A9: =Données!$E5 -> Emeraude MUBANGIA
A10: =Données!$E6 -> William CLAVIER
A11: =Données!$E7 -> Silvère BOUNGUELA
A12: =Données!$E8 -> Christelle RIBIERO
A13: =Données!$E9 -> Sébastien LE HIR
A14: =Données!$E10 -> Fatou NDIAYE
A15: =Données!$E11 -> Vincent BUISSON
A16: =Données!$E12 -> Eunice VARELA TAVARES
A17: =Données!$E13 -> Emeraude MUBANGIA
A18: =Données!$E14 -> Mimouna BAMOUNI
A19: =Données!$E15 -> 0
A20: =Données!$E16 -> 0
A21: =Données!$E17 -> 0
A22: =Données!$E18 -> 0
A23: =Données!$E19 -> 0
A24: =Données!$E20 -> 0
A25: =Données!$E21 -> Equipe de nuit
A26: =Données!$E22 -> Séverine DARDAINE
A27: =Données!$E23 -> Aurélie CHAPON
A28: =Données!$E24 -> Yannick FLANDA
A29: =Données!$E25 -> 0
A30: =Données!$E26 -> 0
A31: =Données!$E27 -> 0
A32: =Données!$E28 -> 0
A33: =Données!$E29 -> 0
A34: =Données!$E30 -> 0
A35: =Données!$E31 -> Maitresse de maison
A36: =Données!$E32 -> Florinda VICENTE
A37: =Données!$E33 -> 0
A38: =Données!$E34 -> 0
A39: =Données!$E35 -> 0
A40: =Données!$E36 -> 0
A41: =Données!$E37 -> 0
A42: =Données!$E38 -> 0
A43: =Données!$E39 -> 0
A44: =Données!$E40 -> 0
A45: =Données!$E41 -> Psychologue
A46: =Données!$E42 -> Anne Lise ANCEL
A47: =Données!$E43 -> 0
A48: =Données!$E44 -> 0
A49: =Données!$E45 -> Coordinatrice
A50: =Données!$E46 -> Jocelyne ROUSSEL
A51: =Données!$E47 -> 0
A52: =Données!$E48 -> 0
A53: =Données!$E49 -> 0
A54: =Données!$E50 -> 0
A55: =Données!$E51 -> Chef de service
A56: =Données!$E52 -> Catherine SOMERS

Sheet HJanvier
E1: Mois de | F1: Janvier | I1: =Données!$H$5 -> 2017
A3: =Données!$G$4 -> 7/11 Ans
A6: Jours | B6: =PROPER(TEXT(DATE(Données!S5,1,1),"jjjjjj")) -> Dimanche | C6: =IF(OR(B$6="Lundi",B$6="Mardi",B$6="Mercredi",B$6="Jeudi",B$6="Vendredi",B$6="Samedi",B$6="Dimanche"),"h.",IF(B$6="TH","Lundi",IF(A$6="Lundi","Mardi",IF(A$6="Mardi","Mercredi",IF(A$6="Mercredi","Jeudi",IF(A$6="Jeudi","Vendredi",IF(A$6="Vendredi","Samedi",IF(A$6="Samedi","Dimanche",IF(A$6="Dimanche","TH"," "))))))))) -> h. | D6: =IF(OR(C$6="Lundi",C$6="Mardi",C$6="Mercredi",C$6="Jeudi",C$6="Vendredi",C$6="Samedi",C$6="Dimanche"),"h.",IF(C$6="TH","Lundi",IF(B$6="Lundi","Mardi",IF(B$6="Mardi","Mercredi",IF(B$6="Mercredi","Jeudi",IF(B$6="Jeudi","Vendredi",IF(B$6="Vendredi","Samedi",IF(B$6="Samedi","Dimanche",IF(B$6="Dimanche","TH"," "))))))))) -> TH | E6: Lundi | F6: h. | G6: =IF(OR(F$6="Lundi",F$6="Mardi",F$6="Mercredi",F$6="Jeudi",F$6="Vendredi",F$6="Samedi",F$6="Dimanche"),"h.",IF(F$6="TH","Lundi",IF(E$6="Lundi","Mardi",IF(E$6="Mardi","Mercredi",IF(E$6="Mercredi","Jeudi",IF(E$6="Jeudi","Vendredi",IF(E$6="Vendredi","Samedi",IF(E$6="Samedi","Dimanche",IF(E$6="Dimanche","TH"," "))))))))) -> Mardi | H6: =IF(OR(G$6="Lundi",G$6="Mardi",G$6="Mercredi",G$6="Jeudi",G$6="Vendredi",G$6="Samedi",G$6="Dimanche"),"h.",IF(G$6="TH","Lundi",IF(F$6="Lundi","Mardi",IF(F$6="Mardi","Mercredi",IF(F$6="Mercredi","Jeudi",IF(F$6="Jeudi","Vendredi",IF(F$6="Vendredi","Samedi",IF(F$6="Samedi","Dimanche",IF(F$6="Dimanche","TH"," "))))))))) -> h. | I6: =IF(OR(H$6="Lundi",H$6="Mardi",H$6="Mercredi",H$6="Jeudi",H$6="Vendredi",H$6="Samedi",H$6="Dimanche"),"h.",IF(H$6="TH","Lundi",IF(G$6="Lundi","Mardi",IF(G$6="Mardi","Mercredi",IF(G$6="Mercredi","Jeudi",IF(G$6="Jeudi","Vendredi",IF(G$6="Vendredi","Samedi",IF(G$6="Samedi","Dimanche",IF(G$6="Dimanche","TH"," "))))))))) -> Mercredi | J6: =IF(OR(I$6="Lundi",I$6="Mardi",I$6="Mercredi",I$6="Jeudi",I$6="Vendredi",I$6="Samedi",I$6="Dimanche"),"h.",IF(I$6="TH","Lundi",IF(H$6="Lundi","Mardi",IF(H$6="Mardi","Mercredi",IF(H$6="Mercredi","Jeudi",IF(H$6="Jeudi","Vendredi",IF(H$6="Vendredi","Samedi",IF(H$6="Samedi","Dimanche",IF(H$6="Dimanche","TH"," "))))))))) -> h. | K6: =IF(OR(J$6="Lundi",J$6="Mardi",J$6="Mercredi",J$6="Jeudi",J$6="Vendredi",J$6="Samedi",J$6="Dimanche"),"h.",IF(J$6="TH","Lundi",IF(I$6="Lundi","Mardi",IF(I$6="Mardi","Mercredi",IF(I$6="Mercredi","Jeudi",IF(I$6="Jeudi","Vendredi",IF(I$6="Vendredi","Samedi",IF(I$6="Samedi","Dimanche",IF(I$6="Dimanche","TH"," "))))))))) -> Jeudi | L6: h. | M6: =IF(OR(L$6="Lundi",L$6="Mardi",L$6="Mercredi",L$6="Jeudi",L$6="Vendredi",L$6="Samedi",L$6="Dimanche"),"h.",IF(L$6="TH","Lundi",IF(K$6="Lundi","Mardi",IF(K$6="Mardi","Mercredi",IF(K$6="Mercredi","Jeudi",IF(K$6="Jeudi","Vendredi",IF(K$6="Vendredi","Samedi",IF(K$6="Samedi","Dimanche",IF(K$6="Dimanche","TH"," "))))))))) -> Vendredi | N6: =IF(OR(M$6="Lundi",M$6="Mardi",M$6="Mercredi",M$6="Jeudi",M$6="Vendredi",M$6="Samedi",M$6="Dimanche"),"h.",IF(M$6="TH","Lundi",IF(L$6="Lundi","Mardi",IF(L$6="Mardi","Mercredi",IF(L$6="Mercredi","Jeudi",IF(L$6="Jeudi","Vendredi",IF(L$6="Vendredi","Samedi",IF(L$6="Samedi","Dimanche",IF(L$6="Dimanche","TH"," "))))))))) -> h. | O6: =IF(OR(N$6="Lundi",N$6="Mardi",N$6="Mercredi",N$6="Jeudi",N$6="Vendredi",N$6="Samedi",N$6="Dimanche"),"h.",IF(N$6="TH","Lundi",IF(M$6="Lundi","Mardi",IF(M$6="Mardi","Mercredi",IF(M$6="Mercredi","Jeudi",IF(M$6="Jeudi","Vendredi",IF(M$6="Vendredi","Samedi",IF(M$6="Samedi","Dimanche",IF(M$6="Dimanche","TH"," "))))))))) -> Samedi | P6: =IF(OR(O$6="Lundi",O$6="Mardi",O$6="Mercredi",O$6="Jeudi",O$6="Vendredi",O$6="Samedi",O$6="Dimanche"),"h.",IF(O$6="TH","Lundi",IF(N$6="Lundi","Mardi",IF(N$6="Mardi","Mercredi",IF(N$6="Mercredi","Jeudi",IF(N$6="Jeudi","Vendredi",IF(N$6="Vendredi","Samedi",IF(N$6="Samedi","Dimanche",IF(N$6="Dimanche","TH"," "))))))))) -> h. | Q6: =IF(OR(P$6="Lundi",P$6="Mardi",P$6="Mercredi",P$6="Jeudi",P$6="Vendredi",P$6="Samedi",P$6="Dimanche"),"h.",IF(P$6="TH","Lundi",IF(O$6="Lundi","Mardi",IF(O$6="Mardi","Mercredi",IF(O$6="Mercredi","Jeudi",IF(O$6="Jeudi","Vendredi",IF(O$6="Vendredi","Samedi",IF(O$6="Samedi","Dimanche",IF(O$6="Dimanche","TH"," "))))))))) -> Dimanche | R6: =IF(OR(Q$6="Lundi",Q$6="Mardi",Q$6="Mercredi",Q$6="Jeudi",Q$6="Vendredi",Q$6="Samedi",Q$6="Dimanche"),"h.",IF(Q$6="TH","Lundi",IF(P$6="Lundi","Mardi",IF(P$6="Mardi","Mercredi",IF(P$6="Mercredi","Jeudi",IF(P$6="Jeudi","Vendredi",IF(P$6="Vendredi","Samedi",IF(P$6="Samedi","Dimanche",IF(P$6="Dimanche","TH"," "))))))))) -> h. | S6: =IF(OR(R$6="Lundi",R$6="Mardi",R$6="Mercredi",R$6="Jeudi",R$6="Vendredi",R$6="Samedi",R$6="Dimanche"),"h.",IF(R$6="TH","Lundi",IF(Q$6="Lundi","Mardi",IF(Q$6="Mardi","Mercredi",IF(Q$6="Mercredi","Jeudi",IF(Q$6="Jeudi","Vendredi",IF(Q$6="Vendredi","Samedi",IF(Q$6="Samedi","Dimanche",IF(Q$6="Dimanche","TH"," "))))))))) -> TH | T6: =IF(OR(S$6="Lundi",S$6="Mardi",S$6="Mercredi",S$6="Jeudi",S$6="Vendredi",S$6="Samedi",S$6="Dimanche"),"h.",IF(S$6="TH","Lundi",IF(R$6="Lundi","Mardi",IF(R$6="Mardi","Mercredi",IF(R$6="Mercredi","Jeudi",IF(R$6="Jeudi","Vendredi",IF(R$6="Vendredi","Samedi",IF(R$6="Samedi","Dimanche",IF(R$6="Dimanche","TH"," "))))))))) -> Lundi | U6: =IF(OR(T$6="Lundi",T$6="Mardi",T$6="Mercredi",T$6="Jeudi",T$6="Vendredi",T$6="Samedi",T$6="Dimanche"),"h.",IF(T$6="TH","Lundi",IF(S$6="Lundi","Mardi",IF(S$6="Mardi","Mercredi",IF(S$6="Mercredi","Jeudi",IF(S$6="Jeudi","Vendredi",IF(S$6="Vendredi","Samedi",IF(S$6="Samedi","Dimanche",IF(S$6="Dimanche","TH"," "))))))))) -> h. | V6: =IF(OR(U$6="Lundi",U$6="Mardi",U$6="Mercredi",U$6="Jeudi",U$6="Vendredi",U$6="Samedi",U$6="Dimanche"),"h.",IF(U$6="TH","Lundi",IF(T$6="Lundi","Mardi",IF(T$6="Mardi","Mercredi",IF(T$6="Mercredi","Jeudi",IF(T$6="Jeudi","Vendredi",IF(T$6="Vendredi","Samedi",IF(T$6="Samedi","Dimanche",IF(T$6="Dimanche","TH"," "))))))))) -> Mardi | W6: =IF(OR(V$6="Lundi",V$6="Mardi",V$6="Mercredi",V$6="Jeudi",V$6="Vendredi",V$6="Samedi",V$6="Dimanche"),"h.",IF(V$6="TH","Lundi",IF(U$6="Lundi","Mardi",IF(U$6="Mardi","Mercredi",IF(U$6="Mercredi","Jeudi",IF(U$6="Jeudi","Vendredi",IF(U$6="Vendredi","Samedi",IF(U$6="Samedi","Dimanche",IF(U$6="Dimanche","TH"," "))))))))) -> h. | X6: =IF(OR(W$6="Lundi",W$6="Mardi",W$6="Mercredi",W$6="Jeudi",W$6="Vendredi",W$6="Samedi",W$6="Dimanche"),"h.",IF(W$6="TH","Lundi",IF(V$6="Lundi","Mardi",IF(V$6="Mardi","Mercredi",IF(V$6="Mercredi","Jeudi",IF(V$6="Jeudi","Vendredi",IF(V$6="Vendredi","Samedi",IF(V$6="Samedi","Dimanche",IF(V$6="Dimanche","TH"," "))))))))) -> Mercredi | Y6: =IF(OR(X$6="Lundi",X$6="Mardi",X$6="Mercredi",X$6="Jeudi",X$6="Vendredi",X$6="Samedi",X$6="Dimanche"),"h.",IF(X$6="TH","Lundi",IF(W$6="Lundi","Mardi",IF(W$6="Mardi","Mercredi",IF(W$6="Mercredi","Jeudi",IF(W$6="Jeudi","Vendredi",IF(W$6="Vendredi","Samedi",IF(W$6="Samedi","Dimanche",IF(W$6="Dimanche","TH"," "))))))))) -> h. | Z6: =IF(OR(Y$6="Lundi",Y$6="Mardi",Y$6="Mercredi",Y$6="Jeudi",Y$6="Vendredi",Y$6="Samedi",Y$6="Dimanche"),"h.",IF(Y$6="TH","Lundi",IF(X$6="Lundi","Mardi",IF(X$6="Mardi","Mercredi",IF(X$6="Mercredi","Jeudi",IF(X$6="Jeudi","Vendredi",IF(X$6="Vendredi","Samedi",IF(X$6="Samedi","Dimanche",IF(X$6="Dimanche","TH"," "))))))))) -> Jeudi | AA6: =IF(OR(Z$6="Lundi",Z$6="Mardi",Z$6="Mercredi",Z$6="Jeudi",Z$6="Vendredi",Z$6="Samedi",Z$6="Dimanche"),"h.",IF(Z$6="TH","Lundi",IF(Y$6="Lundi","Mardi",IF(Y$6="Mardi","Mercredi",IF(Y$6="Mercredi","Jeudi",IF(Y$6="Jeudi","Vendredi",IF(Y$6="Vendredi","Samedi",IF(Y$6="Samedi","Dimanche",IF(Y$6="Dimanche","TH"," "))))))))) -> h. | AB6: =IF(OR(AA$6="Lundi",AA$6="Mardi",AA$6="Mercredi",AA$6="Jeudi",AA$6="Vendredi",AA$6="Samedi",AA$6="Dimanche"),"h.",IF(AA$6="TH","Lundi",IF(Z$6="Lundi","Mardi",IF(Z$6="Mardi","Mercredi",IF(Z$6="Mercredi","Jeudi",IF(Z$6="Jeudi","Vendredi",IF(Z$6="Vendredi","Samedi",IF(Z$6="Samedi","Dimanche",IF(Z$6="Dimanche","TH"," "))))))))) -> Vendredi | AC6: =IF(OR(AB$6="Lundi",AB$6="Mardi",AB$6="Mercredi",AB$6="Jeudi",AB$6="Vendredi",AB$6="Samedi",AB$6="Dimanche"),"h.",IF(AB$6="TH","Lundi",IF(AA$6="Lundi","Mardi",IF(AA$6="Mardi","Mercredi",IF(AA$6="Mercredi","Jeudi",IF(AA$6="Jeudi","Vendredi",IF(AA$6="Vendredi","Samedi",IF(AA$6="Samedi","Dimanche",IF(AA$6="Dimanche","TH"," "))))))))) -> h. | AD6: =IF(OR(AC$6="Lundi",AC$6="Mardi",AC$6="Mercredi",AC$6="Jeudi",AC$6="Vendredi",AC$6="Samedi",AC$6="Dimanche"),"h.",IF(AC$6="TH","Lundi",IF(AB$6="Lundi","Mardi",IF(AB$6="Mardi","Mercredi",IF(AB$6="Mercredi","Jeudi",IF(AB$6="Jeudi","Vendredi",IF(AB$6="Vendredi","Samedi",IF(AB$6="Samedi","Dimanche",IF(AB$6="Dimanche","TH"," "))))))))) -> Samedi | AE6: =IF(OR(AD$6="Lundi",AD$6="Mardi",AD$6="Mercredi",AD$6="Jeudi",AD$6="Vendredi",AD$6="Samedi",AD$6="Dimanche"),"h.",IF(AD$6="TH","Lundi",IF(AC$6="Lundi","Mardi",IF(AC$6="Mardi","Mercredi",IF(AC$6="Mercredi","Jeudi",IF(AC$6="Jeudi","Vendredi",IF(AC$6="Vendredi","Samedi",IF(AC$6="Samedi","Dimanche",IF(AC$6="Dimanche","TH"," "))))))))) -> h. | AF6: =IF(OR(AE$6="Lundi",AE$6="Mardi",AE$6="Mercredi",AE$6="Jeudi",AE$6="Vendredi",AE$6="Samedi",AE$6="Dimanche"),"h.",IF(AE$6="TH","Lundi",IF(AD$6="Lundi","Mardi",IF(AD$6="Mardi","Mercredi",IF(AD$6="Mercredi","Jeudi",IF(AD$6="Jeudi","Vendredi",IF(AD$6="Vendredi","Samedi",IF(AD$6="Samedi","Dimanche",IF(AD$6="Dimanche","TH"," "))))))))) -> Dimanche | AG6: =IF(OR(AF$6="Lundi",AF$6="Mardi",AF$6="Mercredi",AF$6="Jeudi",AF$6="Vendredi",AF$6="Samedi",AF$6="Dimanche"),"h.",IF(AF$6="TH","Lundi",IF(AE$6="Lundi","Mardi",IF(AE$6="Mardi","Mercredi",IF(AE$6="Mercredi","Jeudi",IF(AE$6="Jeudi","Vendredi",IF(AE$6="Vendredi","Samedi",IF(AE$6="Samedi","Dimanche",IF(AE$6="Dimanche","TH"," "))))))))) -> h. | AH6: =IF(OR(AG$6="Lundi",AG$6="Mardi",AG$6="Mercredi",AG$6="Jeudi",AG$6="Vendredi",AG$6="Samedi",AG$6="Dimanche"),"h.",IF(AG$6="TH","Lundi",IF(AF$6="Lundi","Mardi",IF(AF$6="Mardi","Mercredi",IF(AF$6="Mercredi","Jeudi",IF(AF$6="Jeudi","Vendredi",IF(AF$6="Vendredi","Samedi",IF(AF$6="Samedi","Dimanche",IF(AF$6="Dimanche","TH"," "))))))))) -> TH | AI6: =IF(OR(AH$6="Lundi",AH$6="Mardi",AH$6="Mercredi",AH$6="Jeudi",AH$6="Vendredi",AH$6="Samedi",AH$6="Dimanche"),"h.",IF(AH$6="TH","Lundi",IF(AG$6="Lundi","Mardi",IF(AG$6="Mardi","Mercredi",IF(AG$6="Mercredi","Jeudi",IF(AG$6="Jeudi","Vendredi",IF(AG$6="Vendredi","Samedi",IF(AG$6="Samedi","Dimanche",IF(AG$6="Dimanche","TH"," "))))))))) -> Lundi | AJ6: =IF(OR(AI$6="Lundi",AI$6="Mardi",AI$6="Mercredi",AI$6="Jeudi",AI$6="Vendredi",AI$6="Samedi",AI$6="Dimanche"),"h.",IF(AI$6="TH","Lundi",IF(AH$6="Lundi","Mardi",IF(AH$6="Mardi","Mercredi",IF(AH$6="Mercredi","Jeudi",IF(AH$6="Jeudi","Vendredi",IF(AH$6="Vendredi","Samedi",IF(AH$6="Samedi","Dimanche",IF(AH$6="Dimanche","TH"," "))))))))) -> h. | AK6: =IF(OR(AJ$6="Lundi",AJ$6="Mardi",AJ$6="Mercredi",AJ$6="Jeudi",AJ$6="Vendredi",AJ$6="Samedi",AJ$6="Dimanche"),"h.",IF(AJ$6="TH","Lundi",IF(AI$6="Lundi","Mardi",IF(AI$6="Mardi","Mercredi",IF(AI$6="Mercredi","Jeudi",IF(AI$6="Jeudi","Vendredi",IF(AI$6="Vendredi","Samedi",IF(AI$6="Samedi","Dimanche",IF(AI$6="Dimanche","TH"," "))))))))) -> Mardi | AL6: =IF(OR(AK$6="Lundi",AK$6="Mardi",AK$6="Mercredi",AK$6="Jeudi",AK$6="Vendredi",AK$6="Samedi",AK$6="Dimanche"),"h.",IF(AK$6="TH","Lundi",IF(AJ$6="Lundi","Mardi",IF(AJ$6="Mardi","Mercredi",IF(AJ$6="Mercredi","Jeudi",IF(AJ$6="Jeudi","Vendredi",IF(AJ$6="Vendredi","Samedi",IF(AJ$6="Samedi","Dimanche",IF(AJ$6="Dimanche","TH"," "))))))))) -> h. | AM6: =IF(OR(AL$6="Lundi",AL$6="Mardi",AL$6="Mercredi",AL$6="Jeudi",AL$6="Vendredi",AL$6="Samedi",AL$6="Dimanche"),"h.",IF(AL$6="TH","Lundi",IF(AK$6="Lundi","Mardi",IF(AK$6="Mardi","Mercredi",IF(AK$6="Mercredi","Jeudi",IF(AK$6="Jeudi","Vendredi",IF(AK$6="Vendredi","Samedi",IF(AK$6="Samedi","Dimanche",IF(AK$6="Dimanche","TH"," "))))))))) -> Mercredi | AN6: =IF(OR(AM$6="Lundi",AM$6="Mardi",AM$6="Mercredi",AM$6="Jeudi",AM$6="Vendredi",AM$6="Samedi",AM$6="Dimanche"),"h.",IF(AM$6="TH","Lundi",IF(AL$6="Lundi","Mardi",IF(AL$6="Mardi","Mercredi",IF(AL$6="Mercredi","Jeudi",IF(AL$6="Jeudi","Vendredi",IF(AL$6="Vendredi","Samedi",IF(AL$6="Samedi","Dimanche",IF(AL$6="Dimanche","TH"," "))))))))) -> h. | AO6: =IF(OR(AN$6="Lundi",AN$6="Mardi",AN$6="Mercredi",AN$6="Jeudi",AN$6="Vendredi",AN$6="Samedi",AN$6="Dimanche"),"h.",IF(AN$6="TH","Lundi",IF(AM$6="Lundi","Mardi",IF(AM$6="Mardi","Mercredi",IF(AM$6="Mercredi","Jeudi",IF(AM$6="Jeudi","Vendredi",IF(AM$6="Vendredi","Samedi",IF(AM$6="Samedi","Dimanche",IF(AM$6="Dimanche","TH"," "))))))))) -> Jeudi | AP6: =IF(OR(AO$6="Lundi",AO$6="Mardi",AO$6="Mercredi",AO$6="Jeudi",AO$6="Vendredi",AO$6="Samedi",AO$6="Dimanche"),"h.",IF(AO$6="TH","Lundi",IF(AN$6="Lundi","Mardi",IF(AN$6="Mardi","Mercredi",IF(AN$6="Mercredi","Jeudi",IF(AN$6="Jeudi","Vendredi",IF(AN$6="Vendredi","Samedi",IF(AN$6="Samedi","Dimanche",IF(AN$6="Dimanche","TH"," "))))))))) -> h. | AQ6: =IF(OR(AP$6="Lundi",AP$6="Mardi",AP$6="Mercredi",AP$6="Jeudi",AP$6="Vendredi",AP$6="Samedi",AP$6="Dimanche"),"h.",IF(AP$6="TH","Lundi",IF(AO$6="Lundi","Mardi",IF(AO$6="Mardi","Mercredi",IF(AO$6="Mercredi","Jeudi",IF(AO$6="Jeudi","Vendredi",IF(AO$6="Vendredi","Samedi",IF(AO$6="Samedi","Dimanche",IF(AO$6="Dimanche","TH"," "))))))))) -> Vendredi | AR6: =IF(OR(AQ$6="Lundi",AQ$6="Mardi",AQ$6="Mercredi",AQ$6="Jeudi",AQ$6="Vendredi",AQ$6="Samedi",AQ$6="Dimanche"),"h.",IF(AQ$6="TH","Lundi",IF(AP$6="Lundi","Mardi",IF(AP$6="Mardi","Mercredi",IF(AP$6="Mercredi","Jeudi",IF(AP$6="Jeudi","Vendredi",IF(AP$6="Vendredi","Samedi",IF(AP$6="Samedi","Dimanche",IF(AP$6="Dimanche","TH"," "))))))))) -> h. | AS6: =IF(OR(AR$6="Lundi",AR$6="Mardi",AR$6="Mercredi",AR$6="Jeudi",AR$6="Vendredi",AR$6="Samedi",AR$6="Dimanche"),"h.",IF(AR$6="TH","Lundi",IF(AQ$6="Lundi","Mardi",IF(AQ$6="Mardi","Mercredi",IF(AQ$6="Mercredi","Jeudi",IF(AQ$6="Jeudi","Vendredi",IF(AQ$6="Vendredi","Samedi",IF(AQ$6="Samedi","Dimanche",IF(AQ$6="Dimanche","TH"," "))))))))) -> Samedi | AT6: =IF(OR(AS$6="Lundi",AS$6="Mardi",AS$6="Mercredi",AS$6="Jeudi",AS$6="Vendredi",AS$6="Samedi",AS$6="Dimanche"),"h.",IF(AS$6="TH","Lundi",IF(AR$6="Lundi","Mardi",IF(AR$6="Mardi","Mercredi",IF(AR$6="Mercredi","Jeudi",IF(AR$6="Jeudi","Vendredi",IF(AR$6="Vendredi","Samedi",IF(AR$6="Samedi","Dimanche",IF(AR$6="Dimanche","TH"," "))))))))) -> h. | AU6: =IF(OR(AT$6="Lundi",AT$6="Mardi",AT$6="Mercredi",AT$6="Jeudi",AT$6="Vendredi",AT$6="Samedi",AT$6="Dimanche"),"h.",IF(AT$6="TH","Lundi",IF(AS$6="Lundi","Mardi",IF(AS$6="Mardi","Mercredi",IF(AS$6="Mercredi","Jeudi",IF(AS$6="Jeudi","Vendredi",IF(AS$6="Vendredi","Samedi",IF(AS$6="Samedi","Dimanche",IF(AS$6="Dimanche","TH"," "))))))))) -> Dimanche | AV6: =IF(OR(AU$6="Lundi",AU$6="Mardi",AU$6="Mercredi",AU$6="Jeudi",AU$6="Vendredi",AU$6="Samedi",AU$6="Dimanche"),"h.",IF(AU$6="TH","Lundi",IF(AT$6="Lundi","Mardi",IF(AT$6="Mardi","Mercredi",IF(AT$6="Mercredi","Jeudi",IF(AT$6="Jeudi","Vendredi",IF(AT$6="Vendredi","Samedi",IF(AT$6="Samedi","Dimanche",IF(AT$6="Dimanche","TH"," "))))))))) -> h. | AW6: =IF(OR(AV$6="Lundi",AV$6="Mardi",AV$6="Mercredi",AV$6="Jeudi",AV$6="Vendredi",AV$6="Samedi",AV$6="Dimanche"),"h.",IF(AV$6="TH","Lundi",IF(AU$6="Lundi","Mardi",IF(AU$6="Mardi","Mercredi",IF(AU$6="Mercredi","Jeudi",IF(AU$6="Jeudi","Vendredi",IF(AU$6="Vendredi","Samedi",IF(AU$6="Samedi","Dimanche",IF(AU$6="Dimanche","TH"," "))))))))) -> TH | AX6: =IF(OR(AW$6="Lundi",AW$6="Mardi",AW$6="Mercredi",AW$6="Jeudi",AW$6="Vendredi",AW$6="Samedi",AW$6="Dimanche"),"h.",IF(AW$6="TH","Lundi",IF(AV$6="Lundi","Mardi",IF(AV$6="Mardi","Mercredi",IF(AV$6="Mercredi","Jeudi",IF(AV$6="Jeudi","Vendredi",IF(AV$6="Vendredi","Samedi",IF(AV$6="Samedi","Dimanche",IF(AV$6="Dimanche","TH"," "))))))))) -> Lundi | AY6: =IF(OR(AX$6="Lundi",AX$6="Mardi",AX$6="Mercredi",AX$6="Jeudi",AX$6="Vendredi",AX$6="Samedi",AX$6="Dimanche"),"h.",IF(AX$6="TH","Lundi",IF(AW$6="Lundi","Mardi",IF(AW$6="Mardi","Mercredi",IF(AW$6="Mercredi","Jeudi",IF(AW$6="Jeudi","Vendredi",IF(AW$6="Vendredi","Samedi",IF(AW$6="Samedi","Dimanche",IF(AW$6="Dimanche","TH"," "))))))))) -> h. | AZ6: =IF(OR(AY$6="Lundi",AY$6="Mardi",AY$6="Mercredi",AY$6="Jeudi",AY$6="Vendredi",AY$6="Samedi",AY$6="Dimanche"),"h.",IF(AY$6="TH","Lundi",IF(AX$6="Lundi","Mardi",IF(AX$6="Mardi","Mercredi",IF(AX$6="Mercredi","Jeudi",IF(AX$6="Jeudi","Vendredi",IF(AX$6="Vendredi","Samedi",IF(AX$6="Samedi","Dimanche",IF(AX$6="Dimanche","TH"," "))))))))) -> Mardi | BA6: =IF(OR(AZ$6="Lundi",AZ$6="Mardi",AZ$6="Mercredi",AZ$6="Jeudi",AZ$6="Vendredi",AZ$6="Samedi",AZ$6="Dimanche"),"h.",IF(AZ$6="TH","Lundi",IF(AY$6="Lundi","Mardi",IF(AY$6="Mardi","Mercredi",IF(AY$6="Mercredi","Jeudi",IF(AY$6="Jeudi","Vendredi",IF(AY$6="Vendredi","Samedi",IF(AY$6="Samedi","Dimanche",IF(AY$6="Dimanche","TH"," "))))))))) -> h. | BB6: =IF(OR(BA$6="Lundi",BA$6="Mardi",BA$6="Mercredi",BA$6="Jeudi",BA$6="Vendredi",BA$6="Samedi",BA$6="Dimanche"),"h.",IF(BA$6="TH","Lundi",IF(AZ$6="Lundi","Mardi",IF(AZ$6="Mardi","Mercredi",IF(AZ$6="Mercredi","Jeudi",IF(AZ$6="Jeudi","Vendredi",IF(AZ$6="Vendredi","Samedi",IF(AZ$6="Samedi","Dimanche",IF(AZ$6="Dimanche","TH"," "))))))))) -> Mercredi | BC6: =IF(OR(BB$6="Lundi",BB$6="Mardi",BB$6="Mercredi",BB$6="Jeudi",BB$6="Vendredi",BB$6="Samedi",BB$6="Dimanche"),"h.",IF(BB$6="TH","Lundi",IF(BA$6="Lundi","Mardi",IF(BA$6="Mardi","Mercredi",IF(BA$6="Mercredi","Jeudi",IF(BA$6="Jeudi","Vendredi",IF(BA$6="Vendredi","Samedi",IF(BA$6="Samedi","Dimanche",IF(BA$6="Dimanche","TH"," "))))))))) -> h. | BD6: =IF(OR(BC$6="Lundi",BC$6="Mardi",BC$6="Mercredi",BC$6="Jeudi",BC$6="Vendredi",BC$6="Samedi",BC$6="Dimanche"),"h.",IF(BC$6="TH","Lundi",IF(BB$6="Lundi","Mardi",IF(BB$6="Mardi","Mercredi",IF(BB$6="Mercredi","Jeudi",IF(BB$6="Jeudi","Vendredi",IF(BB$6="Vendredi","Samedi",IF(BB$6="Samedi","Dimanche",IF(BB$6="Dimanche","TH"," "))))))))) -> Jeudi | BE6: =IF(OR(BD$6="Lundi",BD$6="Mardi",BD$6="Mercredi",BD$6="Jeudi",BD$6="Vendredi",BD$6="Samedi",BD$6="Dimanche"),"h.",IF(BD$6="TH","Lundi",IF(BC$6="Lundi","Mardi",IF(BC$6="Mardi","Mercredi",IF(BC$6="Mercredi","Jeudi",IF(BC$6="Jeudi","Vendredi",IF(BC$6="Vendredi","Samedi",IF(BC$6="Samedi","Dimanche",IF(BC$6="Dimanche","TH"," "))))))))) -> h. | BF6: =IF(OR(BE$6="Lundi",BE$6="Mardi",BE$6="Mercredi",BE$6="Jeudi",BE$6="Vendredi",BE$6="Samedi",BE$6="Dimanche"),"h.",IF(BE$6="TH","Lundi",IF(BD$6="Lundi","Mardi",IF(BD$6="Mardi","Mercredi",IF(BD$6="Mercredi","Jeudi",IF(BD$6="Jeudi","Vendredi",IF(BD$6="Vendredi","Samedi",IF(BD$6="Samedi","Dimanche",IF(BD$6="Dimanche","TH"," "))))))))) -> Vendredi | BG6: =IF(OR(BF$6="Lundi",BF$6="Mardi",BF$6="Mercredi",BF$6="Jeudi",BF$6="Vendredi",BF$6="Samedi",BF$6="Dimanche"),"h.",IF(BF$6="TH","Lundi",IF(BE$6="Lundi","Mardi",IF(BE$6="Mardi","Mercredi",IF(BE$6="Mercredi","Jeudi",IF(BE$6="Jeudi","Vendredi",IF(BE$6="Vendredi","Samedi",IF(BE$6="Samedi","Dimanche",IF(BE$6="Dimanche","TH"," "))))))))) -> h. | BH6: =IF(OR(BG$6="Lundi",BG$6="Mardi",BG$6="Mercredi",BG$6="Jeudi",BG$6="Vendredi",BG$6="Samedi",BG$6="Dimanche"),"h.",IF(BG$6="TH","Lundi",IF(BF$6="Lundi","Mardi",IF(BF$6="Mardi","Mercredi",IF(BF$6="Mercredi","Jeudi",IF(BF$6="Jeudi","Vendredi",IF(BF$6="Vendredi","Samedi",IF(BF$6="Samedi","Dimanche",IF(BF$6="Dimanche","TH"," "))))))))) -> Samedi | BI6: =IF(OR(BH$6="Lundi",BH$6="Mardi",BH$6="Mercredi",BH$6="Jeudi",BH$6="Vendredi",BH$6="Samedi",BH$6="Dimanche"),"h.",IF(BH$6="TH","Lundi",IF(BG$6="Lundi","Mardi",IF(BG$6="Mardi","Mercredi",IF(BG$6="Mercredi","Jeudi",IF(BG$6="Jeudi","Vendredi",IF(BG$6="Vendredi","Samedi",IF(BG$6="Samedi","Dimanche",IF(BG$6="Dimanche","TH"," "))))))))) -> h. | BJ6: =IF(OR(BI$6="Lundi",BI$6="Mardi",BI$6="Mercredi",BI$6="Jeudi",BI$6="Vendredi",BI$6="Samedi",BI$6="Dimanche"),"h.",IF(BI$6="TH","Lundi",IF(BH$6="Lundi","Mardi",IF(BH$6="Mardi","Mercredi",IF(BH$6="Mercredi","Jeudi",IF(BH$6="Jeudi","Vendredi",IF(BH$6="Vendredi","Samedi",IF(BH$6="Samedi","Dimanche",IF(BH$6="Dimanche","TH"," "))))))))) -> Dimanche | BK6: =IF(OR(BJ$6="Lundi",BJ$6="Mardi",BJ$6="Mercredi",BJ$6="Jeudi",BJ$6="Vendredi",BJ$6="Samedi",BJ$6="Dimanche"),"h.",IF(BJ$6="TH","Lundi",IF(BI$6="Lundi","Mardi",IF(BI$6="Mardi","Mercredi",IF(BI$6="Mercredi","Jeudi",IF(BI$6="Jeudi","Vendredi",IF(BI$6="Vendredi","Samedi",IF(BI$6="Samedi","Dimanche",IF(BI$6="Dimanche","TH"," "))))))))) -> h. | BL6: =IF(OR(BK$6="Lundi",BK$6="Mardi",BK$6="Mercredi",BK$6="Jeudi",BK$6="Vendredi",BK$6="Samedi",BK$6="Dimanche"),"h.",IF(BK$6="TH","Lundi",IF(BJ$6="Lundi","Mardi",IF(BJ$6="Mardi","Mercredi",IF(BJ$6="Mercredi","Jeudi",IF(BJ$6="Jeudi","Vendredi",IF(BJ$6="Vendredi","Samedi",IF(BJ$6="Samedi","Dimanche",IF(BJ$6="Dimanche","TH"," "))))))))) -> TH | BM6: =IF(OR(BL$6="Lundi",BL$6="Mardi",BL$6="Mercredi",BL$6="Jeudi",BL$6="Vendredi",BL$6="Samedi",BL$6="Dimanche"),"h.",IF(BL$6="TH","Lundi",IF(BK$6="Lundi","Mardi",IF(BK$6="Mardi","Mercredi",IF(BK$6="Mercredi","Jeudi",IF(BK$6="Jeudi","Vendredi",IF(BK$6="Vendredi","Samedi",IF(BK$6="Samedi","Dimanche",IF(BK$6="Dimanche","TH"," "))))))))) -> Lundi | BN6: =IF(OR(BM$6="Lundi",BM$6="Mardi",BM$6="Mercredi",BM$6="Jeudi",BM$6="Vendredi",BM$6="Samedi",BM$6="Dimanche"),"h.",IF(BM$6="TH","Lundi",IF(BL$6="Lundi","Mardi",IF(BL$6="Mardi","Mercredi",IF(BL$6="Mercredi","Jeudi",IF(BL$6="Jeudi","Vendredi",IF(BL$6="Vendredi","Samedi",IF(BL$6="Samedi","Dimanche",IF(BL$6="Dimanche","TH"," "))))))))) -> h. | BO6: =IF(OR(BN$6="Lundi",BN$6="Mardi",BN$6="Mercredi",BN$6="Jeudi",BN$6="Vendredi",BN$6="Samedi",BN$6="Dimanche"),"h.",IF(BN$6="TH","Lundi",IF(BM$6="Lundi","Mardi",IF(BM$6="Mardi","Mercredi",IF(BM$6="Mercredi","Jeudi",IF(BM$6="Jeudi","Vendredi",IF(BM$6="Vendredi","Samedi",IF(BM$6="Samedi","Dimanche",IF(BM$6="Dimanche","TH"," "))))))))) -> Mardi | BP6: h.
B7: 1 | C7: =IF(OR(C$6="Mardi",C$6="Mercredi",C$6="Jeudi",C$6="Vendredi",C$6="Samedi",C$6="Dimanche"),A$7+1,IF(C$6="Lundi",#REF!+1," ")) ->  | D7: =IF(OR(D$6="Mardi",D$6="Mercredi",D$6="Jeudi",D$6="Vendredi",D$6="Samedi",D$6="Dimanche"),B$7+1,IF(D$6="Lundi",A$7+1," ")) ->  | E7: =IF(OR(E$6="Mardi",E$6="Mercredi",E$6="Jeudi",E$6="Vendredi",E$6="Samedi",E$6="Dimanche"),C$7+1,IF(E$6="Lundi",B$7+1," ")) -> 2 | G7: 3 | I7: 4 | K7: 5 | M7: =IF(OR(M$6="Mardi",M$6="Mercredi",M$6="Jeudi",M$6="Vendredi",M$6="Samedi",M$6="Dimanche"),K$7+1,IF(M$6="Lundi",J$7+1," ")) -> 6 | N7: =IF(OR(N$6="Mardi",N$6="Mercredi",N$6="Jeudi",N$6="Vendredi",N$6="Samedi",N$6="Dimanche"),L$7+1,IF(N$6="Lundi",K$7+1," ")) ->  | O7: =IF(OR(O$6="Mardi",O$6="Mercredi",O$6="Jeudi",O$6="Vendredi",O$6="Samedi",O$6="Dimanche"),M$7+1,IF(O$6="Lundi",L$7+1," ")) -> 7 | Q7: =IF(OR(Q$6="Mardi",Q$6="Mercredi",Q$6="Jeudi",Q$6="Vendredi",Q$6="Samedi",Q$6="Dimanche"),O$7+1,IF(Q$6="Lundi",N$7+1," ")) -> 8 | R7: =IF(OR(R$6="Mardi",R$6="Mercredi",R$6="Jeudi",R$6="Vendredi",R$6="Samedi",R$6="Dimanche"),P$7+1,IF(R$6="Lundi",O$7+1," ")) ->  | S7: =IF(OR(S$6="Mardi",S$6="Mercredi",S$6="Jeudi",S$6="Vendredi",S$6="Samedi",S$6="Dimanche"),Q$7+1,IF(S$6="Lundi",P$7+1," ")) ->  | T7: =IF(OR(T$6="Mardi",T$6="Mercredi",T$6="Jeudi",T$6="Vendredi",T$6="Samedi",T$6="Dimanche"),R$7+1,IF(T$6="Lundi",Q$7+1," ")) -> 9 | U7: =IF(OR(U$6="Mardi",U$6="Mercredi",U$6="Jeudi",U$6="Vendredi",U$6="Samedi",U$6="Dimanche"),S$7+1,IF(U$6="Lundi",R$7+1," ")) ->  | V7: =IF(OR(V$6="Mardi",V$6="Mercredi",V$6="Jeudi",V$6="Vendredi",V$6="Samedi",V$6="Dimanche"),T$7+1,IF(V$6="Lundi",S$7+1," ")) -> 10 | W7: =IF(OR(W$6="Mardi",W$6="Mercredi",W$6="Jeudi",W$6="Vendredi",W$6="Samedi",W$6="Dimanche"),U$7+1,IF(W$6="Lundi",T$7+1," ")) ->  | X7: =IF(OR(X$6="Mardi",X$6="Mercredi",X$6="Jeudi",X$6="Vendredi",X$6="Samedi",X$6="Dimanche"),V$7+1,IF(X$6="Lundi",U$7+1," ")) -> 11 | Y7: =IF(OR(Y$6="Mardi",Y$6="Mercredi",Y$6="Jeudi",Y$6="Vendredi",Y$6="Samedi",Y$6="Dimanche"),W$7+1,IF(Y$6="Lundi",V$7+1," ")) ->  | Z7: =IF(OR(Z$6="Mardi",Z$6="Mercredi",Z$6="Jeudi",Z$6="Vendredi",Z$6="Samedi",Z$6="Dimanche"),X$7+1,IF(Z$6="Lundi",W$7+1," ")) -> 12 | AA7: =IF(OR(AA$6="Mardi",AA$6="Mercredi",AA$6="Jeudi",AA$6="Vendredi",AA$6="Samedi",AA$6="Dimanche"),Y$7+1,IF(AA$6="Lundi",X$7+1," ")) ->  | AB7: =IF(OR(AB$6="Mardi",AB$6="Mercredi",AB$6="Jeudi",AB$6="Vendredi",AB$6="Samedi",AB$6="Dimanche"),Z$7+1,IF(AB$6="Lundi",Y$7+1," ")) -> 13 | AC7: =IF(OR(AC$6="Mardi",AC$6="Mercredi",AC$6="Jeudi",AC$6="Vendredi",AC$6="Samedi",AC$6="Dimanche"),AA$7+1,IF(AC$6="Lundi",Z$7+1," ")) ->  | AD7: =IF(OR(AD$6="Mardi",AD$6="Mercredi",AD$6="Jeudi",AD$6="Vendredi",AD$6="Samedi",AD$6="Dimanche"),AB$7+1,IF(AD$6="Lundi",AA$7+1," ")) -> 14 | AE7: =IF(OR(AE$6="Mardi",AE$6="Mercredi",AE$6="Jeudi",AE$6="Vendredi",AE$6="Samedi",AE$6="Dimanche"),AC$7+1,IF(AE$6="Lundi",AB$7+1," ")) ->  | AF7: =IF(OR(AF$6="Mardi",AF$6="Mercredi",AF$6="Jeudi",AF$6="Vendredi",AF$6="Samedi",AF$6="Dimanche"),AD$7+1,IF(AF$6="Lundi",AC$7+1," ")) -> 15 | AG7: =IF(OR(AG$6="Mardi",AG$6="Mercredi",AG$6="Jeudi",AG$6="Vendredi",AG$6="Samedi",AG$6="Dimanche"),AE$7+1,IF(AG$6="Lundi",AD$7+1," ")) ->  | AH7: =IF(OR(AH$6="Mardi",AH$6="Mercredi",AH$6="Jeudi",AH$6="Vendredi",AH$6="Samedi",AH$6="Dimanche"),AF$7+1,IF(AH$6="Lundi",AE$7+1," ")) ->  | AI7: =IF(OR(AI$6="Mardi",AI$6="Mercredi",AI$6="Jeudi",AI$6="Vendredi",AI$6="Samedi",AI$6="Dimanche"),AG$7+1,IF(AI$6="Lundi",AF$7+1," ")) -> 16 | AJ7: =IF(OR(AJ$6="Mardi",AJ$6="Mercredi",AJ$6="Jeudi",AJ$6="Vendredi",AJ$6="Samedi",AJ$6="Dimanche"),AH$7+1,IF(AJ$6="Lundi",AG$7+1," ")) ->  | AK7: =IF(OR(AK$6="Mardi",AK$6="Mercredi",AK$6="Jeudi",AK$6="Vendredi",AK$6="Samedi",AK$6="Dimanche"),AI$7+1,IF(AK$6="Lundi",AH$7+1," ")) -> 17 | AL7: =IF(OR(AL$6="Mardi",AL$6="Mercredi",AL$6="Jeudi",AL$6="Vendredi",AL$6="Samedi",AL$6="Dimanche"),AJ$7+1,IF(AL$6="Lundi",AI$7+1," ")) ->  | AM7: =IF(OR(AM$6="Mardi",AM$6="Mercredi",AM$6="Jeudi",AM$6="Vendredi",AM$6="Samedi",AM$6="Dimanche"),AK$7+1,IF(AM$6="Lundi",AJ$7+1," ")) -> 18 | AN7: =IF(OR(AN$6="Mardi",AN$6="Mercredi",AN$6="Jeudi",AN$6="Vendredi",AN$6="Samedi",AN$6="Dimanche"),AL$7+1,IF(AN$6="Lundi",AK$7+1," ")) ->  | AO7: =IF(OR(AO$6="Mardi",AO$6="Mercredi",AO$6="Jeudi",AO$6="Vendredi",AO$6="Samedi",AO$6="Dimanche"),AM$7+1,IF(AO$6="Lundi",AL$7+1," ")) -> 19 | AP7: =IF(OR(AP$6="Mardi",AP$6="Mercredi",AP$6="Jeudi",AP$6="Vendredi",AP$6="Samedi",AP$6="Dimanche"),AN$7+1,IF(AP$6="Lundi",AM$7+1," ")) ->  | AQ7: =IF(OR(AQ$6="Mardi",AQ$6="Mercredi",AQ$6="Jeudi",AQ$6="Vendredi",AQ$6="Samedi",AQ$6="Dimanche"),AO$7+1,IF(AQ$6="Lundi",AN$7+1," ")) -> 20 | AR7: =IF(OR(AR$6="Mardi",AR$6="Mercredi",AR$6="Jeudi",AR$6="Vendredi",AR$6="Samedi",AR$6="Dimanche"),AP$7+1,IF(AR$6="Lundi",AO$7+1," ")) ->  | AS7: =IF(OR(AS$6="Mardi",AS$6="Mercredi",AS$6="Jeudi",AS$6="Vendredi",AS$6="Samedi",AS$6="Dimanche"),AQ$7+1,IF(AS$6="Lundi",AP$7+1," ")) -> 21 | AT7: =IF(OR(AT$6="Mardi",AT$6="Mercredi",AT$6="Jeudi",AT$6="Vendredi",AT$6="Samedi",AT$6="Dimanche"),AR$7+1,IF(AT$6="Lundi",AQ$7+1," ")) ->  | AU7: =IF(OR(AU$6="Mardi",AU$6="Mercredi",AU$6="Jeudi",AU$6="Vendredi",AU$6="Samedi",AU$6="Dimanche"),AS$7+1,IF(AU$6="Lundi",AR$7+1," ")) -> 22 | AV7: =IF(OR(AV$6="Mardi",AV$6="Mercredi",AV$6="Jeudi",AV$6="Vendredi",AV$6="Samedi",AV$6="Dimanche"),AT$7+1,IF(AV$6="Lundi",AS$7+1," ")) ->  | AW7: =IF(OR(AW$6="Mardi",AW$6="Mercredi",AW$6="Jeudi",AW$6="Vendredi",AW$6="Samedi",AW$6="Dimanche"),AU$7+1,IF(AW$6="Lundi",AT$7+1," ")) ->  | AX7: =IF(OR(AX$6="Mardi",AX$6="Mercredi",AX$6="Jeudi",AX$6="Vendredi",AX$6="Samedi",AX$6="Dimanche"),AV$7+1,IF(AX$6="Lundi",AU$7+1," ")) -> 23 | AY7: =IF(OR(AY$6="Mardi",AY$6="Mercredi",AY$6="Jeudi",AY$6="Vendredi",AY$6="Samedi",AY$6="Dimanche"),AW$7+1,IF(AY$6="Lundi",AV$7+1," ")) ->  | AZ7: =IF(OR(AZ$6="Mardi",AZ$6="Mercredi",AZ$6="Jeudi",AZ$6="Vendredi",AZ$6="Samedi",AZ$6="Dimanche"),AX$7+1,IF(AZ$6="Lundi",AW$7+1," ")) -> 24 | BA7: =IF(OR(BA$6="Mardi",BA$6="Mercredi",BA$6="Jeudi",BA$6="Vendredi",BA$6="Samedi",BA$6="Dimanche"),AY$7+1,IF(BA$6="Lundi",AX$7+1," ")) ->  | BB7: =IF(OR(BB$6="Mardi",BB$6="Mercredi",BB$6="Jeudi",BB$6="Vendredi",BB$6="Samedi",BB$6="Dimanche"),AZ$7+1,IF(BB$6="Lundi",AY$7+1," ")) -> 25 | BC7: =IF(OR(BC$6="Mardi",BC$6="Mercredi",BC$6="Jeudi",BC$6="Vendredi",BC$6="Samedi",BC$6="Dimanche"),BA$7+1,IF(BC$6="Lundi",AZ$7+1," ")) ->  | BD7: =IF(OR(BD$6="Mardi",BD$6="Mercredi",BD$6="Jeudi",BD$6="Vendredi",BD$6="Samedi",BD$6="Dimanche"),BB$7+1,IF(BD$6="Lundi",BA$7+1," ")) -> 26 | BE7: =IF(OR(BE$6="Mardi",BE$6="Mercredi",BE$6="Jeudi",BE$6="Vendredi",BE$6="Samedi",BE$6="Dimanche"),BC$7+1,IF(BE$6="Lundi",BB$7+1," ")) ->  | BF7: =IF(OR(BF$6="Mardi",BF$6="Mercredi",BF$6="Jeudi",BF$6="Vendredi",BF$6="Samedi",BF$6="Dimanche"),BD$7+1,IF(BF$6="Lundi",BC$7+1," ")) -> 27 | BG7: =IF(OR(BG$6="Mardi",BG$6="Mercredi",BG$6="Jeudi",BG$6="Vendredi",BG$6="Samedi",BG$6="Dimanche"),BE$7+1,IF(BG$6="Lundi",BD$7+1," ")) ->  | BH7: =IF(OR(BH$6="Mardi",BH$6="Mercredi",BH$6="Jeudi",BH$6="Vendredi",BH$6="Samedi",BH$6="Dimanche"),BF$7+1,IF(BH$6="Lundi",BE$7+1," ")) -> 28 | BI7: =IF(OR(BI$6="Mardi",BI$6="Mercredi",BI$6="Jeudi",BI$6="Vendredi",BI$6="Samedi",BI$6="Dimanche"),BG$7+1,IF(BI$6="Lundi",BF$7+1," ")) ->  | BJ7: =IF(OR(BJ$6="Mardi",BJ$6="Mercredi",BJ$6="Jeudi",BJ$6="Vendredi",BJ$6="Samedi",BJ$6="Dimanche"),BH$7+1,IF(BJ$6="Lundi",BG$7+1," ")) -> 29 | BK7: =IF(OR(BK$6="Mardi",BK$6="Mercredi",BK$6="Jeudi",BK$6="Vendredi",BK$6="Samedi",BK$6="Dimanche"),BI$7+1,IF(BK$6="Lundi",BH$7+1," ")) ->  | BL7: =IF(OR(BL$6="Mardi",BL$6="Mercredi",BL$6="Jeudi",BL$6="Vendredi",BL$6="Samedi",BL$6="Dimanche"),BJ$7+1,IF(BL$6="Lundi",BI$7+1," ")) ->  | BM7: =IF(OR(BM$6="Mardi",BM$6="Mercredi",BM$6="Jeudi",BM$6="Vendredi",BM$6="Samedi",BM$6="Dimanche"),BK$7+1,IF(BM$6="Lundi",BJ$7+1," ")) -> 30 | BN7: =IF(OR(BN$6="Mardi",BN$6="Mercredi",BN$6="Jeudi",BN$6="Vendredi",BN$6="Samedi",BN$6="Dimanche"),BL$7+1,IF(BN$6="Lundi",BK$7+1," ")) ->  | BO7: =IF(OR(BO$6="Mardi",BO$6="Mercredi",BO$6="Jeudi",BO$6="Vendredi",BO$6="Samedi",BO$6="Dimanche"),BM$7+1,IF(BO$6="Lundi",BL$7+1," ")) -> 31 | BS7: Total
A8: =Données!$E$4 -> Equipe de jour
A9: =Données!E5 -> Emeraude MUBANGIA | B9: =IF(B$6="TH",SUMIF(A$6,"h.",A9),IF(B$6="h.",VLOOKUP(VLOOKUP($A9,Janvier!$1:$1048576,A$7+1,FALSE),Données!$A$2:$C$32,3,FALSE),VLOOKUP(VLOOKUP($A9,Janvier!$1:$1048576,B$7+1,FALSE),Données!$A$2:$C$32,2,FALSE))) ->  | C9: =IF(C$6="TH",SUMIF(B$6,"h.",B9),IF(C$6="h.",VLOOKUP(VLOOKUP($A9,Janvier!$1:$1048576,B$7+1,FALSE),Données!$A$2:$C$32,3,FALSE),VLOOKUP(VLOOKUP($A9,Janvier!$1:$1048576,C$7+1,FALSE),Données!$A$2:$C$32,2,FALSE))) -> 0 | D9: =IF(D$6="TH",SUMIF(C$6,"h.",C9),IF(D$6="h.",VLOOKUP(VLOOKUP($A9,Janvier!$1:$1048576,C$7+1,FALSE),Données!$A$2:$C$32,3,FALSE),VLOOKUP(VLOOKUP($A9,Janvier!$1:$1048576,D$7+1,FALSE),Données!$A$2:$C$32,2,FALSE))) -> 0 | E9: =IF(E$6="TH",SUMIF(D$6,"h.",D9),IF(E$6="h.",VLOOKUP(VLOOKUP($A9,Janvier!$1:$1048576,D$7+1,FALSE),Données!$A$2:$C$32,3,FALSE),VLOOKUP(VLOOKUP($A9,Janvier!$1:$1048576,E$7+1,FALSE),Données!$A$2:$C$32,2,FALSE))) ->  | F9: =IF(F$6="TH",SUMIF(E$6,"h.",E9),IF(F$6="h.",VLOOKUP(VLOOKUP($A9,Janvier!$1:$1048576,E$7+1,FALSE),Données!$A$2:$C$32,3,FALSE),VLOOKUP(VLOOKUP($A9,Janvier!$1:$1048576,F$7+1,FALSE),Données!$A$2:$C$32,2,FALSE))) -> 0 | G9: =IF(G$6="TH",SUMIF(F$6,"h.",F9),IF(G$6="h.",VLOOKUP(VLOOKUP($A9,Janvier!$1:$1048576,F$7+1,FALSE),Données!$A$2:$C$32,3,FALSE),VLOOKUP(VLOOKUP($A9,Janvier!$1:$1048576,G$7+1,FALSE),Données!$A$2:$C$32,2,FALSE))) ->  | H9: =IF(H$6="TH",SUMIF(G$6,"h.",G9),IF(H$6="h.",VLOOKUP(VLOOKUP($A9,Janvier!$1:$1048576,G$7+1,FALSE),Données!$A$2:$C$32,3,FALSE),VLOOKUP(VLOOKUP($A9,Janvier!$1:$1048576,H$7+1,FALSE),Données!$A$2:$C$32,2,FALSE))) -> 0 | I9: =IF(I$6="TH",SUMIF(H$6,"h.",H9),IF(I$6="h.",VLOOKUP(VLOOKUP($A9,Janvier!$1:$1048576,H$7+1,FALSE),Données!$A$2:$C$32,3,FALSE),VLOOKUP(VLOOKUP($A9,Janvier!$1:$1048576,I$7+1,FALSE),Données!$A$2:$C$32,2,FALSE))) ->  | J9: =IF(J$6="TH",SUMIF(I$6,"h.",I9),IF(J$6="h.",VLOOKUP(VLOOKUP($A9,Janvier!$1:$1048576,I$7+1,FALSE),Données!$A$2:$C$32,3,FALSE),VLOOKUP(VLOOKUP($A9,Janvier!$1:$1048576,J$7+1,FALSE),Données!$A$2:$C$32,2,FALSE))) -> 0 | K9: =IF(K$6="TH",SUMIF(J$6,"h.",J9),IF(K$6="h.",VLOOKUP(VLOOKUP($A9,Janvier!$1:$1048576,J$7+1,FALSE),Données!$A$2:$C$32,3,FALSE),VLOOKUP(VLOOKUP($A9,Janvier!$1:$1048576,K$7+1,FALSE),Données!$A$2:$C$32,2,FALSE))) ->  | L9: =IF(L$6="TH",SUMIF(K$6,"h.",K9),IF(L$6="h.",VLOOKUP(VLOOKUP($A9,Janvier!$1:$1048576,K$7+1,FALSE),Données!$A$2:$C$32,3,FALSE),VLOOKUP(VLOOKUP($A9,Janvier!$1:$1048576,L$7+1,FALSE),Données!$A$2:$C$32,2,FALSE))) -> 0 | M9: =IF(M$6="TH",SUMIF(L$6,"h.",L9),IF(M$6="h.",VLOOKUP(VLOOKUP($A9,Janvier!$1:$1048576,L$7+1,FALSE),Données!$A$2:$C$32,3,FALSE),VLOOKUP(VLOOKUP($A9,Janvier!$1:$1048576,M$7+1,FALSE),Données!$A$2:$C$32,2,FALSE))) ->  | N9: =IF(N$6="TH",SUMIF(M$6,"h.",M9),IF(N$6="h.",VLOOKUP(VLOOKUP($A9,Janvier!$1:$1048576,M$7+1,FALSE),Données!$A$2:$C$32,3,FALSE),VLOOKUP(VLOOKUP($A9,Janvier!$1:$1048576,N$7+1,FALSE),Données!$A$2:$C$32,2,FALSE))) -> 0 | O9: =IF(O$6="TH",SUMIF(N$6,"h.",N9),IF(O$6="h.",VLOOKUP(VLOOKUP($A9,Janvier!$1:$1048576,N$7+1,FALSE),Données!$A$2:$C$32,3,FALSE),VLOOKUP(VLOOKUP($A9,Janvier!$1:$1048576,O$7+1,FALSE),Données!$A$2:$C$32,2,FALSE))) ->  | P9: =IF(P$6="TH",SUMIF(B9:O9,"h.",P9),IF(P$6="h.",VLOOKUP(VLOOKUP($A9,Janvier!$1:$1048576,O$7+1,FALSE),Données!$A$2:$C$32,3,FALSE),VLOOKUP(VLOOKUP($A9,Janvier!$1:$1048576,P$7+1,FALSE),Données!$A$2:$C$32,2,FALSE))) -> 0 | Q9: =IF(Q$6="TH",SUMIF(P$6,"h.",P9),IF(Q$6="h.",VLOOKUP(VLOOKUP($A9,Janvier!$1:$1048576,P$7+1,FALSE),Données!$A$2:$C$32,3,FALSE),VLOOKUP(VLOOKUP($A9,Janvier!$1:$1048576,Q$7+1,FALSE),Données!$A$2:$C$32,2,FALSE))) ->  | R9: =IF(R$6="TH",SUMIF(Q$6,"h.",Q9),IF(R$6="h.",VLOOKUP(VLOOKUP($A9,Janvier!$1:$1048576,Q$7+1,FALSE),Données!$A$2:$C$32,3,FALSE),VLOOKUP(VLOOKUP($A9,Janvier!$1:$1048576,R$7+1,FALSE),Données!$A$2:$C$32,2,FALSE))) -> 0 | S9: =IF(S$6="TH",SUMIF(R$6,"h.",R9),IF(S$6="h.",VLOOKUP(VLOOKUP($A9,Janvier!$1:$1048576,R$7+1,FALSE),Données!$A$2:$C$32,3,FALSE),VLOOKUP(VLOOKUP($A9,Janvier!$1:$1048576,S$7+1,FALSE),Données!$A$2:$C$32,2,FALSE))) -> 0 | T9: =IF(T$6="TH",SUMIF(S$6,"h.",S9),IF(T$6="h.",VLOOKUP(VLOOKUP($A9,Janvier!$1:$1048576,S$7+1,FALSE),Données!$A$2:$C$32,3,FALSE),VLOOKUP(VLOOKUP($A9,Janvier!$1:$1048576,T$7+1,FALSE),Données!$A$2:$C$32,2,FALSE))) ->  | U9: =IF(U$6="TH",SUMIF(T$6,"h.",T9),IF(U$6="h.",VLOOKUP(VLOOKUP($A9,Janvier!$1:$1048576,T$7+1,FALSE),Données!$A$2:$C$32,3,FALSE),VLOOKUP(VLOOKUP($A9,Janvier!$1:$1048576,U$7+1,FALSE),Données!$A$2:$C$32,2,FALSE))) -> 0 | V9: =IF(V$6="TH",SUMIF(U$6,"h.",U9),IF(V$6="h.",VLOOKUP(VLOOKUP($A9,Janvier!$1:$1048576,U$7+1,FALSE),Données!$A$2:$C$32,3,FALSE),VLOOKUP(VLOOKUP($A9,Janvier!$1:$1048576,V$7+1,FALSE),Données!$A$2:$C$32,2,FALSE))) ->  | W9: =IF(W$6="TH",SUMIF(V$6,"h.",V9),IF(W$6="h.",VLOOKUP(VLOOKUP($A9,Janvier!$1:$1048576,V$7+1,FALSE),Données!$A$2:$C$32,3,FALSE),VLOOKUP(VLOOKUP($A9,Janvier!$1:$1048576,W$7+1,FALSE),Données!$A$2:$C$32,2,FALSE))) -> 0 | X9: =IF(X$6="TH",SUMIF(W$6,"h.",W9),IF(X$6="h.",VLOOKUP(VLOOKUP($A9,Janvier!$1:$1048576,W$7+1,FALSE),Données!$A$2:$C$32,3,FALSE),VLOOKUP(VLOOKUP($A9,Janvier!$1:$1048576,X$7+1,FALSE),Données!$A$2:$C$32,2,FALSE))) ->  | Y9: =IF(Y$6="TH",SUMIF(X$6,"h.",X9),IF(Y$6="h.",VLOOKUP(VLOOKUP($A9,Janvier!$1:$1048576,X$7+1,FALSE),Données!$A$2:$C$32,3,FALSE),VLOOKUP(VLOOKUP($A9,Janvier!$1:$1048576,Y$7+1,FALSE),Données!$A$2:$C$32,2,FALSE))) -> 0 | Z9: =IF(Z$6="TH",SUMIF(Y$6,"h.",Y9),IF(Z$6="h.",VLOOKUP(VLOOKUP($A9,Janvier!$1:$1048576,Y$7+1,FALSE),Données!$A$2:$C$32,3,FALSE),VLOOKUP(VLOOKUP($A9,Janvier!$1:$1048576,Z$7+1,FALSE),Données!$A$2:$C$32,2,FALSE))) ->  | AA9: =IF(AA$6="TH",SUMIF(Z$6,"h.",Z9),IF(AA$6="h.",VLOOKUP(VLOOKUP($A9,Janvier!$1:$1048576,Z$7+1,FALSE),Données!$A$2:$C$32,3,FALSE),VLOOKUP(VLOOKUP($A9,Janvier!$1:$1048576,AA$7+1,FALSE),Données!$A$2:$C$32,2,FALSE))) -> 0 | AB9: =IF(AB$6="TH",SUMIF(AA$6,"h.",AA9),IF(AB$6="h.",VLOOKUP(VLOOKUP($A9,Janvier!$1:$1048576,AA$7+1,FALSE),Données!$A$2:$C$32,3,FALSE),VLOOKUP(VLOOKUP($A9,Janvier!$1:$1048576,AB$7+1,FALSE),Données!$A$2:$C$32,2,FALSE))) ->  | AC9: =IF(AC$6="TH",SUMIF(AB$6,"h.",AB9),IF(AC$6="h.",VLOOKUP(VLOOKUP($A9,Janvier!$1:$1048576,AB$7+1,FALSE),Données!$A$2:$C$32,3,FALSE),VLOOKUP(VLOOKUP($A9,Janvier!$1:$1048576,AC$7+1,FALSE),Données!$A$2:$C$32,2,FALSE))) -> 0 | AD9: =IF(AD$6="TH",SUMIF(AC$6,"h.",AC9),IF(AD$6="h.",VLOOKUP(VLOOKUP($A9,Janvier!$1:$1048576,AC$7+1,FALSE),Données!$A$2:$C$32,3,FALSE),VLOOKUP(VLOOKUP($A9,Janvier!$1:$1048576,AD$7+1,FALSE),Données!$A$2:$C$32,2,FALSE))) ->  | AE9: =IF(AE$6="TH",SUMIF(AD$6,"h.",AD9),IF(AE$6="h.",VLOOKUP(VLOOKUP($A9,Janvier!$1:$1048576,AD$7+1,FALSE),Données!$A$2:$C$32,3,FALSE),VLOOKUP(VLOOKUP($A9,Janvier!$1:$1048576,AE$7+1,FALSE),Données!$A$2:$C$32,2,FALSE))) -> 0 | AF9: =IF(AF$6="TH",SUMIF(AE$6,"h.",AE9),IF(AF$6="h.",VLOOKUP(VLOOKUP($A9,Janvier!$1:$1048576,AE$7+1,FALSE),Données!$A$2:$C$32,3,FALSE),VLOOKUP(VLOOKUP($A9,Janvier!$1:$1048576,AF$7+1,FALSE),Données!$A$2:$C$32,2,FALSE))) ->  | AG9: =IF(AG$6="TH",SUMIF(AF$6,"h.",AF9),IF(AG$6="h.",VLOOKUP(VLOOKUP($A9,Janvier!$1:$1048576,AF$7+1,FALSE),Données!$A$2:$C$32,3,FALSE),VLOOKUP(VLOOKUP($A9,Janvier!$1:$1048576,AG$7+1,FALSE),Données!$A$2:$C$32,2,FALSE))) -> 0 | AH9: =IF(AH$6="TH",SUMIF(AG$6,"h.",AG9),IF(AH$6="h.",VLOOKUP(VLOOKUP($A9,Janvier!$1:$1048576,AG$7+1,FALSE),Données!$A$2:$C$32,3,FALSE),VLOOKUP(VLOOKUP($A9,Janvier!$1:$1048576,AH$7+1,FALSE),Données!$A$2:$C$32,2,FALSE))) -> 0 | AI9: =IF(AI$6="TH",SUMIF(AH$6,"h.",AH9),IF(AI$6="h.",VLOOKUP(VLOOKUP($A9,Janvier!$1:$1048576,AH$7+1,FALSE),Données!$A$2:$C$32,3,FALSE),VLOOKUP(VLOOKUP($A9,Janvier!$1:$1048576,AI$7+1,FALSE),Données!$A$2:$C$32,2,FALSE))) ->  | AJ9: =IF(AJ$6="TH",SUMIF(AI$6,"h.",AI9),IF(AJ$6="h.",VLOOKUP(VLOOKUP($A9,Janvier!$1:$1048576,AI$7+1,FALSE),Données!$A$2:$C$32,3,FALSE),VLOOKUP(VLOOKUP($A9,Janvier!$1:$1048576,AJ$7+1,FALSE),Données!$A$2:$C$32,2,FALSE))) -> 0 | AK9: =IF(AK$6="TH",SUMIF(AJ$6,"h.",AJ9),IF(AK$6="h.",VLOOKUP(VLOOKUP($A9,Janvier!$1:$1048576,AJ$7+1,FALSE),Données!$A$2:$C$32,3,FALSE),VLOOKUP(VLOOKUP($A9,Janvier!$1:$1048576,AK$7+1,FALSE),Données!$A$2:$C$32,2,FALSE))) ->  | AL9: =IF(AL$6="TH",SUMIF(AK$6,"h.",AK9),IF(AL$6="h.",VLOOKUP(VLOOKUP($A9,Janvier!$1:$1048576,AK$7+1,FALSE),Données!$A$2:$C$32,3,FALSE),VLOOKUP(VLOOKUP($A9,Janvier!$1:$1048576,AL$7+1,FALSE),Données!$A$2:$C$32,2,FALSE))) -> 0 | AM9: =IF(AM$6="TH",SUMIF(AL$6,"h.",AL9),IF(AM$6="h.",VLOOKUP(VLOOKUP($A9,Janvier!$1:$1048576,AL$7+1,FALSE),Données!$A$2:$C$32,3,FALSE),VLOOKUP(VLOOKUP($A9,Janvier!$1:$1048576,AM$7+1,FALSE),Données!$A$2:$C$32,2,FALSE))) ->  | AN9: =IF(AN$6="TH",SUMIF(AM$6,"h.",AM9),IF(AN$6="h.",VLOOKUP(VLOOKUP($A9,Janvier!$1:$1048576,AM$7+1,FALSE),Données!$A$2:$C$32,3,FALSE),VLOOKUP(VLOOKUP($A9,Janvier!$1:$1048576,AN$7+1,FALSE),Données!$A$2:$C$32,2,FALSE))) -> 0 | AO9: =IF(AO$6="TH",SUMIF(AN$6,"h.",AN9),IF(AO$6="h.",VLOOKUP(VLOOKUP($A9,Janvier!$1:$1048576,AN$7+1,FALSE),Données!$A$2:$C$32,3,FALSE),VLOOKUP(VLOOKUP($A9,Janvier!$1:$1048576,AO$7+1,FALSE),Données!$A$2:$C$32,2,FALSE))) ->  | AP9: =IF(AP$6="TH",SUMIF(AO$6,"h.",AO9),IF(AP$6="h.",VLOOKUP(VLOOKUP($A9,Janvier!$1:$1048576,AO$7+1,FALSE),Données!$A$2:$C$32,3,FALSE),VLOOKUP(VLOOKUP($A9,Janvier!$1:$1048576,AP$7+1,FALSE),Données!$A$2:$C$32,2,FALSE))) -> 0 | AQ9: =IF(AQ$6="TH",SUMIF(AP$6,"h.",AP9),IF(AQ$6="h.",VLOOKUP(VLOOKUP($A9,Janvier!$1:$1048576,AP$7+1,FALSE),Données!$A$2:$C$32,3,FALSE),VLOOKUP(VLOOKUP($A9,Janvier!$1:$1048576,AQ$7+1,FALSE),Données!$A$2:$C$32,2,FALSE))) ->  | AR9: =IF(AR$6="TH",SUMIF(AQ$6,"h.",AQ9),IF(AR$6="h.",VLOOKUP(VLOOKUP($A9,Janvier!$1:$1048576,AQ$7+1,FALSE),Données!$A$2:$C$32,3,FALSE),VLOOKUP(VLOOKUP($A9,Janvier!$1:$1048576,AR$7+1,FALSE),Données!$A$2:$C$32,2,FALSE))) -> 0 | AS9: =IF(AS$6="TH",SUMIF(AR$6,"h.",AR9),IF(AS$6="h.",VLOOKUP(VLOOKUP($A9,Janvier!$1:$1048576,AR$7+1,FALSE),Données!$A$2:$C$32,3,FALSE),VLOOKUP(VLOOKUP($A9,Janvier!$1:$1048576,AS$7+1,FALSE),Données!$A$2:$C$32,2,FALSE))) ->  | AT9: =IF(AT$6="TH",SUMIF(AS$6,"h.",AS9),IF(AT$6="h.",VLOOKUP(VLOOKUP($A9,Janvier!$1:$1048576,AS$7+1,FALSE),Données!$A$2:$C$32,3,FALSE),VLOOKUP(VLOOKUP($A9,Janvier!$1:$1048576,AT$7+1,FALSE),Données!$A$2:$C$32,2,FALSE))) -> 0 | AU9: =IF(AU$6="TH",SUMIF(AT$6,"h.",AT9),IF(AU$6="h.",VLOOKUP(VLOOKUP($A9,Janvier!$1:$1048576,AT$7+1,FALSE),Données!$A$2:$C$32,3,FALSE),VLOOKUP(VLOOKUP($A9,Janvier!$1:$1048576,AU$7+1,FALSE),Données!$A$2:$C$32,2,FALSE))) ->  | AV9: =IF(AV$6="TH",SUMIF(AU$6,"h.",AU9),IF(AV$6="h.",VLOOKUP(VLOOKUP($A9,Janvier!$1:$1048576,AU$7+1,FALSE),Données!$A$2:$C$32,3,FALSE),VLOOKUP(VLOOKUP($A9,Janvier!$1:$1048576,AV$7+1,FALSE),Données!$A$2:$C$32,2,FALSE))) -> 0 | AW9: =IF(AW$6="TH",SUMIF(AV$6,"h.",AV9),IF(AW$6="h.",VLOOKUP(VLOOKUP($A9,Janvier!$1:$1048576,AV$7+1,FALSE),Données!$A$2:$C$32,3,FALSE),VLOOKUP(VLOOKUP($A9,Janvier!$1:$1048576,AW$7+1,FALSE),Données!$A$2:$C$32,2,FALSE))) -> 0 | AX9: =IF(AX$6="TH",SUMIF(AW$6,"h.",AW9),IF(AX$6="h.",VLOOKUP(VLOOKUP($A9,Janvier!$1:$1048576,AW$7+1,FALSE),Données!$A$2:$C$32,3,FALSE),VLOOKUP(VLOOKUP($A9,Janvier!$1:$1048576,AX$7+1,FALSE),Données!$A$2:$C$32,2,FALSE))) ->  | AY9: =IF(AY$6="TH",SUMIF(AX$6,"h.",AX9),IF(AY$6="h.",VLOOKUP(VLOOKUP($A9,Janvier!$1:$1048576,AX$7+1,FALSE),Données!$A$2:$C$32,3,FALSE),VLOOKUP(VLOOKUP($A9,Janvier!$1:$1048576,AY$7+1,FALSE),Données!$A$2:$C$32,2,FALSE))) -> 0 | AZ9: =IF(AZ$6="TH",SUMIF(AY$6,"h.",AY9),IF(AZ$6="h.",VLOOKUP(VLOOKUP($A9,Janvier!$1:$1048576,AY$7+1,FALSE),Données!$A$2:$C$32,3,FALSE),VLOOKUP(VLOOKUP($A9,Janvier!$1:$1048576,AZ$7+1,FALSE),Données!$A$2:$C$32,2,FALSE))) ->  | BA9: =IF(BA$6="TH",SUMIF(AZ$6,"h.",AZ9),IF(BA$6="h.",VLOOKUP(VLOOKUP($A9,Janvier!$1:$1048576,AZ$7+1,FALSE),Données!$A$2:$C$32,3,FALSE),VLOOKUP(VLOOKUP($A9,Janvier!$1:$1048576,BA$7+1,FALSE),Données!$A$2:$C$32,2,FALSE))) -> 0 | BB9: =IF(BB$6="TH",SUMIF(BA$6,"h.",BA9),IF(BB$6="h.",VLOOKUP(VLOOKUP($A9,Janvier!$1:$1048576,BA$7+1,FALSE),Données!$A$2:$C$32,3,FALSE),VLOOKUP(VLOOKUP($A9,Janvier!$1:$1048576,BB$7+1,FALSE),Données!$A$2:$C$32,2,FALSE))) ->  | BC9: =IF(BC$6="TH",SUMIF(BB$6,"h.",BB9),IF(BC$6="h.",VLOOKUP(VLOOKUP($A9,Janvier!$1:$1048576,BB$7+1,FALSE),Données!$A$2:$C$32,3,FALSE),VLOOKUP(VLOOKUP($A9,Janvier!$1:$1048576,BC$7+1,FALSE),Données!$A$2:$C$32,2,FALSE))) -> 0 | BD9: =IF(BD$6="TH",SUMIF(BC$6,"h.",BC9),IF(BD$6="h.",VLOOKUP(VLOOKUP($A9,Janvier!$1:$1048576,BC$7+1,FALSE),Données!$A$2:$C$32,3,FALSE),VLOOKUP(VLOOKUP($A9,Janvier!$1:$1048576,BD$7+1,FALSE),Données!$A$2:$C$32,2,FALSE))) ->  | BE9: =IF(BE$6="TH",SUMIF(BD$6,"h.",BD9),IF(BE$6="h.",VLOOKUP(VLOOKUP($A9,Janvier!$1:$1048576,BD$7+1,FALSE),Données!$A$2:$C$32,3,FALSE),VLOOKUP(VLOOKUP($A9,Janvier!$1:$1048576,BE$7+1,FALSE),Données!$A$2:$C$32,2,FALSE))) -> 0 | BF9: =IF(BF$6="TH",SUMIF(BE$6,"h.",BE9),IF(BF$6="h.",VLOOKUP(VLOOKUP($A9,Janvier!$1:$1048576,BE$7+1,FALSE),Données!$A$2:$C$32,3,FALSE),VLOOKUP(VLOOKUP($A9,Janvier!$1:$1048576,BF$7+1,FALSE),Données!$A$2:$C$32,2,FALSE))) ->  | BG9: =IF(BG$6="TH",SUMIF(BF$6,"h.",BF9),IF(BG$6="h.",VLOOKUP(VLOOKUP($A9,Janvier!$1:$1048576,BF$7+1,FALSE),Données!$A$2:$C$32,3,FALSE),VLOOKUP(VLOOKUP($A9,Janvier!$1:$1048576,BG$7+1,FALSE),Données!$A$2:$C$32,2,FALSE))) -> 0 | BH9: =IF(BH$6="TH",SUMIF(BG$6,"h.",BG9),IF(BH$6="h.",VLOOKUP(VLOOKUP($A9,Janvier!$1:$1048576,BG$7+1,FALSE),Données!$A$2:$C$32,3,FALSE),VLOOKUP(VLOOKUP($A9,Janvier!$1:$1048576,BH$7+1,FALSE),Données!$A$2:$C$32,2,FALSE))) ->  | BI9: =IF(BI$6="TH",SUMIF(BH$6,"h.",BH9),IF(BI$6="h.",VLOOKUP(VLOOKUP($A9,Janvier!$1:$1048576,BH$7+1,FALSE),Données!$A$2:$C$32,3,FALSE),VLOOKUP(VLOOKUP($A9,Janvier!$1:$1048576,BI$7+1,FALSE),Données!$A$2:$C$32,2,FALSE))) -> 0 | BJ9: =IF(BJ$6="TH",SUMIF(BI$6,"h.",BI9),IF(BJ$6="h.",VLOOKUP(VLOOKUP($A9,Janvier!$1:$1048576,BI$7+1,FALSE),Données!$A$2:$C$32,3,FALSE),VLOOKUP(VLOOKUP($A9,Janvier!$1:$1048576,BJ$7+1,FALSE),Données!$A$2:$C$32,2,FALSE))) ->  | BK9: =IF(BK$6="TH",SUMIF(BJ$6,"h.",BJ9),IF(BK$6="h.",VLOOKUP(VLOOKUP($A9,Janvier!$1:$1048576,BJ$7+1,FALSE),Données!$A$2:$C$32,3,FALSE),VLOOKUP(VLOOKUP($A9,Janvier!$1:$1048576,BK$7+1,FALSE),Données!$A$2:$C$32,2,FALSE))) -> 0 | BL9: =IF(BL$6="TH",SUMIF(BK$6,"h.",BK9),IF(BL$6="h.",VLOOKUP(VLOOKUP($A9,Janvier!$1:$1048576,BK$7+1,FALSE),Données!$A$2:$C$32,3,FALSE),VLOOKUP(VLOOKUP($A9,Janvier!$1:$1048576,BL$7+1,FALSE),Données!$A$2:$C$32,2,FALSE))) -> 0 | BM9: =IF(BM$6="TH",SUMIF(BL$6,"h.",BL9),IF(BM$6="h.",VLOOKUP(VLOOKUP($A9,Janvier!$1:$1048576,BL$7+1,FALSE),Données!$A$2:$C$32,3,FALSE),VLOOKUP(VLOOKUP($A9,Janvier!$1:$1048576,BM$7+1,FALSE),Données!$A$2:$C$32,2,FALSE))) ->  | BN9: =IF(BN$6="TH",SUMIF(BM$6,"h.",BM9),IF(BN$6="h.",VLOOKUP(VLOOKUP($A9,Janvier!$1:$1048576,BM$7+1,FALSE),Données!$A$2:$C$32,3,FALSE),VLOOKUP(VLOOKUP($A9,Janvier!$1:$1048576,BN$7+1,FALSE),Données!$A$2:$C$32,2,FALSE))) -> 0 | BO9: =IF(BO$6="TH",SUMIF(BN$6,"h.",BN9),IF(BO$6="h.",VLOOKUP(VLOOKUP($A9,Janvier!$1:$1048576,BN$7+1,FALSE),Données!$A$2:$C$32,3,FALSE),VLOOKUP(VLOOKUP($A9,Janvier!$1:$1048576,BO$7+1,FALSE),Données!$A$2:$C$32,2,FALSE))) ->  | BP9: =IF(BP$6="TH",SUMIF(BO$6,"h.",BO9),IF(BP$6="h.",VLOOKUP(VLOOKUP($A9,Janvier!$1:$1048576,BO$7+1,FALSE),Données!$A$2:$C$32,3,FALSE),VLOOKUP(VLOOKUP($A9,Janvier!$1:$1048576,BP$7+1,FALSE),Données!$A$2:$C$32,2,FALSE))) -> 0 | BS9: =SUMIF(A$6:BQ$6,"h.",A9:BQ9) -> 0 | BT9: =SUM(HJanvier:HDecembre!BS9) -> 0
A10: =Données!E6 -> William CLAVIER | B10: =IF(B$6="TH",SUMIF(A$6,"h.",A10),IF(B$6="h.",VLOOKUP(VLOOKUP($A10,Janvier!$1:$1048576,A$7+1,FALSE),Données!$A$2:$C$32,3,FALSE),VLOOKUP(VLOOKUP($A10,Janvier!$1:$1048576,B$7+1,FALSE),Données!$A$2:$C$32,2,FALSE))) ->  | C10: =IF(C$6="TH",SUMIF(B$6,"h.",B10),IF(C$6="h.",VLOOKUP(VLOOKUP($A10,Janvier!$1:$1048576,B$7+1,FALSE),Données!$A$2:$C$32,3,FALSE),VLOOKUP(VLOOKUP($A10,Janvier!$1:$1048576,C$7+1,FALSE),Données!$A$2:$C$32,2,FALSE))) -> 0 | D10: =IF(D$6="TH",SUMIF(C$6,"h.",C10),IF(D$6="h.",VLOOKUP(VLOOKUP($A10,Janvier!$1:$1048576,C$7+1,FALSE),Données!$A$2:$C$32,3,FALSE),VLOOKUP(VLOOKUP($A10,Janvier!$1:$1048576,D$7+1,FALSE),Données!$A$2:$C$32,2,FALSE))) -> 0 | E10: =IF(E$6="TH",SUMIF(D$6,"h.",D10),IF(E$6="h.",VLOOKUP(VLOOKUP($A10,Janvier!$1:$1048576,D$7+1,FALSE),Données!$A$2:$C$32,3,FALSE),VLOOKUP(VLOOKUP($A10,Janvier!$1:$1048576,E$7+1,FALSE),Données!$A$2:$C$32,2,FALSE))) -> 14h00 - 21h30 | F10: =IF(F$6="TH",SUMIF(E$6,"h.",E10),IF(F$6="h.",VLOOKUP(VLOOKUP($A10,Janvier!$1:$1048576,E$7+1,FALSE),Données!$A$2:$C$32,3,FALSE),VLOOKUP(VLOOKUP($A10,Janvier!$1:$1048576,F$7+1,FALSE),Données!$A$2:$C$32,2,FALSE))) -> 0.3125 | G10: =IF(G$6="TH",SUMIF(F$6,"h.",F10),IF(G$6="h.",VLOOKUP(VLOOKUP($A10,Janvier!$1:$1048576,F$7+1,FALSE),Données!$A$2:$C$32,3,FALSE),VLOOKUP(VLOOKUP($A10,Janvier!$1:$1048576,G$7+1,FALSE),Données!$A$2:$C$32,2,FALSE))) -> 10h00 - 21h30 | H10: =IF(H$6="TH",SUMIF(G$6,"h.",G10),IF(H$6="h.",VLOOKUP(VLOOKUP($A10,Janvier!$1:$1048576,G$7+1,FALSE),Données!$A$2:$C$32,3,FALSE),VLOOKUP(VLOOKUP($A10,Janvier!$1:$1048576,H$7+1,FALSE),Données!$A$2:$C$32,2,FALSE))) -> 0.4166666667 | I10: =IF(I$6="TH",SUMIF(H$6,"h.",H10),IF(I$6="h.",VLOOKUP(VLOOKUP($A10,Janvier!$1:$1048576,H$7+1,FALSE),Données!$A$2:$C$32,3,FALSE),VLOOKUP(VLOOKUP($A10,Janvier!$1:$1048576,I$7+1,FALSE),Données!$A$2:$C$32,2,FALSE))) -> 7h00 - 14h30 | J10: =IF(J$6="TH",SUMIF(I$6,"h.",I10),IF(J$6="h.",VLOOKUP(VLOOKUP($A10,Janvier!$1:$1048576,I$7+1,FALSE),Données!$A$2:$C$32,3,FALSE),VLOOKUP(VLOOKUP($A10,Janvier!$1:$1048576,J$7+1,FALSE),Données!$A$2:$C$32,2,FALSE))) -> 0.3125 | K10: =IF(K$6="TH",SUMIF(J$6,"h.",J10),IF(K$6="h.",VLOOKUP(VLOOKUP($A10,Janvier!$1:$1048576,J$7+1,FALSE),Données!$A$2:$C$32,3,FALSE),VLOOKUP(VLOOKUP($A10,Janvier!$1:$1048576,K$7+1,FALSE),Données!$A$2:$C$32,2,FALSE))) -> 14h00 - 21h30 | L10: =IF(L$6="TH",SUMIF(K$6,"h.",K10),IF(L$6="h.",VLOOKUP(VLOOKUP($A10,Janvier!$1:$1048576,K$7+1,FALSE),Données!$A$2:$C$32,3,FALSE),VLOOKUP(VLOOKUP($A10,Janvier!$1:$1048576,L$7+1,FALSE),Données!$A$2:$C$32,2,FALSE))) -> 0.3125 | M10: =IF(M$6="TH",SUMIF(L$6,"h.",L10),IF(M$6="h.",VLOOKUP(VLOOKUP($A10,Janvier!$1:$1048576,L$7+1,FALSE),Données!$A$2:$C$32,3,FALSE),VLOOKUP(VLOOKUP($A10,Janvier!$1:$1048576,M$7+1,FALSE),Données!$A$2:$C$32,2,FALSE))) -> 14h00 - 21h30 | N10: =IF(N$6="TH",SUMIF(M$6,"h.",M10),IF(N$6="h.",VLOOKUP(VLOOKUP($A10,Janvier!$1:$1048576,M$7+1,FALSE),Données!$A$2:$C$32,3,FALSE),VLOOKUP(VLOOKUP($A10,Janvier!$1:$1048576,N$7+1,FALSE),Données!$A$2:$C$32,2,FALSE))) -> 0.3125 | O10: =IF(O$6="TH",SUMIF(N$6,"h.",N10),IF(O$6="h.",VLOOKUP(VLOOKUP($A10,Janvier!$1:$1048576,N$7+1,FALSE),Données!$A$2:$C$32,3,FALSE),VLOOKUP(VLOOKUP($A10,Janvier!$1:$1048576,O$7+1,FALSE),Données!$A$2:$C$32,2,FALSE))) ->  | P10: =IF(P$6="TH",SUMIF(B10:O10,"h.",P10),IF(P$6="h.",VLOOKUP(VLOOKUP($A10,Janvier!$1:$1048576,O$7+1,FALSE),Données!$A$2:$C$32,3,FALSE),VLOOKUP(VLOOKUP($A10,Janvier!$1:$1048576,P$7+1,FALSE),Données!$A$2:$C$32,2,FALSE))) -> 0 | Q10: =IF(Q$6="TH",SUMIF(P$6,"h.",P10),IF(Q$6="h.",VLOOKUP(VLOOKUP($A10,Janvier!$1:$1048576,P$7+1,FALSE),Données!$A$2:$C$32,3,FALSE),VLOOKUP(VLOOKUP($A10,Janvier!$1:$1048576,Q$7+1,FALSE),Données!$A$2:$C$32,2,FALSE))) ->  | R10: =IF(R$6="TH",SUMIF(Q$6,"h.",Q10),IF(R$6="h.",VLOOKUP(VLOOKUP($A10,Janvier!$1:$1048576,Q$7+1,FALSE),Données!$A$2:$C$32,3,FALSE),VLOOKUP(VLOOKUP($A10,Janvier!$1:$1048576,R$7+1,FALSE),Données!$A$2:$C$32,2,FALSE))) -> 0 | S10: =IF(S$6="TH",SUMIF(R$6,"h.",R10),IF(S$6="h.",VLOOKUP(VLOOKUP($A10,Janvier!$1:$1048576,R$7+1,FALSE),Données!$A$2:$C$32,3,FALSE),VLOOKUP(VLOOKUP($A10,Janvier!$1:$1048576,S$7+1,FALSE),Données!$A$2:$C$32,2,FALSE))) -> 0 | T10: =IF(T$6="TH",SUMIF(S$6,"h.",S10),IF(T$6="h.",VLOOKUP(VLOOKUP($A10,Janvier!$1:$1048576,S$7+1,FALSE),Données!$A$2:$C$32,3,FALSE),VLOOKUP(VLOOKUP($A10,Janvier!$1:$1048576,T$7+1,FALSE),Données!$A$2:$C$32,2,FALSE))) -> 7h00 - 14h30 | U10: =IF(U$6="TH",SUMIF(T$6,"h.",T10),IF(U$6="h.",VLOOKUP(VLOOKUP($A10,Janvier!$1:$1048576,T$7+1,FALSE),Données!$A$2:$C$32,3,FALSE),VLOOKUP(VLOOKUP($A10,Janvier!$1:$1048576,U$7+1,FALSE),Données!$A$2:$C$32,2,FALSE))) -> 0.3125 | V10: =IF(V$6="TH",SUMIF(U$6,"h.",U10),IF(V$6="h.",VLOOKUP(VLOOKUP($A10,Janvier!$1:$1048576,U$7+1,FALSE),Données!$A$2:$C$32,3,FALSE),VLOOKUP(VLOOKUP($A10,Janvier!$1:$1048576,V$7+1,FALSE),Données!$A$2:$C$32,2,FALSE))) -> 7h00 - 14h30 | W10: =IF(W$6="TH",SUMIF(V$6,"h.",V10),IF(W$6="h.",VLOOKUP(VLOOKUP($A10,Janvier!$1:$1048576,V$7+1,FALSE),Données!$A$2:$C$32,3,FALSE),VLOOKUP(VLOOKUP($A10,Janvier!$1:$1048576,W$7+1,FALSE),Données!$A$2:$C$32,2,FALSE))) -> 0.3125 | X10: =IF(X$6="TH",SUMIF(W$6,"h.",W10),IF(X$6="h.",VLOOKUP(VLOOKUP($A10,Janvier!$1:$1048576,W$7+1,FALSE),Données!$A$2:$C$32,3,FALSE),VLOOKUP(VLOOKUP($A10,Janvier!$1:$1048576,X$7+1,FALSE),Données!$A$2:$C$32,2,FALSE))) ->  | Y10: =IF(Y$6="TH",SUMIF(X$6,"h.",X10),IF(Y$6="h.",VLOOKUP(VLOOKUP($A10,Janvier!$1:$1048576,X$7+1,FALSE),Données!$A$2:$C$32,3,FALSE),VLOOKUP(VLOOKUP($A10,Janvier!$1:$1048576,Y$7+1,FALSE),Données!$A$2:$C$32,2,FALSE))) -> 0 | Z10: =IF(Z$6="TH",SUMIF(Y$6,"h.",Y10),IF(Z$6="h.",VLOOKUP(VLOOKUP($A10,Janvier!$1:$1048576,Y$7+1,FALSE),Données!$A$2:$C$32,3,FALSE),VLOOKUP(VLOOKUP($A10,Janvier!$1:$1048576,Z$7+1,FALSE),Données!$A$2:$C$32,2,FALSE))) ->  | AA10: =IF(AA$6="TH",SUMIF(Z$6,"h.",Z10),IF(AA$6="h.",VLOOKUP(VLOOKUP($A10,Janvier!$1:$1048576,Z$7+1,FALSE),Données!$A$2:$C$32,3,FALSE),VLOOKUP(VLOOKUP($A10,Janvier!$1:$1048576,AA$7+1,FALSE),Données!$A$2:$C$32,2,FALSE))) -> 0 | AB10: =IF(AB$6="TH",SUMIF(AA$6,"h.",AA10),IF(AB$6="h.",VLOOKUP(VLOOKUP($A10,Janvier!$1:$1048576,AA$7+1,FALSE),Données!$A$2:$C$32,3,FALSE),VLOOKUP(VLOOKUP($A10,Janvier!$1:$1048576,AB$7+1,FALSE),Données!$A$2:$C$32,2,FALSE))) ->  | AC10: =IF(AC$6="TH",SUMIF(AB$6,"h.",AB10),IF(AC$6="h.",VLOOKUP(VLOOKUP($A10,Janvier!$1:$1048576,AB$7+1,FALSE),Données!$A$2:$C$32,3,FALSE),VLOOKUP(VLOOKUP($A10,Janvier!$1:$1048576,AC$7+1,FALSE),Données!$A$2:$C$32,2,FALSE))) -> 0 | AD10: =IF(AD$6="TH",SUMIF(AC$6,"h.",AC10),IF(AD$6="h.",VLOOKUP(VLOOKUP($A10,Janvier!$1:$1048576,AC$7+1,FALSE),Données!$A$2:$C$32,3,FALSE),VLOOKUP(VLOOKUP($A10,Janvier!$1:$1048576,AD$7+1,FALSE),Données!$A$2:$C$32,2,FALSE))) -> 7h00 - 19h15 | AE10: =IF(AE$6="TH",SUMIF(AD$6,"h.",AD10),IF(AE$6="h.",VLOOKUP(VLOOKUP($A10,Janvier!$1:$1048576,AD$7+1,FALSE),Données!$A$2:$C$32,3,FALSE),VLOOKUP(VLOOKUP($A10,Janvier!$1:$1048576,AE$7+1,FALSE),Données!$A$2:$C$32,2,FALSE))) -> 0.5104166667 | AF10: =IF(AF$6="TH",SUMIF(AE$6,"h.",AE10),IF(AF$6="h.",VLOOKUP(VLOOKUP($A10,Janvier!$1:$1048576,AE$7+1,FALSE),Données!$A$2:$C$32,3,FALSE),VLOOKUP(VLOOKUP($A10,Janvier!$1:$1048576,AF$7+1,FALSE),Données!$A$2:$C$32,2,FALSE))) -> 7h00 - 19h15 | AG10: =IF(AG$6="TH",SUMIF(AF$6,"h.",AF10),IF(AG$6="h.",VLOOKUP(VLOOKUP($A10,Janvier!$1:$1048576,AF$7+1,FALSE),Données!$A$2:$C$32,3,FALSE),VLOOKUP(VLOOKUP($A10,Janvier!$1:$1048576,AG$7+1,FALSE),Données!$A$2:$C$32,2,FALSE))) -> 0.5 | AH10: =IF(AH$6="TH",SUMIF(AG$6,"h.",AG10),IF(AH$6="h.",VLOOKUP(VLOOKUP($A10,Janvier!$1:$1048576,AG$7+1,FALSE),Données!$A$2:$C$32,3,FALSE),VLOOKUP(VLOOKUP($A10,Janvier!$1:$1048576,AH$7+1,FALSE),Données!$A$2:$C$32,2,FALSE))) -> 0.5 | AI10: =IF(AI$6="TH",SUMIF(AH$6,"h.",AH10),IF(AI$6="h.",VLOOKUP(VLOOKUP($A10,Janvier!$1:$1048576,AH$7+1,FALSE),Données!$A$2:$C$32,3,FALSE),VLOOKUP(VLOOKUP($A10,Janvier!$1:$1048576,AI$7+1,FALSE),Données!$A$2:$C$32,2,FALSE))) -> 14h00 - 21h30 | AJ10: =IF(AJ$6="TH",SUMIF(AI$6,"h.",AI10),IF(AJ$6="h.",VLOOKUP(VLOOKUP($A10,Janvier!$1:$1048576,AI$7+1,FALSE),Données!$A$2:$C$32,3,FALSE),VLOOKUP(VLOOKUP($A10,Janvier!$1:$1048576,AJ$7+1,FALSE),Données!$A$2:$C$32,2,FALSE))) -> 0.3125 | AK10: =IF(AK$6="TH",SUMIF(AJ$6,"h.",AJ10),IF(AK$6="h.",VLOOKUP(VLOOKUP($A10,Janvier!$1:$1048576,AJ$7+1,FALSE),Données!$A$2:$C$32,3,FALSE),VLOOKUP(VLOOKUP($A10,Janvier!$1:$1048576,AK$7+1,FALSE),Données!$A$2:$C$32,2,FALSE))) ->  | AL10: =IF(AL$6="TH",SUMIF(AK$6,"h.",AK10),IF(AL$6="h.",VLOOKUP(VLOOKUP($A10,Janvier!$1:$1048576,AK$7+1,FALSE),Données!$A$2:$C$32,3,FALSE),VLOOKUP(VLOOKUP($A10,Janvier!$1:$1048576,AL$7+1,FALSE),Données!$A$2:$C$32,2,FALSE))) -> 0 | AM10: =IF(AM$6="TH",SUMIF(AL$6,"h.",AL10),IF(AM$6="h.",VLOOKUP(VLOOKUP($A10,Janvier!$1:$1048576,AL$7+1,FALSE),Données!$A$2:$C$32,3,FALSE),VLOOKUP(VLOOKUP($A10,Janvier!$1:$1048576,AM$7+1,FALSE),Données!$A$2:$C$32,2,FALSE))) -> 14h00 - 21h30 | AN10: =IF(AN$6="TH",SUMIF(AM$6,"h.",AM10),IF(AN$6="h.",VLOOKUP(VLOOKUP($A10,Janvier!$1:$1048576,AM$7+1,FALSE),Données!$A$2:$C$32,3,FALSE),VLOOKUP(VLOOKUP($A10,Janvier!$1:$1048576,AN$7+1,FALSE),Données!$A$2:$C$32,2,FALSE))) -> 0.3125 | AO10: =IF(AO$6="TH",SUMIF(AN$6,"h.",AN10),IF(AO$6="h.",VLOOKUP(VLOOKUP($A10,Janvier!$1:$1048576,AN$7+1,FALSE),Données!$A$2:$C$32,3,FALSE),VLOOKUP(VLOOKUP($A10,Janvier!$1:$1048576,AO$7+1,FALSE),Données!$A$2:$C$32,2,FALSE))) -> 7h00 - 14h30 | AP10: =IF(AP$6="TH",SUMIF(AO$6,"h.",AO10),IF(AP$6="h.",VLOOKUP(VLOOKUP($A10,Janvier!$1:$1048576,AO$7+1,FALSE),Données!$A$2:$C$32,3,FALSE),VLOOKUP(VLOOKUP($A10,Janvier!$1:$1048576,AP$7+1,FALSE),Données!$A$2:$C$32,2,FALSE))) -> 0.3125 | AQ10: =IF(AQ$6="TH",SUMIF(AP$6,"h.",AP10),IF(AQ$6="h.",VLOOKUP(VLOOKUP($A10,Janvier!$1:$1048576,AP$7+1,FALSE),Données!$A$2:$C$32,3,FALSE),VLOOKUP(VLOOKUP($A10,Janvier!$1:$1048576,AQ$7+1,FALSE),Données!$A$2:$C$32,2,FALSE))) ->  | AR10: =IF(AR$6="TH",SUMIF(AQ$6,"h.",AQ10),IF(AR$6="h.",VLOOKUP(VLOOKUP($A10,Janvier!$1:$1048576,AQ$7+1,FALSE),Données!$A$2:$C$32,3,FALSE),VLOOKUP(VLOOKUP($A10,Janvier!$1:$1048576,AR$7+1,FALSE),Données!$A$2:$C$32,2,FALSE))) -> 0 | AS10: =IF(AS$6="TH",SUMIF(AR$6,"h.",AR10),IF(AS$6="h.",VLOOKUP(VLOOKUP($A10,Janvier!$1:$1048576,AR$7+1,FALSE),Données!$A$2:$C$32,3,FALSE),VLOOKUP(VLOOKUP($A10,Janvier!$1:$1048576,AS$7+1,FALSE),Données!$A$2:$C$32,2,FALSE))) ->  | AT10: =IF(AT$6="TH",SUMIF(AS$6,"h.",AS10),IF(AT$6="h.",VLOOKUP(VLOOKUP($A10,Janvier!$1:$1048576,AS$7+1,FALSE),Données!$A$2:$C$32,3,FALSE),VLOOKUP(VLOOKUP($A10,Janvier!$1:$1048576,AT$7+1,FALSE),Données!$A$2:$C$32,2,FALSE))) -> 0 | AU10: =IF(AU$6="TH",SUMIF(AT$6,"h.",AT10),IF(AU$6="h.",VLOOKUP(VLOOKUP($A10,Janvier!$1:$1048576,AT$7+1,FALSE),Données!$A$2:$C$32,3,FALSE),VLOOKUP(VLOOKUP($A10,Janvier!$1:$1048576,AU$7+1,FALSE),Données!$A$2:$C$32,2,FALSE))) ->  | AV10: =IF(AV$6="TH",SUMIF(AU$6,"h.",AU10),IF(AV$6="h.",VLOOKUP(VLOOKUP($A10,Janvier!$1:$1048576,AU$7+1,FALSE),Données!$A$2:$C$32,3,FALSE),VLOOKUP(VLOOKUP($A10,Janvier!$1:$1048576,AV$7+1,FALSE),Données!$A$2:$C$32,2,FALSE))) -> 0 | AW10: =IF(AW$6="TH",SUMIF(AV$6,"h.",AV10),IF(AW$6="h.",VLOOKUP(VLOOKUP($A10,Janvier!$1:$1048576,AV$7+1,FALSE),Données!$A$2:$C$32,3,FALSE),VLOOKUP(VLOOKUP($A10,Janvier!$1:$1048576,AW$7+1,FALSE),Données!$A$2:$C$32,2,FALSE))) -> 0 | AX10: =IF(AX$6="TH",SUMIF(AW$6,"h.",AW10),IF(AX$6="h.",VLOOKUP(VLOOKUP($A10,Janvier!$1:$1048576,AW$7+1,FALSE),Données!$A$2:$C$32,3,FALSE),VLOOKUP(VLOOKUP($A10,Janvier!$1:$1048576,AX$7+1,FALSE),Données!$A$2:$C$32,2,FALSE))) -> REC | AY10: =IF(AY$6="TH",SUMIF(AX$6,"h.",AX10),IF(AY$6="h.",VLOOKUP(VLOOKUP($A10,Janvier!$1:$1048576,AX$7+1,FALSE),Données!$A$2:$C$32,3,FALSE),VLOOKUP(VLOOKUP($A10,Janvier!$1:$1048576,AY$7+1,FALSE),Données!$A$2:$C$32,2,FALSE))) -> 0 | AZ10: =IF(AZ$6="TH",SUMIF(AY$6,"h.",AY10),IF(AZ$6="h.",VLOOKUP(VLOOKUP($A10,Janvier!$1:$1048576,AY$7+1,FALSE),Données!$A$2:$C$32,3,FALSE),VLOOKUP(VLOOKUP($A10,Janvier!$1:$1048576,AZ$7+1,FALSE),Données!$A$2:$C$32,2,FALSE))) -> REC | BA10: =IF(BA$6="TH",SUMIF(AZ$6,"h.",AZ10),IF(BA$6="h.",VLOOKUP(VLOOKUP($A10,Janvier!$1:$1048576,AZ$7+1,FALSE),Données!$A$2:$C$32,3,FALSE),VLOOKUP(VLOOKUP($A10,Janvier!$1:$1048576,BA$7+1,FALSE),Données!$A$2:$C$32,2,FALSE))) -> 0 | BB10: =IF(BB$6="TH",SUMIF(BA$6,"h.",BA10),IF(BB$6="h.",VLOOKUP(VLOOKUP($A10,Janvier!$1:$1048576,BA$7+1,FALSE),Données!$A$2:$C$32,3,FALSE),VLOOKUP(VLOOKUP($A10,Janvier!$1:$1048576,BB$7+1,FALSE),Données!$A$2:$C$32,2,FALSE))) -> REC | BC10: =IF(BC$6="TH",SUMIF(BB$6,"h.",BB10),IF(BC$6="h.",VLOOKUP(VLOOKUP($A10,Janvier!$1:$1048576,BB$7+1,FALSE),Données!$A$2:$C$32,3,FALSE),VLOOKUP(VLOOKUP($A10,Janvier!$1:$1048576,BC$7+1,FALSE),Données!$A$2:$C$32,2,FALSE))) -> 0 | BD10: =IF(BD$6="TH",SUMIF(BC$6,"h.",BC10),IF(BD$6="h.",VLOOKUP(VLOOKUP($A10,Janvier!$1:$1048576,BC$7+1,FALSE),Données!$A$2:$C$32,3,FALSE),VLOOKUP(VLOOKUP($A10,Janvier!$1:$1048576,BD$7+1,FALSE),Données!$A$2:$C$32,2,FALSE))) -> REC | BE10: =IF(BE$6="TH",SUMIF(BD$6,"h.",BD10),IF(BE$6="h.",VLOOKUP(VLOOKUP($A10,Janvier!$1:$1048576,BD$7+1,FALSE),Données!$A$2:$C$32,3,FALSE),VLOOKUP(VLOOKUP($A10,Janvier!$1:$1048576,BE$7+1,FALSE),Données!$A$2:$C$32,2,FALSE))) -> 0 | BF10: =IF(BF$6="TH",SUMIF(BE$6,"h.",BE10),IF(BF$6="h.",VLOOKUP(VLOOKUP($A10,Janvier!$1:$1048576,BE$7+1,FALSE),Données!$A$2:$C$32,3,FALSE),VLOOKUP(VLOOKUP($A10,Janvier!$1:$1048576,BF$7+1,FALSE),Données!$A$2:$C$32,2,FALSE))) -> REC | BG10: =IF(BG$6="TH",SUMIF(BF$6,"h.",BF10),IF(BG$6="h.",VLOOKUP(VLOOKUP($A10,Janvier!$1:$1048576,BF$7+1,FALSE),Données!$A$2:$C$32,3,FALSE),VLOOKUP(VLOOKUP($A10,Janvier!$1:$1048576,BG$7+1,FALSE),Données!$A$2:$C$32,2,FALSE))) -> 0 | BH10: =IF(BH$6="TH",SUMIF(BG$6,"h.",BG10),IF(BH$6="h.",VLOOKUP(VLOOKUP($A10,Janvier!$1:$1048576,BG$7+1,FALSE),Données!$A$2:$C$32,3,FALSE),VLOOKUP(VLOOKUP($A10,Janvier!$1:$1048576,BH$7+1,FALSE),Données!$A$2:$C$32,2,FALSE))) ->  | BI10: =IF(BI$6="TH",SUMIF(BH$6,"h.",BH10),IF(BI$6="h.",VLOOKUP(VLOOKUP($A10,Janvier!$1:$1048576,BH$7+1,FALSE),Données!$A$2:$C$32,3,FALSE),VLOOKUP(VLOOKUP($A10,Janvier!$1:$1048576,BI$7+1,FALSE),Données!$A$2:$C$32,2,FALSE))) -> 0 | BJ10: =IF(BJ$6="TH",SUMIF(BI$6,"h.",BI10),IF(BJ$6="h.",VLOOKUP(VLOOKUP($A10,Janvier!$1:$1048576,BI$7+1,FALSE),Données!$A$2:$C$32,3,FALSE),VLOOKUP(VLOOKUP($A10,Janvier!$1:$1048576,BJ$7+1,FALSE),Données!$A$2:$C$32,2,FALSE))) ->  | BK10: =IF(BK$6="TH",SUMIF(BJ$6,"h.",BJ10),IF(BK$6="h.",VLOOKUP(VLOOKUP($A10,Janvier!$1:$1048576,BJ$7+1,FALSE),Données!$A$2:$C$32,3,FALSE),VLOOKUP(VLOOKUP($A10,Janvier!$1:$1048576,BK$7+1,FALSE),Données!$A$2:$C$32,2,FALSE))) -> 0 | BL10: =IF(BL$6="TH",SUMIF(BK$6,"h.",BK10),IF(BL$6="h.",VLOOKUP(VLOOKUP($A10,Janvier!$1:$1048576,BK$7+1,FALSE),Données!$A$2:$C$32,3,FALSE),VLOOKUP(VLOOKUP($A10,Janvier!$1:$1048576,BL$7+1,FALSE),Données!$A$2:$C$32,2,FALSE))) -> 0 | BM10: =IF(BM$6="TH",SUMIF(BL$6,"h.",BL10),IF(BM$6="h.",VLOOKUP(VLOOKUP($A10,Janvier!$1:$1048576,BL$7+1,FALSE),Données!$A$2:$C$32,3,FALSE),VLOOKUP(VLOOKUP($A10,Janvier!$1:$1048576,BM$7+1,FALSE),Données!$A$2:$C$32,2,FALSE))) -> REC | BN10: =IF(BN$6="TH",SUMIF(BM$6,"h.",BM10),IF(BN$6="h.",VLOOKUP(VLOOKUP($A10,Janvier!$1:$1048576,BM$7+1,FALSE),Données!$A$2:$C$32,3,FALSE),VLOOKUP(VLOOKUP($A10,Janvier!$1:$1048576,BN$7+1,FALSE),Données!$A$2:$C$32,2,FALSE))) -> 0 | BO10: =IF(BO$6="TH",SUMIF(BN$6,"h.",BN10),IF(BO$6="h.",VLOOKUP(VLOOKUP($A10,Janvier!$1:$1048576,BN$7+1,FALSE),Données!$A$2:$C$32,3,FALSE),VLOOKUP(VLOOKUP($A10,Janvier!$1:$1048576,BO$7+1,FALSE),Données!$A$2:$C$32,2,FALSE))) -> REC | BP10: =IF(BP$6="TH",SUMIF(BO$6,"h.",BO10),IF(BP$6="h.",VLOOKUP(VLOOKUP($A10,Janvier!$1:$1048576,BO$7+1,FALSE),Données!$A$2:$C$32,3,FALSE),VLOOKUP(VLOOKUP($A10,Janvier!$1:$1048576,BP$7+1,FALSE),Données!$A$2:$C$32,2,FALSE))) -> 0 | BS10: 4.239583333 | BT10: =SUM(HJanvier:HDecembre!BS10) -> 46.1875
A11: =Données!E7 -> Silvère BOUNGUELA | B11: =IF(B$6="TH",SUMIF(A$6,"h.",A11),IF(B$6="h.",VLOOKUP(VLOOKUP($A11,Janvier!$1:$1048576,A$7+1,FALSE),Données!$A$2:$C$32,3,FALSE),VLOOKUP(VLOOKUP($A11,Janvier!$1:$1048576,B$7+1,FALSE),Données!$A$2:$C$32,2,FALSE))) ->  | C11: =IF(C$6="TH",SUMIF(B$6,"h.",B11),IF(C$6="h.",VLOOKUP(VLOOKUP($A11,Janvier!$1:$1048576,B$7+1,FALSE),Données!$A$2:$C$32,3,FALSE),VLOOKUP(VLOOKUP($A11,Janvier!$1:$1048576,C$7+1,FALSE),Données!$A$2:$C$32,2,FALSE))) -> 0 | D11: =IF(D$6="TH",SUMIF(C$6,"h.",C11),IF(D$6="h.",VLOOKUP(VLOOKUP($A11,Janvier!$1:$1048576,C$7+1,FALSE),Données!$A$2:$C$32,3,FALSE),VLOOKUP(VLOOKUP($A11,Janvier!$1:$1048576,D$7+1,FALSE),Données!$A$2:$C$32,2,FALSE))) -> 0 | E11: =IF(E$6="TH",SUMIF(D$6,"h.",D11),IF(E$6="h.",VLOOKUP(VLOOKUP($A11,Janvier!$1:$1048576,D$7+1,FALSE),Données!$A$2:$C$32,3,FALSE),VLOOKUP(VLOOKUP($A11,Janvier!$1:$1048576,E$7+1,FALSE),Données!$A$2:$C$32,2,FALSE))) -> CA16 | F11: =IF(F$6="TH",SUMIF(E$6,"h.",E11),IF(F$6="h.",VLOOKUP(VLOOKUP($A11,Janvier!$1:$1048576,E$7+1,FALSE),Données!$A$2:$C$32,3,FALSE),VLOOKUP(VLOOKUP($A11,Janvier!$1:$1048576,F$7+1,FALSE),Données!$A$2:$C$32,2,FALSE))) -> 0 | G11: =IF(G$6="TH",SUMIF(F$6,"h.",F11),IF(G$6="h.",VLOOKUP(VLOOKUP($A11,Janvier!$1:$1048576,F$7+1,FALSE),Données!$A$2:$C$32,3,FALSE),VLOOKUP(VLOOKUP($A11,Janvier!$1:$1048576,G$7+1,FALSE),Données!$A$2:$C$32,2,FALSE))) -> CA16 | H11: =IF(H$6="TH",SUMIF(G$6,"h.",G11),IF(H$6="h.",VLOOKUP(VLOOKUP($A11,Janvier!$1:$1048576,G$7+1,FALSE),Données!$A$2:$C$32,3,FALSE),VLOOKUP(VLOOKUP($A11,Janvier!$1:$1048576,H$7+1,FALSE),Données!$A$2:$C$32,2,FALSE))) -> 0 | I11: =IF(I$6="TH",SUMIF(H$6,"h.",H11),IF(I$6="h.",VLOOKUP(VLOOKUP($A11,Janvier!$1:$1048576,H$7+1,FALSE),Données!$A$2:$C$32,3,FALSE),VLOOKUP(VLOOKUP($A11,Janvier!$1:$1048576,I$7+1,FALSE),Données!$A$2:$C$32,2,FALSE))) -> CA16 | J11: =IF(J$6="TH",SUMIF(I$6,"h.",I11),IF(J$6="h.",VLOOKUP(VLOOKUP($A11,Janvier!$1:$1048576,I$7+1,FALSE),Données!$A$2:$C$32,3,FALSE),VLOOKUP(VLOOKUP($A11,Janvier!$1:$1048576,J$7+1,FALSE),Données!$A$2:$C$32,2,FALSE))) -> 0 | K11: =IF(K$6="TH",SUMIF(J$6,"h.",J11),IF(K$6="h.",VLOOKUP(VLOOKUP($A11,Janvier!$1:$1048576,J$7+1,FALSE),Données!$A$2:$C$32,3,FALSE),VLOOKUP(VLOOKUP($A11,Janvier!$1:$1048576,K$7+1,FALSE),Données!$A$2:$C$32,2,FALSE))) -> CA16 | L11: =IF(L$6="TH",SUMIF(K$6,"h.",K11),IF(L$6="h.",VLOOKUP(VLOOKUP($A11,Janvier!$1:$1048576,K$7+1,FALSE),Données!$A$2:$C$32,3,FALSE),VLOOKUP(VLOOKUP($A11,Janvier!$1:$1048576,L$7+1,FALSE),Données!$A$2:$C$32,2,FALSE))) -> 0 | M11: =IF(M$6="TH",SUMIF(L$6,"h.",L11),IF(M$6="h.",VLOOKUP(VLOOKUP($A11,Janvier!$1:$1048576,L$7+1,FALSE),Données!$A$2:$C$32,3,FALSE),VLOOKUP(VLOOKUP($A11,Janvier!$1:$1048576,M$7+1,FALSE),Données!$A$2:$C$32,2,FALSE))) -> CA16 | N11: =IF(N$6="TH",SUMIF(M$6,"h.",M11),IF(N$6="h.",VLOOKUP(VLOOKUP($A11,Janvier!$1:$1048576,M$7+1,FALSE),Données!$A$2:$C$32,3,FALSE),VLOOKUP(VLOOKUP($A11,Janvier!$1:$1048576,N$7+1,FALSE),Données!$A$2:$C$32,2,FALSE))) -> 0 | O11: =IF(O$6="TH",SUMIF(N$6,"h.",N11),IF(O$6="h.",VLOOKUP(VLOOKUP($A11,Janvier!$1:$1048576,N$7+1,FALSE),Données!$A$2:$C$32,3,FALSE),VLOOKUP(VLOOKUP($A11,Janvier!$1:$1048576,O$7+1,FALSE),Données!$A$2:$C$32,2,FALSE))) ->  | P11: =IF(P$6="TH",SUMIF(B11:O11,"h.",P11),IF(P$6="h.",VLOOKUP(VLOOKUP($A11,Janvier!$1:$1048576,O$7+1,FALSE),Données!$A$2:$C$32,3,FALSE),VLOOKUP(VLOOKUP($A11,Janvier!$1:$1048576,P$7+1,FALSE),Données!$A$2:$C$32,2,FALSE))) -> 0 | Q11: =IF(Q$6="TH",SUMIF(P$6,"h.",P11),IF(Q$6="h.",VLOOKUP(VLOOKUP($A11,Janvier!$1:$1048576,P$7+1,FALSE),Données!$A$2:$C$32,3,FALSE),VLOOKUP(VLOOKUP($A11,Janvier!$1:$1048576,Q$7+1,FALSE),Données!$A$2:$C$32,2,FALSE))) ->  | R11: =IF(R$6="TH",SUMIF(Q$6,"h.",Q11),IF(R$6="h.",VLOOKUP(VLOOKUP($A11,Janvier!$1:$1048576,Q$7+1,FALSE),Données!$A$2:$C$32,3,FALSE),VLOOKUP(VLOOKUP($A11,Janvier!$1:$1048576,R$7+1,FALSE),Données!$A$2:$C$32,2,FALSE))) -> 0 | S11: =IF(S$6="TH",SUMIF(R$6,"h.",R11),IF(S$6="h.",VLOOKUP(VLOOKUP($A11,Janvier!$1:$1048576,R$7+1,FALSE),Données!$A$2:$C$32,3,FALSE),VLOOKUP(VLOOKUP($A11,Janvier!$1:$1048576,S$7+1,FALSE),Données!$A$2:$C$32,2,FALSE))) -> 0 | T11: =IF(T$6="TH",SUMIF(S$6,"h.",S11),IF(T$6="h.",VLOOKUP(VLOOKUP($A11,Janvier!$1:$1048576,S$7+1,FALSE),Données!$A$2:$C$32,3,FALSE),VLOOKUP(VLOOKUP($A11,Janvier!$1:$1048576,T$7+1,FALSE),Données!$A$2:$C$32,2,FALSE))) -> REC | U11: =IF(U$6="TH",SUMIF(T$6,"h.",T11),IF(U$6="h.",VLOOKUP(VLOOKUP($A11,Janvier!$1:$1048576,T$7+1,FALSE),Données!$A$2:$C$32,3,FALSE),VLOOKUP(VLOOKUP($A11,Janvier!$1:$1048576,U$7+1,FALSE),Données!$A$2:$C$32,2,FALSE))) -> 0 | V11: =IF(V$6="TH",SUMIF(U$6,"h.",U11),IF(V$6="h.",VLOOKUP(VLOOKUP($A11,Janvier!$1:$1048576,U$7+1,FALSE),Données!$A$2:$C$32,3,FALSE),VLOOKUP(VLOOKUP($A11,Janvier!$1:$1048576,V$7+1,FALSE),Données!$A$2:$C$32,2,FALSE))) -> REC | W11: =IF(W$6="TH",SUMIF(V$6,"h.",V11),IF(W$6="h.",VLOOKUP(VLOOKUP($A11,Janvier!$1:$1048576,V$7+1,FALSE),Données!$A$2:$C$32,3,FALSE),VLOOKUP(VLOOKUP($A11,Janvier!$1:$1048576,W$7+1,FALSE),Données!$A$2:$C$32,2,FALSE))) -> 0 | X11: =IF(X$6="TH",SUMIF(W$6,"h.",W11),IF(X$6="h.",VLOOKUP(VLOOKUP($A11,Janvier!$1:$1048576,W$7+1,FALSE),Données!$A$2:$C$32,3,FALSE),VLOOKUP(VLOOKUP($A11,Janvier!$1:$1048576,X$7+1,FALSE),Données!$A$2:$C$32,2,FALSE))) -> REC | Y11: =IF(Y$6="TH",SUMIF(X$6,"h.",X11),IF(Y$6="h.",VLOOKUP(VLOOKUP($A11,Janvier!$1:$1048576,X$7+1,FALSE),Données!$A$2:$C$32,3,FALSE),VLOOKUP(VLOOKUP($A11,Janvier!$1:$1048576,Y$7+1,FALSE),Données!$A$2:$C$32,2,FALSE))) -> 0 | Z11: =IF(Z$6="TH",SUMIF(Y$6,"h.",Y11),IF(Z$6="h.",VLOOKUP(VLOOKUP($A11,Janvier!$1:$1048576,Y$7+1,FALSE),Données!$A$2:$C$32,3,FALSE),VLOOKUP(VLOOKUP($A11,Janvier!$1:$1048576,Z$7+1,FALSE),Données!$A$2:$C$32,2,FALSE))) ->  | AA11: =IF(AA$6="TH",SUMIF(Z$6,"h.",Z11),IF(AA$6="h.",VLOOKUP(VLOOKUP($A11,Janvier!$1:$1048576,Z$7+1,FALSE),Données!$A$2:$C$32,3,FALSE),VLOOKUP(VLOOKUP($A11,Janvier!$1:$1048576,AA$7+1,FALSE),Données!$A$2:$C$32,2,FALSE))) -> 0 | AB11: =IF(AB$6="TH",SUMIF(AA$6,"h.",AA11),IF(AB$6="h.",VLOOKUP(VLOOKUP($A11,Janvier!$1:$1048576,AA$7+1,FALSE),Données!$A$2:$C$32,3,FALSE),VLOOKUP(VLOOKUP($A11,Janvier!$1:$1048576,AB$7+1,FALSE),Données!$A$2:$C$32,2,FALSE))) ->  | AC11: =IF(AC$6="TH",SUMIF(AB$6,"h.",AB11),IF(AC$6="h.",VLOOKUP(VLOOKUP($A11,Janvier!$1:$1048576,AB$7+1,FALSE),Données!$A$2:$C$32,3,FALSE),VLOOKUP(VLOOKUP($A11,Janvier!$1:$1048576,AC$7+1,FALSE),Données!$A$2:$C$32,2,FALSE))) -> 0 | AD11: =IF(AD$6="TH",SUMIF(AC$6,"h.",AC11),IF(AD$6="h.",VLOOKUP(VLOOKUP($A11,Janvier!$1:$1048576,AC$7+1,FALSE),Données!$A$2:$C$32,3,FALSE),VLOOKUP(VLOOKUP($A11,Janvier!$1:$1048576,AD$7+1,FALSE),Données!$A$2:$C$32,2,FALSE))) -> 10h00 - 21h30 | AE11: =IF(AE$6="TH",SUMIF(AD$6,"h.",AD11),IF(AE$6="h.",VLOOKUP(VLOOKUP($A11,Janvier!$1:$1048576,AD$7+1,FALSE),Données!$A$2:$C$32,3,FALSE),VLOOKUP(VLOOKUP($A11,Janvier!$1:$1048576,AE$7+1,FALSE),Données!$A$2:$C$32,2,FALSE))) -> 0.4791666667 | AF11: =IF(AF$6="TH",SUMIF(AE$6,"h.",AE11),IF(AF$6="h.",VLOOKUP(VLOOKUP($A11,Janvier!$1:$1048576,AE$7+1,FALSE),Données!$A$2:$C$32,3,FALSE),VLOOKUP(VLOOKUP($A11,Janvier!$1:$1048576,AF$7+1,FALSE),Données!$A$2:$C$32,2,FALSE))) -> 10h00 - 21h30 | AG11: =IF(AG$6="TH",SUMIF(AF$6,"h.",AF11),IF(AG$6="h.",VLOOKUP(VLOOKUP($A11,Janvier!$1:$1048576,AF$7+1,FALSE),Données!$A$2:$C$32,3,FALSE),VLOOKUP(VLOOKUP($A11,Janvier!$1:$1048576,AG$7+1,FALSE),Données!$A$2:$C$32,2,FALSE))) -> 0.4791666667 | AH11: =IF(AH$6="TH",SUMIF(AG$6,"h.",AG11),IF(AH$6="h.",VLOOKUP(VLOOKUP($A11,Janvier!$1:$1048576,AG$7+1,FALSE),Données!$A$2:$C$32,3,FALSE),VLOOKUP(VLOOKUP($A11,Janvier!$1:$1048576,AH$7+1,FALSE),Données!$A$2:$C$32,2,FALSE))) -> 0.4791666667 | AI11: =IF(AI$6="TH",SUMIF(AH$6,"h.",AH11),IF(AI$6="h.",VLOOKUP(VLOOKUP($A11,Janvier!$1:$1048576,AH$7+1,FALSE),Données!$A$2:$C$32,3,FALSE),VLOOKUP(VLOOKUP($A11,Janvier!$1:$1048576,AI$7+1,FALSE),Données!$A$2:$C$32,2,FALSE))) ->  | AJ11: =IF(AJ$6="TH",SUMIF(AI$6,"h.",AI11),IF(AJ$6="h.",VLOOKUP(VLOOKUP($A11,Janvier!$1:$1048576,AI$7+1,FALSE),Données!$A$2:$C$32,3,FALSE),VLOOKUP(VLOOKUP($A11,Janvier!$1:$1048576,AJ$7+1,FALSE),Données!$A$2:$C$32,2,FALSE))) -> 0 | AK11: =IF(AK$6="TH",SUMIF(AJ$6,"h.",AJ11),IF(AK$6="h.",VLOOKUP(VLOOKUP($A11,Janvier!$1:$1048576,AJ$7+1,FALSE),Données!$A$2:$C$32,3,FALSE),VLOOKUP(VLOOKUP($A11,Janvier!$1:$1048576,AK$7+1,FALSE),Données!$A$2:$C$32,2,FALSE))) -> 7h00 - 14h30 | AL11: =IF(AL$6="TH",SUMIF(AK$6,"h.",AK11),IF(AL$6="h.",VLOOKUP(VLOOKUP($A11,Janvier!$1:$1048576,AK$7+1,FALSE),Données!$A$2:$C$32,3,FALSE),VLOOKUP(VLOOKUP($A11,Janvier!$1:$1048576,AL$7+1,FALSE),Données!$A$2:$C$32,2,FALSE))) -> 0.3125 | AM11: =IF(AM$6="TH",SUMIF(AL$6,"h.",AL11),IF(AM$6="h.",VLOOKUP(VLOOKUP($A11,Janvier!$1:$1048576,AL$7+1,FALSE),Données!$A$2:$C$32,3,FALSE),VLOOKUP(VLOOKUP($A11,Janvier!$1:$1048576,AM$7+1,FALSE),Données!$A$2:$C$32,2,FALSE))) -> 7h00 - 14h30 | AN11: =IF(AN$6="TH",SUMIF(AM$6,"h.",AM11),IF(AN$6="h.",VLOOKUP(VLOOKUP($A11,Janvier!$1:$1048576,AM$7+1,FALSE),Données!$A$2:$C$32,3,FALSE),VLOOKUP(VLOOKUP($A11,Janvier!$1:$1048576,AN$7+1,FALSE),Données!$A$2:$C$32,2,FALSE))) -> 0.3125 | AO11: =IF(AO$6="TH",SUMIF(AN$6,"h.",AN11),IF(AO$6="h.",VLOOKUP(VLOOKUP($A11,Janvier!$1:$1048576,AN$7+1,FALSE),Données!$A$2:$C$32,3,FALSE),VLOOKUP(VLOOKUP($A11,Janvier!$1:$1048576,AO$7+1,FALSE),Données!$A$2:$C$32,2,FALSE))) -> 14h00 - 21h30 | AP11: =IF(AP$6="TH",SUMIF(AO$6,"h.",AO11),IF(AP$6="h.",VLOOKUP(VLOOKUP($A11,Janvier!$1:$1048576,AO$7+1,FALSE),Données!$A$2:$C$32,3,FALSE),VLOOKUP(VLOOKUP($A11,Janvier!$1:$1048576,AP$7+1,FALSE),Données!$A$2:$C$32,2,FALSE))) -> 0.3125 | AQ11: =IF(AQ$6="TH",SUMIF(AP$6,"h.",AP11),IF(AQ$6="h.",VLOOKUP(VLOOKUP($A11,Janvier!$1:$1048576,AP$7+1,FALSE),Données!$A$2:$C$32,3,FALSE),VLOOKUP(VLOOKUP($A11,Janvier!$1:$1048576,AQ$7+1,FALSE),Données!$A$2:$C$32,2,FALSE))) -> 7h00 - 14h30 | AR11: =IF(AR$6="TH",SUMIF(AQ$6,"h.",AQ11),IF(AR$6="h.",VLOOKUP(VLOOKUP($A11,Janvier!$1:$1048576,AQ$7+1,FALSE),Données!$A$2:$C$32,3,FALSE),VLOOKUP(VLOOKUP($A11,Janvier!$1:$1048576,AR$7+1,FALSE),Données!$A$2:$C$32,2,FALSE))) -> 0.3125 | AS11: =IF(AS$6="TH",SUMIF(AR$6,"h.",AR11),IF(AS$6="h.",VLOOKUP(VLOOKUP($A11,Janvier!$1:$1048576,AR$7+1,FALSE),Données!$A$2:$C$32,3,FALSE),VLOOKUP(VLOOKUP($A11,Janvier!$1:$1048576,AS$7+1,FALSE),Données!$A$2:$C$32,2,FALSE))) ->  | AT11: =IF(AT$6="TH",SUMIF(AS$6,"h.",AS11),IF(AT$6="h.",VLOOKUP(VLOOKUP($A11,Janvier!$1:$1048576,AS$7+1,FALSE),Données!$A$2:$C$32,3,FALSE),VLOOKUP(VLOOKUP($A11,Janvier!$1:$1048576,AT$7+1,FALSE),Données!$A$2:$C$32,2,FALSE))) -> 0 | AU11: =IF(AU$6="TH",SUMIF(AT$6,"h.",AT11),IF(AU$6="h.",VLOOKUP(VLOOKUP($A11,Janvier!$1:$1048576,AT$7+1,FALSE),Données!$A$2:$C$32,3,FALSE),VLOOKUP(VLOOKUP($A11,Janvier!$1:$1048576,AU$7+1,FALSE),Données!$A$2:$C$32,2,FALSE))) ->  | AV11: =IF(AV$6="TH",SUMIF(AU$6,"h.",AU11),IF(AV$6="h.",VLOOKUP(VLOOKUP($A11,Janvier!$1:$1048576,AU$7+1,FALSE),Données!$A$2:$C$32,3,FALSE),VLOOKUP(VLOOKUP($A11,Janvier!$1:$1048576,AV$7+1,FALSE),Données!$A$2:$C$32,2,FALSE))) -> 0 | AW11: =IF(AW$6="TH",SUMIF(AV$6,"h.",AV11),IF(AW$6="h.",VLOOKUP(VLOOKUP($A11,Janvier!$1:$1048576,AV$7+1,FALSE),Données!$A$2:$C$32,3,FALSE),VLOOKUP(VLOOKUP($A11,Janvier!$1:$1048576,AW$7+1,FALSE),Données!$A$2:$C$32,2,FALSE))) -> 0 | AX11: =IF(AX$6="TH",SUMIF(AW$6,"h.",AW11),IF(AX$6="h.",VLOOKUP(VLOOKUP($A11,Janvier!$1:$1048576,AW$7+1,FALSE),Données!$A$2:$C$32,3,FALSE),VLOOKUP(VLOOKUP($A11,Janvier!$1:$1048576,AX$7+1,FALSE),Données!$A$2:$C$32,2,FALSE))) -> 14h00 - 21h30 | AY11: =IF(AY$6="TH",SUMIF(AX$6,"h.",AX11),IF(AY$6="h.",VLOOKUP(VLOOKUP($A11,Janvier!$1:$1048576,AX$7+1,FALSE),Données!$A$2:$C$32,3,FALSE),VLOOKUP(VLOOKUP($A11,Janvier!$1:$1048576,AY$7+1,FALSE),Données!$A$2:$C$32,2,FALSE))) -> 0.3125 | AZ11: =IF(AZ$6="TH",SUMIF(AY$6,"h.",AY11),IF(AZ$6="h.",VLOOKUP(VLOOKUP($A11,Janvier!$1:$1048576,AY$7+1,FALSE),Données!$A$2:$C$32,3,FALSE),VLOOKUP(VLOOKUP($A11,Janvier!$1:$1048576,AZ$7+1,FALSE),Données!$A$2:$C$32,2,FALSE))) -> 10h00 - 21h30 | BA11: =IF(BA$6="TH",SUMIF(AZ$6,"h.",AZ11),IF(BA$6="h.",VLOOKUP(VLOOKUP($A11,Janvier!$1:$1048576,AZ$7+1,FALSE),Données!$A$2:$C$32,3,FALSE),VLOOKUP(VLOOKUP($A11,Janvier!$1:$1048576,BA$7+1,FALSE),Données!$A$2:$C$32,2,FALSE))) -> 0.4166666667 | BB11: =IF(BB$6="TH",SUMIF(BA$6,"h.",BA11),IF(BB$6="h.",VLOOKUP(VLOOKUP($A11,Janvier!$1:$1048576,BA$7+1,FALSE),Données!$A$2:$C$32,3,FALSE),VLOOKUP(VLOOKUP($A11,Janvier!$1:$1048576,BB$7+1,FALSE),Données!$A$2:$C$32,2,FALSE))) -> 7h00 - 14h30 | BC11: =IF(BC$6="TH",SUMIF(BB$6,"h.",BB11),IF(BC$6="h.",VLOOKUP(VLOOKUP($A11,Janvier!$1:$1048576,BB$7+1,FALSE),Données!$A$2:$C$32,3,FALSE),VLOOKUP(VLOOKUP($A11,Janvier!$1:$1048576,BC$7+1,FALSE),Données!$A$2:$C$32,2,FALSE))) -> 0.3125 | BD11: =IF(BD$6="TH",SUMIF(BC$6,"h.",BC11),IF(BD$6="h.",VLOOKUP(VLOOKUP($A11,Janvier!$1:$1048576,BC$7+1,FALSE),Données!$A$2:$C$32,3,FALSE),VLOOKUP(VLOOKUP($A11,Janvier!$1:$1048576,BD$7+1,FALSE),Données!$A$2:$C$32,2,FALSE))) -> 14h00 - 21h30 | BE11: =IF(BE$6="TH",SUMIF(BD$6,"h.",BD11),IF(BE$6="h.",VLOOKUP(VLOOKUP($A11,Janvier!$1:$1048576,BD$7+1,FALSE),Données!$A$2:$C$32,3,FALSE),VLOOKUP(VLOOKUP($A11,Janvier!$1:$1048576,BE$7+1,FALSE),Données!$A$2:$C$32,2,FALSE))) -> 0.3125 | BF11: =IF(BF$6="TH",SUMIF(BE$6,"h.",BE11),IF(BF$6="h.",VLOOKUP(VLOOKUP($A11,Janvier!$1:$1048576,BE$7+1,FALSE),Données!$A$2:$C$32,3,FALSE),VLOOKUP(VLOOKUP($A11,Janvier!$1:$1048576,BF$7+1,FALSE),Données!$A$2:$C$32,2,FALSE))) ->  | BG11: =IF(BG$6="TH",SUMIF(BF$6,"h.",BF11),IF(BG$6="h.",VLOOKUP(VLOOKUP($A11,Janvier!$1:$1048576,BF$7+1,FALSE),Données!$A$2:$C$32,3,FALSE),VLOOKUP(VLOOKUP($A11,Janvier!$1:$1048576,BG$7+1,FALSE),Données!$A$2:$C$32,2,FALSE))) -> 0 | BH11: =IF(BH$6="TH",SUMIF(BG$6,"h.",BG11),IF(BH$6="h.",VLOOKUP(VLOOKUP($A11,Janvier!$1:$1048576,BG$7+1,FALSE),Données!$A$2:$C$32,3,FALSE),VLOOKUP(VLOOKUP($A11,Janvier!$1:$1048576,BH$7+1,FALSE),Données!$A$2:$C$32,2,FALSE))) -> 10h00 - 21h30 | BI11: =IF(BI$6="TH",SUMIF(BH$6,"h.",BH11),IF(BI$6="h.",VLOOKUP(VLOOKUP($A11,Janvier!$1:$1048576,BH$7+1,FALSE),Données!$A$2:$C$32,3,FALSE),VLOOKUP(VLOOKUP($A11,Janvier!$1:$1048576,BI$7+1,FALSE),Données!$A$2:$C$32,2,FALSE))) -> 0.4791666667 | BJ11: =IF(BJ$6="TH",SUMIF(BI$6,"h.",BI11),IF(BJ$6="h.",VLOOKUP(VLOOKUP($A11,Janvier!$1:$1048576,BI$7+1,FALSE),Données!$A$2:$C$32,3,FALSE),VLOOKUP(VLOOKUP($A11,Janvier!$1:$1048576,BJ$7+1,FALSE),Données!$A$2:$C$32,2,FALSE))) -> 10h00 - 21h30 | BK11: =IF(BK$6="TH",SUMIF(BJ$6,"h.",BJ11),IF(BK$6="h.",VLOOKUP(VLOOKUP($A11,Janvier!$1:$1048576,BJ$7+1,FALSE),Données!$A$2:$C$32,3,FALSE),VLOOKUP(VLOOKUP($A11,Janvier!$1:$1048576,BK$7+1,FALSE),Données!$A$2:$C$32,2,FALSE))) -> 0.4791666667 | BL11: =IF(BL$6="TH",SUMIF(BK$6,"h.",BK11),IF(BL$6="h.",VLOOKUP(VLOOKUP($A11,Janvier!$1:$1048576,BK$7+1,FALSE),Données!$A$2:$C$32,3,FALSE),VLOOKUP(VLOOKUP($A11,Janvier!$1:$1048576,BL$7+1,FALSE),Données!$A$2:$C$32,2,FALSE))) -> 0.4791666667 | BM11: =IF(BM$6="TH",SUMIF(BL$6,"h.",BL11),IF(BM$6="h.",VLOOKUP(VLOOKUP($A11,Janvier!$1:$1048576,BL$7+1,FALSE),Données!$A$2:$C$32,3,FALSE),VLOOKUP(VLOOKUP($A11,Janvier!$1:$1048576,BM$7+1,FALSE),Données!$A$2:$C$32,2,FALSE))) ->  | BN11: =IF(BN$6="TH",SUMIF(BM$6,"h.",BM11),IF(BN$6="h.",VLOOKUP(VLOOKUP($A11,Janvier!$1:$1048576,BM$7+1,FALSE),Données!$A$2:$C$32,3,FALSE),VLOOKUP(VLOOKUP($A11,Janvier!$1:$1048576,BN$7+1,FALSE),Données!$A$2:$C$32,2,FALSE))) -> 0 | BO11: =IF(BO$6="TH",SUMIF(BN$6,"h.",BN11),IF(BO$6="h.",VLOOKUP(VLOOKUP($A11,Janvier!$1:$1048576,BN$7+1,FALSE),Données!$A$2:$C$32,3,FALSE),VLOOKUP(VLOOKUP($A11,Janvier!$1:$1048576,BO$7+1,FALSE),Données!$A$2:$C$32,2,FALSE))) ->  | BP11: =IF(BP$6="TH",SUMIF(BO$6,"h.",BO11),IF(BP$6="h.",VLOOKUP(VLOOKUP($A11,Janvier!$1:$1048576,BO$7+1,FALSE),Données!$A$2:$C$32,3,FALSE),VLOOKUP(VLOOKUP($A11,Janvier!$1:$1048576,BP$7+1,FALSE),Données!$A$2:$C$32,2,FALSE))) -> 0 | BS11: 4.520833333 | BT11: =SUM(HJanvier:HDecembre!BS11) -> 44.64583333
A12: =Données!E8 -> Christelle RIBIERO | B12: =IF(B$6="TH",SUMIF(A$6,"h.",A12),IF(B$6="h.",VLOOKUP(VLOOKUP($A12,Janvier!$1:$1048576,A$7+1,FALSE),Données!$A$2:$C$32,3,FALSE),VLOOKUP(VLOOKUP($A12,Janvier!$1:$1048576,B$7+1,FALSE),Données!$A$2:$C$32,2,FALSE))) ->  | C12: =IF(C$6="TH",SUMIF(B$6,"h.",B12),IF(C$6="h.",VLOOKUP(VLOOKUP($A12,Janvier!$1:$1048576,B$7+1,FALSE),Données!$A$2:$C$32,3,FALSE),VLOOKUP(VLOOKUP($A12,Janvier!$1:$1048576,C$7+1,FALSE),Données!$A$2:$C$32,2,FALSE))) -> 0 | D12: =IF(D$6="TH",SUMIF(C$6,"h.",C12),IF(D$6="h.",VLOOKUP(VLOOKUP($A12,Janvier!$1:$1048576,C$7+1,FALSE),Données!$A$2:$C$32,3,FALSE),VLOOKUP(VLOOKUP($A12,Janvier!$1:$1048576,D$7+1,FALSE),Données!$A$2:$C$32,2,FALSE))) -> 0 | E12: =IF(E$6="TH",SUMIF(D$6,"h.",D12),IF(E$6="h.",VLOOKUP(VLOOKUP($A12,Janvier!$1:$1048576,D$7+1,FALSE),Données!$A$2:$C$32,3,FALSE),VLOOKUP(VLOOKUP($A12,Janvier!$1:$1048576,E$7+1,FALSE),Données!$A$2:$C$32,2,FALSE))) -> REC | F12: =IF(F$6="TH",SUMIF(E$6,"h.",E12),IF(F$6="h.",VLOOKUP(VLOOKUP($A12,Janvier!$1:$1048576,E$7+1,FALSE),Données!$A$2:$C$32,3,FALSE),VLOOKUP(VLOOKUP($A12,Janvier!$1:$1048576,F$7+1,FALSE),Données!$A$2:$C$32,2,FALSE))) -> 0 | G12: =IF(G$6="TH",SUMIF(F$6,"h.",F12),IF(G$6="h.",VLOOKUP(VLOOKUP($A12,Janvier!$1:$1048576,F$7+1,FALSE),Données!$A$2:$C$32,3,FALSE),VLOOKUP(VLOOKUP($A12,Janvier!$1:$1048576,G$7+1,FALSE),Données!$A$2:$C$32,2,FALSE))) -> 7h00 - 14h30 | H12: =IF(H$6="TH",SUMIF(G$6,"h.",G12),IF(H$6="h.",VLOOKUP(VLOOKUP($A12,Janvier!$1:$1048576,G$7+1,FALSE),Données!$A$2:$C$32,3,FALSE),VLOOKUP(VLOOKUP($A12,Janvier!$1:$1048576,H$7+1,FALSE),Données!$A$2:$C$32,2,FALSE))) -> 0.3125 | I12: =IF(I$6="TH",SUMIF(H$6,"h.",H12),IF(I$6="h.",VLOOKUP(VLOOKUP($A12,Janvier!$1:$1048576,H$7+1,FALSE),Données!$A$2:$C$32,3,FALSE),VLOOKUP(VLOOKUP($A12,Janvier!$1:$1048576,I$7+1,FALSE),Données!$A$2:$C$32,2,FALSE))) ->  | J12: =IF(J$6="TH",SUMIF(I$6,"h.",I12),IF(J$6="h.",VLOOKUP(VLOOKUP($A12,Janvier!$1:$1048576,I$7+1,FALSE),Données!$A$2:$C$32,3,FALSE),VLOOKUP(VLOOKUP($A12,Janvier!$1:$1048576,J$7+1,FALSE),Données!$A$2:$C$32,2,FALSE))) -> 0 | K12: =IF(K$6="TH",SUMIF(J$6,"h.",J12),IF(K$6="h.",VLOOKUP(VLOOKUP($A12,Janvier!$1:$1048576,J$7+1,FALSE),Données!$A$2:$C$32,3,FALSE),VLOOKUP(VLOOKUP($A12,Janvier!$1:$1048576,K$7+1,FALSE),Données!$A$2:$C$32,2,FALSE))) ->  | L12: =IF(L$6="TH",SUMIF(K$6,"h.",K12),IF(L$6="h.",VLOOKUP(VLOOKUP($A12,Janvier!$1:$1048576,K$7+1,FALSE),Données!$A$2:$C$32,3,FALSE),VLOOKUP(VLOOKUP($A12,Janvier!$1:$1048576,L$7+1,FALSE),Données!$A$2:$C$32,2,FALSE))) -> 0 | M12: =IF(M$6="TH",SUMIF(L$6,"h.",L12),IF(M$6="h.",VLOOKUP(VLOOKUP($A12,Janvier!$1:$1048576,L$7+1,FALSE),Données!$A$2:$C$32,3,FALSE),VLOOKUP(VLOOKUP($A12,Janvier!$1:$1048576,M$7+1,FALSE),Données!$A$2:$C$32,2,FALSE))) -> 7h00 - 14h30 | N12: =IF(N$6="TH",SUMIF(M$6,"h.",M12),IF(N$6="h.",VLOOKUP(VLOOKUP($A12,Janvier!$1:$1048576,M$7+1,FALSE),Données!$A$2:$C$32,3,FALSE),VLOOKUP(VLOOKUP($A12,Janvier!$1:$1048576,N$7+1,FALSE),Données!$A$2:$C$32,2,FALSE))) -> 0.3125 | O12: =IF(O$6="TH",SUMIF(N$6,"h.",N12),IF(O$6="h.",VLOOKUP(VLOOKUP($A12,Janvier!$1:$1048576,N$7+1,FALSE),Données!$A$2:$C$32,3,FALSE),VLOOKUP(VLOOKUP($A12,Janvier!$1:$1048576,O$7+1,FALSE),Données!$A$2:$C$32,2,FALSE))) -> 7h00 - 19h15 | P12: =IF(P$6="TH",SUMIF(B12:O12,"h.",P12),IF(P$6="h.",VLOOKUP(VLOOKUP($A12,Janvier!$1:$1048576,O$7+1,FALSE),Données!$A$2:$C$32,3,FALSE),VLOOKUP(VLOOKUP($A12,Janvier!$1:$1048576,P$7+1,FALSE),Données!$A$2:$C$32,2,FALSE))) -> 0.5104166667 | Q12: =IF(Q$6="TH",SUMIF(P$6,"h.",P12),IF(Q$6="h.",VLOOKUP(VLOOKUP($A12,Janvier!$1:$1048576,P$7+1,FALSE),Données!$A$2:$C$32,3,FALSE),VLOOKUP(VLOOKUP($A12,Janvier!$1:$1048576,Q$7+1,FALSE),Données!$A$2:$C$32,2,FALSE))) -> 7h00 - 19h15 | R12: =IF(R$6="TH",SUMIF(Q$6,"h.",Q12),IF(R$6="h.",VLOOKUP(VLOOKUP($A12,Janvier!$1:$1048576,Q$7+1,FALSE),Données!$A$2:$C$32,3,FALSE),VLOOKUP(VLOOKUP($A12,Janvier!$1:$1048576,R$7+1,FALSE),Données!$A$2:$C$32,2,FALSE))) -> 0.5 | S12: =IF(S$6="TH",SUMIF(R$6,"h.",R12),IF(S$6="h.",VLOOKUP(VLOOKUP($A12,Janvier!$1:$1048576,R$7+1,FALSE),Données!$A$2:$C$32,3,FALSE),VLOOKUP(VLOOKUP($A12,Janvier!$1:$1048576,S$7+1,FALSE),Données!$A$2:$C$32,2,FALSE))) -> 0.5 | T12: =IF(T$6="TH",SUMIF(S$6,"h.",S12),IF(T$6="h.",VLOOKUP(VLOOKUP($A12,Janvier!$1:$1048576,S$7+1,FALSE),Données!$A$2:$C$32,3,FALSE),VLOOKUP(VLOOKUP($A12,Janvier!$1:$1048576,T$7+1,FALSE),Données!$A$2:$C$32,2,FALSE))) ->  | U12: =IF(U$6="TH",SUMIF(T$6,"h.",T12),IF(U$6="h.",VLOOKUP(VLOOKUP($A12,Janvier!$1:$1048576,T$7+1,FALSE),Données!$A$2:$C$32,3,FALSE),VLOOKUP(VLOOKUP($A12,Janvier!$1:$1048576,U$7+1,FALSE),Données!$A$2:$C$32,2,FALSE))) -> 0 | V12: =IF(V$6="TH",SUMIF(U$6,"h.",U12),IF(V$6="h.",VLOOKUP(VLOOKUP($A12,Janvier!$1:$1048576,U$7+1,FALSE),Données!$A$2:$C$32,3,FALSE),VLOOKUP(VLOOKUP($A12,Janvier!$1:$1048576,V$7+1,FALSE),Données!$A$2:$C$32,2,FALSE))) -> 7h00 - 14h30 | W12: =IF(W$6="TH",SUMIF(V$6,"h.",V12),IF(W$6="h.",VLOOKUP(VLOOKUP($A12,Janvier!$1:$1048576,V$7+1,FALSE),Données!$A$2:$C$32,3,FALSE),VLOOKUP(VLOOKUP($A12,Janvier!$1:$1048576,W$7+1,FALSE),Données!$A$2:$C$32,2,FALSE))) -> 0.3125 | X12: =IF(X$6="TH",SUMIF(W$6,"h.",W12),IF(X$6="h.",VLOOKUP(VLOOKUP($A12,Janvier!$1:$1048576,W$7+1,FALSE),Données!$A$2:$C$32,3,FALSE),VLOOKUP(VLOOKUP($A12,Janvier!$1:$1048576,X$7+1,FALSE),Données!$A$2:$C$32,2,FALSE))) -> 7h00 - 14h30 | Y12: =IF(Y$6="TH",SUMIF(X$6,"h.",X12),IF(Y$6="h.",VLOOKUP(VLOOKUP($A12,Janvier!$1:$1048576,X$7+1,FALSE),Données!$A$2:$C$32,3,FALSE),VLOOKUP(VLOOKUP($A12,Janvier!$1:$1048576,Y$7+1,FALSE),Données!$A$2:$C$32,2,FALSE))) -> 0.3125 | Z12: =IF(Z$6="TH",SUMIF(Y$6,"h.",Y12),IF(Z$6="h.",VLOOKUP(VLOOKUP($A12,Janvier!$1:$1048576,Y$7+1,FALSE),Données!$A$2:$C$32,3,FALSE),VLOOKUP(VLOOKUP($A12,Janvier!$1:$1048576,Z$7+1,FALSE),Données!$A$2:$C$32,2,FALSE))) -> 10h00 - 19h15 | AA12: =IF(AA$6="TH",SUMIF(Z$6,"h.",Z12),IF(AA$6="h.",VLOOKUP(VLOOKUP($A12,Janvier!$1:$1048576,Z$7+1,FALSE),Données!$A$2:$C$32,3,FALSE),VLOOKUP(VLOOKUP($A12,Janvier!$1:$1048576,AA$7+1,FALSE),Données!$A$2:$C$32,2,FALSE))) -> 0.3854166667 | AB12: =IF(AB$6="TH",SUMIF(AA$6,"h.",AA12),IF(AB$6="h.",VLOOKUP(VLOOKUP($A12,Janvier!$1:$1048576,AA$7+1,FALSE),Données!$A$2:$C$32,3,FALSE),VLOOKUP(VLOOKUP($A12,Janvier!$1:$1048576,AB$7+1,FALSE),Données!$A$2:$C$32,2,FALSE))) -> 10h00 - 19h15 | AC12: =IF(AC$6="TH",SUMIF(AB$6,"h.",AB12),IF(AC$6="h.",VLOOKUP(VLOOKUP($A12,Janvier!$1:$1048576,AB$7+1,FALSE),Données!$A$2:$C$32,3,FALSE),VLOOKUP(VLOOKUP($A12,Janvier!$1:$1048576,AC$7+1,FALSE),Données!$A$2:$C$32,2,FALSE))) -> 0.3854166667 | AD12: =IF(AD$6="TH",SUMIF(AC$6,"h.",AC12),IF(AD$6="h.",VLOOKUP(VLOOKUP($A12,Janvier!$1:$1048576,AC$7+1,FALSE),Données!$A$2:$C$32,3,FALSE),VLOOKUP(VLOOKUP($A12,Janvier!$1:$1048576,AD$7+1,FALSE),Données!$A$2:$C$32,2,FALSE))) ->  | AE12: =IF(AE$6="TH",SUMIF(AD$6,"h.",AD12),IF(AE$6="h.",VLOOKUP(VLOOKUP($A12,Janvier!$1:$1048576,AD$7+1,FALSE),Données!$A$2:$C$32,3,FALSE),VLOOKUP(VLOOKUP($A12,Janvier!$1:$1048576,AE$7+1,FALSE),Données!$A$2:$C$32,2,FALSE))) -> 0 | AF12: =IF(AF$6="TH",SUMIF(AE$6,"h.",AE12),IF(AF$6="h.",VLOOKUP(VLOOKUP($A12,Janvier!$1:$1048576,AE$7+1,FALSE),Données!$A$2:$C$32,3,FALSE),VLOOKUP(VLOOKUP($A12,Janvier!$1:$1048576,AF$7+1,FALSE),Données!$A$2:$C$32,2,FALSE))) ->  | AG12: =IF(AG$6="TH",SUMIF(AF$6,"h.",AF12),IF(AG$6="h.",VLOOKUP(VLOOKUP($A12,Janvier!$1:$1048576,AF$7+1,FALSE),Données!$A$2:$C$32,3,FALSE),VLOOKUP(VLOOKUP($A12,Janvier!$1:$1048576,AG$7+1,FALSE),Données!$A$2:$C$32,2,FALSE))) -> 0 | AH12: =IF(AH$6="TH",SUMIF(AG$6,"h.",AG12),IF(AH$6="h.",VLOOKUP(VLOOKUP($A12,Janvier!$1:$1048576,AG$7+1,FALSE),Données!$A$2:$C$32,3,FALSE),VLOOKUP(VLOOKUP($A12,Janvier!$1:$1048576,AH$7+1,FALSE),Données!$A$2:$C$32,2,FALSE))) -> 0 | AI12: =IF(AI$6="TH",SUMIF(AH$6,"h.",AH12),IF(AI$6="h.",VLOOKUP(VLOOKUP($A12,Janvier!$1:$1048576,AH$7+1,FALSE),Données!$A$2:$C$32,3,FALSE),VLOOKUP(VLOOKUP($A12,Janvier!$1:$1048576,AI$7+1,FALSE),Données!$A$2:$C$32,2,FALSE))) ->  | AJ12: =IF(AJ$6="TH",SUMIF(AI$6,"h.",AI12),IF(AJ$6="h.",VLOOKUP(VLOOKUP($A12,Janvier!$1:$1048576,AI$7+1,FALSE),Données!$A$2:$C$32,3,FALSE),VLOOKUP(VLOOKUP($A12,Janvier!$1:$1048576,AJ$7+1,FALSE),Données!$A$2:$C$32,2,FALSE))) -> 0 | AK12: =IF(AK$6="TH",SUMIF(AJ$6,"h.",AJ12),IF(AK$6="h.",VLOOKUP(VLOOKUP($A12,Janvier!$1:$1048576,AJ$7+1,FALSE),Données!$A$2:$C$32,3,FALSE),VLOOKUP(VLOOKUP($A12,Janvier!$1:$1048576,AK$7+1,FALSE),Données!$A$2:$C$32,2,FALSE))) ->  | AL12: =IF(AL$6="TH",SUMIF(AK$6,"h.",AK12),IF(AL$6="h.",VLOOKUP(VLOOKUP($A12,Janvier!$1:$1048576,AK$7+1,FALSE),Données!$A$2:$C$32,3,FALSE),VLOOKUP(VLOOKUP($A12,Janvier!$1:$1048576,AL$7+1,FALSE),Données!$A$2:$C$32,2,FALSE))) -> 0 | AM12: =IF(AM$6="TH",SUMIF(AL$6,"h.",AL12),IF(AM$6="h.",VLOOKUP(VLOOKUP($A12,Janvier!$1:$1048576,AL$7+1,FALSE),Données!$A$2:$C$32,3,FALSE),VLOOKUP(VLOOKUP($A12,Janvier!$1:$1048576,AM$7+1,FALSE),Données!$A$2:$C$32,2,FALSE))) -> CA16 | AN12: =IF(AN$6="TH",SUMIF(AM$6,"h.",AM12),IF(AN$6="h.",VLOOKUP(VLOOKUP($A12,Janvier!$1:$1048576,AM$7+1,FALSE),Données!$A$2:$C$32,3,FALSE),VLOOKUP(VLOOKUP($A12,Janvier!$1:$1048576,AN$7+1,FALSE),Données!$A$2:$C$32,2,FALSE))) -> 0 | AO12: =IF(AO$6="TH",SUMIF(AN$6,"h.",AN12),IF(AO$6="h.",VLOOKUP(VLOOKUP($A12,Janvier!$1:$1048576,AN$7+1,FALSE),Données!$A$2:$C$32,3,FALSE),VLOOKUP(VLOOKUP($A12,Janvier!$1:$1048576,AO$7+1,FALSE),Données!$A$2:$C$32,2,FALSE))) -> CA16 | AP12: =IF(AP$6="TH",SUMIF(AO$6,"h.",AO12),IF(AP$6="h.",VLOOKUP(VLOOKUP($A12,Janvier!$1:$1048576,AO$7+1,FALSE),Données!$A$2:$C$32,3,FALSE),VLOOKUP(VLOOKUP($A12,Janvier!$1:$1048576,AP$7+1,FALSE),Données!$A$2:$C$32,2,FALSE))) -> 0 | AQ12: =IF(AQ$6="TH",SUMIF(AP$6,"h.",AP12),IF(AQ$6="h.",VLOOKUP(VLOOKUP($A12,Janvier!$1:$1048576,AP$7+1,FALSE),Données!$A$2:$C$32,3,FALSE),VLOOKUP(VLOOKUP($A12,Janvier!$1:$1048576,AQ$7+1,FALSE),Données!$A$2:$C$32,2,FALSE))) -> CA16 | AR12: =IF(AR$6="TH",SUMIF(AQ$6,"h.",AQ12),IF(AR$6="h.",VLOOKUP(VLOOKUP($A12,Janvier!$1:$1048576,AQ$7+1,FALSE),Données!$A$2:$C$32,3,FALSE),VLOOKUP(VLOOKUP($A12,Janvier!$1:$1048576,AR$7+1,FALSE),Données!$A$2:$C$32,2,FALSE))) -> 0 | AS12: =IF(AS$6="TH",SUMIF(AR$6,"h.",AR12),IF(AS$6="h.",VLOOKUP(VLOOKUP($A12,Janvier!$1:$1048576,AR$7+1,FALSE),Données!$A$2:$C$32,3,FALSE),VLOOKUP(VLOOKUP($A12,Janvier!$1:$1048576,AS$7+1,FALSE),Données!$A$2:$C$32,2,FALSE))) ->  | AT12: =IF(AT$6="TH",SUMIF(AS$6,"h.",AS12),IF(AT$6="h.",VLOOKUP(VLOOKUP($A12,Janvier!$1:$1048576,AS$7+1,FALSE),Données!$A$2:$C$32,3,FALSE),VLOOKUP(VLOOKUP($A12,Janvier!$1:$1048576,AT$7+1,FALSE),Données!$A$2:$C$32,2,FALSE))) -> 0 | AU12: =IF(AU$6="TH",SUMIF(AT$6,"h.",AT12),IF(AU$6="h.",VLOOKUP(VLOOKUP($A12,Janvier!$1:$1048576,AT$7+1,FALSE),Données!$A$2:$C$32,3,FALSE),VLOOKUP(VLOOKUP($A12,Janvier!$1:$1048576,AU$7+1,FALSE),Données!$A$2:$C$32,2,FALSE))) ->  | AV12: =IF(AV$6="TH",SUMIF(AU$6,"h.",AU12),IF(AV$6="h.",VLOOKUP(VLOOKUP($A12,Janvier!$1:$1048576,AU$7+1,FALSE),Données!$A$2:$C$32,3,FALSE),VLOOKUP(VLOOKUP($A12,Janvier!$1:$1048576,AV$7+1,FALSE),Données!$A$2:$C$32,2,FALSE))) -> 0 | AW12: =IF(AW$6="TH",SUMIF(AV$6,"h.",AV12),IF(AW$6="h.",VLOOKUP(VLOOKUP($A12,Janvier!$1:$1048576,AV$7+1,FALSE),Données!$A$2:$C$32,3,FALSE),VLOOKUP(VLOOKUP($A12,Janvier!$1:$1048576,AW$7+1,FALSE),Données!$A$2:$C$32,2,FALSE))) -> 0 | AX12: =IF(AX$6="TH",SUMIF(AW$6,"h.",AW12),IF(AX$6="h.",VLOOKUP(VLOOKUP($A12,Janvier!$1:$1048576,AW$7+1,FALSE),Données!$A$2:$C$32,3,FALSE),VLOOKUP(VLOOKUP($A12,Janvier!$1:$1048576,AX$7+1,FALSE),Données!$A$2:$C$32,2,FALSE))) -> 10h00 - 19h15 | AY12: =IF(AY$6="TH",SUMIF(AX$6,"h.",AX12),IF(AY$6="h.",VLOOKUP(VLOOKUP($A12,Janvier!$1:$1048576,AX$7+1,FALSE),Données!$A$2:$C$32,3,FALSE),VLOOKUP(VLOOKUP($A12,Janvier!$1:$1048576,AY$7+1,FALSE),Données!$A$2:$C$32,2,FALSE))) -> 0.3854166667 | AZ12: =IF(AZ$6="TH",SUMIF(AY$6,"h.",AY12),IF(AZ$6="h.",VLOOKUP(VLOOKUP($A12,Janvier!$1:$1048576,AY$7+1,FALSE),Données!$A$2:$C$32,3,FALSE),VLOOKUP(VLOOKUP($A12,Janvier!$1:$1048576,AZ$7+1,FALSE),Données!$A$2:$C$32,2,FALSE))) -> 7h00 - 15h30 | BA12: =IF(BA$6="TH",SUMIF(AZ$6,"h.",AZ12),IF(BA$6="h.",VLOOKUP(VLOOKUP($A12,Janvier!$1:$1048576,AZ$7+1,FALSE),Données!$A$2:$C$32,3,FALSE),VLOOKUP(VLOOKUP($A12,Janvier!$1:$1048576,BA$7+1,FALSE),Données!$A$2:$C$32,2,FALSE))) -> 0.3541666667 | BB12: =IF(BB$6="TH",SUMIF(BA$6,"h.",BA12),IF(BB$6="h.",VLOOKUP(VLOOKUP($A12,Janvier!$1:$1048576,BA$7+1,FALSE),Données!$A$2:$C$32,3,FALSE),VLOOKUP(VLOOKUP($A12,Janvier!$1:$1048576,BB$7+1,FALSE),Données!$A$2:$C$32,2,FALSE))) -> 14h00 - 21h30 | BC12: =IF(BC$6="TH",SUMIF(BB$6,"h.",BB12),IF(BC$6="h.",VLOOKUP(VLOOKUP($A12,Janvier!$1:$1048576,BB$7+1,FALSE),Données!$A$2:$C$32,3,FALSE),VLOOKUP(VLOOKUP($A12,Janvier!$1:$1048576,BC$7+1,FALSE),Données!$A$2:$C$32,2,FALSE))) -> 0.3125 | BD12: =IF(BD$6="TH",SUMIF(BC$6,"h.",BC12),IF(BD$6="h.",VLOOKUP(VLOOKUP($A12,Janvier!$1:$1048576,BC$7+1,FALSE),Données!$A$2:$C$32,3,FALSE),VLOOKUP(VLOOKUP($A12,Janvier!$1:$1048576,BD$7+1,FALSE),Données!$A$2:$C$32,2,FALSE))) -> 7h00 - 14h30 | BE12: =IF(BE$6="TH",SUMIF(BD$6,"h.",BD12),IF(BE$6="h.",VLOOKUP(VLOOKUP($A12,Janvier!$1:$1048576,BD$7+1,FALSE),Données!$A$2:$C$32,3,FALSE),VLOOKUP(VLOOKUP($A12,Janvier!$1:$1048576,BE$7+1,FALSE),Données!$A$2:$C$32,2,FALSE))) -> 0.3125 | BF12: =IF(BF$6="TH",SUMIF(BE$6,"h.",BE12),IF(BF$6="h.",VLOOKUP(VLOOKUP($A12,Janvier!$1:$1048576,BE$7+1,FALSE),Données!$A$2:$C$32,3,FALSE),VLOOKUP(VLOOKUP($A12,Janvier!$1:$1048576,BF$7+1,FALSE),Données!$A$2:$C$32,2,FALSE))) -> 7h00 - 14h30 | BG12: =IF(BG$6="TH",SUMIF(BF$6,"h.",BF12),IF(BG$6="h.",VLOOKUP(VLOOKUP($A12,Janvier!$1:$1048576,BF$7+1,FALSE),Données!$A$2:$C$32,3,FALSE),VLOOKUP(VLOOKUP($A12,Janvier!$1:$1048576,BG$7+1,FALSE),Données!$A$2:$C$32,2,FALSE))) -> 0.3125 | BH12: =IF(BH$6="TH",SUMIF(BG$6,"h.",BG12),IF(BH$6="h.",VLOOKUP(VLOOKUP($A12,Janvier!$1:$1048576,BG$7+1,FALSE),Données!$A$2:$C$32,3,FALSE),VLOOKUP(VLOOKUP($A12,Janvier!$1:$1048576,BH$7+1,FALSE),Données!$A$2:$C$32,2,FALSE))) ->  | BI12: =IF(BI$6="TH",SUMIF(BH$6,"h.",BH12),IF(BI$6="h.",VLOOKUP(VLOOKUP($A12,Janvier!$1:$1048576,BH$7+1,FALSE),Données!$A$2:$C$32,3,FALSE),VLOOKUP(VLOOKUP($A12,Janvier!$1:$1048576,BI$7+1,FALSE),Données!$A$2:$C$32,2,FALSE))) -> 0 | BJ12: =IF(BJ$6="TH",SUMIF(BI$6,"h.",BI12),IF(BJ$6="h.",VLOOKUP(VLOOKUP($A12,Janvier!$1:$1048576,BI$7+1,FALSE),Données!$A$2:$C$32,3,FALSE),VLOOKUP(VLOOKUP($A12,Janvier!$1:$1048576,BJ$7+1,FALSE),Données!$A$2:$C$32,2,FALSE))) ->  | BK12: =IF(BK$6="TH",SUMIF(BJ$6,"h.",BJ12),IF(BK$6="h.",VLOOKUP(VLOOKUP($A12,Janvier!$1:$1048576,BJ$7+1,FALSE),Données!$A$2:$C$32,3,FALSE),VLOOKUP(VLOOKUP($A12,Janvier!$1:$1048576,BK$7+1,FALSE),Données!$A$2:$C$32,2,FALSE))) -> 0 | BL12: =IF(BL$6="TH",SUMIF(BK$6,"h.",BK12),IF(BL$6="h.",VLOOKUP(VLOOKUP($A12,Janvier!$1:$1048576,BK$7+1,FALSE),Données!$A$2:$C$32,3,FALSE),VLOOKUP(VLOOKUP($A12,Janvier!$1:$1048576,BL$7+1,FALSE),Données!$A$2:$C$32,2,FALSE))) -> 0 | BM12: =IF(BM$6="TH",SUMIF(BL$6,"h.",BL12),IF(BM$6="h.",VLOOKUP(VLOOKUP($A12,Janvier!$1:$1048576,BL$7+1,FALSE),Données!$A$2:$C$32,3,FALSE),VLOOKUP(VLOOKUP($A12,Janvier!$1:$1048576,BM$7+1,FALSE),Données!$A$2:$C$32,2,FALSE))) -> CA | BN12: =IF(BN$6="TH",SUMIF(BM$6,"h.",BM12),IF(BN$6="h.",VLOOKUP(VLOOKUP($A12,Janvier!$1:$1048576,BM$7+1,FALSE),Données!$A$2:$C$32,3,FALSE),VLOOKUP(VLOOKUP($A12,Janvier!$1:$1048576,BN$7+1,FALSE),Données!$A$2:$C$32,2,FALSE))) -> 0 | BO12: =IF(BO$6="TH",SUMIF(BN$6,"h.",BN12),IF(BO$6="h.",VLOOKUP(VLOOKUP($A12,Janvier!$1:$1048576,BN$7+1,FALSE),Données!$A$2:$C$32,3,FALSE),VLOOKUP(VLOOKUP($A12,Janvier!$1:$1048576,BO$7+1,FALSE),Données!$A$2:$C$32,2,FALSE))) -> 10h00 - 21h30 | BP12: =IF(BP$6="TH",SUMIF(BO$6,"h.",BO12),IF(BP$6="h.",VLOOKUP(VLOOKUP($A12,Janvier!$1:$1048576,BO$7+1,FALSE),Données!$A$2:$C$32,3,FALSE),VLOOKUP(VLOOKUP($A12,Janvier!$1:$1048576,BP$7+1,FALSE),Données!$A$2:$C$32,2,FALSE))) -> 0.4166666667 | BS12: 5.125 | BT12: =SUM(HJanvier:HDecembre!BS12) -> 48.46875
A13: =Données!E9 -> Sébastien LE HIR | B13: =IF(B$6="TH",SUMIF(A$6,"h.",A13),IF(B$6="h.",VLOOKUP(VLOOKUP($A13,Janvier!$1:$1048576,A$7+1,FALSE),Données!$A$2:$C$32,3,FALSE),VLOOKUP(VLOOKUP($A13,Janvier!$1:$1048576,B$7+1,FALSE),Données!$A$2:$C$32,2,FALSE))) -> 7h00 - 19h15 | C13: =IF(C$6="TH",SUMIF(B$6,"h.",B13),IF(C$6="h.",VLOOKUP(VLOOKUP($A13,Janvier!$1:$1048576,B$7+1,FALSE),Données!$A$2:$C$32,3,FALSE),VLOOKUP(VLOOKUP($A13,Janvier!$1:$1048576,C$7+1,FALSE),Données!$A$2:$C$32,2,FALSE))) -> 0.5 | D13: =IF(D$6="TH",SUMIF(C$6,"h.",C13),IF(D$6="h.",VLOOKUP(VLOOKUP($A13,Janvier!$1:$1048576,C$7+1,FALSE),Données!$A$2:$C$32,3,FALSE),VLOOKUP(VLOOKUP($A13,Janvier!$1:$1048576,D$7+1,FALSE),Données!$A$2:$C$32,2,FALSE))) -> 0.5 | E13: =IF(E$6="TH",SUMIF(D$6,"h.",D13),IF(E$6="h.",VLOOKUP(VLOOKUP($A13,Janvier!$1:$1048576,D$7+1,FALSE),Données!$A$2:$C$32,3,FALSE),VLOOKUP(VLOOKUP($A13,Janvier!$1:$1048576,E$7+1,FALSE),Données!$A$2:$C$32,2,FALSE))) ->  | F13: =IF(F$6="TH",SUMIF(E$6,"h.",E13),IF(F$6="h.",VLOOKUP(VLOOKUP($A13,Janvier!$1:$1048576,E$7+1,FALSE),Données!$A$2:$C$32,3,FALSE),VLOOKUP(VLOOKUP($A13,Janvier!$1:$1048576,F$7+1,FALSE),Données!$A$2:$C$32,2,FALSE))) -> 0 | G13: =IF(G$6="TH",SUMIF(F$6,"h.",F13),IF(G$6="h.",VLOOKUP(VLOOKUP($A13,Janvier!$1:$1048576,F$7+1,FALSE),Données!$A$2:$C$32,3,FALSE),VLOOKUP(VLOOKUP($A13,Janvier!$1:$1048576,G$7+1,FALSE),Données!$A$2:$C$32,2,FALSE))) ->  | H13: =IF(H$6="TH",SUMIF(G$6,"h.",G13),IF(H$6="h.",VLOOKUP(VLOOKUP($A13,Janvier!$1:$1048576,G$7+1,FALSE),Données!$A$2:$C$32,3,FALSE),VLOOKUP(VLOOKUP($A13,Janvier!$1:$1048576,H$7+1,FALSE),Données!$A$2:$C$32,2,FALSE))) -> 0 | I13: =IF(I$6="TH",SUMIF(H$6,"h.",H13),IF(I$6="h.",VLOOKUP(VLOOKUP($A13,Janvier!$1:$1048576,H$7+1,FALSE),Données!$A$2:$C$32,3,FALSE),VLOOKUP(VLOOKUP($A13,Janvier!$1:$1048576,I$7+1,FALSE),Données!$A$2:$C$32,2,FALSE))) -> 14h00 - 21h30 | J13: =IF(J$6="TH",SUMIF(I$6,"h.",I13),IF(J$6="h.",VLOOKUP(VLOOKUP($A13,Janvier!$1:$1048576,I$7+1,FALSE),Données!$A$2:$C$32,3,FALSE),VLOOKUP(VLOOKUP($A13,Janvier!$1:$1048576,J$7+1,FALSE),Données!$A$2:$C$32,2,FALSE))) -> 0.3125 | K13: =IF(K$6="TH",SUMIF(J$6,"h.",J13),IF(K$6="h.",VLOOKUP(VLOOKUP($A13,Janvier!$1:$1048576,J$7+1,FALSE),Données!$A$2:$C$32,3,FALSE),VLOOKUP(VLOOKUP($A13,Janvier!$1:$1048576,K$7+1,FALSE),Données!$A$2:$C$32,2,FALSE))) ->  | L13: =IF(L$6="TH",SUMIF(K$6,"h.",K13),IF(L$6="h.",VLOOKUP(VLOOKUP($A13,Janvier!$1:$1048576,K$7+1,FALSE),Données!$A$2:$C$32,3,FALSE),VLOOKUP(VLOOKUP($A13,Janvier!$1:$1048576,L$7+1,FALSE),Données!$A$2:$C$32,2,FALSE))) -> 0 | M13: =IF(M$6="TH",SUMIF(L$6,"h.",L13),IF(M$6="h.",VLOOKUP(VLOOKUP($A13,Janvier!$1:$1048576,L$7+1,FALSE),Données!$A$2:$C$32,3,FALSE),VLOOKUP(VLOOKUP($A13,Janvier!$1:$1048576,M$7+1,FALSE),Données!$A$2:$C$32,2,FALSE))) ->  | N13: =IF(N$6="TH",SUMIF(M$6,"h.",M13),IF(N$6="h.",VLOOKUP(VLOOKUP($A13,Janvier!$1:$1048576,M$7+1,FALSE),Données!$A$2:$C$32,3,FALSE),VLOOKUP(VLOOKUP($A13,Janvier!$1:$1048576,N$7+1,FALSE),Données!$A$2:$C$32,2,FALSE))) -> 0 | O13: =IF(O$6="TH",SUMIF(N$6,"h.",N13),IF(O$6="h.",VLOOKUP(VLOOKUP($A13,Janvier!$1:$1048576,N$7+1,FALSE),Données!$A$2:$C$32,3,FALSE),VLOOKUP(VLOOKUP($A13,Janvier!$1:$1048576,O$7+1,FALSE),Données!$A$2:$C$32,2,FALSE))) -> 10h00 - 21h30 | P13: =IF(P$6="TH",SUMIF(B13:O13,"h.",P13),IF(P$6="h.",VLOOKUP(VLOOKUP($A13,Janvier!$1:$1048576,O$7+1,FALSE),Données!$A$2:$C$32,3,FALSE),VLOOKUP(VLOOKUP($A13,Janvier!$1:$1048576,P$7+1,FALSE),Données!$A$2:$C$32,2,FALSE))) -> 0.4791666667 | Q13: =IF(Q$6="TH",SUMIF(P$6,"h.",P13),IF(Q$6="h.",VLOOKUP(VLOOKUP($A13,Janvier!$1:$1048576,P$7+1,FALSE),Données!$A$2:$C$32,3,FALSE),VLOOKUP(VLOOKUP($A13,Janvier!$1:$1048576,Q$7+1,FALSE),Données!$A$2:$C$32,2,FALSE))) -> 7h00 - 19h15 | R13: =IF(R$6="TH",SUMIF(Q$6,"h.",Q13),IF(R$6="h.",VLOOKUP(VLOOKUP($A13,Janvier!$1:$1048576,Q$7+1,FALSE),Données!$A$2:$C$32,3,FALSE),VLOOKUP(VLOOKUP($A13,Janvier!$1:$1048576,R$7+1,FALSE),Données!$A$2:$C$32,2,FALSE))) -> 0.5 | S13: =IF(S$6="TH",SUMIF(R$6,"h.",R13),IF(S$6="h.",VLOOKUP(VLOOKUP($A13,Janvier!$1:$1048576,R$7+1,FALSE),Données!$A$2:$C$32,3,FALSE),VLOOKUP(VLOOKUP($A13,Janvier!$1:$1048576,S$7+1,FALSE),Données!$A$2:$C$32,2,FALSE))) -> 0.5 | T13: =IF(T$6="TH",SUMIF(S$6,"h.",S13),IF(T$6="h.",VLOOKUP(VLOOKUP($A13,Janvier!$1:$1048576,S$7+1,FALSE),Données!$A$2:$C$32,3,FALSE),VLOOKUP(VLOOKUP($A13,Janvier!$1:$1048576,T$7+1,FALSE),Données!$A$2:$C$32,2,FALSE))) -> 10h00 - 17h30 | U13: =IF(U$6="TH",SUMIF(T$6,"h.",T13),IF(U$6="h.",VLOOKUP(VLOOKUP($A13,Janvier!$1:$1048576,T$7+1,FALSE),Données!$A$2:$C$32,3,FALSE),VLOOKUP(VLOOKUP($A13,Janvier!$1:$1048576,U$7+1,FALSE),Données!$A$2:$C$32,2,FALSE))) -> 0.3125 | V13: =IF(V$6="TH",SUMIF(U$6,"h.",U13),IF(V$6="h.",VLOOKUP(VLOOKUP($A13,Janvier!$1:$1048576,U$7+1,FALSE),Données!$A$2:$C$32,3,FALSE),VLOOKUP(VLOOKUP($A13,Janvier!$1:$1048576,V$7+1,FALSE),Données!$A$2:$C$32,2,FALSE))) ->  | W13: =IF(W$6="TH",SUMIF(V$6,"h.",V13),IF(W$6="h.",VLOOKUP(VLOOKUP($A13,Janvier!$1:$1048576,V$7+1,FALSE),Données!$A$2:$C$32,3,FALSE),VLOOKUP(VLOOKUP($A13,Janvier!$1:$1048576,W$7+1,FALSE),Données!$A$2:$C$32,2,FALSE))) -> 0 | X13: =IF(X$6="TH",SUMIF(W$6,"h.",W13),IF(X$6="h.",VLOOKUP(VLOOKUP($A13,Janvier!$1:$1048576,W$7+1,FALSE),Données!$A$2:$C$32,3,FALSE),VLOOKUP(VLOOKUP($A13,Janvier!$1:$1048576,X$7+1,FALSE),Données!$A$2:$C$32,2,FALSE))) -> 10h00 - 19h15 | Y13: =IF(Y$6="TH",SUMIF(X$6,"h.",X13),IF(Y$6="h.",VLOOKUP(VLOOKUP($A13,Janvier!$1:$1048576,X$7+1,FALSE),Données!$A$2:$C$32,3,FALSE),VLOOKUP(VLOOKUP($A13,Janvier!$1:$1048576,Y$7+1,FALSE),Données!$A$2:$C$32,2,FALSE))) -> 0.3854166667 | Z13: =IF(Z$6="TH",SUMIF(Y$6,"h.",Y13),IF(Z$6="h.",VLOOKUP(VLOOKUP($A13,Janvier!$1:$1048576,Y$7+1,FALSE),Données!$A$2:$C$32,3,FALSE),VLOOKUP(VLOOKUP($A13,Janvier!$1:$1048576,Z$7+1,FALSE),Données!$A$2:$C$32,2,FALSE))) -> 14h00 - 21h30 | AA13: =IF(AA$6="TH",SUMIF(Z$6,"h.",Z13),IF(AA$6="h.",VLOOKUP(VLOOKUP($A13,Janvier!$1:$1048576,Z$7+1,FALSE),Données!$A$2:$C$32,3,FALSE),VLOOKUP(VLOOKUP($A13,Janvier!$1:$1048576,AA$7+1,FALSE),Données!$A$2:$C$32,2,FALSE))) -> 0.3125 | AB13: =IF(AB$6="TH",SUMIF(AA$6,"h.",AA13),IF(AB$6="h.",VLOOKUP(VLOOKUP($A13,Janvier!$1:$1048576,AA$7+1,FALSE),Données!$A$2:$C$32,3,FALSE),VLOOKUP(VLOOKUP($A13,Janvier!$1:$1048576,AB$7+1,FALSE),Données!$A$2:$C$32,2,FALSE))) -> 14h00 - 21h30 | AC13: =IF(AC$6="TH",SUMIF(AB$6,"h.",AB13),IF(AC$6="h.",VLOOKUP(VLOOKUP($A13,Janvier!$1:$1048576,AB$7+1,FALSE),Données!$A$2:$C$32,3,FALSE),VLOOKUP(VLOOKUP($A13,Janvier!$1:$1048576,AC$7+1,FALSE),Données!$A$2:$C$32,2,FALSE))) -> 0.3125 | AD13: =IF(AD$6="TH",SUMIF(AC$6,"h.",AC13),IF(AD$6="h.",VLOOKUP(VLOOKUP($A13,Janvier!$1:$1048576,AC$7+1,FALSE),Données!$A$2:$C$32,3,FALSE),VLOOKUP(VLOOKUP($A13,Janvier!$1:$1048576,AD$7+1,FALSE),Données!$A$2:$C$32,2,FALSE))) ->  | AE13: =IF(AE$6="TH",SUMIF(AD$6,"h.",AD13),IF(AE$6="h.",VLOOKUP(VLOOKUP($A13,Janvier!$1:$1048576,AD$7+1,FALSE),Données!$A$2:$C$32,3,FALSE),VLOOKUP(VLOOKUP($A13,Janvier!$1:$1048576,AE$7+1,FALSE),Données!$A$2:$C$32,2,FALSE))) -> 0 | AF13: =IF(AF$6="TH",SUMIF(AE$6,"h.",AE13),IF(AF$6="h.",VLOOKUP(VLOOKUP($A13,Janvier!$1:$1048576,AE$7+1,FALSE),Données!$A$2:$C$32,3,FALSE),VLOOKUP(VLOOKUP($A13,Janvier!$1:$1048576,AF$7+1,FALSE),Données!$A$2:$C$32,2,FALSE))) ->  | AG13: =IF(AG$6="TH",SUMIF(AF$6,"h.",AF13),IF(AG$6="h.",VLOOKUP(VLOOKUP($A13,Janvier!$1:$1048576,AF$7+1,FALSE),Données!$A$2:$C$32,3,FALSE),VLOOKUP(VLOOKUP($A13,Janvier!$1:$1048576,AG$7+1,FALSE),Données!$A$2:$C$32,2,FALSE))) -> 0 | AH13: =IF(AH$6="TH",SUMIF(AG$6,"h.",AG13),IF(AH$6="h.",VLOOKUP(VLOOKUP($A13,Janvier!$1:$1048576,AG$7+1,FALSE),Données!$A$2:$C$32,3,FALSE),VLOOKUP(VLOOKUP($A13,Janvier!$1:$1048576,AH$7+1,FALSE),Données!$A$2:$C$32,2,FALSE))) -> 0 | AI13: =IF(AI$6="TH",SUMIF(AH$6,"h.",AH13),IF(AI$6="h.",VLOOKUP(VLOOKUP($A13,Janvier!$1:$1048576,AH$7+1,FALSE),Données!$A$2:$C$32,3,FALSE),VLOOKUP(VLOOKUP($A13,Janvier!$1:$1048576,AI$7+1,FALSE),Données!$A$2:$C$32,2,FALSE))) -> 7h00 - 14h30 | AJ13: =IF(AJ$6="TH",SUMIF(AI$6,"h.",AI13),IF(AJ$6="h.",VLOOKUP(VLOOKUP($A13,Janvier!$1:$1048576,AI$7+1,FALSE),Données!$A$2:$C$32,3,FALSE),VLOOKUP(VLOOKUP($A13,Janvier!$1:$1048576,AJ$7+1,FALSE),Données!$A$2:$C$32,2,FALSE))) -> 0.3125 | AK13: =IF(AK$6="TH",SUMIF(AJ$6,"h.",AJ13),IF(AK$6="h.",VLOOKUP(VLOOKUP($A13,Janvier!$1:$1048576,AJ$7+1,FALSE),Données!$A$2:$C$32,3,FALSE),VLOOKUP(VLOOKUP($A13,Janvier!$1:$1048576,AK$7+1,FALSE),Données!$A$2:$C$32,2,FALSE))) ->  | AL13: =IF(AL$6="TH",SUMIF(AK$6,"h.",AK13),IF(AL$6="h.",VLOOKUP(VLOOKUP($A13,Janvier!$1:$1048576,AK$7+1,FALSE),Données!$A$2:$C$32,3,FALSE),VLOOKUP(VLOOKUP($A13,Janvier!$1:$1048576,AL$7+1,FALSE),Données!$A$2:$C$32,2,FALSE))) -> 0 | AM13: =IF(AM$6="TH",SUMIF(AL$6,"h.",AL13),IF(AM$6="h.",VLOOKUP(VLOOKUP($A13,Janvier!$1:$1048576,AL$7+1,FALSE),Données!$A$2:$C$32,3,FALSE),VLOOKUP(VLOOKUP($A13,Janvier!$1:$1048576,AM$7+1,FALSE),Données!$A$2:$C$32,2,FALSE))) -> 7h00 - 14h30 | AN13: =IF(AN$6="TH",SUMIF(AM$6,"h.",AM13),IF(AN$6="h.",VLOOKUP(VLOOKUP($A13,Janvier!$1:$1048576,AM$7+1,FALSE),Données!$A$2:$C$32,3,FALSE),VLOOKUP(VLOOKUP($A13,Janvier!$1:$1048576,AN$7+1,FALSE),Données!$A$2:$C$32,2,FALSE))) -> 0.3125 | AO13: =IF(AO$6="TH",SUMIF(AN$6,"h.",AN13),IF(AO$6="h.",VLOOKUP(VLOOKUP($A13,Janvier!$1:$1048576,AN$7+1,FALSE),Données!$A$2:$C$32,3,FALSE),VLOOKUP(VLOOKUP($A13,Janvier!$1:$1048576,AO$7+1,FALSE),Données!$A$2:$C$32,2,FALSE))) -> 14h00 - 21h30 | AP13: =IF(AP$6="TH",SUMIF(AO$6,"h.",AO13),IF(AP$6="h.",VLOOKUP(VLOOKUP($A13,Janvier!$1:$1048576,AO$7+1,FALSE),Données!$A$2:$C$32,3,FALSE),VLOOKUP(VLOOKUP($A13,Janvier!$1:$1048576,AP$7+1,FALSE),Données!$A$2:$C$32,2,FALSE))) -> 0.3125 | AQ13: =IF(AQ$6="TH",SUMIF(AP$6,"h.",AP13),IF(AQ$6="h.",VLOOKUP(VLOOKUP($A13,Janvier!$1:$1048576,AP$7+1,FALSE),Données!$A$2:$C$32,3,FALSE),VLOOKUP(VLOOKUP($A13,Janvier!$1:$1048576,AQ$7+1,FALSE),Données!$A$2:$C$32,2,FALSE))) -> 14h00 - 21h30 | AR13: =IF(AR$6="TH",SUMIF(AQ$6,"h.",AQ13),IF(AR$6="h.",VLOOKUP(VLOOKUP($A13,Janvier!$1:$1048576,AQ$7+1,FALSE),Données!$A$2:$C$32,3,FALSE),VLOOKUP(VLOOKUP($A13,Janvier!$1:$1048576,AR$7+1,FALSE),Données!$A$2:$C$32,2,FALSE))) -> 0.3125 | AS13: =IF(AS$6="TH",SUMIF(AR$6,"h.",AR13),IF(AS$6="h.",VLOOKUP(VLOOKUP($A13,Janvier!$1:$1048576,AR$7+1,FALSE),Données!$A$2:$C$32,3,FALSE),VLOOKUP(VLOOKUP($A13,Janvier!$1:$1048576,AS$7+1,FALSE),Données!$A$2:$C$32,2,FALSE))) ->  | AT13: =IF(AT$6="TH",SUMIF(AS$6,"h.",AS13),IF(AT$6="h.",VLOOKUP(VLOOKUP($A13,Janvier!$1:$1048576,AS$7+1,FALSE),Données!$A$2:$C$32,3,FALSE),VLOOKUP(VLOOKUP($A13,Janvier!$1:$1048576,AT$7+1,FALSE),Données!$A$2:$C$32,2,FALSE))) -> 0 | AU13: =IF(AU$6="TH",SUMIF(AT$6,"h.",AT13),IF(AU$6="h.",VLOOKUP(VLOOKUP($A13,Janvier!$1:$1048576,AT$7+1,FALSE),Données!$A$2:$C$32,3,FALSE),VLOOKUP(VLOOKUP($A13,Janvier!$1:$1048576,AU$7+1,FALSE),Données!$A$2:$C$32,2,FALSE))) ->  | AV13: =IF(AV$6="TH",SUMIF(AU$6,"h.",AU13),IF(AV$6="h.",VLOOKUP(VLOOKUP($A13,Janvier!$1:$1048576,AU$7+1,FALSE),Données!$A$2:$C$32,3,FALSE),VLOOKUP(VLOOKUP($A13,Janvier!$1:$1048576,AV$7+1,FALSE),Données!$A$2:$C$32,2,FALSE))) -> 0 | AW13: =IF(AW$6="TH",SUMIF(AV$6,"h.",AV13),IF(AW$6="h.",VLOOKUP(VLOOKUP($A13,Janvier!$1:$1048576,AV$7+1,FALSE),Données!$A$2:$C$32,3,FALSE),VLOOKUP(VLOOKUP($A13,Janvier!$1:$1048576,AW$7+1,FALSE),Données!$A$2:$C$32,2,FALSE))) -> 0 | AX13: =IF(AX$6="TH",SUMIF(AW$6,"h.",AW13),IF(AX$6="h.",VLOOKUP(VLOOKUP($A13,Janvier!$1:$1048576,AW$7+1,FALSE),Données!$A$2:$C$32,3,FALSE),VLOOKUP(VLOOKUP($A13,Janvier!$1:$1048576,AX$7+1,FALSE),Données!$A$2:$C$32,2,FALSE))) -> CA16 | AY13: =IF(AY$6="TH",SUMIF(AX$6,"h.",AX13),IF(AY$6="h.",VLOOKUP(VLOOKUP($A13,Janvier!$1:$1048576,AX$7+1,FALSE),Données!$A$2:$C$32,3,FALSE),VLOOKUP(VLOOKUP($A13,Janvier!$1:$1048576,AY$7+1,FALSE),Données!$A$2:$C$32,2,FALSE))) -> 0 | AZ13: =IF(AZ$6="TH",SUMIF(AY$6,"h.",AY13),IF(AZ$6="h.",VLOOKUP(VLOOKUP($A13,Janvier!$1:$1048576,AY$7+1,FALSE),Données!$A$2:$C$32,3,FALSE),VLOOKUP(VLOOKUP($A13,Janvier!$1:$1048576,AZ$7+1,FALSE),Données!$A$2:$C$32,2,FALSE))) -> CA16 | BA13: =IF(BA$6="TH",SUMIF(AZ$6,"h.",AZ13),IF(BA$6="h.",VLOOKUP(VLOOKUP($A13,Janvier!$1:$1048576,AZ$7+1,FALSE),Données!$A$2:$C$32,3,FALSE),VLOOKUP(VLOOKUP($A13,Janvier!$1:$1048576,BA$7+1,FALSE),Données!$A$2:$C$32,2,FALSE))) -> 0 | BB13: =IF(BB$6="TH",SUMIF(BA$6,"h.",BA13),IF(BB$6="h.",VLOOKUP(VLOOKUP($A13,Janvier!$1:$1048576,BA$7+1,FALSE),Données!$A$2:$C$32,3,FALSE),VLOOKUP(VLOOKUP($A13,Janvier!$1:$1048576,BB$7+1,FALSE),Données!$A$2:$C$32,2,FALSE))) -> CA16 | BC13: =IF(BC$6="TH",SUMIF(BB$6,"h.",BB13),IF(BC$6="h.",VLOOKUP(VLOOKUP($A13,Janvier!$1:$1048576,BB$7+1,FALSE),Données!$A$2:$C$32,3,FALSE),VLOOKUP(VLOOKUP($A13,Janvier!$1:$1048576,BC$7+1,FALSE),Données!$A$2:$C$32,2,FALSE))) -> 0 | BD13: =IF(BD$6="TH",SUMIF(BC$6,"h.",BC13),IF(BD$6="h.",VLOOKUP(VLOOKUP($A13,Janvier!$1:$1048576,BC$7+1,FALSE),Données!$A$2:$C$32,3,FALSE),VLOOKUP(VLOOKUP($A13,Janvier!$1:$1048576,BD$7+1,FALSE),Données!$A$2:$C$32,2,FALSE))) -> CA16 | BE13: =IF(BE$6="TH",SUMIF(BD$6,"h.",BD13),IF(BE$6="h.",VLOOKUP(VLOOKUP($A13,Janvier!$1:$1048576,BD$7+1,FALSE),Données!$A$2:$C$32,3,FALSE),VLOOKUP(VLOOKUP($A13,Janvier!$1:$1048576,BE$7+1,FALSE),Données!$A$2:$C$32,2,FALSE))) -> 0 | BF13: =IF(BF$6="TH",SUMIF(BE$6,"h.",BE13),IF(BF$6="h.",VLOOKUP(VLOOKUP($A13,Janvier!$1:$1048576,BE$7+1,FALSE),Données!$A$2:$C$32,3,FALSE),VLOOKUP(VLOOKUP($A13,Janvier!$1:$1048576,BF$7+1,FALSE),Données!$A$2:$C$32,2,FALSE))) -> CA16 | BG13: =IF(BG$6="TH",SUMIF(BF$6,"h.",BF13),IF(BG$6="h.",VLOOKUP(VLOOKUP($A13,Janvier!$1:$1048576,BF$7+1,FALSE),Données!$A$2:$C$32,3,FALSE),VLOOKUP(VLOOKUP($A13,Janvier!$1:$1048576,BG$7+1,FALSE),Données!$A$2:$C$32,2,FALSE))) -> 0 | BH13: =IF(BH$6="TH",SUMIF(BG$6,"h.",BG13),IF(BH$6="h.",VLOOKUP(VLOOKUP($A13,Janvier!$1:$1048576,BG$7+1,FALSE),Données!$A$2:$C$32,3,FALSE),VLOOKUP(VLOOKUP($A13,Janvier!$1:$1048576,BH$7+1,FALSE),Données!$A$2:$C$32,2,FALSE))) ->  | BI13: =IF(BI$6="TH",SUMIF(BH$6,"h.",BH13),IF(BI$6="h.",VLOOKUP(VLOOKUP($A13,Janvier!$1:$1048576,BH$7+1,FALSE),Données!$A$2:$C$32,3,FALSE),VLOOKUP(VLOOKUP($A13,Janvier!$1:$1048576,BI$7+1,FALSE),Données!$A$2:$C$32,2,FALSE))) -> 0 | BJ13: =IF(BJ$6="TH",SUMIF(BI$6,"h.",BI13),IF(BJ$6="h.",VLOOKUP(VLOOKUP($A13,Janvier!$1:$1048576,BI$7+1,FALSE),Données!$A$2:$C$32,3,FALSE),VLOOKUP(VLOOKUP($A13,Janvier!$1:$1048576,BJ$7+1,FALSE),Données!$A$2:$C$32,2,FALSE))) ->  | BK13: =IF(BK$6="TH",SUMIF(BJ$6,"h.",BJ13),IF(BK$6="h.",VLOOKUP(VLOOKUP($A13,Janvier!$1:$1048576,BJ$7+1,FALSE),Données!$A$2:$C$32,3,FALSE),VLOOKUP(VLOOKUP($A13,Janvier!$1:$1048576,BK$7+1,FALSE),Données!$A$2:$C$32,2,FALSE))) -> 0 | BL13: =IF(BL$6="TH",SUMIF(BK$6,"h.",BK13),IF(BL$6="h.",VLOOKUP(VLOOKUP($A13,Janvier!$1:$1048576,BK$7+1,FALSE),Données!$A$2:$C$32,3,FALSE),VLOOKUP(VLOOKUP($A13,Janvier!$1:$1048576,BL$7+1,FALSE),Données!$A$2:$C$32,2,FALSE))) -> 0 | BM13: =IF(BM$6="TH",SUMIF(BL$6,"h.",BL13),IF(BM$6="h.",VLOOKUP(VLOOKUP($A13,Janvier!$1:$1048576,BL$7+1,FALSE),Données!$A$2:$C$32,3,FALSE),VLOOKUP(VLOOKUP($A13,Janvier!$1:$1048576,BM$7+1,FALSE),Données!$A$2:$C$32,2,FALSE))) -> 14h00 - 21h30 | BN13: =IF(BN$6="TH",SUMIF(BM$6,"h.",BM13),IF(BN$6="h.",VLOOKUP(VLOOKUP($A13,Janvier!$1:$1048576,BM$7+1,FALSE),Données!$A$2:$C$32,3,FALSE),VLOOKUP(VLOOKUP($A13,Janvier!$1:$1048576,BN$7+1,FALSE),Données!$A$2:$C$32,2,FALSE))) -> 0.3125 | BO13: =IF(BO$6="TH",SUMIF(BN$6,"h.",BN13),IF(BO$6="h.",VLOOKUP(VLOOKUP($A13,Janvier!$1:$1048576,BN$7+1,FALSE),Données!$A$2:$C$32,3,FALSE),VLOOKUP(VLOOKUP($A13,Janvier!$1:$1048576,BO$7+1,FALSE),Données!$A$2:$C$32,2,FALSE))) -> 7h00 - 14h30 | BP13: =IF(BP$6="TH",SUMIF(BO$6,"h.",BO13),IF(BP$6="h.",VLOOKUP(VLOOKUP($A13,Janvier!$1:$1048576,BO$7+1,FALSE),Données!$A$2:$C$32,3,FALSE),VLOOKUP(VLOOKUP($A13,Janvier!$1:$1048576,BP$7+1,FALSE),Données!$A$2:$C$32,2,FALSE))) -> 0.3125 | BS13: 4.989583333 | BT13: =SUM(HJanvier:HDecembre!BS13) -> 45.32291667
A14: =Données!E10 -> Fatou NDIAYE | B14: =IF(B$6="TH",SUMIF(A$6,"h.",A14),IF(B$6="h.",VLOOKUP(VLOOKUP($A14,Janvier!$1:$1048576,A$7+1,FALSE),Données!$A$2:$C$32,3,FALSE),VLOOKUP(VLOOKUP($A14,Janvier!$1:$1048576,B$7+1,FALSE),Données!$A$2:$C$32,2,FALSE))) -> 7h00 - 19h15 | C14: =IF(C$6="TH",SUMIF(B$6,"h.",B14),IF(C$6="h.",VLOOKUP(VLOOKUP($A14,Janvier!$1:$1048576,B$7+1,FALSE),Données!$A$2:$C$32,3,FALSE),VLOOKUP(VLOOKUP($A14,Janvier!$1:$1048576,C$7+1,FALSE),Données!$A$2:$C$32,2,FALSE))) -> 0.5 | D14: =IF(D$6="TH",SUMIF(C$6,"h.",C14),IF(D$6="h.",VLOOKUP(VLOOKUP($A14,Janvier!$1:$1048576,C$7+1,FALSE),Données!$A$2:$C$32,3,FALSE),VLOOKUP(VLOOKUP($A14,Janvier!$1:$1048576,D$7+1,FALSE),Données!$A$2:$C$32,2,FALSE))) -> 0.5 | E14: =IF(E$6="TH",SUMIF(D$6,"h.",D14),IF(E$6="h.",VLOOKUP(VLOOKUP($A14,Janvier!$1:$1048576,D$7+1,FALSE),Données!$A$2:$C$32,3,FALSE),VLOOKUP(VLOOKUP($A14,Janvier!$1:$1048576,E$7+1,FALSE),Données!$A$2:$C$32,2,FALSE))) -> 7h00 - 14h30 | F14: =IF(F$6="TH",SUMIF(E$6,"h.",E14),IF(F$6="h.",VLOOKUP(VLOOKUP($A14,Janvier!$1:$1048576,E$7+1,FALSE),Données!$A$2:$C$32,3,FALSE),VLOOKUP(VLOOKUP($A14,Janvier!$1:$1048576,F$7+1,FALSE),Données!$A$2:$C$32,2,FALSE))) -> 0.3125 | G14: =IF(G$6="TH",SUMIF(F$6,"h.",F14),IF(G$6="h.",VLOOKUP(VLOOKUP($A14,Janvier!$1:$1048576,F$7+1,FALSE),Données!$A$2:$C$32,3,FALSE),VLOOKUP(VLOOKUP($A14,Janvier!$1:$1048576,G$7+1,FALSE),Données!$A$2:$C$32,2,FALSE))) ->  | H14: =IF(H$6="TH",SUMIF(G$6,"h.",G14),IF(H$6="h.",VLOOKUP(VLOOKUP($A14,Janvier!$1:$1048576,G$7+1,FALSE),Données!$A$2:$C$32,3,FALSE),VLOOKUP(VLOOKUP($A14,Janvier!$1:$1048576,H$7+1,FALSE),Données!$A$2:$C$32,2,FALSE))) -> 0 | I14: =IF(I$6="TH",SUMIF(H$6,"h.",H14),IF(I$6="h.",VLOOKUP(VLOOKUP($A14,Janvier!$1:$1048576,H$7+1,FALSE),Données!$A$2:$C$32,3,FALSE),VLOOKUP(VLOOKUP($A14,Janvier!$1:$1048576,I$7+1,FALSE),Données!$A$2:$C$32,2,FALSE))) ->  | J14: =IF(J$6="TH",SUMIF(I$6,"h.",I14),IF(J$6="h.",VLOOKUP(VLOOKUP($A14,Janvier!$1:$1048576,I$7+1,FALSE),Données!$A$2:$C$32,3,FALSE),VLOOKUP(VLOOKUP($A14,Janvier!$1:$1048576,J$7+1,FALSE),Données!$A$2:$C$32,2,FALSE))) -> 0 | K14: =IF(K$6="TH",SUMIF(J$6,"h.",J14),IF(K$6="h.",VLOOKUP(VLOOKUP($A14,Janvier!$1:$1048576,J$7+1,FALSE),Données!$A$2:$C$32,3,FALSE),VLOOKUP(VLOOKUP($A14,Janvier!$1:$1048576,K$7+1,FALSE),Données!$A$2:$C$32,2,FALSE))) -> 7h00 - 14h30 | L14: =IF(L$6="TH",SUMIF(K$6,"h.",K14),IF(L$6="h.",VLOOKUP(VLOOKUP($A14,Janvier!$1:$1048576,K$7+1,FALSE),Données!$A$2:$C$32,3,FALSE),VLOOKUP(VLOOKUP($A14,Janvier!$1:$1048576,L$7+1,FALSE),Données!$A$2:$C$32,2,FALSE))) -> 0.3125 | M14: =IF(M$6="TH",SUMIF(L$6,"h.",L14),IF(M$6="h.",VLOOKUP(VLOOKUP($A14,Janvier!$1:$1048576,L$7+1,FALSE),Données!$A$2:$C$32,3,FALSE),VLOOKUP(VLOOKUP($A14,Janvier!$1:$1048576,M$7+1,FALSE),Données!$A$2:$C$32,2,FALSE))) -> 7h00 - 14h30 | N14: =IF(N$6="TH",SUMIF(M$6,"h.",M14),IF(N$6="h.",VLOOKUP(VLOOKUP($A14,Janvier!$1:$1048576,M$7+1,FALSE),Données!$A$2:$C$32,3,FALSE),VLOOKUP(VLOOKUP($A14,Janvier!$1:$1048576,N$7+1,FALSE),Données!$A$2:$C$32,2,FALSE))) -> 0.3125 | O14: =IF(O$6="TH",SUMIF(N$6,"h.",N14),IF(O$6="h.",VLOOKUP(VLOOKUP($A14,Janvier!$1:$1048576,N$7+1,FALSE),Données!$A$2:$C$32,3,FALSE),VLOOKUP(VLOOKUP($A14,Janvier!$1:$1048576,O$7+1,FALSE),Données!$A$2:$C$32,2,FALSE))) ->  | P14: =IF(P$6="TH",SUMIF(B14:O14,"h.",P14),IF(P$6="h.",VLOOKUP(VLOOKUP($A14,Janvier!$1:$1048576,O$7+1,FALSE),Données!$A$2:$C$32,3,FALSE),VLOOKUP(VLOOKUP($A14,Janvier!$1:$1048576,P$7+1,FALSE),Données!$A$2:$C$32,2,FALSE))) -> 0 | Q14: =IF(Q$6="TH",SUMIF(P$6,"h.",P14),IF(Q$6="h.",VLOOKUP(VLOOKUP($A14,Janvier!$1:$1048576,P$7+1,FALSE),Données!$A$2:$C$32,3,FALSE),VLOOKUP(VLOOKUP($A14,Janvier!$1:$1048576,Q$7+1,FALSE),Données!$A$2:$C$32,2,FALSE))) ->  | R14: =IF(R$6="TH",SUMIF(Q$6,"h.",Q14),IF(R$6="h.",VLOOKUP(VLOOKUP($A14,Janvier!$1:$1048576,Q$7+1,FALSE),Données!$A$2:$C$32,3,FALSE),VLOOKUP(VLOOKUP($A14,Janvier!$1:$1048576,R$7+1,FALSE),Données!$A$2:$C$32,2,FALSE))) -> 0 | S14: =IF(S$6="TH",SUMIF(R$6,"h.",R14),IF(S$6="h.",VLOOKUP(VLOOKUP($A14,Janvier!$1:$1048576,R$7+1,FALSE),Données!$A$2:$C$32,3,FALSE),VLOOKUP(VLOOKUP($A14,Janvier!$1:$1048576,S$7+1,FALSE),Données!$A$2:$C$32,2,FALSE))) -> 0 | T14: =IF(T$6="TH",SUMIF(S$6,"h.",S14),IF(T$6="h.",VLOOKUP(VLOOKUP($A14,Janvier!$1:$1048576,S$7+1,FALSE),Données!$A$2:$C$32,3,FALSE),VLOOKUP(VLOOKUP($A14,Janvier!$1:$1048576,T$7+1,FALSE),Données!$A$2:$C$32,2,FALSE))) -> CA16 | U14: =IF(U$6="TH",SUMIF(T$6,"h.",T14),IF(U$6="h.",VLOOKUP(VLOOKUP($A14,Janvier!$1:$1048576,T$7+1,FALSE),Données!$A$2:$C$32,3,FALSE),VLOOKUP(VLOOKUP($A14,Janvier!$1:$1048576,U$7+1,FALSE),Données!$A$2:$C$32,2,FALSE))) -> 0 | V14: =IF(V$6="TH",SUMIF(U$6,"h.",U14),IF(V$6="h.",VLOOKUP(VLOOKUP($A14,Janvier!$1:$1048576,U$7+1,FALSE),Données!$A$2:$C$32,3,FALSE),VLOOKUP(VLOOKUP($A14,Janvier!$1:$1048576,V$7+1,FALSE),Données!$A$2:$C$32,2,FALSE))) -> CA16 | W14: =IF(W$6="TH",SUMIF(V$6,"h.",V14),IF(W$6="h.",VLOOKUP(VLOOKUP($A14,Janvier!$1:$1048576,V$7+1,FALSE),Données!$A$2:$C$32,3,FALSE),VLOOKUP(VLOOKUP($A14,Janvier!$1:$1048576,W$7+1,FALSE),Données!$A$2:$C$32,2,FALSE))) -> 0 | X14: =IF(X$6="TH",SUMIF(W$6,"h.",W14),IF(X$6="h.",VLOOKUP(VLOOKUP($A14,Janvier!$1:$1048576,W$7+1,FALSE),Données!$A$2:$C$32,3,FALSE),VLOOKUP(VLOOKUP($A14,Janvier!$1:$1048576,X$7+1,FALSE),Données!$A$2:$C$32,2,FALSE))) -> CA16 | Y14: =IF(Y$6="TH",SUMIF(X$6,"h.",X14),IF(Y$6="h.",VLOOKUP(VLOOKUP($A14,Janvier!$1:$1048576,X$7+1,FALSE),Données!$A$2:$C$32,3,FALSE),VLOOKUP(VLOOKUP($A14,Janvier!$1:$1048576,Y$7+1,FALSE),Données!$A$2:$C$32,2,FALSE))) -> 0 | Z14: =IF(Z$6="TH",SUMIF(Y$6,"h.",Y14),IF(Z$6="h.",VLOOKUP(VLOOKUP($A14,Janvier!$1:$1048576,Y$7+1,FALSE),Données!$A$2:$C$32,3,FALSE),VLOOKUP(VLOOKUP($A14,Janvier!$1:$1048576,Z$7+1,FALSE),Données!$A$2:$C$32,2,FALSE))) -> CA16 | AA14: =IF(AA$6="TH",SUMIF(Z$6,"h.",Z14),IF(AA$6="h.",VLOOKUP(VLOOKUP($A14,Janvier!$1:$1048576,Z$7+1,FALSE),Données!$A$2:$C$32,3,FALSE),VLOOKUP(VLOOKUP($A14,Janvier!$1:$1048576,AA$7+1,FALSE),Données!$A$2:$C$32,2,FALSE))) -> 0 | AB14: =IF(AB$6="TH",SUMIF(AA$6,"h.",AA14),IF(AB$6="h.",VLOOKUP(VLOOKUP($A14,Janvier!$1:$1048576,AA$7+1,FALSE),Données!$A$2:$C$32,3,FALSE),VLOOKUP(VLOOKUP($A14,Janvier!$1:$1048576,AB$7+1,FALSE),Données!$A$2:$C$32,2,FALSE))) -> CA16 | AC14: =IF(AC$6="TH",SUMIF(AB$6,"h.",AB14),IF(AC$6="h.",VLOOKUP(VLOOKUP($A14,Janvier!$1:$1048576,AB$7+1,FALSE),Données!$A$2:$C$32,3,FALSE),VLOOKUP(VLOOKUP($A14,Janvier!$1:$1048576,AC$7+1,FALSE),Données!$A$2:$C$32,2,FALSE))) -> 0 | AD14: =IF(AD$6="TH",SUMIF(AC$6,"h.",AC14),IF(AD$6="h.",VLOOKUP(VLOOKUP($A14,Janvier!$1:$1048576,AC$7+1,FALSE),Données!$A$2:$C$32,3,FALSE),VLOOKUP(VLOOKUP($A14,Janvier!$1:$1048576,AD$7+1,FALSE),Données!$A$2:$C$32,2,FALSE))) ->  | AE14: =IF(AE$6="TH",SUMIF(AD$6,"h.",AD14),IF(AE$6="h.",VLOOKUP(VLOOKUP($A14,Janvier!$1:$1048576,AD$7+1,FALSE),Données!$A$2:$C$32,3,FALSE),VLOOKUP(VLOOKUP($A14,Janvier!$1:$1048576,AE$7+1,FALSE),Données!$A$2:$C$32,2,FALSE))) -> 0 | AF14: =IF(AF$6="TH",SUMIF(AE$6,"h.",AE14),IF(AF$6="h.",VLOOKUP(VLOOKUP($A14,Janvier!$1:$1048576,AE$7+1,FALSE),Données!$A$2:$C$32,3,FALSE),VLOOKUP(VLOOKUP($A14,Janvier!$1:$1048576,AF$7+1,FALSE),Données!$A$2:$C$32,2,FALSE))) ->  | AG14: =IF(AG$6="TH",SUMIF(AF$6,"h.",AF14),IF(AG$6="h.",VLOOKUP(VLOOKUP($A14,Janvier!$1:$1048576,AF$7+1,FALSE),Données!$A$2:$C$32,3,FALSE),VLOOKUP(VLOOKUP($A14,Janvier!$1:$1048576,AG$7+1,FALSE),Données!$A$2:$C$32,2,FALSE))) -> 0 | AH14: =IF(AH$6="TH",SUMIF(AG$6,"h.",AG14),IF(AH$6="h.",VLOOKUP(VLOOKUP($A14,Janvier!$1:$1048576,AG$7+1,FALSE),Données!$A$2:$C$32,3,FALSE),VLOOKUP(VLOOKUP($A14,Janvier!$1:$1048576,AH$7+1,FALSE),Données!$A$2:$C$32,2,FALSE))) -> 0 | AI14: =IF(AI$6="TH",SUMIF(AH$6,"h.",AH14),IF(AI$6="h.",VLOOKUP(VLOOKUP($A14,Janvier!$1:$1048576,AH$7+1,FALSE),Données!$A$2:$C$32,3,FALSE),VLOOKUP(VLOOKUP($A14,Janvier!$1:$1048576,AI$7+1,FALSE),Données!$A$2:$C$32,2,FALSE))) -> CA16 | AJ14: =IF(AJ$6="TH",SUMIF(AI$6,"h.",AI14),IF(AJ$6="h.",VLOOKUP(VLOOKUP($A14,Janvier!$1:$1048576,AI$7+1,FALSE),Données!$A$2:$C$32,3,FALSE),VLOOKUP(VLOOKUP($A14,Janvier!$1:$1048576,AJ$7+1,FALSE),Données!$A$2:$C$32,2,FALSE))) -> 0 | AK14: =IF(AK$6="TH",SUMIF(AJ$6,"h.",AJ14),IF(AK$6="h.",VLOOKUP(VLOOKUP($A14,Janvier!$1:$1048576,AJ$7+1,FALSE),Données!$A$2:$C$32,3,FALSE),VLOOKUP(VLOOKUP($A14,Janvier!$1:$1048576,AK$7+1,FALSE),Données!$A$2:$C$32,2,FALSE))) -> CA16 | AL14: =IF(AL$6="TH",SUMIF(AK$6,"h.",AK14),IF(AL$6="h.",VLOOKUP(VLOOKUP($A14,Janvier!$1:$1048576,AK$7+1,FALSE),Données!$A$2:$C$32,3,FALSE),VLOOKUP(VLOOKUP($A14,Janvier!$1:$1048576,AL$7+1,FALSE),Données!$A$2:$C$32,2,FALSE))) -> 0 | AM14: =IF(AM$6="TH",SUMIF(AL$6,"h.",AL14),IF(AM$6="h.",VLOOKUP(VLOOKUP($A14,Janvier!$1:$1048576,AL$7+1,FALSE),Données!$A$2:$C$32,3,FALSE),VLOOKUP(VLOOKUP($A14,Janvier!$1:$1048576,AM$7+1,FALSE),Données!$A$2:$C$32,2,FALSE))) -> CA16 | AN14: =IF(AN$6="TH",SUMIF(AM$6,"h.",AM14),IF(AN$6="h.",VLOOKUP(VLOOKUP($A14,Janvier!$1:$1048576,AM$7+1,FALSE),Données!$A$2:$C$32,3,FALSE),VLOOKUP(VLOOKUP($A14,Janvier!$1:$1048576,AN$7+1,FALSE),Données!$A$2:$C$32,2,FALSE))) -> 0 | AO14: =IF(AO$6="TH",SUMIF(AN$6,"h.",AN14),IF(AO$6="h.",VLOOKUP(VLOOKUP($A14,Janvier!$1:$1048576,AN$7+1,FALSE),Données!$A$2:$C$32,3,FALSE),VLOOKUP(VLOOKUP($A14,Janvier!$1:$1048576,AO$7+1,FALSE),Données!$A$2:$C$32,2,FALSE))) -> 7h00 - 14h30 | AP14: =IF(AP$6="TH",SUMIF(AO$6,"h.",AO14),IF(AP$6="h.",VLOOKUP(VLOOKUP($A14,Janvier!$1:$1048576,AO$7+1,FALSE),Données!$A$2:$C$32,3,FALSE),VLOOKUP(VLOOKUP($A14,Janvier!$1:$1048576,AP$7+1,FALSE),Données!$A$2:$C$32,2,FALSE))) -> 0.3125 | AQ14: =IF(AQ$6="TH",SUMIF(AP$6,"h.",AP14),IF(AQ$6="h.",VLOOKUP(VLOOKUP($A14,Janvier!$1:$1048576,AP$7+1,FALSE),Données!$A$2:$C$32,3,FALSE),VLOOKUP(VLOOKUP($A14,Janvier!$1:$1048576,AQ$7+1,FALSE),Données!$A$2:$C$32,2,FALSE))) ->  | AR14: =IF(AR$6="TH",SUMIF(AQ$6,"h.",AQ14),IF(AR$6="h.",VLOOKUP(VLOOKUP($A14,Janvier!$1:$1048576,AQ$7+1,FALSE),Données!$A$2:$C$32,3,FALSE),VLOOKUP(VLOOKUP($A14,Janvier!$1:$1048576,AR$7+1,FALSE),Données!$A$2:$C$32,2,FALSE))) -> 0 | AS14: =IF(AS$6="TH",SUMIF(AR$6,"h.",AR14),IF(AS$6="h.",VLOOKUP(VLOOKUP($A14,Janvier!$1:$1048576,AR$7+1,FALSE),Données!$A$2:$C$32,3,FALSE),VLOOKUP(VLOOKUP($A14,Janvier!$1:$1048576,AS$7+1,FALSE),Données!$A$2:$C$32,2,FALSE))) ->  | AT14: =IF(AT$6="TH",SUMIF(AS$6,"h.",AS14),IF(AT$6="h.",VLOOKUP(VLOOKUP($A14,Janvier!$1:$1048576,AS$7+1,FALSE),Données!$A$2:$C$32,3,FALSE),VLOOKUP(VLOOKUP($A14,Janvier!$1:$1048576,AT$7+1,FALSE),Données!$A$2:$C$32,2,FALSE))) -> 0 | AU14: =IF(AU$6="TH",SUMIF(AT$6,"h.",AT14),IF(AU$6="h.",VLOOKUP(VLOOKUP($A14,Janvier!$1:$1048576,AT$7+1,FALSE),Données!$A$2:$C$32,3,FALSE),VLOOKUP(VLOOKUP($A14,Janvier!$1:$1048576,AU$7+1,FALSE),Données!$A$2:$C$32,2,FALSE))) ->  | AV14: =IF(AV$6="TH",SUMIF(AU$6,"h.",AU14),IF(AV$6="h.",VLOOKUP(VLOOKUP($A14,Janvier!$1:$1048576,AU$7+1,FALSE),Données!$A$2:$C$32,3,FALSE),VLOOKUP(VLOOKUP($A14,Janvier!$1:$1048576,AV$7+1,FALSE),Données!$A$2:$C$32,2,FALSE))) -> 0 | AW14: =IF(AW$6="TH",SUMIF(AV$6,"h.",AV14),IF(AW$6="h.",VLOOKUP(VLOOKUP($A14,Janvier!$1:$1048576,AV$7+1,FALSE),Données!$A$2:$C$32,3,FALSE),VLOOKUP(VLOOKUP($A14,Janvier!$1:$1048576,AW$7+1,FALSE),Données!$A$2:$C$32,2,FALSE))) -> 0 | AX14: =IF(AX$6="TH",SUMIF(AW$6,"h.",AW14),IF(AX$6="h.",VLOOKUP(VLOOKUP($A14,Janvier!$1:$1048576,AW$7+1,FALSE),Données!$A$2:$C$32,3,FALSE),VLOOKUP(VLOOKUP($A14,Janvier!$1:$1048576,AX$7+1,FALSE),Données!$A$2:$C$32,2,FALSE))) -> 7h00 - 14h30 | AY14: =IF(AY$6="TH",SUMIF(AX$6,"h.",AX14),IF(AY$6="h.",VLOOKUP(VLOOKUP($A14,Janvier!$1:$1048576,AX$7+1,FALSE),Données!$A$2:$C$32,3,FALSE),VLOOKUP(VLOOKUP($A14,Janvier!$1:$1048576,AY$7+1,FALSE),Données!$A$2:$C$32,2,FALSE))) -> 0.3125 | AZ14: =IF(AZ$6="TH",SUMIF(AY$6,"h.",AY14),IF(AZ$6="h.",VLOOKUP(VLOOKUP($A14,Janvier!$1:$1048576,AY$7+1,FALSE),Données!$A$2:$C$32,3,FALSE),VLOOKUP(VLOOKUP($A14,Janvier!$1:$1048576,AZ$7+1,FALSE),Données!$A$2:$C$32,2,FALSE))) -> 10h00 - 21h30 | BA14: =IF(BA$6="TH",SUMIF(AZ$6,"h.",AZ14),IF(BA$6="h.",VLOOKUP(VLOOKUP($A14,Janvier!$1:$1048576,AZ$7+1,FALSE),Données!$A$2:$C$32,3,FALSE),VLOOKUP(VLOOKUP($A14,Janvier!$1:$1048576,BA$7+1,FALSE),Données!$A$2:$C$32,2,FALSE))) -> 0.4166666667 | BB14: =IF(BB$6="TH",SUMIF(BA$6,"h.",BA14),IF(BB$6="h.",VLOOKUP(VLOOKUP($A14,Janvier!$1:$1048576,BA$7+1,FALSE),Données!$A$2:$C$32,3,FALSE),VLOOKUP(VLOOKUP($A14,Janvier!$1:$1048576,BB$7+1,FALSE),Données!$A$2:$C$32,2,FALSE))) -> 7h00 - 14h30 | BC14: =IF(BC$6="TH",SUMIF(BB$6,"h.",BB14),IF(BC$6="h.",VLOOKUP(VLOOKUP($A14,Janvier!$1:$1048576,BB$7+1,FALSE),Données!$A$2:$C$32,3,FALSE),VLOOKUP(VLOOKUP($A14,Janvier!$1:$1048576,BC$7+1,FALSE),Données!$A$2:$C$32,2,FALSE))) -> 0.3125 | BD14: =IF(BD$6="TH",SUMIF(BC$6,"h.",BC14),IF(BD$6="h.",VLOOKUP(VLOOKUP($A14,Janvier!$1:$1048576,BC$7+1,FALSE),Données!$A$2:$C$32,3,FALSE),VLOOKUP(VLOOKUP($A14,Janvier!$1:$1048576,BD$7+1,FALSE),Données!$A$2:$C$32,2,FALSE))) ->  | BE14: =IF(BE$6="TH",SUMIF(BD$6,"h.",BD14),IF(BE$6="h.",VLOOKUP(VLOOKUP($A14,Janvier!$1:$1048576,BD$7+1,FALSE),Données!$A$2:$C$32,3,FALSE),VLOOKUP(VLOOKUP($A14,Janvier!$1:$1048576,BE$7+1,FALSE),Données!$A$2:$C$32,2,FALSE))) -> 0 | BF14: =IF(BF$6="TH",SUMIF(BE$6,"h.",BE14),IF(BF$6="h.",VLOOKUP(VLOOKUP($A14,Janvier!$1:$1048576,BE$7+1,FALSE),Données!$A$2:$C$32,3,FALSE),VLOOKUP(VLOOKUP($A14,Janvier!$1:$1048576,BF$7+1,FALSE),Données!$A$2:$C$32,2,FALSE))) ->  | BG14: =IF(BG$6="TH",SUMIF(BF$6,"h.",BF14),IF(BG$6="h.",VLOOKUP(VLOOKUP($A14,Janvier!$1:$1048576,BF$7+1,FALSE),Données!$A$2:$C$32,3,FALSE),VLOOKUP(VLOOKUP($A14,Janvier!$1:$1048576,BG$7+1,FALSE),Données!$A$2:$C$32,2,FALSE))) -> 0 | BH14: =IF(BH$6="TH",SUMIF(BG$6,"h.",BG14),IF(BH$6="h.",VLOOKUP(VLOOKUP($A14,Janvier!$1:$1048576,BG$7+1,FALSE),Données!$A$2:$C$32,3,FALSE),VLOOKUP(VLOOKUP($A14,Janvier!$1:$1048576,BH$7+1,FALSE),Données!$A$2:$C$32,2,FALSE))) -> 7h00 - 19h15 | BI14: =IF(BI$6="TH",SUMIF(BH$6,"h.",BH14),IF(BI$6="h.",VLOOKUP(VLOOKUP($A14,Janvier!$1:$1048576,BH$7+1,FALSE),Données!$A$2:$C$32,3,FALSE),VLOOKUP(VLOOKUP($A14,Janvier!$1:$1048576,BI$7+1,FALSE),Données!$A$2:$C$32,2,FALSE))) -> 0.5104166667 | BJ14: =IF(BJ$6="TH",SUMIF(BI$6,"h.",BI14),IF(BJ$6="h.",VLOOKUP(VLOOKUP($A14,Janvier!$1:$1048576,BI$7+1,FALSE),Données!$A$2:$C$32,3,FALSE),VLOOKUP(VLOOKUP($A14,Janvier!$1:$1048576,BJ$7+1,FALSE),Données!$A$2:$C$32,2,FALSE))) -> 7h00 - 19h15 | BK14: =IF(BK$6="TH",SUMIF(BJ$6,"h.",BJ14),IF(BK$6="h.",VLOOKUP(VLOOKUP($A14,Janvier!$1:$1048576,BJ$7+1,FALSE),Données!$A$2:$C$32,3,FALSE),VLOOKUP(VLOOKUP($A14,Janvier!$1:$1048576,BK$7+1,FALSE),Données!$A$2:$C$32,2,FALSE))) -> 0.5 | BL14: =IF(BL$6="TH",SUMIF(BK$6,"h.",BK14),IF(BL$6="h.",VLOOKUP(VLOOKUP($A14,Janvier!$1:$1048576,BK$7+1,FALSE),Données!$A$2:$C$32,3,FALSE),VLOOKUP(VLOOKUP($A14,Janvier!$1:$1048576,BL$7+1,FALSE),Données!$A$2:$C$32,2,FALSE))) -> 0.5 | BM14: =IF(BM$6="TH",SUMIF(BL$6,"h.",BL14),IF(BM$6="h.",VLOOKUP(VLOOKUP($A14,Janvier!$1:$1048576,BL$7+1,FALSE),Données!$A$2:$C$32,3,FALSE),VLOOKUP(VLOOKUP($A14,Janvier!$1:$1048576,BM$7+1,FALSE),Données!$A$2:$C$32,2,FALSE))) ->  | BN14: =IF(BN$6="TH",SUMIF(BM$6,"h.",BM14),IF(BN$6="h.",VLOOKUP(VLOOKUP($A14,Janvier!$1:$1048576,BM$7+1,FALSE),Données!$A$2:$C$32,3,FALSE),VLOOKUP(VLOOKUP($A14,Janvier!$1:$1048576,BN$7+1,FALSE),Données!$A$2:$C$32,2,FALSE))) -> 0 | BO14: =IF(BO$6="TH",SUMIF(BN$6,"h.",BN14),IF(BO$6="h.",VLOOKUP(VLOOKUP($A14,Janvier!$1:$1048576,BN$7+1,FALSE),Données!$A$2:$C$32,3,FALSE),VLOOKUP(VLOOKUP($A14,Janvier!$1:$1048576,BO$7+1,FALSE),Données!$A$2:$C$32,2,FALSE))) -> CA16 | BP14: =IF(BP$6="TH",SUMIF(BO$6,"h.",BO14),IF(BP$6="h.",VLOOKUP(VLOOKUP($A14,Janvier!$1:$1048576,BO$7+1,FALSE),Données!$A$2:$C$32,3,FALSE),VLOOKUP(VLOOKUP($A14,Janvier!$1:$1048576,BP$7+1,FALSE),Données!$A$2:$C$32,2,FALSE))) -> 0 | BS14: 3.802083333 | BT14: =SUM(HJanvier:HDecembre!BS14) -> 45.71875
A15: =Données!E11 -> Vincent BUISSON | B15: =IF(B$6="TH",SUMIF(A$6,"h.",A15),IF(B$6="h.",VLOOKUP(VLOOKUP($A15,Janvier!$1:$1048576,A$7+1,FALSE),Données!$A$2:$C$32,3,FALSE),VLOOKUP(VLOOKUP($A15,Janvier!$1:$1048576,B$7+1,FALSE),Données!$A$2:$C$32,2,FALSE))) ->  | C15: =IF(C$6="TH",SUMIF(B$6,"h.",B15),IF(C$6="h.",VLOOKUP(VLOOKUP($A15,Janvier!$1:$1048576,B$7+1,FALSE),Données!$A$2:$C$32,3,FALSE),VLOOKUP(VLOOKUP($A15,Janvier!$1:$1048576,C$7+1,FALSE),Données!$A$2:$C$32,2,FALSE))) -> 0 | D15: =IF(D$6="TH",SUMIF(C$6,"h.",C15),IF(D$6="h.",VLOOKUP(VLOOKUP($A15,Janvier!$1:$1048576,C$7+1,FALSE),Données!$A$2:$C$32,3,FALSE),VLOOKUP(VLOOKUP($A15,Janvier!$1:$1048576,D$7+1,FALSE),Données!$A$2:$C$32,2,FALSE))) -> 0 | E15: =IF(E$6="TH",SUMIF(D$6,"h.",D15),IF(E$6="h.",VLOOKUP(VLOOKUP($A15,Janvier!$1:$1048576,D$7+1,FALSE),Données!$A$2:$C$32,3,FALSE),VLOOKUP(VLOOKUP($A15,Janvier!$1:$1048576,E$7+1,FALSE),Données!$A$2:$C$32,2,FALSE))) -> REC | F15: =IF(F$6="TH",SUMIF(E$6,"h.",E15),IF(F$6="h.",VLOOKUP(VLOOKUP($A15,Janvier!$1:$1048576,E$7+1,FALSE),Données!$A$2:$C$32,3,FALSE),VLOOKUP(VLOOKUP($A15,Janvier!$1:$1048576,F$7+1,FALSE),Données!$A$2:$C$32,2,FALSE))) -> 0 | G15: =IF(G$6="TH",SUMIF(F$6,"h.",F15),IF(G$6="h.",VLOOKUP(VLOOKUP($A15,Janvier!$1:$1048576,F$7+1,FALSE),Données!$A$2:$C$32,3,FALSE),VLOOKUP(VLOOKUP($A15,Janvier!$1:$1048576,G$7+1,FALSE),Données!$A$2:$C$32,2,FALSE))) -> REC | H15: =IF(H$6="TH",SUMIF(G$6,"h.",G15),IF(H$6="h.",VLOOKUP(VLOOKUP($A15,Janvier!$1:$1048576,G$7+1,FALSE),Données!$A$2:$C$32,3,FALSE),VLOOKUP(VLOOKUP($A15,Janvier!$1:$1048576,H$7+1,FALSE),Données!$A$2:$C$32,2,FALSE))) -> 0 | I15: =IF(I$6="TH",SUMIF(H$6,"h.",H15),IF(I$6="h.",VLOOKUP(VLOOKUP($A15,Janvier!$1:$1048576,H$7+1,FALSE),Données!$A$2:$C$32,3,FALSE),VLOOKUP(VLOOKUP($A15,Janvier!$1:$1048576,I$7+1,FALSE),Données!$A$2:$C$32,2,FALSE))) -> REC | J15: =IF(J$6="TH",SUMIF(I$6,"h.",I15),IF(J$6="h.",VLOOKUP(VLOOKUP($A15,Janvier!$1:$1048576,I$7+1,FALSE),Données!$A$2:$C$32,3,FALSE),VLOOKUP(VLOOKUP($A15,Janvier!$1:$1048576,J$7+1,FALSE),Données!$A$2:$C$32,2,FALSE))) -> 0 | K15: =IF(K$6="TH",SUMIF(J$6,"h.",J15),IF(K$6="h.",VLOOKUP(VLOOKUP($A15,Janvier!$1:$1048576,J$7+1,FALSE),Données!$A$2:$C$32,3,FALSE),VLOOKUP(VLOOKUP($A15,Janvier!$1:$1048576,K$7+1,FALSE),Données!$A$2:$C$32,2,FALSE))) -> REC | L15: =IF(L$6="TH",SUMIF(K$6,"h.",K15),IF(L$6="h.",VLOOKUP(VLOOKUP($A15,Janvier!$1:$1048576,K$7+1,FALSE),Données!$A$2:$C$32,3,FALSE),VLOOKUP(VLOOKUP($A15,Janvier!$1:$1048576,L$7+1,FALSE),Données!$A$2:$C$32,2,FALSE))) -> 0 | M15: =IF(M$6="TH",SUMIF(L$6,"h.",L15),IF(M$6="h.",VLOOKUP(VLOOKUP($A15,Janvier!$1:$1048576,L$7+1,FALSE),Données!$A$2:$C$32,3,FALSE),VLOOKUP(VLOOKUP($A15,Janvier!$1:$1048576,M$7+1,FALSE),Données!$A$2:$C$32,2,FALSE))) -> REC | N15: =IF(N$6="TH",SUMIF(M$6,"h.",M15),IF(N$6="h.",VLOOKUP(VLOOKUP($A15,Janvier!$1:$1048576,M$7+1,FALSE),Données!$A$2:$C$32,3,FALSE),VLOOKUP(VLOOKUP($A15,Janvier!$1:$1048576,N$7+1,FALSE),Données!$A$2:$C$32,2,FALSE))) -> 0 | O15: =IF(O$6="TH",SUMIF(N$6,"h.",N15),IF(O$6="h.",VLOOKUP(VLOOKUP($A15,Janvier!$1:$1048576,N$7+1,FALSE),Données!$A$2:$C$32,3,FALSE),VLOOKUP(VLOOKUP($A15,Janvier!$1:$1048576,O$7+1,FALSE),Données!$A$2:$C$32,2,FALSE))) ->  | P15: =IF(P$6="TH",SUMIF(B15:O15,"h.",P15),IF(P$6="h.",VLOOKUP(VLOOKUP($A15,Janvier!$1:$1048576,O$7+1,FALSE),Données!$A$2:$C$32,3,FALSE),VLOOKUP(VLOOKUP($A15,Janvier!$1:$1048576,P$7+1,FALSE),Données!$A$2:$C$32,2,FALSE))) -> 0 | Q15: =IF(Q$6="TH",SUMIF(P$6,"h.",P15),IF(Q$6="h.",VLOOKUP(VLOOKUP($A15,Janvier!$1:$1048576,P$7+1,FALSE),Données!$A$2:$C$32,3,FALSE),VLOOKUP(VLOOKUP($A15,Janvier!$1:$1048576,Q$7+1,FALSE),Données!$A$2:$C$32,2,FALSE))) ->  | R15: =IF(R$6="TH",SUMIF(Q$6,"h.",Q15),IF(R$6="h.",VLOOKUP(VLOOKUP($A15,Janvier!$1:$1048576,Q$7+1,FALSE),Données!$A$2:$C$32,3,FALSE),VLOOKUP(VLOOKUP($A15,Janvier!$1:$1048576,R$7+1,FALSE),Données!$A$2:$C$32,2,FALSE))) -> 0 | S15: =IF(S$6="TH",SUMIF(R$6,"h.",R15),IF(S$6="h.",VLOOKUP(VLOOKUP($A15,Janvier!$1:$1048576,R$7+1,FALSE),Données!$A$2:$C$32,3,FALSE),VLOOKUP(VLOOKUP($A15,Janvier!$1:$1048576,S$7+1,FALSE),Données!$A$2:$C$32,2,FALSE))) -> 0 | T15: =IF(T$6="TH",SUMIF(S$6,"h.",S15),IF(T$6="h.",VLOOKUP(VLOOKUP($A15,Janvier!$1:$1048576,S$7+1,FALSE),Données!$A$2:$C$32,3,FALSE),VLOOKUP(VLOOKUP($A15,Janvier!$1:$1048576,T$7+1,FALSE),Données!$A$2:$C$32,2,FALSE))) -> REC | U15: =IF(U$6="TH",SUMIF(T$6,"h.",T15),IF(U$6="h.",VLOOKUP(VLOOKUP($A15,Janvier!$1:$1048576,T$7+1,FALSE),Données!$A$2:$C$32,3,FALSE),VLOOKUP(VLOOKUP($A15,Janvier!$1:$1048576,U$7+1,FALSE),Données!$A$2:$C$32,2,FALSE))) -> 0 | V15: =IF(V$6="TH",SUMIF(U$6,"h.",U15),IF(V$6="h.",VLOOKUP(VLOOKUP($A15,Janvier!$1:$1048576,U$7+1,FALSE),Données!$A$2:$C$32,3,FALSE),VLOOKUP(VLOOKUP($A15,Janvier!$1:$1048576,V$7+1,FALSE),Données!$A$2:$C$32,2,FALSE))) -> REC | W15: =IF(W$6="TH",SUMIF(V$6,"h.",V15),IF(W$6="h.",VLOOKUP(VLOOKUP($A15,Janvier!$1:$1048576,V$7+1,FALSE),Données!$A$2:$C$32,3,FALSE),VLOOKUP(VLOOKUP($A15,Janvier!$1:$1048576,W$7+1,FALSE),Données!$A$2:$C$32,2,FALSE))) -> 0 | X15: =IF(X$6="TH",SUMIF(W$6,"h.",W15),IF(X$6="h.",VLOOKUP(VLOOKUP($A15,Janvier!$1:$1048576,W$7+1,FALSE),Données!$A$2:$C$32,3,FALSE),VLOOKUP(VLOOKUP($A15,Janvier!$1:$1048576,X$7+1,FALSE),Données!$A$2:$C$32,2,FALSE))) -> REC | Y15: =IF(Y$6="TH",SUMIF(X$6,"h.",X15),IF(Y$6="h.",VLOOKUP(VLOOKUP($A15,Janvier!$1:$1048576,X$7+1,FALSE),Données!$A$2:$C$32,3,FALSE),VLOOKUP(VLOOKUP($A15,Janvier!$1:$1048576,Y$7+1,FALSE),Données!$A$2:$C$32,2,FALSE))) -> 0 | Z15: =IF(Z$6="TH",SUMIF(Y$6,"h.",Y15),IF(Z$6="h.",VLOOKUP(VLOOKUP($A15,Janvier!$1:$1048576,Y$7+1,FALSE),Données!$A$2:$C$32,3,FALSE),VLOOKUP(VLOOKUP($A15,Janvier!$1:$1048576,Z$7+1,FALSE),Données!$A$2:$C$32,2,FALSE))) -> REC | AA15: =IF(AA$6="TH",SUMIF(Z$6,"h.",Z15),IF(AA$6="h.",VLOOKUP(VLOOKUP($A15,Janvier!$1:$1048576,Z$7+1,FALSE),Données!$A$2:$C$32,3,FALSE),VLOOKUP(VLOOKUP($A15,Janvier!$1:$1048576,AA$7+1,FALSE),Données!$A$2:$C$32,2,FALSE))) -> 0 | AB15: =IF(AB$6="TH",SUMIF(AA$6,"h.",AA15),IF(AB$6="h.",VLOOKUP(VLOOKUP($A15,Janvier!$1:$1048576,AA$7+1,FALSE),Données!$A$2:$C$32,3,FALSE),VLOOKUP(VLOOKUP($A15,Janvier!$1:$1048576,AB$7+1,FALSE),Données!$A$2:$C$32,2,FALSE))) -> REC | AC15: =IF(AC$6="TH",SUMIF(AB$6,"h.",AB15),IF(AC$6="h.",VLOOKUP(VLOOKUP($A15,Janvier!$1:$1048576,AB$7+1,FALSE),Données!$A$2:$C$32,3,FALSE),VLOOKUP(VLOOKUP($A15,Janvier!$1:$1048576,AC$7+1,FALSE),Données!$A$2:$C$32,2,FALSE))) -> 0 | AD15: =IF(AD$6="TH",SUMIF(AC$6,"h.",AC15),IF(AD$6="h.",VLOOKUP(VLOOKUP($A15,Janvier!$1:$1048576,AC$7+1,FALSE),Données!$A$2:$C$32,3,FALSE),VLOOKUP(VLOOKUP($A15,Janvier!$1:$1048576,AD$7+1,FALSE),Données!$A$2:$C$32,2,FALSE))) ->  | AE15: =IF(AE$6="TH",SUMIF(AD$6,"h.",AD15),IF(AE$6="h.",VLOOKUP(VLOOKUP($A15,Janvier!$1:$1048576,AD$7+1,FALSE),Données!$A$2:$C$32,3,FALSE),VLOOKUP(VLOOKUP($A15,Janvier!$1:$1048576,AE$7+1,FALSE),Données!$A$2:$C$32,2,FALSE))) -> 0 | AF15: =IF(AF$6="TH",SUMIF(AE$6,"h.",AE15),IF(AF$6="h.",VLOOKUP(VLOOKUP($A15,Janvier!$1:$1048576,AE$7+1,FALSE),Données!$A$2:$C$32,3,FALSE),VLOOKUP(VLOOKUP($A15,Janvier!$1:$1048576,AF$7+1,FALSE),Données!$A$2:$C$32,2,FALSE))) ->  | AG15: =IF(AG$6="TH",SUMIF(AF$6,"h.",AF15),IF(AG$6="h.",VLOOKUP(VLOOKUP($A15,Janvier!$1:$1048576,AF$7+1,FALSE),Données!$A$2:$C$32,3,FALSE),VLOOKUP(VLOOKUP($A15,Janvier!$1:$1048576,AG$7+1,FALSE),Données!$A$2:$C$32,2,FALSE))) -> 0 | AH15: =IF(AH$6="TH",SUMIF(AG$6,"h.",AG15),IF(AH$6="h.",VLOOKUP(VLOOKUP($A15,Janvier!$1:$1048576,AG$7+1,FALSE),Données!$A$2:$C$32,3,FALSE),VLOOKUP(VLOOKUP($A15,Janvier!$1:$1048576,AH$7+1,FALSE),Données!$A$2:$C$32,2,FALSE))) -> 0 | AI15: =IF(AI$6="TH",SUMIF(AH$6,"h.",AH15),IF(AI$6="h.",VLOOKUP(VLOOKUP($A15,Janvier!$1:$1048576,AH$7+1,FALSE),Données!$A$2:$C$32,3,FALSE),VLOOKUP(VLOOKUP($A15,Janvier!$1:$1048576,AI$7+1,FALSE),Données!$A$2:$C$32,2,FALSE))) -> 14h00 - 21h30 | AJ15: =IF(AJ$6="TH",SUMIF(AI$6,"h.",AI15),IF(AJ$6="h.",VLOOKUP(VLOOKUP($A15,Janvier!$1:$1048576,AI$7+1,FALSE),Données!$A$2:$C$32,3,FALSE),VLOOKUP(VLOOKUP($A15,Janvier!$1:$1048576,AJ$7+1,FALSE),Données!$A$2:$C$32,2,FALSE))) -> 0.3125 | AK15: =IF(AK$6="TH",SUMIF(AJ$6,"h.",AJ15),IF(AK$6="h.",VLOOKUP(VLOOKUP($A15,Janvier!$1:$1048576,AJ$7+1,FALSE),Données!$A$2:$C$32,3,FALSE),VLOOKUP(VLOOKUP($A15,Janvier!$1:$1048576,AK$7+1,FALSE),Données!$A$2:$C$32,2,FALSE))) -> 10h00 - 21h30 | AL15: =IF(AL$6="TH",SUMIF(AK$6,"h.",AK15),IF(AL$6="h.",VLOOKUP(VLOOKUP($A15,Janvier!$1:$1048576,AK$7+1,FALSE),Données!$A$2:$C$32,3,FALSE),VLOOKUP(VLOOKUP($A15,Janvier!$1:$1048576,AL$7+1,FALSE),Données!$A$2:$C$32,2,FALSE))) -> 0.4166666667 | AM15: =IF(AM$6="TH",SUMIF(AL$6,"h.",AL15),IF(AM$6="h.",VLOOKUP(VLOOKUP($A15,Janvier!$1:$1048576,AL$7+1,FALSE),Données!$A$2:$C$32,3,FALSE),VLOOKUP(VLOOKUP($A15,Janvier!$1:$1048576,AM$7+1,FALSE),Données!$A$2:$C$32,2,FALSE))) -> 14h00 - 21h30 | AN15: =IF(AN$6="TH",SUMIF(AM$6,"h.",AM15),IF(AN$6="h.",VLOOKUP(VLOOKUP($A15,Janvier!$1:$1048576,AM$7+1,FALSE),Données!$A$2:$C$32,3,FALSE),VLOOKUP(VLOOKUP($A15,Janvier!$1:$1048576,AN$7+1,FALSE),Données!$A$2:$C$32,2,FALSE))) -> 0.3125 | AO15: =IF(AO$6="TH",SUMIF(AN$6,"h.",AN15),IF(AO$6="h.",VLOOKUP(VLOOKUP($A15,Janvier!$1:$1048576,AN$7+1,FALSE),Données!$A$2:$C$32,3,FALSE),VLOOKUP(VLOOKUP($A15,Janvier!$1:$1048576,AO$7+1,FALSE),Données!$A$2:$C$32,2,FALSE))) ->  | AP15: =IF(AP$6="TH",SUMIF(AO$6,"h.",AO15),IF(AP$6="h.",VLOOKUP(VLOOKUP($A15,Janvier!$1:$1048576,AO$7+1,FALSE),Données!$A$2:$C$32,3,FALSE),VLOOKUP(VLOOKUP($A15,Janvier!$1:$1048576,AP$7+1,FALSE),Données!$A$2:$C$32,2,FALSE))) -> 0 | AQ15: =IF(AQ$6="TH",SUMIF(AP$6,"h.",AP15),IF(AQ$6="h.",VLOOKUP(VLOOKUP($A15,Janvier!$1:$1048576,AP$7+1,FALSE),Données!$A$2:$C$32,3,FALSE),VLOOKUP(VLOOKUP($A15,Janvier!$1:$1048576,AQ$7+1,FALSE),Données!$A$2:$C$32,2,FALSE))) -> 14h00 - 21h30 | AR15: =IF(AR$6="TH",SUMIF(AQ$6,"h.",AQ15),IF(AR$6="h.",VLOOKUP(VLOOKUP($A15,Janvier!$1:$1048576,AQ$7+1,FALSE),Données!$A$2:$C$32,3,FALSE),VLOOKUP(VLOOKUP($A15,Janvier!$1:$1048576,AR$7+1,FALSE),Données!$A$2:$C$32,2,FALSE))) -> 0.3125 | AS15: =IF(AS$6="TH",SUMIF(AR$6,"h.",AR15),IF(AS$6="h.",VLOOKUP(VLOOKUP($A15,Janvier!$1:$1048576,AR$7+1,FALSE),Données!$A$2:$C$32,3,FALSE),VLOOKUP(VLOOKUP($A15,Janvier!$1:$1048576,AS$7+1,FALSE),Données!$A$2:$C$32,2,FALSE))) -> 7h00 - 19h15 | AT15: =IF(AT$6="TH",SUMIF(AS$6,"h.",AS15),IF(AT$6="h.",VLOOKUP(VLOOKUP($A15,Janvier!$1:$1048576,AS$7+1,FALSE),Données!$A$2:$C$32,3,FALSE),VLOOKUP(VLOOKUP($A15,Janvier!$1:$1048576,AT$7+1,FALSE),Données!$A$2:$C$32,2,FALSE))) -> 0.5104166667 | AU15: =IF(AU$6="TH",SUMIF(AT$6,"h.",AT15),IF(AU$6="h.",VLOOKUP(VLOOKUP($A15,Janvier!$1:$1048576,AT$7+1,FALSE),Données!$A$2:$C$32,3,FALSE),VLOOKUP(VLOOKUP($A15,Janvier!$1:$1048576,AU$7+1,FALSE),Données!$A$2:$C$32,2,FALSE))) -> 7h00 - 19h15 | AV15: =IF(AV$6="TH",SUMIF(AU$6,"h.",AU15),IF(AV$6="h.",VLOOKUP(VLOOKUP($A15,Janvier!$1:$1048576,AU$7+1,FALSE),Données!$A$2:$C$32,3,FALSE),VLOOKUP(VLOOKUP($A15,Janvier!$1:$1048576,AV$7+1,FALSE),Données!$A$2:$C$32,2,FALSE))) -> 0.5 | AW15: =IF(AW$6="TH",SUMIF(AV$6,"h.",AV15),IF(AW$6="h.",VLOOKUP(VLOOKUP($A15,Janvier!$1:$1048576,AV$7+1,FALSE),Données!$A$2:$C$32,3,FALSE),VLOOKUP(VLOOKUP($A15,Janvier!$1:$1048576,AW$7+1,FALSE),Données!$A$2:$C$32,2,FALSE))) -> 0.5 | AX15: =IF(AX$6="TH",SUMIF(AW$6,"h.",AW15),IF(AX$6="h.",VLOOKUP(VLOOKUP($A15,Janvier!$1:$1048576,AW$7+1,FALSE),Données!$A$2:$C$32,3,FALSE),VLOOKUP(VLOOKUP($A15,Janvier!$1:$1048576,AX$7+1,FALSE),Données!$A$2:$C$32,2,FALSE))) ->  | AY15: =IF(AY$6="TH",SUMIF(AX$6,"h.",AX15),IF(AY$6="h.",VLOOKUP(VLOOKUP($A15,Janvier!$1:$1048576,AX$7+1,FALSE),Données!$A$2:$C$32,3,FALSE),VLOOKUP(VLOOKUP($A15,Janvier!$1:$1048576,AY$7+1,FALSE),Données!$A$2:$C$32,2,FALSE))) -> 0 | AZ15: =IF(AZ$6="TH",SUMIF(AY$6,"h.",AY15),IF(AZ$6="h.",VLOOKUP(VLOOKUP($A15,Janvier!$1:$1048576,AY$7+1,FALSE),Données!$A$2:$C$32,3,FALSE),VLOOKUP(VLOOKUP($A15,Janvier!$1:$1048576,AZ$7+1,FALSE),Données!$A$2:$C$32,2,FALSE))) ->  | BA15: =IF(BA$6="TH",SUMIF(AZ$6,"h.",AZ15),IF(BA$6="h.",VLOOKUP(VLOOKUP($A15,Janvier!$1:$1048576,AZ$7+1,FALSE),Données!$A$2:$C$32,3,FALSE),VLOOKUP(VLOOKUP($A15,Janvier!$1:$1048576,BA$7+1,FALSE),Données!$A$2:$C$32,2,FALSE))) -> 0 | BB15: =IF(BB$6="TH",SUMIF(BA$6,"h.",BA15),IF(BB$6="h.",VLOOKUP(VLOOKUP($A15,Janvier!$1:$1048576,BA$7+1,FALSE),Données!$A$2:$C$32,3,FALSE),VLOOKUP(VLOOKUP($A15,Janvier!$1:$1048576,BB$7+1,FALSE),Données!$A$2:$C$32,2,FALSE))) -> 14h00 - 21h30 | BC15: =IF(BC$6="TH",SUMIF(BB$6,"h.",BB15),IF(BC$6="h.",VLOOKUP(VLOOKUP($A15,Janvier!$1:$1048576,BB$7+1,FALSE),Données!$A$2:$C$32,3,FALSE),VLOOKUP(VLOOKUP($A15,Janvier!$1:$1048576,BC$7+1,FALSE),Données!$A$2:$C$32,2,FALSE))) -> 0.3125 | BD15: =IF(BD$6="TH",SUMIF(BC$6,"h.",BC15),IF(BD$6="h.",VLOOKUP(VLOOKUP($A15,Janvier!$1:$1048576,BC$7+1,FALSE),Données!$A$2:$C$32,3,FALSE),VLOOKUP(VLOOKUP($A15,Janvier!$1:$1048576,BD$7+1,FALSE),Données!$A$2:$C$32,2,FALSE))) -> 7h00 - 14h30 | BE15: =IF(BE$6="TH",SUMIF(BD$6,"h.",BD15),IF(BE$6="h.",VLOOKUP(VLOOKUP($A15,Janvier!$1:$1048576,BD$7+1,FALSE),Données!$A$2:$C$32,3,FALSE),VLOOKUP(VLOOKUP($A15,Janvier!$1:$1048576,BE$7+1,FALSE),Données!$A$2:$C$32,2,FALSE))) -> 0.3125 | BF15: =IF(BF$6="TH",SUMIF(BE$6,"h.",BE15),IF(BF$6="h.",VLOOKUP(VLOOKUP($A15,Janvier!$1:$1048576,BE$7+1,FALSE),Données!$A$2:$C$32,3,FALSE),VLOOKUP(VLOOKUP($A15,Janvier!$1:$1048576,BF$7+1,FALSE),Données!$A$2:$C$32,2,FALSE))) -> 7h00 - 14h30 | BG15: =IF(BG$6="TH",SUMIF(BF$6,"h.",BF15),IF(BG$6="h.",VLOOKUP(VLOOKUP($A15,Janvier!$1:$1048576,BF$7+1,FALSE),Données!$A$2:$C$32,3,FALSE),VLOOKUP(VLOOKUP($A15,Janvier!$1:$1048576,BG$7+1,FALSE),Données!$A$2:$C$32,2,FALSE))) -> 0.3125 | BH15: =IF(BH$6="TH",SUMIF(BG$6,"h.",BG15),IF(BH$6="h.",VLOOKUP(VLOOKUP($A15,Janvier!$1:$1048576,BG$7+1,FALSE),Données!$A$2:$C$32,3,FALSE),VLOOKUP(VLOOKUP($A15,Janvier!$1:$1048576,BH$7+1,FALSE),Données!$A$2:$C$32,2,FALSE))) ->  | BI15: =IF(BI$6="TH",SUMIF(BH$6,"h.",BH15),IF(BI$6="h.",VLOOKUP(VLOOKUP($A15,Janvier!$1:$1048576,BH$7+1,FALSE),Données!$A$2:$C$32,3,FALSE),VLOOKUP(VLOOKUP($A15,Janvier!$1:$1048576,BI$7+1,FALSE),Données!$A$2:$C$32,2,FALSE))) -> 0 | BJ15: =IF(BJ$6="TH",SUMIF(BI$6,"h.",BI15),IF(BJ$6="h.",VLOOKUP(VLOOKUP($A15,Janvier!$1:$1048576,BI$7+1,FALSE),Données!$A$2:$C$32,3,FALSE),VLOOKUP(VLOOKUP($A15,Janvier!$1:$1048576,BJ$7+1,FALSE),Données!$A$2:$C$32,2,FALSE))) ->  | BK15: =IF(BK$6="TH",SUMIF(BJ$6,"h.",BJ15),IF(BK$6="h.",VLOOKUP(VLOOKUP($A15,Janvier!$1:$1048576,BJ$7+1,FALSE),Données!$A$2:$C$32,3,FALSE),VLOOKUP(VLOOKUP($A15,Janvier!$1:$1048576,BK$7+1,FALSE),Données!$A$2:$C$32,2,FALSE))) -> 0 | BL15: =IF(BL$6="TH",SUMIF(BK$6,"h.",BK15),IF(BL$6="h.",VLOOKUP(VLOOKUP($A15,Janvier!$1:$1048576,BK$7+1,FALSE),Données!$A$2:$C$32,3,FALSE),VLOOKUP(VLOOKUP($A15,Janvier!$1:$1048576,BL$7+1,FALSE),Données!$A$2:$C$32,2,FALSE))) -> 0 | BM15: =IF(BM$6="TH",SUMIF(BL$6,"h.",BL15),IF(BM$6="h.",VLOOKUP(VLOOKUP($A15,Janvier!$1:$1048576,BL$7+1,FALSE),Données!$A$2:$C$32,3,FALSE),VLOOKUP(VLOOKUP($A15,Janvier!$1:$1048576,BM$7+1,FALSE),Données!$A$2:$C$32,2,FALSE))) -> 14h00 - 21h30 | BN15: =IF(BN$6="TH",SUMIF(BM$6,"h.",BM15),IF(BN$6="h.",VLOOKUP(VLOOKUP($A15,Janvier!$1:$1048576,BM$7+1,FALSE),Données!$A$2:$C$32,3,FALSE),VLOOKUP(VLOOKUP($A15,Janvier!$1:$1048576,BN$7+1,FALSE),Données!$A$2:$C$32,2,FALSE))) -> 0.3125 | BO15: =IF(BO$6="TH",SUMIF(BN$6,"h.",BN15),IF(BO$6="h.",VLOOKUP(VLOOKUP($A15,Janvier!$1:$1048576,BN$7+1,FALSE),Données!$A$2:$C$32,3,FALSE),VLOOKUP(VLOOKUP($A15,Janvier!$1:$1048576,BO$7+1,FALSE),Données!$A$2:$C$32,2,FALSE))) -> 10h00 - 21h30 | BP15: =IF(BP$6="TH",SUMIF(BO$6,"h.",BO15),IF(BP$6="h.",VLOOKUP(VLOOKUP($A15,Janvier!$1:$1048576,BO$7+1,FALSE),Données!$A$2:$C$32,3,FALSE),VLOOKUP(VLOOKUP($A15,Janvier!$1:$1048576,BP$7+1,FALSE),Données!$A$2:$C$32,2,FALSE))) -> 0.4166666667 | BS15: 4.03125 | BT15: =SUM(HJanvier:HDecembre!BS15) -> 51.58333333
A16: =Données!E12 -> Eunice VARELA TAVARES | B16: =IF(B$6="TH",SUMIF(A$6,"h.",A16),IF(B$6="h.",VLOOKUP(VLOOKUP($A16,Janvier!$1:$1048576,A$7+1,FALSE),Données!$A$2:$C$32,3,FALSE),VLOOKUP(VLOOKUP($A16,Janvier!$1:$1048576,B$7+1,FALSE),Données!$A$2:$C$32,2,FALSE))) ->  | C16: =IF(C$6="TH",SUMIF(B$6,"h.",B16),IF(C$6="h.",VLOOKUP(VLOOKUP($A16,Janvier!$1:$1048576,B$7+1,FALSE),Données!$A$2:$C$32,3,FALSE),VLOOKUP(VLOOKUP($A16,Janvier!$1:$1048576,C$7+1,FALSE),Données!$A$2:$C$32,2,FALSE))) -> 0 | D16: =IF(D$6="TH",SUMIF(C$6,"h.",C16),IF(D$6="h.",VLOOKUP(VLOOKUP($A16,Janvier!$1:$1048576,C$7+1,FALSE),Données!$A$2:$C$32,3,FALSE),VLOOKUP(VLOOKUP($A16,Janvier!$1:$1048576,D$7+1,FALSE),Données!$A$2:$C$32,2,FALSE))) -> 0 | E16: =IF(E$6="TH",SUMIF(D$6,"h.",D16),IF(E$6="h.",VLOOKUP(VLOOKUP($A16,Janvier!$1:$1048576,D$7+1,FALSE),Données!$A$2:$C$32,3,FALSE),VLOOKUP(VLOOKUP($A16,Janvier!$1:$1048576,E$7+1,FALSE),Données!$A$2:$C$32,2,FALSE))) -> 14h00 - 21h30 | F16: =IF(F$6="TH",SUMIF(E$6,"h.",E16),IF(F$6="h.",VLOOKUP(VLOOKUP($A16,Janvier!$1:$1048576,E$7+1,FALSE),Données!$A$2:$C$32,3,FALSE),VLOOKUP(VLOOKUP($A16,Janvier!$1:$1048576,F$7+1,FALSE),Données!$A$2:$C$32,2,FALSE))) -> 0.3125 | G16: =IF(G$6="TH",SUMIF(F$6,"h.",F16),IF(G$6="h.",VLOOKUP(VLOOKUP($A16,Janvier!$1:$1048576,F$7+1,FALSE),Données!$A$2:$C$32,3,FALSE),VLOOKUP(VLOOKUP($A16,Janvier!$1:$1048576,G$7+1,FALSE),Données!$A$2:$C$32,2,FALSE))) -> 10h00 - 21h30 | H16: =IF(H$6="TH",SUMIF(G$6,"h.",G16),IF(H$6="h.",VLOOKUP(VLOOKUP($A16,Janvier!$1:$1048576,G$7+1,FALSE),Données!$A$2:$C$32,3,FALSE),VLOOKUP(VLOOKUP($A16,Janvier!$1:$1048576,H$7+1,FALSE),Données!$A$2:$C$32,2,FALSE))) -> 0.4166666667 | I16: =IF(I$6="TH",SUMIF(H$6,"h.",H16),IF(I$6="h.",VLOOKUP(VLOOKUP($A16,Janvier!$1:$1048576,H$7+1,FALSE),Données!$A$2:$C$32,3,FALSE),VLOOKUP(VLOOKUP($A16,Janvier!$1:$1048576,I$7+1,FALSE),Données!$A$2:$C$32,2,FALSE))) -> 14h00 - 21h30 | J16: =IF(J$6="TH",SUMIF(I$6,"h.",I16),IF(J$6="h.",VLOOKUP(VLOOKUP($A16,Janvier!$1:$1048576,I$7+1,FALSE),Données!$A$2:$C$32,3,FALSE),VLOOKUP(VLOOKUP($A16,Janvier!$1:$1048576,J$7+1,FALSE),Données!$A$2:$C$32,2,FALSE))) -> 0.3125 | K16: =IF(K$6="TH",SUMIF(J$6,"h.",J16),IF(K$6="h.",VLOOKUP(VLOOKUP($A16,Janvier!$1:$1048576,J$7+1,FALSE),Données!$A$2:$C$32,3,FALSE),VLOOKUP(VLOOKUP($A16,Janvier!$1:$1048576,K$7+1,FALSE),Données!$A$2:$C$32,2,FALSE))) -> F | L16: =IF(L$6="TH",SUMIF(K$6,"h.",K16),IF(L$6="h.",VLOOKUP(VLOOKUP($A16,Janvier!$1:$1048576,K$7+1,FALSE),Données!$A$2:$C$32,3,FALSE),VLOOKUP(VLOOKUP($A16,Janvier!$1:$1048576,L$7+1,FALSE),Données!$A$2:$C$32,2,FALSE))) -> 0.3125 | M16: =IF(M$6="TH",SUMIF(L$6,"h.",L16),IF(M$6="h.",VLOOKUP(VLOOKUP($A16,Janvier!$1:$1048576,L$7+1,FALSE),Données!$A$2:$C$32,3,FALSE),VLOOKUP(VLOOKUP($A16,Janvier!$1:$1048576,M$7+1,FALSE),Données!$A$2:$C$32,2,FALSE))) -> F | N16: =IF(N$6="TH",SUMIF(M$6,"h.",M16),IF(N$6="h.",VLOOKUP(VLOOKUP($A16,Janvier!$1:$1048576,M$7+1,FALSE),Données!$A$2:$C$32,3,FALSE),VLOOKUP(VLOOKUP($A16,Janvier!$1:$1048576,N$7+1,FALSE),Données!$A$2:$C$32,2,FALSE))) -> 0.3125 | O16: =IF(O$6="TH",SUMIF(N$6,"h.",N16),IF(O$6="h.",VLOOKUP(VLOOKUP($A16,Janvier!$1:$1048576,N$7+1,FALSE),Données!$A$2:$C$32,3,FALSE),VLOOKUP(VLOOKUP($A16,Janvier!$1:$1048576,O$7+1,FALSE),Données!$A$2:$C$32,2,FALSE))) ->  | P16: =IF(P$6="TH",SUMIF(B16:O16,"h.",P16),IF(P$6="h.",VLOOKUP(VLOOKUP($A16,Janvier!$1:$1048576,O$7+1,FALSE),Données!$A$2:$C$32,3,FALSE),VLOOKUP(VLOOKUP($A16,Janvier!$1:$1048576,P$7+1,FALSE),Données!$A$2:$C$32,2,FALSE))) -> 0 | Q16: =IF(Q$6="TH",SUMIF(P$6,"h.",P16),IF(Q$6="h.",VLOOKUP(VLOOKUP($A16,Janvier!$1:$1048576,P$7+1,FALSE),Données!$A$2:$C$32,3,FALSE),VLOOKUP(VLOOKUP($A16,Janvier!$1:$1048576,Q$7+1,FALSE),Données!$A$2:$C$32,2,FALSE))) ->  | R16: =IF(R$6="TH",SUMIF(Q$6,"h.",Q16),IF(R$6="h.",VLOOKUP(VLOOKUP($A16,Janvier!$1:$1048576,Q$7+1,FALSE),Données!$A$2:$C$32,3,FALSE),VLOOKUP(VLOOKUP($A16,Janvier!$1:$1048576,R$7+1,FALSE),Données!$A$2:$C$32,2,FALSE))) -> 0 | S16: =IF(S$6="TH",SUMIF(R$6,"h.",R16),IF(S$6="h.",VLOOKUP(VLOOKUP($A16,Janvier!$1:$1048576,R$7+1,FALSE),Données!$A$2:$C$32,3,FALSE),VLOOKUP(VLOOKUP($A16,Janvier!$1:$1048576,S$7+1,FALSE),Données!$A$2:$C$32,2,FALSE))) -> 0 | T16: =IF(T$6="TH",SUMIF(S$6,"h.",S16),IF(T$6="h.",VLOOKUP(VLOOKUP($A16,Janvier!$1:$1048576,S$7+1,FALSE),Données!$A$2:$C$32,3,FALSE),VLOOKUP(VLOOKUP($A16,Janvier!$1:$1048576,T$7+1,FALSE),Données!$A$2:$C$32,2,FALSE))) -> 14h00 - 21h30 | U16: =IF(U$6="TH",SUMIF(T$6,"h.",T16),IF(U$6="h.",VLOOKUP(VLOOKUP($A16,Janvier!$1:$1048576,T$7+1,FALSE),Données!$A$2:$C$32,3,FALSE),VLOOKUP(VLOOKUP($A16,Janvier!$1:$1048576,U$7+1,FALSE),Données!$A$2:$C$32,2,FALSE))) -> 0.3125 | V16: =IF(V$6="TH",SUMIF(U$6,"h.",U16),IF(V$6="h.",VLOOKUP(VLOOKUP($A16,Janvier!$1:$1048576,U$7+1,FALSE),Données!$A$2:$C$32,3,FALSE),VLOOKUP(VLOOKUP($A16,Janvier!$1:$1048576,V$7+1,FALSE),Données!$A$2:$C$32,2,FALSE))) -> 10h00 - 21h30 | W16: =IF(W$6="TH",SUMIF(V$6,"h.",V16),IF(W$6="h.",VLOOKUP(VLOOKUP($A16,Janvier!$1:$1048576,V$7+1,FALSE),Données!$A$2:$C$32,3,FALSE),VLOOKUP(VLOOKUP($A16,Janvier!$1:$1048576,W$7+1,FALSE),Données!$A$2:$C$32,2,FALSE))) -> 0.4166666667 | X16: =IF(X$6="TH",SUMIF(W$6,"h.",W16),IF(X$6="h.",VLOOKUP(VLOOKUP($A16,Janvier!$1:$1048576,W$7+1,FALSE),Données!$A$2:$C$32,3,FALSE),VLOOKUP(VLOOKUP($A16,Janvier!$1:$1048576,X$7+1,FALSE),Données!$A$2:$C$32,2,FALSE))) -> 14h00 - 21h30 | Y16: =IF(Y$6="TH",SUMIF(X$6,"h.",X16),IF(Y$6="h.",VLOOKUP(VLOOKUP($A16,Janvier!$1:$1048576,X$7+1,FALSE),Données!$A$2:$C$32,3,FALSE),VLOOKUP(VLOOKUP($A16,Janvier!$1:$1048576,Y$7+1,FALSE),Données!$A$2:$C$32,2,FALSE))) -> 0.3125 | Z16: =IF(Z$6="TH",SUMIF(Y$6,"h.",Y16),IF(Z$6="h.",VLOOKUP(VLOOKUP($A16,Janvier!$1:$1048576,Y$7+1,FALSE),Données!$A$2:$C$32,3,FALSE),VLOOKUP(VLOOKUP($A16,Janvier!$1:$1048576,Z$7+1,FALSE),Données!$A$2:$C$32,2,FALSE))) -> F | AA16: =IF(AA$6="TH",SUMIF(Z$6,"h.",Z16),IF(AA$6="h.",VLOOKUP(VLOOKUP($A16,Janvier!$1:$1048576,Z$7+1,FALSE),Données!$A$2:$C$32,3,FALSE),VLOOKUP(VLOOKUP($A16,Janvier!$1:$1048576,AA$7+1,FALSE),Données!$A$2:$C$32,2,FALSE))) -> 0.3125 | AB16: =IF(AB$6="TH",SUMIF(AA$6,"h.",AA16),IF(AB$6="h.",VLOOKUP(VLOOKUP($A16,Janvier!$1:$1048576,AA$7+1,FALSE),Données!$A$2:$C$32,3,FALSE),VLOOKUP(VLOOKUP($A16,Janvier!$1:$1048576,AB$7+1,FALSE),Données!$A$2:$C$32,2,FALSE))) -> F | AC16: =IF(AC$6="TH",SUMIF(AB$6,"h.",AB16),IF(AC$6="h.",VLOOKUP(VLOOKUP($A16,Janvier!$1:$1048576,AB$7+1,FALSE),Données!$A$2:$C$32,3,FALSE),VLOOKUP(VLOOKUP($A16,Janvier!$1:$1048576,AC$7+1,FALSE),Données!$A$2:$C$32,2,FALSE))) -> 0.3125 | AD16: =IF(AD$6="TH",SUMIF(AC$6,"h.",AC16),IF(AD$6="h.",VLOOKUP(VLOOKUP($A16,Janvier!$1:$1048576,AC$7+1,FALSE),Données!$A$2:$C$32,3,FALSE),VLOOKUP(VLOOKUP($A16,Janvier!$1:$1048576,AD$7+1,FALSE),Données!$A$2:$C$32,2,FALSE))) ->  | AE16: =IF(AE$6="TH",SUMIF(AD$6,"h.",AD16),IF(AE$6="h.",VLOOKUP(VLOOKUP($A16,Janvier!$1:$1048576,AD$7+1,FALSE),Données!$A$2:$C$32,3,FALSE),VLOOKUP(VLOOKUP($A16,Janvier!$1:$1048576,AE$7+1,FALSE),Données!$A$2:$C$32,2,FALSE))) -> 0 | AF16: =IF(AF$6="TH",SUMIF(AE$6,"h.",AE16),IF(AF$6="h.",VLOOKUP(VLOOKUP($A16,Janvier!$1:$1048576,AE$7+1,FALSE),Données!$A$2:$C$32,3,FALSE),VLOOKUP(VLOOKUP($A16,Janvier!$1:$1048576,AF$7+1,FALSE),Données!$A$2:$C$32,2,FALSE))) ->  | AG16: =IF(AG$6="TH",SUMIF(AF$6,"h.",AF16),IF(AG$6="h.",VLOOKUP(VLOOKUP($A16,Janvier!$1:$1048576,AF$7+1,FALSE),Données!$A$2:$C$32,3,FALSE),VLOOKUP(VLOOKUP($A16,Janvier!$1:$1048576,AG$7+1,FALSE),Données!$A$2:$C$32,2,FALSE))) -> 0 | AH16: =IF(AH$6="TH",SUMIF(AG$6,"h.",AG16),IF(AH$6="h.",VLOOKUP(VLOOKUP($A16,Janvier!$1:$1048576,AG$7+1,FALSE),Données!$A$2:$C$32,3,FALSE),VLOOKUP(VLOOKUP($A16,Janvier!$1:$1048576,AH$7+1,FALSE),Données!$A$2:$C$32,2,FALSE))) -> 0 | AI16: =IF(AI$6="TH",SUMIF(AH$6,"h.",AH16),IF(AI$6="h.",VLOOKUP(VLOOKUP($A16,Janvier!$1:$1048576,AH$7+1,FALSE),Données!$A$2:$C$32,3,FALSE),VLOOKUP(VLOOKUP($A16,Janvier!$1:$1048576,AI$7+1,FALSE),Données!$A$2:$C$32,2,FALSE))) ->  | AJ16: =IF(AJ$6="TH",SUMIF(AI$6,"h.",AI16),IF(AJ$6="h.",VLOOKUP(VLOOKUP($A16,Janvier!$1:$1048576,AI$7+1,FALSE),Données!$A$2:$C$32,3,FALSE),VLOOKUP(VLOOKUP($A16,Janvier!$1:$1048576,AJ$7+1,FALSE),Données!$A$2:$C$32,2,FALSE))) -> 0 | AK16: =IF(AK$6="TH",SUMIF(AJ$6,"h.",AJ16),IF(AK$6="h.",VLOOKUP(VLOOKUP($A16,Janvier!$1:$1048576,AJ$7+1,FALSE),Données!$A$2:$C$32,3,FALSE),VLOOKUP(VLOOKUP($A16,Janvier!$1:$1048576,AK$7+1,FALSE),Données!$A$2:$C$32,2,FALSE))) -> 10h00 - 17h30 | AL16: =IF(AL$6="TH",SUMIF(AK$6,"h.",AK16),IF(AL$6="h.",VLOOKUP(VLOOKUP($A16,Janvier!$1:$1048576,AK$7+1,FALSE),Données!$A$2:$C$32,3,FALSE),VLOOKUP(VLOOKUP($A16,Janvier!$1:$1048576,AL$7+1,FALSE),Données!$A$2:$C$32,2,FALSE))) -> 0.3125 | AM16: =IF(AM$6="TH",SUMIF(AL$6,"h.",AL16),IF(AM$6="h.",VLOOKUP(VLOOKUP($A16,Janvier!$1:$1048576,AL$7+1,FALSE),Données!$A$2:$C$32,3,FALSE),VLOOKUP(VLOOKUP($A16,Janvier!$1:$1048576,AM$7+1,FALSE),Données!$A$2:$C$32,2,FALSE))) ->  | AN16: =IF(AN$6="TH",SUMIF(AM$6,"h.",AM16),IF(AN$6="h.",VLOOKUP(VLOOKUP($A16,Janvier!$1:$1048576,AM$7+1,FALSE),Données!$A$2:$C$32,3,FALSE),VLOOKUP(VLOOKUP($A16,Janvier!$1:$1048576,AN$7+1,FALSE),Données!$A$2:$C$32,2,FALSE))) -> 0 | AO16: =IF(AO$6="TH",SUMIF(AN$6,"h.",AN16),IF(AO$6="h.",VLOOKUP(VLOOKUP($A16,Janvier!$1:$1048576,AN$7+1,FALSE),Données!$A$2:$C$32,3,FALSE),VLOOKUP(VLOOKUP($A16,Janvier!$1:$1048576,AO$7+1,FALSE),Données!$A$2:$C$32,2,FALSE))) -> F | AP16: =IF(AP$6="TH",SUMIF(AO$6,"h.",AO16),IF(AP$6="h.",VLOOKUP(VLOOKUP($A16,Janvier!$1:$1048576,AO$7+1,FALSE),Données!$A$2:$C$32,3,FALSE),VLOOKUP(VLOOKUP($A16,Janvier!$1:$1048576,AP$7+1,FALSE),Données!$A$2:$C$32,2,FALSE))) -> 0.3125 | AQ16: =IF(AQ$6="TH",SUMIF(AP$6,"h.",AP16),IF(AQ$6="h.",VLOOKUP(VLOOKUP($A16,Janvier!$1:$1048576,AP$7+1,FALSE),Données!$A$2:$C$32,3,FALSE),VLOOKUP(VLOOKUP($A16,Janvier!$1:$1048576,AQ$7+1,FALSE),Données!$A$2:$C$32,2,FALSE))) -> F | AR16: =IF(AR$6="TH",SUMIF(AQ$6,"h.",AQ16),IF(AR$6="h.",VLOOKUP(VLOOKUP($A16,Janvier!$1:$1048576,AQ$7+1,FALSE),Données!$A$2:$C$32,3,FALSE),VLOOKUP(VLOOKUP($A16,Janvier!$1:$1048576,AR$7+1,FALSE),Données!$A$2:$C$32,2,FALSE))) -> 0.3125 | AS16: =IF(AS$6="TH",SUMIF(AR$6,"h.",AR16),IF(AS$6="h.",VLOOKUP(VLOOKUP($A16,Janvier!$1:$1048576,AR$7+1,FALSE),Données!$A$2:$C$32,3,FALSE),VLOOKUP(VLOOKUP($A16,Janvier!$1:$1048576,AS$7+1,FALSE),Données!$A$2:$C$32,2,FALSE))) -> 10h00 - 21h30 | AT16: =IF(AT$6="TH",SUMIF(AS$6,"h.",AS16),IF(AT$6="h.",VLOOKUP(VLOOKUP($A16,Janvier!$1:$1048576,AS$7+1,FALSE),Données!$A$2:$C$32,3,FALSE),VLOOKUP(VLOOKUP($A16,Janvier!$1:$1048576,AT$7+1,FALSE),Données!$A$2:$C$32,2,FALSE))) -> 0.4791666667 | AU16: =IF(AU$6="TH",SUMIF(AT$6,"h.",AT16),IF(AU$6="h.",VLOOKUP(VLOOKUP($A16,Janvier!$1:$1048576,AT$7+1,FALSE),Données!$A$2:$C$32,3,FALSE),VLOOKUP(VLOOKUP($A16,Janvier!$1:$1048576,AU$7+1,FALSE),Données!$A$2:$C$32,2,FALSE))) -> 10h00 - 21h30 | AV16: =IF(AV$6="TH",SUMIF(AU$6,"h.",AU16),IF(AV$6="h.",VLOOKUP(VLOOKUP($A16,Janvier!$1:$1048576,AU$7+1,FALSE),Données!$A$2:$C$32,3,FALSE),VLOOKUP(VLOOKUP($A16,Janvier!$1:$1048576,AV$7+1,FALSE),Données!$A$2:$C$32,2,FALSE))) -> 0.4791666667 | AW16: =IF(AW$6="TH",SUMIF(AV$6,"h.",AV16),IF(AW$6="h.",VLOOKUP(VLOOKUP($A16,Janvier!$1:$1048576,AV$7+1,FALSE),Données!$A$2:$C$32,3,FALSE),VLOOKUP(VLOOKUP($A16,Janvier!$1:$1048576,AW$7+1,FALSE),Données!$A$2:$C$32,2,FALSE))) -> 0.4791666667 | AX16: =IF(AX$6="TH",SUMIF(AW$6,"h.",AW16),IF(AX$6="h.",VLOOKUP(VLOOKUP($A16,Janvier!$1:$1048576,AW$7+1,FALSE),Données!$A$2:$C$32,3,FALSE),VLOOKUP(VLOOKUP($A16,Janvier!$1:$1048576,AX$7+1,FALSE),Données!$A$2:$C$32,2,FALSE))) ->  | AY16: =IF(AY$6="TH",SUMIF(AX$6,"h.",AX16),IF(AY$6="h.",VLOOKUP(VLOOKUP($A16,Janvier!$1:$1048576,AX$7+1,FALSE),Données!$A$2:$C$32,3,FALSE),VLOOKUP(VLOOKUP($A16,Janvier!$1:$1048576,AY$7+1,FALSE),Données!$A$2:$C$32,2,FALSE))) -> 0 | AZ16: =IF(AZ$6="TH",SUMIF(AY$6,"h.",AY16),IF(AZ$6="h.",VLOOKUP(VLOOKUP($A16,Janvier!$1:$1048576,AY$7+1,FALSE),Données!$A$2:$C$32,3,FALSE),VLOOKUP(VLOOKUP($A16,Janvier!$1:$1048576,AZ$7+1,FALSE),Données!$A$2:$C$32,2,FALSE))) -> 7h00 - 14h30 | BA16: =IF(BA$6="TH",SUMIF(AZ$6,"h.",AZ16),IF(BA$6="h.",VLOOKUP(VLOOKUP($A16,Janvier!$1:$1048576,AZ$7+1,FALSE),Données!$A$2:$C$32,3,FALSE),VLOOKUP(VLOOKUP($A16,Janvier!$1:$1048576,BA$7+1,FALSE),Données!$A$2:$C$32,2,FALSE))) -> 0.3125 | BB16: =IF(BB$6="TH",SUMIF(BA$6,"h.",BA16),IF(BB$6="h.",VLOOKUP(VLOOKUP($A16,Janvier!$1:$1048576,BA$7+1,FALSE),Données!$A$2:$C$32,3,FALSE),VLOOKUP(VLOOKUP($A16,Janvier!$1:$1048576,BB$7+1,FALSE),Données!$A$2:$C$32,2,FALSE))) -> F | BC16: =IF(BC$6="TH",SUMIF(BB$6,"h.",BB16),IF(BC$6="h.",VLOOKUP(VLOOKUP($A16,Janvier!$1:$1048576,BB$7+1,FALSE),Données!$A$2:$C$32,3,FALSE),VLOOKUP(VLOOKUP($A16,Janvier!$1:$1048576,BC$7+1,FALSE),Données!$A$2:$C$32,2,FALSE))) -> 0.3125 | BD16: =IF(BD$6="TH",SUMIF(BC$6,"h.",BC16),IF(BD$6="h.",VLOOKUP(VLOOKUP($A16,Janvier!$1:$1048576,BC$7+1,FALSE),Données!$A$2:$C$32,3,FALSE),VLOOKUP(VLOOKUP($A16,Janvier!$1:$1048576,BD$7+1,FALSE),Données!$A$2:$C$32,2,FALSE))) ->  | BE16: =IF(BE$6="TH",SUMIF(BD$6,"h.",BD16),IF(BE$6="h.",VLOOKUP(VLOOKUP($A16,Janvier!$1:$1048576,BD$7+1,FALSE),Données!$A$2:$C$32,3,FALSE),VLOOKUP(VLOOKUP($A16,Janvier!$1:$1048576,BE$7+1,FALSE),Données!$A$2:$C$32,2,FALSE))) -> 0 | BF16: =IF(BF$6="TH",SUMIF(BE$6,"h.",BE16),IF(BF$6="h.",VLOOKUP(VLOOKUP($A16,Janvier!$1:$1048576,BE$7+1,FALSE),Données!$A$2:$C$32,3,FALSE),VLOOKUP(VLOOKUP($A16,Janvier!$1:$1048576,BF$7+1,FALSE),Données!$A$2:$C$32,2,FALSE))) -> 14h00 - 21h30 | BG16: =IF(BG$6="TH",SUMIF(BF$6,"h.",BF16),IF(BG$6="h.",VLOOKUP(VLOOKUP($A16,Janvier!$1:$1048576,BF$7+1,FALSE),Données!$A$2:$C$32,3,FALSE),VLOOKUP(VLOOKUP($A16,Janvier!$1:$1048576,BG$7+1,FALSE),Données!$A$2:$C$32,2,FALSE))) -> 0.3125 | BH16: =IF(BH$6="TH",SUMIF(BG$6,"h.",BG16),IF(BH$6="h.",VLOOKUP(VLOOKUP($A16,Janvier!$1:$1048576,BG$7+1,FALSE),Données!$A$2:$C$32,3,FALSE),VLOOKUP(VLOOKUP($A16,Janvier!$1:$1048576,BH$7+1,FALSE),Données!$A$2:$C$32,2,FALSE))) ->  | BI16: =IF(BI$6="TH",SUMIF(BH$6,"h.",BH16),IF(BI$6="h.",VLOOKUP(VLOOKUP($A16,Janvier!$1:$1048576,BH$7+1,FALSE),Données!$A$2:$C$32,3,FALSE),VLOOKUP(VLOOKUP($A16,Janvier!$1:$1048576,BI$7+1,FALSE),Données!$A$2:$C$32,2,FALSE))) -> 0 | BJ16: =IF(BJ$6="TH",SUMIF(BI$6,"h.",BI16),IF(BJ$6="h.",VLOOKUP(VLOOKUP($A16,Janvier!$1:$1048576,BI$7+1,FALSE),Données!$A$2:$C$32,3,FALSE),VLOOKUP(VLOOKUP($A16,Janvier!$1:$1048576,BJ$7+1,FALSE),Données!$A$2:$C$32,2,FALSE))) ->  | BK16: =IF(BK$6="TH",SUMIF(BJ$6,"h.",BJ16),IF(BK$6="h.",VLOOKUP(VLOOKUP($A16,Janvier!$1:$1048576,BJ$7+1,FALSE),Données!$A$2:$C$32,3,FALSE),VLOOKUP(VLOOKUP($A16,Janvier!$1:$1048576,BK$7+1,FALSE),Données!$A$2:$C$32,2,FALSE))) -> 0 | BL16: =IF(BL$6="TH",SUMIF(BK$6,"h.",BK16),IF(BL$6="h.",VLOOKUP(VLOOKUP($A16,Janvier!$1:$1048576,BK$7+1,FALSE),Données!$A$2:$C$32,3,FALSE),VLOOKUP(VLOOKUP($A16,Janvier!$1:$1048576,BL$7+1,FALSE),Données!$A$2:$C$32,2,FALSE))) -> 0 | BM16: =IF(BM$6="TH",SUMIF(BL$6,"h.",BL16),IF(BM$6="h.",VLOOKUP(VLOOKUP($A16,Janvier!$1:$1048576,BL$7+1,FALSE),Données!$A$2:$C$32,3,FALSE),VLOOKUP(VLOOKUP($A16,Janvier!$1:$1048576,BM$7+1,FALSE),Données!$A$2:$C$32,2,FALSE))) -> REC | BN16: =IF(BN$6="TH",SUMIF(BM$6,"h.",BM16),IF(BN$6="h.",VLOOKUP(VLOOKUP($A16,Janvier!$1:$1048576,BM$7+1,FALSE),Données!$A$2:$C$32,3,FALSE),VLOOKUP(VLOOKUP($A16,Janvier!$1:$1048576,BN$7+1,FALSE),Données!$A$2:$C$32,2,FALSE))) -> 0 | BO16: =IF(BO$6="TH",SUMIF(BN$6,"h.",BN16),IF(BO$6="h.",VLOOKUP(VLOOKUP($A16,Janvier!$1:$1048576,BN$7+1,FALSE),Données!$A$2:$C$32,3,FALSE),VLOOKUP(VLOOKUP($A16,Janvier!$1:$1048576,BO$7+1,FALSE),Données!$A$2:$C$32,2,FALSE))) -> REC | BP16: =IF(BP$6="TH",SUMIF(BO$6,"h.",BO16),IF(BP$6="h.",VLOOKUP(VLOOKUP($A16,Janvier!$1:$1048576,BO$7+1,FALSE),Données!$A$2:$C$32,3,FALSE),VLOOKUP(VLOOKUP($A16,Janvier!$1:$1048576,BP$7+1,FALSE),Données!$A$2:$C$32,2,FALSE))) -> 0 | BS16: 6.166666667 | BT16: =SUM(HJanvier:HDecembre!BS16) -> 46.29166667
A17: =Données!E13 -> Emeraude MUBANGIA | B17: =IF(B$6="TH",SUMIF(A$6,"h.",A17),IF(B$6="h.",VLOOKUP(VLOOKUP($A17,Janvier!$1:$1048576,A$7+1,FALSE),Données!$A$2:$C$32,3,FALSE),VLOOKUP(VLOOKUP($A17,Janvier!$1:$1048576,B$7+1,FALSE),Données!$A$2:$C$32,2,FALSE))) ->  | C17: =IF(C$6="TH",SUMIF(B$6,"h.",B17),IF(C$6="h.",VLOOKUP(VLOOKUP($A17,Janvier!$1:$1048576,B$7+1,FALSE),Données!$A$2:$C$32,3,FALSE),VLOOKUP(VLOOKUP($A17,Janvier!$1:$1048576,C$7+1,FALSE),Données!$A$2:$C$32,2,FALSE))) -> 0 | D17: =IF(D$6="TH",SUMIF(C$6,"h.",C17),IF(D$6="h.",VLOOKUP(VLOOKUP($A17,Janvier!$1:$1048576,C$7+1,FALSE),Données!$A$2:$C$32,3,FALSE),VLOOKUP(VLOOKUP($A17,Janvier!$1:$1048576,D$7+1,FALSE),Données!$A$2:$C$32,2,FALSE))) -> 0 | E17: =IF(E$6="TH",SUMIF(D$6,"h.",D17),IF(E$6="h.",VLOOKUP(VLOOKUP($A17,Janvier!$1:$1048576,D$7+1,FALSE),Données!$A$2:$C$32,3,FALSE),VLOOKUP(VLOOKUP($A17,Janvier!$1:$1048576,E$7+1,FALSE),Données!$A$2:$C$32,2,FALSE))) ->  | F17: =IF(F$6="TH",SUMIF(E$6,"h.",E17),IF(F$6="h.",VLOOKUP(VLOOKUP($A17,Janvier!$1:$1048576,E$7+1,FALSE),Données!$A$2:$C$32,3,FALSE),VLOOKUP(VLOOKUP($A17,Janvier!$1:$1048576,F$7+1,FALSE),Données!$A$2:$C$32,2,FALSE))) -> 0 | G17: =IF(G$6="TH",SUMIF(F$6,"h.",F17),IF(G$6="h.",VLOOKUP(VLOOKUP($A17,Janvier!$1:$1048576,F$7+1,FALSE),Données!$A$2:$C$32,3,FALSE),VLOOKUP(VLOOKUP($A17,Janvier!$1:$1048576,G$7+1,FALSE),Données!$A$2:$C$32,2,FALSE))) ->  | H17: =IF(H$6="TH",SUMIF(G$6,"h.",G17),IF(H$6="h.",VLOOKUP(VLOOKUP($A17,Janvier!$1:$1048576,G$7+1,FALSE),Données!$A$2:$C$32,3,FALSE),VLOOKUP(VLOOKUP($A17,Janvier!$1:$1048576,H$7+1,FALSE),Données!$A$2:$C$32,2,FALSE))) -> 0 | I17: =IF(I$6="TH",SUMIF(H$6,"h.",H17),IF(I$6="h.",VLOOKUP(VLOOKUP($A17,Janvier!$1:$1048576,H$7+1,FALSE),Données!$A$2:$C$32,3,FALSE),VLOOKUP(VLOOKUP($A17,Janvier!$1:$1048576,I$7+1,FALSE),Données!$A$2:$C$32,2,FALSE))) ->  | J17: =IF(J$6="TH",SUMIF(I$6,"h.",I17),IF(J$6="h.",VLOOKUP(VLOOKUP($A17,Janvier!$1:$1048576,I$7+1,FALSE),Données!$A$2:$C$32,3,FALSE),VLOOKUP(VLOOKUP($A17,Janvier!$1:$1048576,J$7+1,FALSE),Données!$A$2:$C$32,2,FALSE))) -> 0 | K17: =IF(K$6="TH",SUMIF(J$6,"h.",J17),IF(K$6="h.",VLOOKUP(VLOOKUP($A17,Janvier!$1:$1048576,J$7+1,FALSE),Données!$A$2:$C$32,3,FALSE),VLOOKUP(VLOOKUP($A17,Janvier!$1:$1048576,K$7+1,FALSE),Données!$A$2:$C$32,2,FALSE))) ->  | L17: =IF(L$6="TH",SUMIF(K$6,"h.",K17),IF(L$6="h.",VLOOKUP(VLOOKUP($A17,Janvier!$1:$1048576,K$7+1,FALSE),Données!$A$2:$C$32,3,FALSE),VLOOKUP(VLOOKUP($A17,Janvier!$1:$1048576,L$7+1,FALSE),Données!$A$2:$C$32,2,FALSE))) -> 0 | M17: =IF(M$6="TH",SUMIF(L$6,"h.",L17),IF(M$6="h.",VLOOKUP(VLOOKUP($A17,Janvier!$1:$1048576,L$7+1,FALSE),Données!$A$2:$C$32,3,FALSE),VLOOKUP(VLOOKUP($A17,Janvier!$1:$1048576,M$7+1,FALSE),Données!$A$2:$C$32,2,FALSE))) ->  | N17: =IF(N$6="TH",SUMIF(M$6,"h.",M17),IF(N$6="h.",VLOOKUP(VLOOKUP($A17,Janvier!$1:$1048576,M$7+1,FALSE),Données!$A$2:$C$32,3,FALSE),VLOOKUP(VLOOKUP($A17,Janvier!$1:$1048576,N$7+1,FALSE),Données!$A$2:$C$32,2,FALSE))) -> 0 | O17: =IF(O$6="TH",SUMIF(N$6,"h.",N17),IF(O$6="h.",VLOOKUP(VLOOKUP($A17,Janvier!$1:$1048576,N$7+1,FALSE),Données!$A$2:$C$32,3,FALSE),VLOOKUP(VLOOKUP($A17,Janvier!$1:$1048576,O$7+1,FALSE),Données!$A$2:$C$32,2,FALSE))) ->  | P17: =IF(P$6="TH",SUMIF(B17:O17,"h.",P17),IF(P$6="h.",VLOOKUP(VLOOKUP($A17,Janvier!$1:$1048576,O$7+1,FALSE),Données!$A$2:$C$32,3,FALSE),VLOOKUP(VLOOKUP($A17,Janvier!$1:$1048576,P$7+1,FALSE),Données!$A$2:$C$32,2,FALSE))) -> 0 | Q17: =IF(Q$6="TH",SUMIF(P$6,"h.",P17),IF(Q$6="h.",VLOOKUP(VLOOKUP($A17,Janvier!$1:$1048576,P$7+1,FALSE),Données!$A$2:$C$32,3,FALSE),VLOOKUP(VLOOKUP($A17,Janvier!$1:$1048576,Q$7+1,FALSE),Données!$A$2:$C$32,2,FALSE))) ->  | R17: =IF(R$6="TH",SUMIF(Q$6,"h.",Q17),IF(R$6="h.",VLOOKUP(VLOOKUP($A17,Janvier!$1:$1048576,Q$7+1,FALSE),Données!$A$2:$C$32,3,FALSE),VLOOKUP(VLOOKUP($A17,Janvier!$1:$1048576,R$7+1,FALSE),Données!$A$2:$C$32,2,FALSE))) -> 0 | S17: =IF(S$6="TH",SUMIF(R$6,"h.",R17),IF(S$6="h.",VLOOKUP(VLOOKUP($A17,Janvier!$1:$1048576,R$7+1,FALSE),Données!$A$2:$C$32,3,FALSE),VLOOKUP(VLOOKUP($A17,Janvier!$1:$1048576,S$7+1,FALSE),Données!$A$2:$C$32,2,FALSE))) -> 0 | T17: =IF(T$6="TH",SUMIF(S$6,"h.",S17),IF(T$6="h.",VLOOKUP(VLOOKUP($A17,Janvier!$1:$1048576,S$7+1,FALSE),Données!$A$2:$C$32,3,FALSE),VLOOKUP(VLOOKUP($A17,Janvier!$1:$1048576,T$7+1,FALSE),Données!$A$2:$C$32,2,FALSE))) ->  | U17: =IF(U$6="TH",SUMIF(T$6,"h.",T17),IF(U$6="h.",VLOOKUP(VLOOKUP($A17,Janvier!$1:$1048576,T$7+1,FALSE),Données!$A$2:$C$32,3,FALSE),VLOOKUP(VLOOKUP($A17,Janvier!$1:$1048576,U$7+1,FALSE),Données!$A$2:$C$32,2,FALSE))) -> 0 | V17: =IF(V$6="TH",SUMIF(U$6,"h.",U17),IF(V$6="h.",VLOOKUP(VLOOKUP($A17,Janvier!$1:$1048576,U$7+1,FALSE),Données!$A$2:$C$32,3,FALSE),VLOOKUP(VLOOKUP($A17,Janvier!$1:$1048576,V$7+1,FALSE),Données!$A$2:$C$32,2,FALSE))) ->  | W17: =IF(W$6="TH",SUMIF(V$6,"h.",V17),IF(W$6="h.",VLOOKUP(VLOOKUP($A17,Janvier!$1:$1048576,V$7+1,FALSE),Données!$A$2:$C$32,3,FALSE),VLOOKUP(VLOOKUP($A17,Janvier!$1:$1048576,W$7+1,FALSE),Données!$A$2:$C$32,2,FALSE))) -> 0 | X17: =IF(X$6="TH",SUMIF(W$6,"h.",W17),IF(X$6="h.",VLOOKUP(VLOOKUP($A17,Janvier!$1:$1048576,W$7+1,FALSE),Données!$A$2:$C$32,3,FALSE),VLOOKUP(VLOOKUP($A17,Janvier!$1:$1048576,X$7+1,FALSE),Données!$A$2:$C$32,2,FALSE))) ->  | Y17: =IF(Y$6="TH",SUMIF(X$6,"h.",X17),IF(Y$6="h.",VLOOKUP(VLOOKUP($A17,Janvier!$1:$1048576,X$7+1,FALSE),Données!$A$2:$C$32,3,FALSE),VLOOKUP(VLOOKUP($A17,Janvier!$1:$1048576,Y$7+1,FALSE),Données!$A$2:$C$32,2,FALSE))) -> 0 | Z17: =IF(Z$6="TH",SUMIF(Y$6,"h.",Y17),IF(Z$6="h.",VLOOKUP(VLOOKUP($A17,Janvier!$1:$1048576,Y$7+1,FALSE),Données!$A$2:$C$32,3,FALSE),VLOOKUP(VLOOKUP($A17,Janvier!$1:$1048576,Z$7+1,FALSE),Données!$A$2:$C$32,2,FALSE))) ->  | AA17: =IF(AA$6="TH",SUMIF(Z$6,"h.",Z17),IF(AA$6="h.",VLOOKUP(VLOOKUP($A17,Janvier!$1:$1048576,Z$7+1,FALSE),Données!$A$2:$C$32,3,FALSE),VLOOKUP(VLOOKUP($A17,Janvier!$1:$1048576,AA$7+1,FALSE),Données!$A$2:$C$32,2,FALSE))) -> 0 | AB17: =IF(AB$6="TH",SUMIF(AA$6,"h.",AA17),IF(AB$6="h.",VLOOKUP(VLOOKUP($A17,Janvier!$1:$1048576,AA$7+1,FALSE),Données!$A$2:$C$32,3,FALSE),VLOOKUP(VLOOKUP($A17,Janvier!$1:$1048576,AB$7+1,FALSE),Données!$A$2:$C$32,2,FALSE))) ->  | AC17: =IF(AC$6="TH",SUMIF(AB$6,"h.",AB17),IF(AC$6="h.",VLOOKUP(VLOOKUP($A17,Janvier!$1:$1048576,AB$7+1,FALSE),Données!$A$2:$C$32,3,FALSE),VLOOKUP(VLOOKUP($A17,Janvier!$1:$1048576,AC$7+1,FALSE),Données!$A$2:$C$32,2,FALSE))) -> 0 | AD17: =IF(AD$6="TH",SUMIF(AC$6,"h.",AC17),IF(AD$6="h.",VLOOKUP(VLOOKUP($A17,Janvier!$1:$1048576,AC$7+1,FALSE),Données!$A$2:$C$32,3,FALSE),VLOOKUP(VLOOKUP($A17,Janvier!$1:$1048576,AD$7+1,FALSE),Données!$A$2:$C$32,2,FALSE))) ->  | AE17: =IF(AE$6="TH",SUMIF(AD$6,"h.",AD17),IF(AE$6="h.",VLOOKUP(VLOOKUP($A17,Janvier!$1:$1048576,AD$7+1,FALSE),Données!$A$2:$C$32,3,FALSE),VLOOKUP(VLOOKUP($A17,Janvier!$1:$1048576,AE$7+1,FALSE),Données!$A$2:$C$32,2,FALSE))) -> 0 | AF17: =IF(AF$6="TH",SUMIF(AE$6,"h.",AE17),IF(AF$6="h.",VLOOKUP(VLOOKUP($A17,Janvier!$1:$1048576,AE$7+1,FALSE),Données!$A$2:$C$32,3,FALSE),VLOOKUP(VLOOKUP($A17,Janvier!$1:$1048576,AF$7+1,FALSE),Données!$A$2:$C$32,2,FALSE))) ->  | AG17: =IF(AG$6="TH",SUMIF(AF$6,"h.",AF17),IF(AG$6="h.",VLOOKUP(VLOOKUP($A17,Janvier!$1:$1048576,AF$7+1,FALSE),Données!$A$2:$C$32,3,FALSE),VLOOKUP(VLOOKUP($A17,Janvier!$1:$1048576,AG$7+1,FALSE),Données!$A$2:$C$32,2,FALSE))) -> 0 | AH17: =IF(AH$6="TH",SUMIF(AG$6,"h.",AG17),IF(AH$6="h.",VLOOKUP(VLOOKUP($A17,Janvier!$1:$1048576,AG$7+1,FALSE),Données!$A$2:$C$32,3,FALSE),VLOOKUP(VLOOKUP($A17,Janvier!$1:$1048576,AH$7+1,FALSE),Données!$A$2:$C$32,2,FALSE))) -> 0 | AI17: =IF(AI$6="TH",SUMIF(AH$6,"h.",AH17),IF(AI$6="h.",VLOOKUP(VLOOKUP($A17,Janvier!$1:$1048576,AH$7+1,FALSE),Données!$A$2:$C$32,3,FALSE),VLOOKUP(VLOOKUP($A17,Janvier!$1:$1048576,AI$7+1,FALSE),Données!$A$2:$C$32,2,FALSE))) ->  | AJ17: =IF(AJ$6="TH",SUMIF(AI$6,"h.",AI17),IF(AJ$6="h.",VLOOKUP(VLOOKUP($A17,Janvier!$1:$1048576,AI$7+1,FALSE),Données!$A$2:$C$32,3,FALSE),VLOOKUP(VLOOKUP($A17,Janvier!$1:$1048576,AJ$7+1,FALSE),Données!$A$2:$C$32,2,FALSE))) -> 0 | AK17: =IF(AK$6="TH",SUMIF(AJ$6,"h.",AJ17),IF(AK$6="h.",VLOOKUP(VLOOKUP($A17,Janvier!$1:$1048576,AJ$7+1,FALSE),Données!$A$2:$C$32,3,FALSE),VLOOKUP(VLOOKUP($A17,Janvier!$1:$1048576,AK$7+1,FALSE),Données!$A$2:$C$32,2,FALSE))) ->  | AL17: =IF(AL$6="TH",SUMIF(AK$6,"h.",AK17),IF(AL$6="h.",VLOOKUP(VLOOKUP($A17,Janvier!$1:$1048576,AK$7+1,FALSE),Données!$A$2:$C$32,3,FALSE),VLOOKUP(VLOOKUP($A17,Janvier!$1:$1048576,AL$7+1,FALSE),Données!$A$2:$C$32,2,FALSE))) -> 0 | AM17: =IF(AM$6="TH",SUMIF(AL$6,"h.",AL17),IF(AM$6="h.",VLOOKUP(VLOOKUP($A17,Janvier!$1:$1048576,AL$7+1,FALSE),Données!$A$2:$C$32,3,FALSE),VLOOKUP(VLOOKUP($A17,Janvier!$1:$1048576,AM$7+1,FALSE),Données!$A$2:$C$32,2,FALSE))) ->  | AN17: =IF(AN$6="TH",SUMIF(AM$6,"h.",AM17),IF(AN$6="h.",VLOOKUP(VLOOKUP($A17,Janvier!$1:$1048576,AM$7+1,FALSE),Données!$A$2:$C$32,3,FALSE),VLOOKUP(VLOOKUP($A17,Janvier!$1:$1048576,AN$7+1,FALSE),Données!$A$2:$C$32,2,FALSE))) -> 0 | AO17: =IF(AO$6="TH",SUMIF(AN$6,"h.",AN17),IF(AO$6="h.",VLOOKUP(VLOOKUP($A17,Janvier!$1:$1048576,AN$7+1,FALSE),Données!$A$2:$C$32,3,FALSE),VLOOKUP(VLOOKUP($A17,Janvier!$1:$1048576,AO$7+1,FALSE),Données!$A$2:$C$32,2,FALSE))) ->  | AP17: =IF(AP$6="TH",SUMIF(AO$6,"h.",AO17),IF(AP$6="h.",VLOOKUP(VLOOKUP($A17,Janvier!$1:$1048576,AO$7+1,FALSE),Données!$A$2:$C$32,3,FALSE),VLOOKUP(VLOOKUP($A17,Janvier!$1:$1048576,AP$7+1,FALSE),Données!$A$2:$C$32,2,FALSE))) -> 0 | AQ17: =IF(AQ$6="TH",SUMIF(AP$6,"h.",AP17),IF(AQ$6="h.",VLOOKUP(VLOOKUP($A17,Janvier!$1:$1048576,AP$7+1,FALSE),Données!$A$2:$C$32,3,FALSE),VLOOKUP(VLOOKUP($A17,Janvier!$1:$1048576,AQ$7+1,FALSE),Données!$A$2:$C$32,2,FALSE))) ->  | AR17: =IF(AR$6="TH",SUMIF(AQ$6,"h.",AQ17),IF(AR$6="h.",VLOOKUP(VLOOKUP($A17,Janvier!$1:$1048576,AQ$7+1,FALSE),Données!$A$2:$C$32,3,FALSE),VLOOKUP(VLOOKUP($A17,Janvier!$1:$1048576,AR$7+1,FALSE),Données!$A$2:$C$32,2,FALSE))) -> 0 | AS17: =IF(AS$6="TH",SUMIF(AR$6,"h.",AR17),IF(AS$6="h.",VLOOKUP(VLOOKUP($A17,Janvier!$1:$1048576,AR$7+1,FALSE),Données!$A$2:$C$32,3,FALSE),VLOOKUP(VLOOKUP($A17,Janvier!$1:$1048576,AS$7+1,FALSE),Données!$A$2:$C$32,2,FALSE))) ->  | AT17: =IF(AT$6="TH",SUMIF(AS$6,"h.",AS17),IF(AT$6="h.",VLOOKUP(VLOOKUP($A17,Janvier!$1:$1048576,AS$7+1,FALSE),Données!$A$2:$C$32,3,FALSE),VLOOKUP(VLOOKUP($A17,Janvier!$1:$1048576,AT$7+1,FALSE),Données!$A$2:$C$32,2,FALSE))) -> 0 | AU17: =IF(AU$6="TH",SUMIF(AT$6,"h.",AT17),IF(AU$6="h.",VLOOKUP(VLOOKUP($A17,Janvier!$1:$1048576,AT$7+1,FALSE),Données!$A$2:$C$32,3,FALSE),VLOOKUP(VLOOKUP($A17,Janvier!$1:$1048576,AU$7+1,FALSE),Données!$A$2:$C$32,2,FALSE))) ->  | AV17: =IF(AV$6="TH",SUMIF(AU$6,"h.",AU17),IF(AV$6="h.",VLOOKUP(VLOOKUP($A17,Janvier!$1:$1048576,AU$7+1,FALSE),Données!$A$2:$C$32,3,FALSE),VLOOKUP(VLOOKUP($A17,Janvier!$1:$1048576,AV$7+1,FALSE),Données!$A$2:$C$32,2,FALSE))) -> 0 | AW17: =IF(AW$6="TH",SUMIF(AV$6,"h.",AV17),IF(AW$6="h.",VLOOKUP(VLOOKUP($A17,Janvier!$1:$1048576,AV$7+1,FALSE),Données!$A$2:$C$32,3,FALSE),VLOOKUP(VLOOKUP($A17,Janvier!$1:$1048576,AW$7+1,FALSE),Données!$A$2:$C$32,2,FALSE))) -> 0 | AX17: =IF(AX$6="TH",SUMIF(AW$6,"h.",AW17),IF(AX$6="h.",VLOOKUP(VLOOKUP($A17,Janvier!$1:$1048576,AW$7+1,FALSE),Données!$A$2:$C$32,3,FALSE),VLOOKUP(VLOOKUP($A17,Janvier!$1:$1048576,AX$7+1,FALSE),Données!$A$2:$C$32,2,FALSE))) ->  | AY17: =IF(AY$6="TH",SUMIF(AX$6,"h.",AX17),IF(AY$6="h.",VLOOKUP(VLOOKUP($A17,Janvier!$1:$1048576,AX$7+1,FALSE),Données!$A$2:$C$32,3,FALSE),VLOOKUP(VLOOKUP($A17,Janvier!$1:$1048576,AY$7+1,FALSE),Données!$A$2:$C$32,2,FALSE))) -> 0 | AZ17: =IF(AZ$6="TH",SUMIF(AY$6,"h.",AY17),IF(AZ$6="h.",VLOOKUP(VLOOKUP($A17,Janvier!$1:$1048576,AY$7+1,FALSE),Données!$A$2:$C$32,3,FALSE),VLOOKUP(VLOOKUP($A17,Janvier!$1:$1048576,AZ$7+1,FALSE),Données!$A$2:$C$32,2,FALSE))) ->  | BA17: =IF(BA$6="TH",SUMIF(AZ$6,"h.",AZ17),IF(BA$6="h.",VLOOKUP(VLOOKUP($A17,Janvier!$1:$1048576,AZ$7+1,FALSE),Données!$A$2:$C$32,3,FALSE),VLOOKUP(VLOOKUP($A17,Janvier!$1:$1048576,BA$7+1,FALSE),Données!$A$2:$C$32,2,FALSE))) -> 0 | BB17: =IF(BB$6="TH",SUMIF(BA$6,"h.",BA17),IF(BB$6="h.",VLOOKUP(VLOOKUP($A17,Janvier!$1:$1048576,BA$7+1,FALSE),Données!$A$2:$C$32,3,FALSE),VLOOKUP(VLOOKUP($A17,Janvier!$1:$1048576,BB$7+1,FALSE),Données!$A$2:$C$32,2,FALSE))) ->  | BC17: =IF(BC$6="TH",SUMIF(BB$6,"h.",BB17),IF(BC$6="h.",VLOOKUP(VLOOKUP($A17,Janvier!$1:$1048576,BB$7+1,FALSE),Données!$A$2:$C$32,3,FALSE),VLOOKUP(VLOOKUP($A17,Janvier!$1:$1048576,BC$7+1,FALSE),Données!$A$2:$C$32,2,FALSE))) -> 0 | BD17: =IF(BD$6="TH",SUMIF(BC$6,"h.",BC17),IF(BD$6="h.",VLOOKUP(VLOOKUP($A17,Janvier!$1:$1048576,BC$7+1,FALSE),Données!$A$2:$C$32,3,FALSE),VLOOKUP(VLOOKUP($A17,Janvier!$1:$1048576,BD$7+1,FALSE),Données!$A$2:$C$32,2,FALSE))) ->  | BE17: =IF(BE$6="TH",SUMIF(BD$6,"h.",BD17),IF(BE$6="h.",VLOOKUP(VLOOKUP($A17,Janvier!$1:$1048576,BD$7+1,FALSE),Données!$A$2:$C$32,3,FALSE),VLOOKUP(VLOOKUP($A17,Janvier!$1:$1048576,BE$7+1,FALSE),Données!$A$2:$C$32,2,FALSE))) -> 0 | BF17: =IF(BF$6="TH",SUMIF(BE$6,"h.",BE17),IF(BF$6="h.",VLOOKUP(VLOOKUP($A17,Janvier!$1:$1048576,BE$7+1,FALSE),Données!$A$2:$C$32,3,FALSE),VLOOKUP(VLOOKUP($A17,Janvier!$1:$1048576,BF$7+1,FALSE),Données!$A$2:$C$32,2,FALSE))) ->  | BG17: =IF(BG$6="TH",SUMIF(BF$6,"h.",BF17),IF(BG$6="h.",VLOOKUP(VLOOKUP($A17,Janvier!$1:$1048576,BF$7+1,FALSE),Données!$A$2:$C$32,3,FALSE),VLOOKUP(VLOOKUP($A17,Janvier!$1:$1048576,BG$7+1,FALSE),Données!$A$2:$C$32,2,FALSE))) -> 0 | BH17: =IF(BH$6="TH",SUMIF(BG$6,"h.",BG17),IF(BH$6="h.",VLOOKUP(VLOOKUP($A17,Janvier!$1:$1048576,BG$7+1,FALSE),Données!$A$2:$C$32,3,FALSE),VLOOKUP(VLOOKUP($A17,Janvier!$1:$1048576,BH$7+1,FALSE),Données!$A$2:$C$32,2,FALSE))) ->  | BI17: =IF(BI$6="TH",SUMIF(BH$6,"h.",BH17),IF(BI$6="h.",VLOOKUP(VLOOKUP($A17,Janvier!$1:$1048576,BH$7+1,FALSE),Données!$A$2:$C$32,3,FALSE),VLOOKUP(VLOOKUP($A17,Janvier!$1:$1048576,BI$7+1,FALSE),Données!$A$2:$C$32,2,FALSE))) -> 0 | BJ17: =IF(BJ$6="TH",SUMIF(BI$6,"h.",BI17),IF(BJ$6="h.",VLOOKUP(VLOOKUP($A17,Janvier!$1:$1048576,BI$7+1,FALSE),Données!$A$2:$C$32,3,FALSE),VLOOKUP(VLOOKUP($A17,Janvier!$1:$1048576,BJ$7+1,FALSE),Données!$A$2:$C$32,2,FALSE))) ->  | BK17: =IF(BK$6="TH",SUMIF(BJ$6,"h.",BJ17),IF(BK$6="h.",VLOOKUP(VLOOKUP($A17,Janvier!$1:$1048576,BJ$7+1,FALSE),Données!$A$2:$C$32,3,FALSE),VLOOKUP(VLOOKUP($A17,Janvier!$1:$1048576,BK$7+1,FALSE),Données!$A$2:$C$32,2,FALSE))) -> 0 | BL17: =IF(BL$6="TH",SUMIF(BK$6,"h.",BK17),IF(BL$6="h.",VLOOKUP(VLOOKUP($A17,Janvier!$1:$1048576,BK$7+1,FALSE),Données!$A$2:$C$32,3,FALSE),VLOOKUP(VLOOKUP($A17,Janvier!$1:$1048576,BL$7+1,FALSE),Données!$A$2:$C$32,2,FALSE))) -> 0 | BM17: =IF(BM$6="TH",SUMIF(BL$6,"h.",BL17),IF(BM$6="h.",VLOOKUP(VLOOKUP($A17,Janvier!$1:$1048576,BL$7+1,FALSE),Données!$A$2:$C$32,3,FALSE),VLOOKUP(VLOOKUP($A17,Janvier!$1:$1048576,BM$7+1,FALSE),Données!$A$2:$C$32,2,FALSE))) ->  | BN17: =IF(BN$6="TH",SUMIF(BM$6,"h.",BM17),IF(BN$6="h.",VLOOKUP(VLOOKUP($A17,Janvier!$1:$1048576,BM$7+1,FALSE),Données!$A$2:$C$32,3,FALSE),VLOOKUP(VLOOKUP($A17,Janvier!$1:$1048576,BN$7+1,FALSE),Données!$A$2:$C$32,2,FALSE))) -> 0 | BO17: =IF(BO$6="TH",SUMIF(BN$6,"h.",BN17),IF(BO$6="h.",VLOOKUP(VLOOKUP($A17,Janvier!$1:$1048576,BN$7+1,FALSE),Données!$A$2:$C$32,3,FALSE),VLOOKUP(VLOOKUP($A17,Janvier!$1:$1048576,BO$7+1,FALSE),Données!$A$2:$C$32,2,FALSE))) ->  | BP17: =IF(BP$6="TH",SUMIF(BO$6,"h.",BO17),IF(BP$6="h.",VLOOKUP(VLOOKUP($A17,Janvier!$1:$1048576,BO$7+1,FALSE),Données!$A$2:$C$32,3,FALSE),VLOOKUP(VLOOKUP($A17,Janvier!$1:$1048576,BP$7+1,FALSE),Données!$A$2:$C$32,2,FALSE))) -> 0 | BS17: 0 | BT17: =SUM(HJanvier:HDecembre!BS17) -> 0
A18: =Données!E14 -> Mimouna BAMOUNI | B18: =IF(B$6="TH",SUMIF(A$6,"h.",A18),IF(B$6="h.",VLOOKUP(VLOOKUP($A18,Janvier!$1:$1048576,A$7+1,FALSE),Données!$A$2:$C$32,3,FALSE),VLOOKUP(VLOOKUP($A18,Janvier!$1:$1048576,B$7+1,FALSE),Données!$A$2:$C$32,2,FALSE))) ->  | C18: =IF(C$6="TH",SUMIF(B$6,"h.",B18),IF(C$6="h.",VLOOKUP(VLOOKUP($A18,Janvier!$1:$1048576,B$7+1,FALSE),Données!$A$2:$C$32,3,FALSE),VLOOKUP(VLOOKUP($A18,Janvier!$1:$1048576,C$7+1,FALSE),Données!$A$2:$C$32,2,FALSE))) -> 0 | D18: =IF(D$6="TH",SUMIF(C$6,"h.",C18),IF(D$6="h.",VLOOKUP(VLOOKUP($A18,Janvier!$1:$1048576,C$7+1,FALSE),Données!$A$2:$C$32,3,FALSE),VLOOKUP(VLOOKUP($A18,Janvier!$1:$1048576,D$7+1,FALSE),Données!$A$2:$C$32,2,FALSE))) -> 0 | E18: =IF(E$6="TH",SUMIF(D$6,"h.",D18),IF(E$6="h.",VLOOKUP(VLOOKUP($A18,Janvier!$1:$1048576,D$7+1,FALSE),Données!$A$2:$C$32,3,FALSE),VLOOKUP(VLOOKUP($A18,Janvier!$1:$1048576,E$7+1,FALSE),Données!$A$2:$C$32,2,FALSE))) -> 7h00 - 14h30 | F18: =IF(F$6="TH",SUMIF(E$6,"h.",E18),IF(F$6="h.",VLOOKUP(VLOOKUP($A18,Janvier!$1:$1048576,E$7+1,FALSE),Données!$A$2:$C$32,3,FALSE),VLOOKUP(VLOOKUP($A18,Janvier!$1:$1048576,F$7+1,FALSE),Données!$A$2:$C$32,2,FALSE))) -> 0.3125 | G18: =IF(G$6="TH",SUMIF(F$6,"h.",F18),IF(G$6="h.",VLOOKUP(VLOOKUP($A18,Janvier!$1:$1048576,F$7+1,FALSE),Données!$A$2:$C$32,3,FALSE),VLOOKUP(VLOOKUP($A18,Janvier!$1:$1048576,G$7+1,FALSE),Données!$A$2:$C$32,2,FALSE))) -> 7h00 - 14h30 | H18: =IF(H$6="TH",SUMIF(G$6,"h.",G18),IF(H$6="h.",VLOOKUP(VLOOKUP($A18,Janvier!$1:$1048576,G$7+1,FALSE),Données!$A$2:$C$32,3,FALSE),VLOOKUP(VLOOKUP($A18,Janvier!$1:$1048576,H$7+1,FALSE),Données!$A$2:$C$32,2,FALSE))) -> 0.3125 | I18: =IF(I$6="TH",SUMIF(H$6,"h.",H18),IF(I$6="h.",VLOOKUP(VLOOKUP($A18,Janvier!$1:$1048576,H$7+1,FALSE),Données!$A$2:$C$32,3,FALSE),VLOOKUP(VLOOKUP($A18,Janvier!$1:$1048576,I$7+1,FALSE),Données!$A$2:$C$32,2,FALSE))) -> TP | J18: =IF(J$6="TH",SUMIF(I$6,"h.",I18),IF(J$6="h.",VLOOKUP(VLOOKUP($A18,Janvier!$1:$1048576,I$7+1,FALSE),Données!$A$2:$C$32,3,FALSE),VLOOKUP(VLOOKUP($A18,Janvier!$1:$1048576,J$7+1,FALSE),Données!$A$2:$C$32,2,FALSE))) -> 0 | K18: =IF(K$6="TH",SUMIF(J$6,"h.",J18),IF(K$6="h.",VLOOKUP(VLOOKUP($A18,Janvier!$1:$1048576,J$7+1,FALSE),Données!$A$2:$C$32,3,FALSE),VLOOKUP(VLOOKUP($A18,Janvier!$1:$1048576,K$7+1,FALSE),Données!$A$2:$C$32,2,FALSE))) -> 14h00 - 21h30 | L18: =IF(L$6="TH",SUMIF(K$6,"h.",K18),IF(L$6="h.",VLOOKUP(VLOOKUP($A18,Janvier!$1:$1048576,K$7+1,FALSE),Données!$A$2:$C$32,3,FALSE),VLOOKUP(VLOOKUP($A18,Janvier!$1:$1048576,L$7+1,FALSE),Données!$A$2:$C$32,2,FALSE))) -> 0.3125 | M18: =IF(M$6="TH",SUMIF(L$6,"h.",L18),IF(M$6="h.",VLOOKUP(VLOOKUP($A18,Janvier!$1:$1048576,L$7+1,FALSE),Données!$A$2:$C$32,3,FALSE),VLOOKUP(VLOOKUP($A18,Janvier!$1:$1048576,M$7+1,FALSE),Données!$A$2:$C$32,2,FALSE))) -> 14h00 - 21h30 | N18: =IF(N$6="TH",SUMIF(M$6,"h.",M18),IF(N$6="h.",VLOOKUP(VLOOKUP($A18,Janvier!$1:$1048576,M$7+1,FALSE),Données!$A$2:$C$32,3,FALSE),VLOOKUP(VLOOKUP($A18,Janvier!$1:$1048576,N$7+1,FALSE),Données!$A$2:$C$32,2,FALSE))) -> 0.3125 | O18: =IF(O$6="TH",SUMIF(N$6,"h.",N18),IF(O$6="h.",VLOOKUP(VLOOKUP($A18,Janvier!$1:$1048576,N$7+1,FALSE),Données!$A$2:$C$32,3,FALSE),VLOOKUP(VLOOKUP($A18,Janvier!$1:$1048576,O$7+1,FALSE),Données!$A$2:$C$32,2,FALSE))) ->  | P18: =IF(P$6="TH",SUMIF(B18:O18,"h.",P18),IF(P$6="h.",VLOOKUP(VLOOKUP($A18,Janvier!$1:$1048576,O$7+1,FALSE),Données!$A$2:$C$32,3,FALSE),VLOOKUP(VLOOKUP($A18,Janvier!$1:$1048576,P$7+1,FALSE),Données!$A$2:$C$32,2,FALSE))) -> 0 | Q18: =IF(Q$6="TH",SUMIF(P$6,"h.",P18),IF(Q$6="h.",VLOOKUP(VLOOKUP($A18,Janvier!$1:$1048576,P$7+1,FALSE),Données!$A$2:$C$32,3,FALSE),VLOOKUP(VLOOKUP($A18,Janvier!$1:$1048576,Q$7+1,FALSE),Données!$A$2:$C$32,2,FALSE))) ->  | R18: =IF(R$6="TH",SUMIF(Q$6,"h.",Q18),IF(R$6="h.",VLOOKUP(VLOOKUP($A18,Janvier!$1:$1048576,Q$7+1,FALSE),Données!$A$2:$C$32,3,FALSE),VLOOKUP(VLOOKUP($A18,Janvier!$1:$1048576,R$7+1,FALSE),Données!$A$2:$C$32,2,FALSE))) -> 0 | S18: =IF(S$6="TH",SUMIF(R$6,"h.",R18),IF(S$6="h.",VLOOKUP(VLOOKUP($A18,Janvier!$1:$1048576,R$7+1,FALSE),Données!$A$2:$C$32,3,FALSE),VLOOKUP(VLOOKUP($A18,Janvier!$1:$1048576,S$7+1,FALSE),Données!$A$2:$C$32,2,FALSE))) -> 0 | T18: =IF(T$6="TH",SUMIF(S$6,"h.",S18),IF(T$6="h.",VLOOKUP(VLOOKUP($A18,Janvier!$1:$1048576,S$7+1,FALSE),Données!$A$2:$C$32,3,FALSE),VLOOKUP(VLOOKUP($A18,Janvier!$1:$1048576,T$7+1,FALSE),Données!$A$2:$C$32,2,FALSE))) -> AM | U18: =IF(U$6="TH",SUMIF(T$6,"h.",T18),IF(U$6="h.",VLOOKUP(VLOOKUP($A18,Janvier!$1:$1048576,T$7+1,FALSE),Données!$A$2:$C$32,3,FALSE),VLOOKUP(VLOOKUP($A18,Janvier!$1:$1048576,U$7+1,FALSE),Données!$A$2:$C$32,2,FALSE))) -> 0.3125 | V18: =IF(V$6="TH",SUMIF(U$6,"h.",U18),IF(V$6="h.",VLOOKUP(VLOOKUP($A18,Janvier!$1:$1048576,U$7+1,FALSE),Données!$A$2:$C$32,3,FALSE),VLOOKUP(VLOOKUP($A18,Janvier!$1:$1048576,V$7+1,FALSE),Données!$A$2:$C$32,2,FALSE))) -> 10h00 - 21h30 | W18: =IF(W$6="TH",SUMIF(V$6,"h.",V18),IF(W$6="h.",VLOOKUP(VLOOKUP($A18,Janvier!$1:$1048576,V$7+1,FALSE),Données!$A$2:$C$32,3,FALSE),VLOOKUP(VLOOKUP($A18,Janvier!$1:$1048576,W$7+1,FALSE),Données!$A$2:$C$32,2,FALSE))) -> 0.4166666667 | X18: =IF(X$6="TH",SUMIF(W$6,"h.",W18),IF(X$6="h.",VLOOKUP(VLOOKUP($A18,Janvier!$1:$1048576,W$7+1,FALSE),Données!$A$2:$C$32,3,FALSE),VLOOKUP(VLOOKUP($A18,Janvier!$1:$1048576,X$7+1,FALSE),Données!$A$2:$C$32,2,FALSE))) -> TP | Y18: =IF(Y$6="TH",SUMIF(X$6,"h.",X18),IF(Y$6="h.",VLOOKUP(VLOOKUP($A18,Janvier!$1:$1048576,X$7+1,FALSE),Données!$A$2:$C$32,3,FALSE),VLOOKUP(VLOOKUP($A18,Janvier!$1:$1048576,Y$7+1,FALSE),Données!$A$2:$C$32,2,FALSE))) -> 0 | Z18: =IF(Z$6="TH",SUMIF(Y$6,"h.",Y18),IF(Z$6="h.",VLOOKUP(VLOOKUP($A18,Janvier!$1:$1048576,Y$7+1,FALSE),Données!$A$2:$C$32,3,FALSE),VLOOKUP(VLOOKUP($A18,Janvier!$1:$1048576,Z$7+1,FALSE),Données!$A$2:$C$32,2,FALSE))) -> 7h00 - 14h30 | AA18: =IF(AA$6="TH",SUMIF(Z$6,"h.",Z18),IF(AA$6="h.",VLOOKUP(VLOOKUP($A18,Janvier!$1:$1048576,Z$7+1,FALSE),Données!$A$2:$C$32,3,FALSE),VLOOKUP(VLOOKUP($A18,Janvier!$1:$1048576,AA$7+1,FALSE),Données!$A$2:$C$32,2,FALSE))) -> 0.3125 | AB18: =IF(AB$6="TH",SUMIF(AA$6,"h.",AA18),IF(AB$6="h.",VLOOKUP(VLOOKUP($A18,Janvier!$1:$1048576,AA$7+1,FALSE),Données!$A$2:$C$32,3,FALSE),VLOOKUP(VLOOKUP($A18,Janvier!$1:$1048576,AB$7+1,FALSE),Données!$A$2:$C$32,2,FALSE))) -> 7h00 - 14h30 | AC18: =IF(AC$6="TH",SUMIF(AB$6,"h.",AB18),IF(AC$6="h.",VLOOKUP(VLOOKUP($A18,Janvier!$1:$1048576,AB$7+1,FALSE),Données!$A$2:$C$32,3,FALSE),VLOOKUP(VLOOKUP($A18,Janvier!$1:$1048576,AC$7+1,FALSE),Données!$A$2:$C$32,2,FALSE))) -> 0.3125 | AD18: =IF(AD$6="TH",SUMIF(AC$6,"h.",AC18),IF(AD$6="h.",VLOOKUP(VLOOKUP($A18,Janvier!$1:$1048576,AC$7+1,FALSE),Données!$A$2:$C$32,3,FALSE),VLOOKUP(VLOOKUP($A18,Janvier!$1:$1048576,AD$7+1,FALSE),Données!$A$2:$C$32,2,FALSE))) ->  | AE18: =IF(AE$6="TH",SUMIF(AD$6,"h.",AD18),IF(AE$6="h.",VLOOKUP(VLOOKUP($A18,Janvier!$1:$1048576,AD$7+1,FALSE),Données!$A$2:$C$32,3,FALSE),VLOOKUP(VLOOKUP($A18,Janvier!$1:$1048576,AE$7+1,FALSE),Données!$A$2:$C$32,2,FALSE))) -> 0 | AF18: =IF(AF$6="TH",SUMIF(AE$6,"h.",AE18),IF(AF$6="h.",VLOOKUP(VLOOKUP($A18,Janvier!$1:$1048576,AE$7+1,FALSE),Données!$A$2:$C$32,3,FALSE),VLOOKUP(VLOOKUP($A18,Janvier!$1:$1048576,AF$7+1,FALSE),Données!$A$2:$C$32,2,FALSE))) ->  | AG18: =IF(AG$6="TH",SUMIF(AF$6,"h.",AF18),IF(AG$6="h.",VLOOKUP(VLOOKUP($A18,Janvier!$1:$1048576,AF$7+1,FALSE),Données!$A$2:$C$32,3,FALSE),VLOOKUP(VLOOKUP($A18,Janvier!$1:$1048576,AG$7+1,FALSE),Données!$A$2:$C$32,2,FALSE))) -> 0 | AH18: =IF(AH$6="TH",SUMIF(AG$6,"h.",AG18),IF(AH$6="h.",VLOOKUP(VLOOKUP($A18,Janvier!$1:$1048576,AG$7+1,FALSE),Données!$A$2:$C$32,3,FALSE),VLOOKUP(VLOOKUP($A18,Janvier!$1:$1048576,AH$7+1,FALSE),Données!$A$2:$C$32,2,FALSE))) -> 0 | AI18: =IF(AI$6="TH",SUMIF(AH$6,"h.",AH18),IF(AI$6="h.",VLOOKUP(VLOOKUP($A18,Janvier!$1:$1048576,AH$7+1,FALSE),Données!$A$2:$C$32,3,FALSE),VLOOKUP(VLOOKUP($A18,Janvier!$1:$1048576,AI$7+1,FALSE),Données!$A$2:$C$32,2,FALSE))) -> CA16 | AJ18: =IF(AJ$6="TH",SUMIF(AI$6,"h.",AI18),IF(AJ$6="h.",VLOOKUP(VLOOKUP($A18,Janvier!$1:$1048576,AI$7+1,FALSE),Données!$A$2:$C$32,3,FALSE),VLOOKUP(VLOOKUP($A18,Janvier!$1:$1048576,AJ$7+1,FALSE),Données!$A$2:$C$32,2,FALSE))) -> 0 | AK18: =IF(AK$6="TH",SUMIF(AJ$6,"h.",AJ18),IF(AK$6="h.",VLOOKUP(VLOOKUP($A18,Janvier!$1:$1048576,AJ$7+1,FALSE),Données!$A$2:$C$32,3,FALSE),VLOOKUP(VLOOKUP($A18,Janvier!$1:$1048576,AK$7+1,FALSE),Données!$A$2:$C$32,2,FALSE))) -> CA16 | AL18: =IF(AL$6="TH",SUMIF(AK$6,"h.",AK18),IF(AL$6="h.",VLOOKUP(VLOOKUP($A18,Janvier!$1:$1048576,AK$7+1,FALSE),Données!$A$2:$C$32,3,FALSE),VLOOKUP(VLOOKUP($A18,Janvier!$1:$1048576,AL$7+1,FALSE),Données!$A$2:$C$32,2,FALSE))) -> 0 | AM18: =IF(AM$6="TH",SUMIF(AL$6,"h.",AL18),IF(AM$6="h.",VLOOKUP(VLOOKUP($A18,Janvier!$1:$1048576,AL$7+1,FALSE),Données!$A$2:$C$32,3,FALSE),VLOOKUP(VLOOKUP($A18,Janvier!$1:$1048576,AM$7+1,FALSE),Données!$A$2:$C$32,2,FALSE))) -> CA16 | AN18: =IF(AN$6="TH",SUMIF(AM$6,"h.",AM18),IF(AN$6="h.",VLOOKUP(VLOOKUP($A18,Janvier!$1:$1048576,AM$7+1,FALSE),Données!$A$2:$C$32,3,FALSE),VLOOKUP(VLOOKUP($A18,Janvier!$1:$1048576,AN$7+1,FALSE),Données!$A$2:$C$32,2,FALSE))) -> 0 | AO18: =IF(AO$6="TH",SUMIF(AN$6,"h.",AN18),IF(AO$6="h.",VLOOKUP(VLOOKUP($A18,Janvier!$1:$1048576,AN$7+1,FALSE),Données!$A$2:$C$32,3,FALSE),VLOOKUP(VLOOKUP($A18,Janvier!$1:$1048576,AO$7+1,FALSE),Données!$A$2:$C$32,2,FALSE))) -> CA16 | AP18: =IF(AP$6="TH",SUMIF(AO$6,"h.",AO18),IF(AP$6="h.",VLOOKUP(VLOOKUP($A18,Janvier!$1:$1048576,AO$7+1,FALSE),Données!$A$2:$C$32,3,FALSE),VLOOKUP(VLOOKUP($A18,Janvier!$1:$1048576,AP$7+1,FALSE),Données!$A$2:$C$32,2,FALSE))) -> 0 | AQ18: =IF(AQ$6="TH",SUMIF(AP$6,"h.",AP18),IF(AQ$6="h.",VLOOKUP(VLOOKUP($A18,Janvier!$1:$1048576,AP$7+1,FALSE),Données!$A$2:$C$32,3,FALSE),VLOOKUP(VLOOKUP($A18,Janvier!$1:$1048576,AQ$7+1,FALSE),Données!$A$2:$C$32,2,FALSE))) -> CA16 | AR18: =IF(AR$6="TH",SUMIF(AQ$6,"h.",AQ18),IF(AR$6="h.",VLOOKUP(VLOOKUP($A18,Janvier!$1:$1048576,AQ$7+1,FALSE),Données!$A$2:$C$32,3,FALSE),VLOOKUP(VLOOKUP($A18,Janvier!$1:$1048576,AR$7+1,FALSE),Données!$A$2:$C$32,2,FALSE))) -> 0 | AS18: =IF(AS$6="TH",SUMIF(AR$6,"h.",AR18),IF(AS$6="h.",VLOOKUP(VLOOKUP($A18,Janvier!$1:$1048576,AR$7+1,FALSE),Données!$A$2:$C$32,3,FALSE),VLOOKUP(VLOOKUP($A18,Janvier!$1:$1048576,AS$7+1,FALSE),Données!$A$2:$C$32,2,FALSE))) ->  | AT18: =IF(AT$6="TH",SUMIF(AS$6,"h.",AS18),IF(AT$6="h.",VLOOKUP(VLOOKUP($A18,Janvier!$1:$1048576,AS$7+1,FALSE),Données!$A$2:$C$32,3,FALSE),VLOOKUP(VLOOKUP($A18,Janvier!$1:$1048576,AT$7+1,FALSE),Données!$A$2:$C$32,2,FALSE))) -> 0 | AU18: =IF(AU$6="TH",SUMIF(AT$6,"h.",AT18),IF(AU$6="h.",VLOOKUP(VLOOKUP($A18,Janvier!$1:$1048576,AT$7+1,FALSE),Données!$A$2:$C$32,3,FALSE),VLOOKUP(VLOOKUP($A18,Janvier!$1:$1048576,AU$7+1,FALSE),Données!$A$2:$C$32,2,FALSE))) ->  | AV18: =IF(AV$6="TH",SUMIF(AU$6,"h.",AU18),IF(AV$6="h.",VLOOKUP(VLOOKUP($A18,Janvier!$1:$1048576,AU$7+1,FALSE),Données!$A$2:$C$32,3,FALSE),VLOOKUP(VLOOKUP($A18,Janvier!$1:$1048576,AV$7+1,FALSE),Données!$A$2:$C$32,2,FALSE))) -> 0 | AW18: =IF(AW$6="TH",SUMIF(AV$6,"h.",AV18),IF(AW$6="h.",VLOOKUP(VLOOKUP($A18,Janvier!$1:$1048576,AV$7+1,FALSE),Données!$A$2:$C$32,3,FALSE),VLOOKUP(VLOOKUP($A18,Janvier!$1:$1048576,AW$7+1,FALSE),Données!$A$2:$C$32,2,FALSE))) -> 0 | AX18: =IF(AX$6="TH",SUMIF(AW$6,"h.",AW18),IF(AX$6="h.",VLOOKUP(VLOOKUP($A18,Janvier!$1:$1048576,AW$7+1,FALSE),Données!$A$2:$C$32,3,FALSE),VLOOKUP(VLOOKUP($A18,Janvier!$1:$1048576,AX$7+1,FALSE),Données!$A$2:$C$32,2,FALSE))) -> F | AY18: =IF(AY$6="TH",SUMIF(AX$6,"h.",AX18),IF(AY$6="h.",VLOOKUP(VLOOKUP($A18,Janvier!$1:$1048576,AX$7+1,FALSE),Données!$A$2:$C$32,3,FALSE),VLOOKUP(VLOOKUP($A18,Janvier!$1:$1048576,AY$7+1,FALSE),Données!$A$2:$C$32,2,FALSE))) -> 0.3125 | AZ18: =IF(AZ$6="TH",SUMIF(AY$6,"h.",AY18),IF(AZ$6="h.",VLOOKUP(VLOOKUP($A18,Janvier!$1:$1048576,AY$7+1,FALSE),Données!$A$2:$C$32,3,FALSE),VLOOKUP(VLOOKUP($A18,Janvier!$1:$1048576,AZ$7+1,FALSE),Données!$A$2:$C$32,2,FALSE))) -> F | BA18: =IF(BA$6="TH",SUMIF(AZ$6,"h.",AZ18),IF(BA$6="h.",VLOOKUP(VLOOKUP($A18,Janvier!$1:$1048576,AZ$7+1,FALSE),Données!$A$2:$C$32,3,FALSE),VLOOKUP(VLOOKUP($A18,Janvier!$1:$1048576,BA$7+1,FALSE),Données!$A$2:$C$32,2,FALSE))) -> 0.3125 | BB18: =IF(BB$6="TH",SUMIF(BA$6,"h.",BA18),IF(BB$6="h.",VLOOKUP(VLOOKUP($A18,Janvier!$1:$1048576,BA$7+1,FALSE),Données!$A$2:$C$32,3,FALSE),VLOOKUP(VLOOKUP($A18,Janvier!$1:$1048576,BB$7+1,FALSE),Données!$A$2:$C$32,2,FALSE))) -> TP | BC18: =IF(BC$6="TH",SUMIF(BB$6,"h.",BB18),IF(BC$6="h.",VLOOKUP(VLOOKUP($A18,Janvier!$1:$1048576,BB$7+1,FALSE),Données!$A$2:$C$32,3,FALSE),VLOOKUP(VLOOKUP($A18,Janvier!$1:$1048576,BC$7+1,FALSE),Données!$A$2:$C$32,2,FALSE))) -> 0 | BD18: =IF(BD$6="TH",SUMIF(BC$6,"h.",BC18),IF(BD$6="h.",VLOOKUP(VLOOKUP($A18,Janvier!$1:$1048576,BC$7+1,FALSE),Données!$A$2:$C$32,3,FALSE),VLOOKUP(VLOOKUP($A18,Janvier!$1:$1048576,BD$7+1,FALSE),Données!$A$2:$C$32,2,FALSE))) -> 14h00 - 21h30 | BE18: =IF(BE$6="TH",SUMIF(BD$6,"h.",BD18),IF(BE$6="h.",VLOOKUP(VLOOKUP($A18,Janvier!$1:$1048576,BD$7+1,FALSE),Données!$A$2:$C$32,3,FALSE),VLOOKUP(VLOOKUP($A18,Janvier!$1:$1048576,BE$7+1,FALSE),Données!$A$2:$C$32,2,FALSE))) -> 0.3125 | BF18: =IF(BF$6="TH",SUMIF(BE$6,"h.",BE18),IF(BF$6="h.",VLOOKUP(VLOOKUP($A18,Janvier!$1:$1048576,BE$7+1,FALSE),Données!$A$2:$C$32,3,FALSE),VLOOKUP(VLOOKUP($A18,Janvier!$1:$1048576,BF$7+1,FALSE),Données!$A$2:$C$32,2,FALSE))) -> 14h00 - 21h30 | BG18: =IF(BG$6="TH",SUMIF(BF$6,"h.",BF18),IF(BG$6="h.",VLOOKUP(VLOOKUP($A18,Janvier!$1:$1048576,BF$7+1,FALSE),Données!$A$2:$C$32,3,FALSE),VLOOKUP(VLOOKUP($A18,Janvier!$1:$1048576,BG$7+1,FALSE),Données!$A$2:$C$32,2,FALSE))) -> 0.3125 | BH18: =IF(BH$6="TH",SUMIF(BG$6,"h.",BG18),IF(BH$6="h.",VLOOKUP(VLOOKUP($A18,Janvier!$1:$1048576,BG$7+1,FALSE),Données!$A$2:$C$32,3,FALSE),VLOOKUP(VLOOKUP($A18,Janvier!$1:$1048576,BH$7+1,FALSE),Données!$A$2:$C$32,2,FALSE))) ->  | BI18: =IF(BI$6="TH",SUMIF(BH$6,"h.",BH18),IF(BI$6="h.",VLOOKUP(VLOOKUP($A18,Janvier!$1:$1048576,BH$7+1,FALSE),Données!$A$2:$C$32,3,FALSE),VLOOKUP(VLOOKUP($A18,Janvier!$1:$1048576,BI$7+1,FALSE),Données!$A$2:$C$32,2,FALSE))) -> 0 | BJ18: =IF(BJ$6="TH",SUMIF(BI$6,"h.",BI18),IF(BJ$6="h.",VLOOKUP(VLOOKUP($A18,Janvier!$1:$1048576,BI$7+1,FALSE),Données!$A$2:$C$32,3,FALSE),VLOOKUP(VLOOKUP($A18,Janvier!$1:$1048576,BJ$7+1,FALSE),Données!$A$2:$C$32,2,FALSE))) ->  | BK18: =IF(BK$6="TH",SUMIF(BJ$6,"h.",BJ18),IF(BK$6="h.",VLOOKUP(VLOOKUP($A18,Janvier!$1:$1048576,BJ$7+1,FALSE),Données!$A$2:$C$32,3,FALSE),VLOOKUP(VLOOKUP($A18,Janvier!$1:$1048576,BK$7+1,FALSE),Données!$A$2:$C$32,2,FALSE))) -> 0 | BL18: =IF(BL$6="TH",SUMIF(BK$6,"h.",BK18),IF(BL$6="h.",VLOOKUP(VLOOKUP($A18,Janvier!$1:$1048576,BK$7+1,FALSE),Données!$A$2:$C$32,3,FALSE),VLOOKUP(VLOOKUP($A18,Janvier!$1:$1048576,BL$7+1,FALSE),Données!$A$2:$C$32,2,FALSE))) -> 0 | BM18: =IF(BM$6="TH",SUMIF(BL$6,"h.",BL18),IF(BM$6="h.",VLOOKUP(VLOOKUP($A18,Janvier!$1:$1048576,BL$7+1,FALSE),Données!$A$2:$C$32,3,FALSE),VLOOKUP(VLOOKUP($A18,Janvier!$1:$1048576,BM$7+1,FALSE),Données!$A$2:$C$32,2,FALSE))) -> 7h00 - 14h30 | BN18: =IF(BN$6="TH",SUMIF(BM$6,"h.",BM18),IF(BN$6="h.",VLOOKUP(VLOOKUP($A18,Janvier!$1:$1048576,BM$7+1,FALSE),Données!$A$2:$C$32,3,FALSE),VLOOKUP(VLOOKUP($A18,Janvier!$1:$1048576,BN$7+1,FALSE),Données!$A$2:$C$32,2,FALSE))) -> 0.3125 | BO18: =IF(BO$6="TH",SUMIF(BN$6,"h.",BN18),IF(BO$6="h.",VLOOKUP(VLOOKUP($A18,Janvier!$1:$1048576,BN$7+1,FALSE),Données!$A$2:$C$32,3,FALSE),VLOOKUP(VLOOKUP($A18,Janvier!$1:$1048576,BO$7+1,FALSE),Données!$A$2:$C$32,2,FALSE))) -> 7h00 - 14h30 | BP18: =IF(BP$6="TH",SUMIF(BO$6,"h.",BO18),IF(BP$6="h.",VLOOKUP(VLOOKUP($A18,Janvier!$1:$1048576,BO$7+1,FALSE),Données!$A$2:$C$32,3,FALSE),VLOOKUP(VLOOKUP($A18,Janvier!$1:$1048576,BP$7+1,FALSE),Données!$A$2:$C$32,2,FALSE))) -> 0.3125 | BS18: 4.479166667 | BT18: =SUM(HJanvier:HDecembre!BS18) -> 28.86458333
A19: =Données!E15 -> 0 | B19: =IF(B$6="TH",SUMIF(A$6,"h.",A19),IF(B$6="h.",VLOOKUP(VLOOKUP($A19,Janvier!$1:$1048576,A$7+1,FALSE),Données!$A$2:$C$32,3,FALSE),VLOOKUP(VLOOKUP($A19,Janvier!$1:$1048576,B$7+1,FALSE),Données!$A$2:$C$32,2,FALSE))) ->  | C19: =IF(C$6="TH",SUMIF(B$6,"h.",B19),IF(C$6="h.",VLOOKUP(VLOOKUP($A19,Janvier!$1:$1048576,B$7+1,FALSE),Données!$A$2:$C$32,3,FALSE),VLOOKUP(VLOOKUP($A19,Janvier!$1:$1048576,C$7+1,FALSE),Données!$A$2:$C$32,2,FALSE))) -> 0 | D19: =IF(D$6="TH",SUMIF(C$6,"h.",C19),IF(D$6="h.",VLOOKUP(VLOOKUP($A19,Janvier!$1:$1048576,C$7+1,FALSE),Données!$A$2:$C$32,3,FALSE),VLOOKUP(VLOOKUP($A19,Janvier!$1:$1048576,D$7+1,FALSE),Données!$A$2:$C$32,2,FALSE))) -> 0 | E19: =IF(E$6="TH",SUMIF(D$6,"h.",D19),IF(E$6="h.",VLOOKUP(VLOOKUP($A19,Janvier!$1:$1048576,D$7+1,FALSE),Données!$A$2:$C$32,3,FALSE),VLOOKUP(VLOOKUP($A19,Janvier!$1:$1048576,E$7+1,FALSE),Données!$A$2:$C$32,2,FALSE))) ->  | F19: =IF(F$6="TH",SUMIF(E$6,"h.",E19),IF(F$6="h.",VLOOKUP(VLOOKUP($A19,Janvier!$1:$1048576,E$7+1,FALSE),Données!$A$2:$C$32,3,FALSE),VLOOKUP(VLOOKUP($A19,Janvier!$1:$1048576,F$7+1,FALSE),Données!$A$2:$C$32,2,FALSE))) -> 0 | G19: =IF(G$6="TH",SUMIF(F$6,"h.",F19),IF(G$6="h.",VLOOKUP(VLOOKUP($A19,Janvier!$1:$1048576,F$7+1,FALSE),Données!$A$2:$C$32,3,FALSE),VLOOKUP(VLOOKUP($A19,Janvier!$1:$1048576,G$7+1,FALSE),Données!$A$2:$C$32,2,FALSE))) ->  | H19: =IF(H$6="TH",SUMIF(G$6,"h.",G19),IF(H$6="h.",VLOOKUP(VLOOKUP($A19,Janvier!$1:$1048576,G$7+1,FALSE),Données!$A$2:$C$32,3,FALSE),VLOOKUP(VLOOKUP($A19,Janvier!$1:$1048576,H$7+1,FALSE),Données!$A$2:$C$32,2,FALSE))) -> 0 | I19: =IF(I$6="TH",SUMIF(H$6,"h.",H19),IF(I$6="h.",VLOOKUP(VLOOKUP($A19,Janvier!$1:$1048576,H$7+1,FALSE),Données!$A$2:$C$32,3,FALSE),VLOOKUP(VLOOKUP($A19,Janvier!$1:$1048576,I$7+1,FALSE),Données!$A$2:$C$32,2,FALSE))) ->  | J19: =IF(J$6="TH",SUMIF(I$6,"h.",I19),IF(J$6="h.",VLOOKUP(VLOOKUP($A19,Janvier!$1:$1048576,I$7+1,FALSE),Données!$A$2:$C$32,3,FALSE),VLOOKUP(VLOOKUP($A19,Janvier!$1:$1048576,J$7+1,FALSE),Données!$A$2:$C$32,2,FALSE))) -> 0 | K19: =IF(K$6="TH",SUMIF(J$6,"h.",J19),IF(K$6="h.",VLOOKUP(VLOOKUP($A19,Janvier!$1:$1048576,J$7+1,FALSE),Données!$A$2:$C$32,3,FALSE),VLOOKUP(VLOOKUP($A19,Janvier!$1:$1048576,K$7+1,FALSE),Données!$A$2:$C$32,2,FALSE))) ->  | L19: =IF(L$6="TH",SUMIF(K$6,"h.",K19),IF(L$6="h.",VLOOKUP(VLOOKUP($A19,Janvier!$1:$1048576,K$7+1,FALSE),Données!$A$2:$C$32,3,FALSE),VLOOKUP(VLOOKUP($A19,Janvier!$1:$1048576,L$7+1,FALSE),Données!$A$2:$C$32,2,FALSE))) -> 0 | M19: =IF(M$6="TH",SUMIF(L$6,"h.",L19),IF(M$6="h.",VLOOKUP(VLOOKUP($A19,Janvier!$1:$1048576,L$7+1,FALSE),Données!$A$2:$C$32,3,FALSE),VLOOKUP(VLOOKUP($A19,Janvier!$1:$1048576,M$7+1,FALSE),Données!$A$2:$C$32,2,FALSE))) ->  | N19: =IF(N$6="TH",SUMIF(M$6,"h.",M19),IF(N$6="h.",VLOOKUP(VLOOKUP($A19,Janvier!$1:$1048576,M$7+1,FALSE),Données!$A$2:$C$32,3,FALSE),VLOOKUP(VLOOKUP($A19,Janvier!$1:$1048576,N$7+1,FALSE),Données!$A$2:$C$32,2,FALSE))) -> 0 | O19: =IF(O$6="TH",SUMIF(N$6,"h.",N19),IF(O$6="h.",VLOOKUP(VLOOKUP($A19,Janvier!$1:$1048576,N$7+1,FALSE),Données!$A$2:$C$32,3,FALSE),VLOOKUP(VLOOKUP($A19,Janvier!$1:$1048576,O$7+1,FALSE),Données!$A$2:$C$32,2,FALSE))) ->  | P19: =IF(P$6="TH",SUMIF(B19:O19,"h.",P19),IF(P$6="h.",VLOOKUP(VLOOKUP($A19,Janvier!$1:$1048576,O$7+1,FALSE),Données!$A$2:$C$32,3,FALSE),VLOOKUP(VLOOKUP($A19,Janvier!$1:$1048576,P$7+1,FALSE),Données!$A$2:$C$32,2,FALSE))) -> 0 | Q19: =IF(Q$6="TH",SUMIF(P$6,"h.",P19),IF(Q$6="h.",VLOOKUP(VLOOKUP($A19,Janvier!$1:$1048576,P$7+1,FALSE),Données!$A$2:$C$32,3,FALSE),VLOOKUP(VLOOKUP($A19,Janvier!$1:$1048576,Q$7+1,FALSE),Données!$A$2:$C$32,2,FALSE))) ->  | R19: =IF(R$6="TH",SUMIF(Q$6,"h.",Q19),IF(R$6="h.",VLOOKUP(VLOOKUP($A19,Janvier!$1:$1048576,Q$7+1,FALSE),Données!$A$2:$C$32,3,FALSE),VLOOKUP(VLOOKUP($A19,Janvier!$1:$1048576,R$7+1,FALSE),Données!$A$2:$C$32,2,FALSE))) -> 0 | S19: =IF(S$6="TH",SUMIF(R$6,"h.",R19),IF(S$6="h.",VLOOKUP(VLOOKUP($A19,Janvier!$1:$1048576,R$7+1,FALSE),Données!$A$2:$C$32,3,FALSE),VLOOKUP(VLOOKUP($A19,Janvier!$1:$1048576,S$7+1,FALSE),Données!$A$2:$C$32,2,FALSE))) -> 0 | T19: =IF(T$6="TH",SUMIF(S$6,"h.",S19),IF(T$6="h.",VLOOKUP(VLOOKUP($A19,Janvier!$1:$1048576,S$7+1,FALSE),Données!$A$2:$C$32,3,FALSE),VLOOKUP(VLOOKUP($A19,Janvier!$1:$1048576,T$7+1,FALSE),Données!$A$2:$C$32,2,FALSE))) ->  | U19: =IF(U$6="TH",SUMIF(T$6,"h.",T19),IF(U$6="h.",VLOOKUP(VLOOKUP($A19,Janvier!$1:$1048576,T$7+1,FALSE),Données!$A$2:$C$32,3,FALSE),VLOOKUP(VLOOKUP($A19,Janvier!$1:$1048576,U$7+1,FALSE),Données!$A$2:$C$32,2,FALSE))) -> 0 | V19: =IF(V$6="TH",SUMIF(U$6,"h.",U19),IF(V$6="h.",VLOOKUP(VLOOKUP($A19,Janvier!$1:$1048576,U$7+1,FALSE),Données!$A$2:$C$32,3,FALSE),VLOOKUP(VLOOKUP($A19,Janvier!$1:$1048576,V$7+1,FALSE),Données!$A$2:$C$32,2,FALSE))) ->  | W19: =IF(W$6="TH",SUMIF(V$6,"h.",V19),IF(W$6="h.",VLOOKUP(VLOOKUP($A19,Janvier!$1:$1048576,V$7+1,FALSE),Données!$A$2:$C$32,3,FALSE),VLOOKUP(VLOOKUP($A19,Janvier!$1:$1048576,W$7+1,FALSE),Données!$A$2:$C$32,2,FALSE))) -> 0 | X19: =IF(X$6="TH",SUMIF(W$6,"h.",W19),IF(X$6="h.",VLOOKUP(VLOOKUP($A19,Janvier!$1:$1048576,W$7+1,FALSE),Données!$A$2:$C$32,3,FALSE),VLOOKUP(VLOOKUP($A19,Janvier!$1:$1048576,X$7+1,FALSE),Données!$A$2:$C$32,2,FALSE))) ->  | Y19: =IF(Y$6="TH",SUMIF(X$6,"h.",X19),IF(Y$6="h.",VLOOKUP(VLOOKUP($A19,Janvier!$1:$1048576,X$7+1,FALSE),Données!$A$2:$C$32,3,FALSE),VLOOKUP(VLOOKUP($A19,Janvier!$1:$1048576,Y$7+1,FALSE),Données!$A$2:$C$32,2,FALSE))) -> 0 | Z19: =IF(Z$6="TH",SUMIF(Y$6,"h.",Y19),IF(Z$6="h.",VLOOKUP(VLOOKUP($A19,Janvier!$1:$1048576,Y$7+1,FALSE),Données!$A$2:$C$32,3,FALSE),VLOOKUP(VLOOKUP($A19,Janvier!$1:$1048576,Z$7+1,FALSE),Données!$A$2:$C$32,2,FALSE))) ->  | AA19: =IF(AA$6="TH",SUMIF(Z$6,"h.",Z19),IF(AA$6="h.",VLOOKUP(VLOOKUP($A19,Janvier!$1:$1048576,Z$7+1,FALSE),Données!$A$2:$C$32,3,FALSE),VLOOKUP(VLOOKUP($A19,Janvier!$1:$1048576,AA$7+1,FALSE),Données!$A$2:$C$32,2,FALSE))) -> 0 | AB19: =IF(AB$6="TH",SUMIF(AA$6,"h.",AA19),IF(AB$6="h.",VLOOKUP(VLOOKUP($A19,Janvier!$1:$1048576,AA$7+1,FALSE),Données!$A$2:$C$32,3,FALSE),VLOOKUP(VLOOKUP($A19,Janvier!$1:$1048576,AB$7+1,FALSE),Données!$A$2:$C$32,2,FALSE))) ->  | AC19: =IF(AC$6="TH",SUMIF(AB$6,"h.",AB19),IF(AC$6="h.",VLOOKUP(VLOOKUP($A19,Janvier!$1:$1048576,AB$7+1,FALSE),Données!$A$2:$C$32,3,FALSE),VLOOKUP(VLOOKUP($A19,Janvier!$1:$1048576,AC$7+1,FALSE),Données!$A$2:$C$32,2,FALSE))) -> 0 | AD19: =IF(AD$6="TH",SUMIF(AC$6,"h.",AC19),IF(AD$6="h.",VLOOKUP(VLOOKUP($A19,Janvier!$1:$1048576,AC$7+1,FALSE),Données!$A$2:$C$32,3,FALSE),VLOOKUP(VLOOKUP($A19,Janvier!$1:$1048576,AD$7+1,FALSE),Données!$A$2:$C$32,2,FALSE))) ->  | AE19: =IF(AE$6="TH",SUMIF(AD$6,"h.",AD19),IF(AE$6="h.",VLOOKUP(VLOOKUP($A19,Janvier!$1:$1048576,AD$7+1,FALSE),Données!$A$2:$C$32,3,FALSE),VLOOKUP(VLOOKUP($A19,Janvier!$1:$1048576,AE$7+1,FALSE),Données!$A$2:$C$32,2,FALSE))) -> 0 | AF19: =IF(AF$6="TH",SUMIF(AE$6,"h.",AE19),IF(AF$6="h.",VLOOKUP(VLOOKUP($A19,Janvier!$1:$1048576,AE$7+1,FALSE),Données!$A$2:$C$32,3,FALSE),VLOOKUP(VLOOKUP($A19,Janvier!$1:$1048576,AF$7+1,FALSE),Données!$A$2:$C$32,2,FALSE))) ->  | AG19: =IF(AG$6="TH",SUMIF(AF$6,"h.",AF19),IF(AG$6="h.",VLOOKUP(VLOOKUP($A19,Janvier!$1:$1048576,AF$7+1,FALSE),Données!$A$2:$C$32,3,FALSE),VLOOKUP(VLOOKUP($A19,Janvier!$1:$1048576,AG$7+1,FALSE),Données!$A$2:$C$32,2,FALSE))) -> 0 | AH19: =IF(AH$6="TH",SUMIF(AG$6,"h.",AG19),IF(AH$6="h.",VLOOKUP(VLOOKUP($A19,Janvier!$1:$1048576,AG$7+1,FALSE),Données!$A$2:$C$32,3,FALSE),VLOOKUP(VLOOKUP($A19,Janvier!$1:$1048576,AH$7+1,FALSE),Données!$A$2:$C$32,2,FALSE))) -> 0 | AI19: =IF(AI$6="TH",SUMIF(AH$6,"h.",AH19),IF(AI$6="h.",VLOOKUP(VLOOKUP($A19,Janvier!$1:$1048576,AH$7+1,FALSE),Données!$A$2:$C$32,3,FALSE),VLOOKUP(VLOOKUP($A19,Janvier!$1:$1048576,AI$7+1,FALSE),Données!$A$2:$C$32,2,FALSE))) ->  | AJ19: =IF(AJ$6="TH",SUMIF(AI$6,"h.",AI19),IF(AJ$6="h.",VLOOKUP(VLOOKUP($A19,Janvier!$1:$1048576,AI$7+1,FALSE),Données!$A$2:$C$32,3,FALSE),VLOOKUP(VLOOKUP($A19,Janvier!$1:$1048576,AJ$7+1,FALSE),Données!$A$2:$C$32,2,FALSE))) -> 0 | AK19: =IF(AK$6="TH",SUMIF(AJ$6,"h.",AJ19),IF(AK$6="h.",VLOOKUP(VLOOKUP($A19,Janvier!$1:$1048576,AJ$7+1,FALSE),Données!$A$2:$C$32,3,FALSE),VLOOKUP(VLOOKUP($A19,Janvier!$1:$1048576,AK$7+1,FALSE),Données!$A$2:$C$32,2,FALSE))) ->  | AL19: =IF(AL$6="TH",SUMIF(AK$6,"h.",AK19),IF(AL$6="h.",VLOOKUP(VLOOKUP($A19,Janvier!$1:$1048576,AK$7+1,FALSE),Données!$A$2:$C$32,3,FALSE),VLOOKUP(VLOOKUP($A19,Janvier!$1:$1048576,AL$7+1,FALSE),Données!$A$2:$C$32,2,FALSE))) -> 0 | AM19: =IF(AM$6="TH",SUMIF(AL$6,"h.",AL19),IF(AM$6="h.",VLOOKUP(VLOOKUP($A19,Janvier!$1:$1048576,AL$7+1,FALSE),Données!$A$2:$C$32,3,FALSE),VLOOKUP(VLOOKUP($A19,Janvier!$1:$1048576,AM$7+1,FALSE),Données!$A$2:$C$32,2,FALSE))) ->  | AN19: =IF(AN$6="TH",SUMIF(AM$6,"h.",AM19),IF(AN$6="h.",VLOOKUP(VLOOKUP($A19,Janvier!$1:$1048576,AM$7+1,FALSE),Données!$A$2:$C$32,3,FALSE),VLOOKUP(VLOOKUP($A19,Janvier!$1:$1048576,AN$7+1,FALSE),Données!$A$2:$C$32,2,FALSE))) -> 0 | AO19: =IF(AO$6="TH",SUMIF(AN$6,"h.",AN19),IF(AO$6="h.",VLOOKUP(VLOOKUP($A19,Janvier!$1:$1048576,AN$7+1,FALSE),Données!$A$2:$C$32,3,FALSE),VLOOKUP(VLOOKUP($A19,Janvier!$1:$1048576,AO$7+1,FALSE),Données!$A$2:$C$32,2,FALSE))) ->  | AP19: =IF(AP$6="TH",SUMIF(AO$6,"h.",AO19),IF(AP$6="h.",VLOOKUP(VLOOKUP($A19,Janvier!$1:$1048576,AO$7+1,FALSE),Données!$A$2:$C$32,3,FALSE),VLOOKUP(VLOOKUP($A19,Janvier!$1:$1048576,AP$7+1,FALSE),Données!$A$2:$C$32,2,FALSE))) -> 0 | AQ19: =IF(AQ$6="TH",SUMIF(AP$6,"h.",AP19),IF(AQ$6="h.",VLOOKUP(VLOOKUP($A19,Janvier!$1:$1048576,AP$7+1,FALSE),Données!$A$2:$C$32,3,FALSE),VLOOKUP(VLOOKUP($A19,Janvier!$1:$1048576,AQ$7+1,FALSE),Données!$A$2:$C$32,2,FALSE))) ->  | AR19: =IF(AR$6="TH",SUMIF(AQ$6,"h.",AQ19),IF(AR$6="h.",VLOOKUP(VLOOKUP($A19,Janvier!$1:$1048576,AQ$7+1,FALSE),Données!$A$2:$C$32,3,FALSE),VLOOKUP(VLOOKUP($A19,Janvier!$1:$1048576,AR$7+1,FALSE),Données!$A$2:$C$32,2,FALSE))) -> 0 | AS19: =IF(AS$6="TH",SUMIF(AR$6,"h.",AR19),IF(AS$6="h.",VLOOKUP(VLOOKUP($A19,Janvier!$1:$1048576,AR$7+1,FALSE),Données!$A$2:$C$32,3,FALSE),VLOOKUP(VLOOKUP($A19,Janvier!$1:$1048576,AS$7+1,FALSE),Données!$A$2:$C$32,2,FALSE))) ->  | AT19: =IF(AT$6="TH",SUMIF(AS$6,"h.",AS19),IF(AT$6="h.",VLOOKUP(VLOOKUP($A19,Janvier!$1:$1048576,AS$7+1,FALSE),Données!$A$2:$C$32,3,FALSE),VLOOKUP(VLOOKUP($A19,Janvier!$1:$1048576,AT$7+1,FALSE),Données!$A$2:$C$32,2,FALSE))) -> 0 | AU19: =IF(AU$6="TH",SUMIF(AT$6,"h.",AT19),IF(AU$6="h.",VLOOKUP(VLOOKUP($A19,Janvier!$1:$1048576,AT$7+1,FALSE),Données!$A$2:$C$32,3,FALSE),VLOOKUP(VLOOKUP($A19,Janvier!$1:$1048576,AU$7+1,FALSE),Données!$A$2:$C$32,2,FALSE))) ->  | AV19: =IF(AV$6="TH",SUMIF(AU$6,"h.",AU19),IF(AV$6="h.",VLOOKUP(VLOOKUP($A19,Janvier!$1:$1048576,AU$7+1,FALSE),Données!$A$2:$C$32,3,FALSE),VLOOKUP(VLOOKUP($A19,Janvier!$1:$1048576,AV$7+1,FALSE),Données!$A$2:$C$32,2,FALSE))) -> 0 | AW19: =IF(AW$6="TH",SUMIF(AV$6,"h.",AV19),IF(AW$6="h.",VLOOKUP(VLOOKUP($A19,Janvier!$1:$1048576,AV$7+1,FALSE),Données!$A$2:$C$32,3,FALSE),VLOOKUP(VLOOKUP($A19,Janvier!$1:$1048576,AW$7+1,FALSE),Données!$A$2:$C$32,2,FALSE))) -> 0 | AX19: =IF(AX$6="TH",SUMIF(AW$6,"h.",AW19),IF(AX$6="h.",VLOOKUP(VLOOKUP($A19,Janvier!$1:$1048576,AW$7+1,FALSE),Données!$A$2:$C$32,3,FALSE),VLOOKUP(VLOOKUP($A19,Janvier!$1:$1048576,AX$7+1,FALSE),Données!$A$2:$C$32,2,FALSE))) ->  | AY19: =IF(AY$6="TH",SUMIF(AX$6,"h.",AX19),IF(AY$6="h.",VLOOKUP(VLOOKUP($A19,Janvier!$1:$1048576,AX$7+1,FALSE),Données!$A$2:$C$32,3,FALSE),VLOOKUP(VLOOKUP($A19,Janvier!$1:$1048576,AY$7+1,FALSE),Données!$A$2:$C$32,2,FALSE))) -> 0 | AZ19: =IF(AZ$6="TH",SUMIF(AY$6,"h.",AY19),IF(AZ$6="h.",VLOOKUP(VLOOKUP($A19,Janvier!$1:$1048576,AY$7+1,FALSE),Données!$A$2:$C$32,3,FALSE),VLOOKUP(VLOOKUP($A19,Janvier!$1:$1048576,AZ$7+1,FALSE),Données!$A$2:$C$32,2,FALSE))) ->  | BA19: =IF(BA$6="TH",SUMIF(AZ$6,"h.",AZ19),IF(BA$6="h.",VLOOKUP(VLOOKUP($A19,Janvier!$1:$1048576,AZ$7+1,FALSE),Données!$A$2:$C$32,3,FALSE),VLOOKUP(VLOOKUP($A19,Janvier!$1:$1048576,BA$7+1,FALSE),Données!$A$2:$C$32,2,FALSE))) -> 0 | BB19: =IF(BB$6="TH",SUMIF(BA$6,"h.",BA19),IF(BB$6="h.",VLOOKUP(VLOOKUP($A19,Janvier!$1:$1048576,BA$7+1,FALSE),Données!$A$2:$C$32,3,FALSE),VLOOKUP(VLOOKUP($A19,Janvier!$1:$1048576,BB$7+1,FALSE),Données!$A$2:$C$32,2,FALSE))) ->  | BC19: =IF(BC$6="TH",SUMIF(BB$6,"h.",BB19),IF(BC$6="h.",VLOOKUP(VLOOKUP($A19,Janvier!$1:$1048576,BB$7+1,FALSE),Données!$A$2:$C$32,3,FALSE),VLOOKUP(VLOOKUP($A19,Janvier!$1:$1048576,BC$7+1,FALSE),Données!$A$2:$C$32,2,FALSE))) -> 0 | BD19: =IF(BD$6="TH",SUMIF(BC$6,"h.",BC19),IF(BD$6="h.",VLOOKUP(VLOOKUP($A19,Janvier!$1:$1048576,BC$7+1,FALSE),Données!$A$2:$C$32,3,FALSE),VLOOKUP(VLOOKUP($A19,Janvier!$1:$1048576,BD$7+1,FALSE),Données!$A$2:$C$32,2,FALSE))) ->  | BE19: =IF(BE$6="TH",SUMIF(BD$6,"h.",BD19),IF(BE$6="h.",VLOOKUP(VLOOKUP($A19,Janvier!$1:$1048576,BD$7+1,FALSE),Données!$A$2:$C$32,3,FALSE),VLOOKUP(VLOOKUP($A19,Janvier!$1:$1048576,BE$7+1,FALSE),Données!$A$2:$C$32,2,FALSE))) -> 0 | BF19: =IF(BF$6="TH",SUMIF(BE$6,"h.",BE19),IF(BF$6="h.",VLOOKUP(VLOOKUP($A19,Janvier!$1:$1048576,BE$7+1,FALSE),Données!$A$2:$C$32,3,FALSE),VLOOKUP(VLOOKUP($A19,Janvier!$1:$1048576,BF$7+1,FALSE),Données!$A$2:$C$32,2,FALSE))) ->  | BG19: =IF(BG$6="TH",SUMIF(BF$6,"h.",BF19),IF(BG$6="h.",VLOOKUP(VLOOKUP($A19,Janvier!$1:$1048576,BF$7+1,FALSE),Données!$A$2:$C$32,3,FALSE),VLOOKUP(VLOOKUP($A19,Janvier!$1:$1048576,BG$7+1,FALSE),Données!$A$2:$C$32,2,FALSE))) -> 0 | BH19: =IF(BH$6="TH",SUMIF(BG$6,"h.",BG19),IF(BH$6="h.",VLOOKUP(VLOOKUP($A19,Janvier!$1:$1048576,BG$7+1,FALSE),Données!$A$2:$C$32,3,FALSE),VLOOKUP(VLOOKUP($A19,Janvier!$1:$1048576,BH$7+1,FALSE),Données!$A$2:$C$32,2,FALSE))) ->  | BI19: =IF(BI$6="TH",SUMIF(BH$6,"h.",BH19),IF(BI$6="h.",VLOOKUP(VLOOKUP($A19,Janvier!$1:$1048576,BH$7+1,FALSE),Données!$A$2:$C$32,3,FALSE),VLOOKUP(VLOOKUP($A19,Janvier!$1:$1048576,BI$7+1,FALSE),Données!$A$2:$C$32,2,FALSE))) -> 0 | BJ19: =IF(BJ$6="TH",SUMIF(BI$6,"h.",BI19),IF(BJ$6="h.",VLOOKUP(VLOOKUP($A19,Janvier!$1:$1048576,BI$7+1,FALSE),Données!$A$2:$C$32,3,FALSE),VLOOKUP(VLOOKUP($A19,Janvier!$1:$1048576,BJ$7+1,FALSE),Données!$A$2:$C$32,2,FALSE))) ->  | BK19: =IF(BK$6="TH",SUMIF(BJ$6,"h.",BJ19),IF(BK$6="h.",VLOOKUP(VLOOKUP($A19,Janvier!$1:$1048576,BJ$7+1,FALSE),Données!$A$2:$C$32,3,FALSE),VLOOKUP(VLOOKUP($A19,Janvier!$1:$1048576,BK$7+1,FALSE),Données!$A$2:$C$32,2,FALSE))) -> 0 | BL19: =IF(BL$6="TH",SUMIF(BK$6,"h.",BK19),IF(BL$6="h.",VLOOKUP(VLOOKUP($A19,Janvier!$1:$1048576,BK$7+1,FALSE),Données!$A$2:$C$32,3,FALSE),VLOOKUP(VLOOKUP($A19,Janvier!$1:$1048576,BL$7+1,FALSE),Données!$A$2:$C$32,2,FALSE))) -> 0 | BM19: =IF(BM$6="TH",SUMIF(BL$6,"h.",BL19),IF(BM$6="h.",VLOOKUP(VLOOKUP($A19,Janvier!$1:$1048576,BL$7+1,FALSE),Données!$A$2:$C$32,3,FALSE),VLOOKUP(VLOOKUP($A19,Janvier!$1:$1048576,BM$7+1,FALSE),Données!$A$2:$C$32,2,FALSE))) ->  | BN19: =IF(BN$6="TH",SUMIF(BM$6,"h.",BM19),IF(BN$6="h.",VLOOKUP(VLOOKUP($A19,Janvier!$1:$1048576,BM$7+1,FALSE),Données!$A$2:$C$32,3,FALSE),VLOOKUP(VLOOKUP($A19,Janvier!$1:$1048576,BN$7+1,FALSE),Données!$A$2:$C$32,2,FALSE))) -> 0 | BO19: =IF(BO$6="TH",SUMIF(BN$6,"h.",BN19),IF(BO$6="h.",VLOOKUP(VLOOKUP($A19,Janvier!$1:$1048576,BN$7+1,FALSE),Données!$A$2:$C$32,3,FALSE),VLOOKUP(VLOOKUP($A19,Janvier!$1:$1048576,BO$7+1,FALSE),Données!$A$2:$C$32,2,FALSE))) ->  | BP19: =IF(BP$6="TH",SUMIF(BO$6,"h.",BO19),IF(BP$6="h.",VLOOKUP(VLOOKUP($A19,Janvier!$1:$1048576,BO$7+1,FALSE),Données!$A$2:$C$32,3,FALSE),VLOOKUP(VLOOKUP($A19,Janvier!$1:$1048576,BP$7+1,FALSE),Données!$A$2:$C$32,2,FALSE))) -> 0 | BS19: 0 | BT19: =SUM(HJanvier:HDecembre!BS19) -> 0
A20: =Données!E16 -> 0 | B20: =IF(B$6="TH",SUMIF(A$6,"h.",A20),IF(B$6="h.",VLOOKUP(VLOOKUP($A20,Janvier!$1:$1048576,A$7+1,FALSE),Données!$A$2:$C$32,3,FALSE),VLOOKUP(VLOOKUP($A20,Janvier!$1:$1048576,B$7+1,FALSE),Données!$A$2:$C$32,2,FALSE))) ->  | C20: =IF(C$6="TH",SUMIF(B$6,"h.",B20),IF(C$6="h.",VLOOKUP(VLOOKUP($A20,Janvier!$1:$1048576,B$7+1,FALSE),Données!$A$2:$C$32,3,FALSE),VLOOKUP(VLOOKUP($A20,Janvier!$1:$1048576,C$7+1,FALSE),Données!$A$2:$C$32,2,FALSE))) -> 0 | D20: =IF(D$6="TH",SUMIF(C$6,"h.",C20),IF(D$6="h.",VLOOKUP(VLOOKUP($A20,Janvier!$1:$1048576,C$7+1,FALSE),Données!$A$2:$C$32,3,FALSE),VLOOKUP(VLOOKUP($A20,Janvier!$1:$1048576,D$7+1,FALSE),Données!$A$2:$C$32,2,FALSE))) -> 0 | E20: =IF(E$6="TH",SUMIF(D$6,"h.",D20),IF(E$6="h.",VLOOKUP(VLOOKUP($A20,Janvier!$1:$1048576,D$7+1,FALSE),Données!$A$2:$C$32,3,FALSE),VLOOKUP(VLOOKUP($A20,Janvier!$1:$1048576,E$7+1,FALSE),Données!$A$2:$C$32,2,FALSE))) ->  | F20: =IF(F$6="TH",SUMIF(E$6,"h.",E20),IF(F$6="h.",VLOOKUP(VLOOKUP($A20,Janvier!$1:$1048576,E$7+1,FALSE),Données!$A$2:$C$32,3,FALSE),VLOOKUP(VLOOKUP($A20,Janvier!$1:$1048576,F$7+1,FALSE),Données!$A$2:$C$32,2,FALSE))) -> 0 | G20: =IF(G$6="TH",SUMIF(F$6,"h.",F20),IF(G$6="h.",VLOOKUP(VLOOKUP($A20,Janvier!$1:$1048576,F$7+1,FALSE),Données!$A$2:$C$32,3,FALSE),VLOOKUP(VLOOKUP($A20,Janvier!$1:$1048576,G$7+1,FALSE),Données!$A$2:$C$32,2,FALSE))) ->  | H20: =IF(H$6="TH",SUMIF(G$6,"h.",G20),IF(H$6="h.",VLOOKUP(VLOOKUP($A20,Janvier!$1:$1048576,G$7+1,FALSE),Données!$A$2:$C$32,3,FALSE),VLOOKUP(VLOOKUP($A20,Janvier!$1:$1048576,H$7+1,FALSE),Données!$A$2:$C$32,2,FALSE))) -> 0 | I20: =IF(I$6="TH",SUMIF(H$6,"h.",H20),IF(I$6="h.",VLOOKUP(VLOOKUP($A20,Janvier!$1:$1048576,H$7+1,FALSE),Données!$A$2:$C$32,3,FALSE),VLOOKUP(VLOOKUP($A20,Janvier!$1:$1048576,I$7+1,FALSE),Données!$A$2:$C$32,2,FALSE))) ->  | J20: =IF(J$6="TH",SUMIF(I$6,"h.",I20),IF(J$6="h.",VLOOKUP(VLOOKUP($A20,Janvier!$1:$1048576,I$7+1,FALSE),Données!$A$2:$C$32,3,FALSE),VLOOKUP(VLOOKUP($A20,Janvier!$1:$1048576,J$7+1,FALSE),Données!$A$2:$C$32,2,FALSE))) -> 0 | K20: =IF(K$6="TH",SUMIF(J$6,"h.",J20),IF(K$6="h.",VLOOKUP(VLOOKUP($A20,Janvier!$1:$1048576,J$7+1,FALSE),Données!$A$2:$C$32,3,FALSE),VLOOKUP(VLOOKUP($A20,Janvier!$1:$1048576,K$7+1,FALSE),Données!$A$2:$C$32,2,FALSE))) ->  | L20: =IF(L$6="TH",SUMIF(K$6,"h.",K20),IF(L$6="h.",VLOOKUP(VLOOKUP($A20,Janvier!$1:$1048576,K$7+1,FALSE),Données!$A$2:$C$32,3,FALSE),VLOOKUP(VLOOKUP($A20,Janvier!$1:$1048576,L$7+1,FALSE),Données!$A$2:$C$32,2,FALSE))) -> 0 | M20: =IF(M$6="TH",SUMIF(L$6,"h.",L20),IF(M$6="h.",VLOOKUP(VLOOKUP($A20,Janvier!$1:$1048576,L$7+1,FALSE),Données!$A$2:$C$32,3,FALSE),VLOOKUP(VLOOKUP($A20,Janvier!$1:$1048576,M$7+1,FALSE),Données!$A$2:$C$32,2,FALSE))) ->  | N20: =IF(N$6="TH",SUMIF(M$6,"h.",M20),IF(N$6="h.",VLOOKUP(VLOOKUP($A20,Janvier!$1:$1048576,M$7+1,FALSE),Données!$A$2:$C$32,3,FALSE),VLOOKUP(VLOOKUP($A20,Janvier!$1:$1048576,N$7+1,FALSE),Données!$A$2:$C$32,2,FALSE))) -> 0 | O20: =IF(O$6="TH",SUMIF(N$6,"h.",N20),IF(O$6="h.",VLOOKUP(VLOOKUP($A20,Janvier!$1:$1048576,N$7+1,FALSE),Données!$A$2:$C$32,3,FALSE),VLOOKUP(VLOOKUP($A20,Janvier!$1:$1048576,O$7+1,FALSE),Données!$A$2:$C$32,2,FALSE))) ->  | P20: =IF(P$6="TH",SUMIF(B20:O20,"h.",P20),IF(P$6="h.",VLOOKUP(VLOOKUP($A20,Janvier!$1:$1048576,O$7+1,FALSE),Données!$A$2:$C$32,3,FALSE),VLOOKUP(VLOOKUP($A20,Janvier!$1:$1048576,P$7+1,FALSE),Données!$A$2:$C$32,2,FALSE))) -> 0 | Q20: =IF(Q$6="TH",SUMIF(P$6,"h.",P20),IF(Q$6="h.",VLOOKUP(VLOOKUP($A20,Janvier!$1:$1048576,P$7+1,FALSE),Données!$A$2:$C$32,3,FALSE),VLOOKUP(VLOOKUP($A20,Janvier!$1:$1048576,Q$7+1,FALSE),Données!$A$2:$C$32,2,FALSE))) ->  | R20: =IF(R$6="TH",SUMIF(Q$6,"h.",Q20),IF(R$6="h.",VLOOKUP(VLOOKUP($A20,Janvier!$1:$1048576,Q$7+1,FALSE),Données!$A$2:$C$32,3,FALSE),VLOOKUP(VLOOKUP($A20,Janvier!$1:$1048576,R$7+1,FALSE),Données!$A$2:$C$32,2,FALSE))) -> 0 | S20: =IF(S$6="TH",SUMIF(R$6,"h.",R20),IF(S$6="h.",VLOOKUP(VLOOKUP($A20,Janvier!$1:$1048576,R$7+1,FALSE),Données!$A$2:$C$32,3,FALSE),VLOOKUP(VLOOKUP($A20,Janvier!$1:$1048576,S$7+1,FALSE),Données!$A$2:$C$32,2,FALSE))) -> 0 | T20: =IF(T$6="TH",SUMIF(S$6,"h.",S20),IF(T$6="h.",VLOOKUP(VLOOKUP($A20,Janvier!$1:$1048576,S$7+1,FALSE),Données!$A$2:$C$32,3,FALSE),VLOOKUP(VLOOKUP($A20,Janvier!$1:$1048576,T$7+1,FALSE),Données!$A$2:$C$32,2,FALSE))) ->  | U20: =IF(U$6="TH",SUMIF(T$6,"h.",T20),IF(U$6="h.",VLOOKUP(VLOOKUP($A20,Janvier!$1:$1048576,T$7+1,FALSE),Données!$A$2:$C$32,3,FALSE),VLOOKUP(VLOOKUP($A20,Janvier!$1:$1048576,U$7+1,FALSE),Données!$A$2:$C$32,2,FALSE))) -> 0 | V20: =IF(V$6="TH",SUMIF(U$6,"h.",U20),IF(V$6="h.",VLOOKUP(VLOOKUP($A20,Janvier!$1:$1048576,U$7+1,FALSE),Données!$A$2:$C$32,3,FALSE),VLOOKUP(VLOOKUP($A20,Janvier!$1:$1048576,V$7+1,FALSE),Données!$A$2:$C$32,2,FALSE))) ->  | W20: =IF(W$6="TH",SUMIF(V$6,"h.",V20),IF(W$6="h.",VLOOKUP(VLOOKUP($A20,Janvier!$1:$1048576,V$7+1,FALSE),Données!$A$2:$C$32,3,FALSE),VLOOKUP(VLOOKUP($A20,Janvier!$1:$1048576,W$7+1,FALSE),Données!$A$2:$C$32,2,FALSE))) -> 0 | X20: =IF(X$6="TH",SUMIF(W$6,"h.",W20),IF(X$6="h.",VLOOKUP(VLOOKUP($A20,Janvier!$1:$1048576,W$7+1,FALSE),Données!$A$2:$C$32,3,FALSE),VLOOKUP(VLOOKUP($A20,Janvier!$1:$1048576,X$7+1,FALSE),Données!$A$2:$C$32,2,FALSE))) ->  | Y20: =IF(Y$6="TH",SUMIF(X$6,"h.",X20),IF(Y$6="h.",VLOOKUP(VLOOKUP($A20,Janvier!$1:$1048576,X$7+1,FALSE),Données!$A$2:$C$32,3,FALSE),VLOOKUP(VLOOKUP($A20,Janvier!$1:$1048576,Y$7+1,FALSE),Données!$A$2:$C$32,2,FALSE))) -> 0 | Z20: =IF(Z$6="TH",SUMIF(Y$6,"h.",Y20),IF(Z$6="h.",VLOOKUP(VLOOKUP($A20,Janvier!$1:$1048576,Y$7+1,FALSE),Données!$A$2:$C$32,3,FALSE),VLOOKUP(VLOOKUP($A20,Janvier!$1:$1048576,Z$7+1,FALSE),Données!$A$2:$C$32,2,FALSE))) ->  | AA20: =IF(AA$6="TH",SUMIF(Z$6,"h.",Z20),IF(AA$6="h.",VLOOKUP(VLOOKUP($A20,Janvier!$1:$1048576,Z$7+1,FALSE),Données!$A$2:$C$32,3,FALSE),VLOOKUP(VLOOKUP($A20,Janvier!$1:$1048576,AA$7+1,FALSE),Données!$A$2:$C$32,2,FALSE))) -> 0 | AB20: =IF(AB$6="TH",SUMIF(AA$6,"h.",AA20),IF(AB$6="h.",VLOOKUP(VLOOKUP($A20,Janvier!$1:$1048576,AA$7+1,FALSE),Données!$A$2:$C$32,3,FALSE),VLOOKUP(VLOOKUP($A20,Janvier!$1:$1048576,AB$7+1,FALSE),Données!$A$2:$C$32,2,FALSE))) ->  | AC20: =IF(AC$6="TH",SUMIF(AB$6,"h.",AB20),IF(AC$6="h.",VLOOKUP(VLOOKUP($A20,Janvier!$1:$1048576,AB$7+1,FALSE),Données!$A$2:$C$32,3,FALSE),VLOOKUP(VLOOKUP($A20,Janvier!$1:$1048576,AC$7+1,FALSE),Données!$A$2:$C$32,2,FALSE))) -> 0 | AD20: =IF(AD$6="TH",SUMIF(AC$6,"h.",AC20),IF(AD$6="h.",VLOOKUP(VLOOKUP($A20,Janvier!$1:$1048576,AC$7+1,FALSE),Données!$A$2:$C$32,3,FALSE),VLOOKUP(VLOOKUP($A20,Janvier!$1:$1048576,AD$7+1,FALSE),Données!$A$2:$C$32,2,FALSE))) ->  | AE20: =IF(AE$6="TH",SUMIF(AD$6,"h.",AD20),IF(AE$6="h.",VLOOKUP(VLOOKUP($A20,Janvier!$1:$1048576,AD$7+1,FALSE),Données!$A$2:$C$32,3,FALSE),VLOOKUP(VLOOKUP($A20,Janvier!$1:$1048576,AE$7+1,FALSE),Données!$A$2:$C$32,2,FALSE))) -> 0 | AF20: =IF(AF$6="TH",SUMIF(AE$6,"h.",AE20),IF(AF$6="h.",VLOOKUP(VLOOKUP($A20,Janvier!$1:$1048576,AE$7+1,FALSE),Données!$A$2:$C$32,3,FALSE),VLOOKUP(VLOOKUP($A20,Janvier!$1:$1048576,AF$7+1,FALSE),Données!$A$2:$C$32,2,FALSE))) ->  | AG20: =IF(AG$6="TH",SUMIF(AF$6,"h.",AF20),IF(AG$6="h.",VLOOKUP(VLOOKUP($A20,Janvier!$1:$1048576,AF$7+1,FALSE),Données!$A$2:$C$32,3,FALSE),VLOOKUP(VLOOKUP($A20,Janvier!$1:$1048576,AG$7+1,FALSE),Données!$A$2:$C$32,2,FALSE))) -> 0 | AH20: =IF(AH$6="TH",SUMIF(AG$6,"h.",AG20),IF(AH$6="h.",VLOOKUP(VLOOKUP($A20,Janvier!$1:$1048576,AG$7+1,FALSE),Données!$A$2:$C$32,3,FALSE),VLOOKUP(VLOOKUP($A20,Janvier!$1:$1048576,AH$7+1,FALSE),Données!$A$2:$C$32,2,FALSE))) -> 0 | AI20: =IF(AI$6="TH",SUMIF(AH$6,"h.",AH20),IF(AI$6="h.",VLOOKUP(VLOOKUP($A20,Janvier!$1:$1048576,AH$7+1,FALSE),Données!$A$2:$C$32,3,FALSE),VLOOKUP(VLOOKUP($A20,Janvier!$1:$1048576,AI$7+1,FALSE),Données!$A$2:$C$32,2,FALSE))) ->  | AJ20: =IF(AJ$6="TH",SUMIF(AI$6,"h.",AI20),IF(AJ$6="h.",VLOOKUP(VLOOKUP($A20,Janvier!$1:$1048576,AI$7+1,FALSE),Données!$A$2:$C$32,3,FALSE),VLOOKUP(VLOOKUP($A20,Janvier!$1:$1048576,AJ$7+1,FALSE),Données!$A$2:$C$32,2,FALSE))) -> 0 | AK20: =IF(AK$6="TH",SUMIF(AJ$6,"h.",AJ20),IF(AK$6="h.",VLOOKUP(VLOOKUP($A20,Janvier!$1:$1048576,AJ$7+1,FALSE),Données!$A$2:$C$32,3,FALSE),VLOOKUP(VLOOKUP($A20,Janvier!$1:$1048576,AK$7+1,FALSE),Données!$A$2:$C$32,2,FALSE))) ->  | AL20: =IF(AL$6="TH",SUMIF(AK$6,"h.",AK20),IF(AL$6="h.",VLOOKUP(VLOOKUP($A20,Janvier!$1:$1048576,AK$7+1,FALSE),Données!$A$2:$C$32,3,FALSE),VLOOKUP(VLOOKUP($A20,Janvier!$1:$1048576,AL$7+1,FALSE),Données!$A$2:$C$32,2,FALSE))) -> 0 | AM20: =IF(AM$6="TH",SUMIF(AL$6,"h.",AL20),IF(AM$6="h.",VLOOKUP(VLOOKUP($A20,Janvier!$1:$1048576,AL$7+1,FALSE),Données!$A$2:$C$32,3,FALSE),VLOOKUP(VLOOKUP($A20,Janvier!$1:$1048576,AM$7+1,FALSE),Données!$A$2:$C$32,2,FALSE))) ->  | AN20: =IF(AN$6="TH",SUMIF(AM$6,"h.",AM20),IF(AN$6="h.",VLOOKUP(VLOOKUP($A20,Janvier!$1:$1048576,AM$7+1,FALSE),Données!$A$2:$C$32,3,FALSE),VLOOKUP(VLOOKUP($A20,Janvier!$1:$1048576,AN$7+1,FALSE),Données!$A$2:$C$32,2,FALSE))) -> 0 | AO20: =IF(AO$6="TH",SUMIF(AN$6,"h.",AN20),IF(AO$6="h.",VLOOKUP(VLOOKUP($A20,Janvier!$1:$1048576,AN$7+1,FALSE),Données!$A$2:$C$32,3,FALSE),VLOOKUP(VLOOKUP($A20,Janvier!$1:$1048576,AO$7+1,FALSE),Données!$A$2:$C$32,2,FALSE))) ->  | AP20: =IF(AP$6="TH",SUMIF(AO$6,"h.",AO20),IF(AP$6="h.",VLOOKUP(VLOOKUP($A20,Janvier!$1:$1048576,AO$7+1,FALSE),Données!$A$2:$C$32,3,FALSE),VLOOKUP(VLOOKUP($A20,Janvier!$1:$1048576,AP$7+1,FALSE),Données!$A$2:$C$32,2,FALSE))) -> 0 | AQ20: =IF(AQ$6="TH",SUMIF(AP$6,"h.",AP20),IF(AQ$6="h.",VLOOKUP(VLOOKUP($A20,Janvier!$1:$1048576,AP$7+1,FALSE),Données!$A$2:$C$32,3,FALSE),VLOOKUP(VLOOKUP($A20,Janvier!$1:$1048576,AQ$7+1,FALSE),Données!$A$2:$C$32,2,FALSE))) ->  | AR20: =IF(AR$6="TH",SUMIF(AQ$6,"h.",AQ20),IF(AR$6="h.",VLOOKUP(VLOOKUP($A20,Janvier!$1:$1048576,AQ$7+1,FALSE),Données!$A$2:$C$32,3,FALSE),VLOOKUP(VLOOKUP($A20,Janvier!$1:$1048576,AR$7+1,FALSE),Données!$A$2:$C$32,2,FALSE))) -> 0 | AS20: =IF(AS$6="TH",SUMIF(AR$6,"h.",AR20),IF(AS$6="h.",VLOOKUP(VLOOKUP($A20,Janvier!$1:$1048576,AR$7+1,FALSE),Données!$A$2:$C$32,3,FALSE),VLOOKUP(VLOOKUP($A20,Janvier!$1:$1048576,AS$7+1,FALSE),Données!$A$2:$C$32,2,FALSE))) ->  | AT20: =IF(AT$6="TH",SUMIF(AS$6,"h.",AS20),IF(AT$6="h.",VLOOKUP(VLOOKUP($A20,Janvier!$1:$1048576,AS$7+1,FALSE),Données!$A$2:$C$32,3,FALSE),VLOOKUP(VLOOKUP($A20,Janvier!$1:$1048576,AT$7+1,FALSE),Données!$A$2:$C$32,2,FALSE))) -> 0 | AU20: =IF(AU$6="TH",SUMIF(AT$6,"h.",AT20),IF(AU$6="h.",VLOOKUP(VLOOKUP($A20,Janvier!$1:$1048576,AT$7+1,FALSE),Données!$A$2:$C$32,3,FALSE),VLOOKUP(VLOOKUP($A20,Janvier!$1:$1048576,AU$7+1,FALSE),Données!$A$2:$C$32,2,FALSE))) ->  | AV20: =IF(AV$6="TH",SUMIF(AU$6,"h.",AU20),IF(AV$6="h.",VLOOKUP(VLOOKUP($A20,Janvier!$1:$1048576,AU$7+1,FALSE),Données!$A$2:$C$32,3,FALSE),VLOOKUP(VLOOKUP($A20,Janvier!$1:$1048576,AV$7+1,FALSE),Données!$A$2:$C$32,2,FALSE))) -> 0 | AW20: =IF(AW$6="TH",SUMIF(AV$6,"h.",AV20),IF(AW$6="h.",VLOOKUP(VLOOKUP($A20,Janvier!$1:$1048576,AV$7+1,FALSE),Données!$A$2:$C$32,3,FALSE),VLOOKUP(VLOOKUP($A20,Janvier!$1:$1048576,AW$7+1,FALSE),Données!$A$2:$C$32,2,FALSE))) -> 0 | AX20: =IF(AX$6="TH",SUMIF(AW$6,"h.",AW20),IF(AX$6="h.",VLOOKUP(VLOOKUP($A20,Janvier!$1:$1048576,AW$7+1,FALSE),Données!$A$2:$C$32,3,FALSE),VLOOKUP(VLOOKUP($A20,Janvier!$1:$1048576,AX$7+1,FALSE),Données!$A$2:$C$32,2,FALSE))) ->  | AY20: =IF(AY$6="TH",SUMIF(AX$6,"h.",AX20),IF(AY$6="h.",VLOOKUP(VLOOKUP($A20,Janvier!$1:$1048576,AX$7+1,FALSE),Données!$A$2:$C$32,3,FALSE),VLOOKUP(VLOOKUP($A20,Janvier!$1:$1048576,AY$7+1,FALSE),Données!$A$2:$C$32,2,FALSE))) -> 0 | AZ20: =IF(AZ$6="TH",SUMIF(AY$6,"h.",AY20),IF(AZ$6="h.",VLOOKUP(VLOOKUP($A20,Janvier!$1:$1048576,AY$7+1,FALSE),Données!$A$2:$C$32,3,FALSE),VLOOKUP(VLOOKUP($A20,Janvier!$1:$1048576,AZ$7+1,FALSE),Données!$A$2:$C$32,2,FALSE))) ->  | BA20: =IF(BA$6="TH",SUMIF(AZ$6,"h.",AZ20),IF(BA$6="h.",VLOOKUP(VLOOKUP($A20,Janvier!$1:$1048576,AZ$7+1,FALSE),Données!$A$2:$C$32,3,FALSE),VLOOKUP(VLOOKUP($A20,Janvier!$1:$1048576,BA$7+1,FALSE),Données!$A$2:$C$32,2,FALSE))) -> 0 | BB20: =IF(BB$6="TH",SUMIF(BA$6,"h.",BA20),IF(BB$6="h.",VLOOKUP(VLOOKUP($A20,Janvier!$1:$1048576,BA$7+1,FALSE),Données!$A$2:$C$32,3,FALSE),VLOOKUP(VLOOKUP($A20,Janvier!$1:$1048576,BB$7+1,FALSE),Données!$A$2:$C$32,2,FALSE))) ->  | BC20: =IF(BC$6="TH",SUMIF(BB$6,"h.",BB20),IF(BC$6="h.",VLOOKUP(VLOOKUP($A20,Janvier!$1:$1048576,BB$7+1,FALSE),Données!$A$2:$C$32,3,FALSE),VLOOKUP(VLOOKUP($A20,Janvier!$1:$1048576,BC$7+1,FALSE),Données!$A$2:$C$32,2,FALSE))) -> 0 | BD20: =IF(BD$6="TH",SUMIF(BC$6,"h.",BC20),IF(BD$6="h.",VLOOKUP(VLOOKUP($A20,Janvier!$1:$1048576,BC$7+1,FALSE),Données!$A$2:$C$32,3,FALSE),VLOOKUP(VLOOKUP($A20,Janvier!$1:$1048576,BD$7+1,FALSE),Données!$A$2:$C$32,2,FALSE))) ->  | BE20: =IF(BE$6="TH",SUMIF(BD$6,"h.",BD20),IF(BE$6="h.",VLOOKUP(VLOOKUP($A20,Janvier!$1:$1048576,BD$7+1,FALSE),Données!$A$2:$C$32,3,FALSE),VLOOKUP(VLOOKUP($A20,Janvier!$1:$1048576,BE$7+1,FALSE),Données!$A$2:$C$32,2,FALSE))) -> 0 | BF20: =IF(BF$6="TH",SUMIF(BE$6,"h.",BE20),IF(BF$6="h.",VLOOKUP(VLOOKUP($A20,Janvier!$1:$1048576,BE$7+1,FALSE),Données!$A$2:$C$32,3,FALSE),VLOOKUP(VLOOKUP($A20,Janvier!$1:$1048576,BF$7+1,FALSE),Données!$A$2:$C$32,2,FALSE))) ->  | BG20: =IF(BG$6="TH",SUMIF(BF$6,"h.",BF20),IF(BG$6="h.",VLOOKUP(VLOOKUP($A20,Janvier!$1:$1048576,BF$7+1,FALSE),Données!$A$2:$C$32,3,FALSE),VLOOKUP(VLOOKUP($A20,Janvier!$1:$1048576,BG$7+1,FALSE),Données!$A$2:$C$32,2,FALSE))) -> 0 | BH20: =IF(BH$6="TH",SUMIF(BG$6,"h.",BG20),IF(BH$6="h.",VLOOKUP(VLOOKUP($A20,Janvier!$1:$1048576,BG$7+1,FALSE),Données!$A$2:$C$32,3,FALSE),VLOOKUP(VLOOKUP($A20,Janvier!$1:$1048576,BH$7+1,FALSE),Données!$A$2:$C$32,2,FALSE))) ->  | BI20: =IF(BI$6="TH",SUMIF(BH$6,"h.",BH20),IF(BI$6="h.",VLOOKUP(VLOOKUP($A20,Janvier!$1:$1048576,BH$7+1,FALSE),Données!$A$2:$C$32,3,FALSE),VLOOKUP(VLOOKUP($A20,Janvier!$1:$1048576,BI$7+1,FALSE),Données!$A$2:$C$32,2,FALSE))) -> 0 | BJ20: =IF(BJ$6="TH",SUMIF(BI$6,"h.",BI20),IF(BJ$6="h.",VLOOKUP(VLOOKUP($A20,Janvier!$1:$1048576,BI$7+1,FALSE),Données!$A$2:$C$32,3,FALSE),VLOOKUP(VLOOKUP($A20,Janvier!$1:$1048576,BJ$7+1,FALSE),Données!$A$2:$C$32,2,FALSE))) ->  | BK20: =IF(BK$6="TH",SUMIF(BJ$6,"h.",BJ20),IF(BK$6="h.",VLOOKUP(VLOOKUP($A20,Janvier!$1:$1048576,BJ$7+1,FALSE),Données!$A$2:$C$32,3,FALSE),VLOOKUP(VLOOKUP($A20,Janvier!$1:$1048576,BK$7+1,FALSE),Données!$A$2:$C$32,2,FALSE))) -> 0 | BL20: =IF(BL$6="TH",SUMIF(BK$6,"h.",BK20),IF(BL$6="h.",VLOOKUP(VLOOKUP($A20,Janvier!$1:$1048576,BK$7+1,FALSE),Données!$A$2:$C$32,3,FALSE),VLOOKUP(VLOOKUP($A20,Janvier!$1:$1048576,BL$7+1,FALSE),Données!$A$2:$C$32,2,FALSE))) -> 0 | BM20: =IF(BM$6="TH",SUMIF(BL$6,"h.",BL20),IF(BM$6="h.",VLOOKUP(VLOOKUP($A20,Janvier!$1:$1048576,BL$7+1,FALSE),Données!$A$2:$C$32,3,FALSE),VLOOKUP(VLOOKUP($A20,Janvier!$1:$1048576,BM$7+1,FALSE),Données!$A$2:$C$32,2,FALSE))) ->  | BN20: =IF(BN$6="TH",SUMIF(BM$6,"h.",BM20),IF(BN$6="h.",VLOOKUP(VLOOKUP($A20,Janvier!$1:$1048576,BM$7+1,FALSE),Données!$A$2:$C$32,3,FALSE),VLOOKUP(VLOOKUP($A20,Janvier!$1:$1048576,BN$7+1,FALSE),Données!$A$2:$C$32,2,FALSE))) -> 0 | BO20: =IF(BO$6="TH",SUMIF(BN$6,"h.",BN20),IF(BO$6="h.",VLOOKUP(VLOOKUP($A20,Janvier!$1:$1048576,BN$7+1,FALSE),Données!$A$2:$C$32,3,FALSE),VLOOKUP(VLOOKUP($A20,Janvier!$1:$1048576,BO$7+1,FALSE),Données!$A$2:$C$32,2,FALSE))) ->  | BP20: =IF(BP$6="TH",SUMIF(BO$6,"h.",BO20),IF(BP$6="h.",VLOOKUP(VLOOKUP($A20,Janvier!$1:$1048576,BO$7+1,FALSE),Données!$A$2:$C$32,3,FALSE),VLOOKUP(VLOOKUP($A20,Janvier!$1:$1048576,BP$7+1,FALSE),Données!$A$2:$C$32,2,FALSE))) -> 0 | BS20: 0 | BT20: =SUM(HJanvier:HDecembre!BS20) -> 0
